Workbook

Sheet INTRO
B2: Formulaire de demande commune de médicaments pour CP v.3
B4: Dans le cadre des efforts mondiaux entrepris pour accélérer l'expansion de la chimioprévention (CP) pour l'élimination de la filariose lymphatique et la lutte contre la schistosomiase et les géohelminthiases, l'Organisation mondiale de la Santé (OMS) facilite l'approvisionnement en albendazole, comprimés de 400 mg (GSK), pour les programmes nationaux d'élimination de la filariose lymphatique et programmes nationaux de lutte contre les géohelminthiases; en diethylcarbamazine, comprimés de 100 mg (Eisai), pour les programmes nationaux d'élimination de la filariose lymphatique; en mebendazole, comprimés de 500 mg (J&J) pour les programmes nationaux de lutte contre les géohelminthiases et en praziquantel, comprimés de 600 mg (Merck KGaA), destinés aux enfants d'âge scolaire, pour les programmes nationaux de lutte contre la schistosomiase. L'OMS contribue également à l'approvisionnement en ivermectine, comprimés de 3 mg (Merck), pour les programmes de donation pour l'onchocercose et la filariose lymphatique. Cet outil Excel est concu pour aider les pays à quantifier le nombre de comprimés nécessaires, selon le traitement de chimioprévention requis, pour atteindre les objectifs de couverture de traitement de populations et districts pour l'année de la demande de médicaments. Le résultat de cet outil est une demande commune de médicaments pour la chimioprévention des maladies tropicales négligées, qui peut être imprimée, signée et soumise à l'OMS pour la demande de ces médicaments.
B6: Structure de l'application (feuilles de travail) :
B8: INTRO | C8: Cette feuille contient des instructions pour compléter le formulaire de demande de médicaments pour la chimioprévention et des informations sur le statut de la chimioprévention pour les maladies d'endémie du pays.
B9: COUNTRY_INFO | C9: Cette feuille contient des informations sur la structure administrative du pays, la population par groupe d'âge, le statut d'endémicité pour chaque maladie, la population devant être traitée par chimioprévention et les interventions prévues.
B10: DEC, ALB_MBD, PZQ et IVM | C10: Ces feuilles contiennent des informations sur l'endémicité des districts ciblés pour le traitement aux médicaments spécifiques à la chimioprévention, les plans de traitement, et le nombre de comprimés requis et demandés.
B11: SUMMARY | C11: Cette feuille inclut un résumé du nombre de comprimés demandés, des informations concernant le stock et les dates de soumission de la demande de médicaments. Avant de générer le rapport (run macros), veuillez sélectionner le médicament pour lequel le rapport est nécessaire. Veuillez suivre la même règle pour voir le nombre de personnes à traiter pour les maladies spécifiques. Cette feuille doit être imprimée et soumise en tant que "Formulaire de demande commune de médicaments pour chimioprévention" (voir les instructions pour la soumission du formulaire sous la feuille SUMMARY).
B13: Instructions pour la saisie des données
B15: La plupart des cellules des feuilles de travail mentionnées ci-dessus contiennent des formules calculées automatiquement en fonction du protocole de traitement recommandé par l'OMS pour chaque maladie. Voir : http://www.who.int/neglected_diseases/preventive_chemotherapy/pct_manual/en/index.html
B17: Veuillez entrer vos données dans les cellules en fonction de leur code de couleur :
C19: Blanc - la cellule n'est pas protégée. Veuillez entrer la valeur de l'indicateur demandé.
C21: Jaune - la cellule est protégée et inclut le nom de l'indicateur. Aucune entrée de données requise.
C23: Orange - la cellule n'est pas protégée et contient un menu déroulant. Veuillez sélectionner la valeur dans le menu déroulant.
C26: Vert - la cellule n'est pas protégée et contient des formules. Veuillez changer la valeur indiquée uniquement si vos données sont différentes de celles calculées automatiquement.
C29: Bleu - la cellule est protégée et contient des formules. Aucune entrée de données requise.
B31: Données pays
B33: PAYS | E33: Burundi
B35: Année de la demande de médicaments | E35: 2019
B37: Le pays est-il endémique à la filariose lymphatique (FL) ? | E37: Non endémique
B39: Le pays est-il endémique à l'onchocercose (ONCHO) ? | E39: Endémique
B41: Le pays est-il endémique aux géohelminthiases (STH) ? | E41: Endémique
B43: Le pays est-il endémique à la schistosomiase (SCH) ? | E43: Endémique
B45: Combien d'unités administratives compte le pays ? | E45: 46
B47: Si les données démographiques par groupe d'âge ne sont pas disponibles au second niveau administratif, veuillez entrer la proportion (%) de population, par groupe d'âge, du pays. Si les données sont disponibles, veuillez laisser les cellules vierges.
B48: 1-4 ans | C48: Enfants d'âge pré-scolaire (EAPréS) | E48: 0.142
B49: 5-14 ans | C49: Enfants d'âge scolaire (EAS) | E49: 0.267
B50: 15 ans et plus | C50: Adultes | E50: 0.554

Sheet COUNTRY_INFO
A1: INFORMATIONS PAYS
A2: Struture administrative, population par groupe d'âge, statut d'endémicité et interventions planifiées
A4: TOTAL | D4: =SUM(D$9:D$1000) -> 11046935 | E4: =SUM(E$9:E$1000) -> 1568662 | F4: =SUM(F$9:F$1000) -> 2949531 | G4: =SUM(G$9:G$1000) -> 6120002 | L4: =SUM(L$9:L$1000) -> 0 | M4: =SUM(M$9:M$1000) -> 1844203 | N4: =SUM(N$9:N$1000) -> 4518193 | O4: =SUM(O$9:O$1000) -> 599803.83
A6: Structure administrative du pays | D6: Population | H6: Endémicité | L6: Population nécessitant la CP | P6: Nombre de tournées de traitement prévues pour l'année | T6: Enquêtes épidémiologiques planifiées pour l’année
A7: Pays | B7: Région/Département | C7: District | D7: Total | E7: EAPréS | F7: EAS | G7: Adultes | H7: FL | I7: Oncho | J7: STH | K7: SCH | L7: FL | M7: Oncho | N7: STH | O7: SCH | P7: FL | Q7: Oncho | R7: STH | S7: SCH | T7: FL | U7: Oncho | V7: STH | W7: SCH | X7: IU_ID | Y7: IU_Name
A9: =IF(INTRO!$E$33<>0,INTRO!$E$33, " ") -> Burundi | B9: Bubanza | C9: Bubanza | D9: 238785 | E9: =IF(INTRO!$E$48="","",ROUND($D9*INTRO!$E$48,0)) -> 33907 | F9: =IF(INTRO!$E$49="","",ROUND($D9*INTRO!$E$49,0)) -> 63756 | G9: =IF(INTRO!$E$50="","",ROUND($D9*INTRO!$E$50,0)) -> 132287 | I9: 1 | J9: 2 | K9: 1 | L9: =IF(INTRO!$E$37="Endémique",IF($H9>0,IF($H9=4,"Inconnu",IF($H9=99,"Interrompu",$D9)),0),"Non requis") -> Non requis | M9: 238993 | N9: =IF(INTRO!$E$41="Endémique", IF(AND($J9>1,$J9<5), IF($J9=4, "Inconnu", E9+F9), 0),"Non requis") -> 97663 | O9: =IF(INTRO!$E$43="Endémique", IF(AND($K9>0,$K9<5), IF($K9=4,"Inconnu", IF($K9=1, $F9*0.33, IF($K9=2, $F9*0.5+$G9*0.2, SUM(F9:G9)))), 0),"Non requis") -> 21039.48 | Q9: 1 | R9: 2 | S9: 1 | U9: Yes | V9: Yes | W9: Yes | X9: 6375 | Y9: Bubanza
A10: =IF(INTRO!$E$33<>0,INTRO!$E$33, " ") -> Burundi | B10: Bubanza | C10: Mpanda | D10: 290281 | E10: =IF(INTRO!$E$48="","",ROUND($D10*INTRO!$E$48,0)) -> 41220 | F10: =IF(INTRO!$E$49="","",ROUND($D10*INTRO!$E$49,0)) -> 77505 | G10: =IF(INTRO!$E$50="","",ROUND($D10*INTRO!$E$50,0)) -> 160816 | I10: 1 | J10: 2 | K10: 1 | L10: =IF(INTRO!$E$37="Endémique",IF($H10>0,IF($H10=4,"Inconnu",IF($H10=99,"Interrompu",$D10)),0),"Non requis") -> Non requis | M10: 164257 | N10: =IF(INTRO!$E$41="Endémique", IF(AND($J10>1,$J10<5), IF($J10=4, "Inconnu", E10+F10), 0),"Non requis") -> 118725 | O10: =IF(INTRO!$E$43="Endémique", IF(AND($K10>0,$K10<5), IF($K10=4,"Inconnu", IF($K10=1, $F10*0.33, IF($K10=2, $F10*0.5+$G10*0.2, SUM(F10:G10)))), 0),"Non requis") -> 25576.65 | Q10: 1 | R10: 2 | S10: 1 | U10: Yes | V10: Yes | W10: Yes | X10: 6376 | Y10: Mpanda
A11: =IF(INTRO!$E$33<>0,INTRO!$E$33, " ") -> Burundi | B11: Bujumbura Mairie | C11: Zone Nord | D11: 323110 | E11: =IF(INTRO!$E$48="","",ROUND($D11*INTRO!$E$48,0)) -> 45882 | F11: =IF(INTRO!$E$49="","",ROUND($D11*INTRO!$E$49,0)) -> 86270 | G11: =IF(INTRO!$E$50="","",ROUND($D11*INTRO!$E$50,0)) -> 179003 | I11: 0 | J11: 2 | K11: 1 | L11: =IF(INTRO!$E$37="Endémique",IF($H11>0,IF($H11=4,"Inconnu",IF($H11=99,"Interrompu",$D11)),0),"Non requis") -> Non requis | M11: 0 | N11: =IF(INTRO!$E$41="Endémique", IF(AND($J11>1,$J11<5), IF($J11=4, "Inconnu", E11+F11), 0),"Non requis") -> 132152 | O11: =IF(INTRO!$E$43="Endémique", IF(AND($K11>0,$K11<5), IF($K11=4,"Inconnu", IF($K11=1, $F11*0.33, IF($K11=2, $F11*0.5+$G11*0.2, SUM(F11:G11)))), 0),"Non requis") -> 28469.1 | Q11: 0 | R11: 2 | S11: 1 | U11: Yes | V11: Yes | W11: Yes | X11: 6381 | Y11: Zone Nord
A12: =IF(INTRO!$E$33<>0,INTRO!$E$33, " ") -> Burundi | B12: Bujumbura Mairie | C12: Zone centre | D12: 139939 | E12: =IF(INTRO!$E$48="","",ROUND($D12*INTRO!$E$48,0)) -> 19871 | F12: =IF(INTRO!$E$49="","",ROUND($D12*INTRO!$E$49,0)) -> 37364 | G12: =IF(INTRO!$E$50="","",ROUND($D12*INTRO!$E$50,0)) -> 77526 | I12: 0 | J12: 2 | K12: 0 | L12: =IF(INTRO!$E$37="Endémique",IF($H12>0,IF($H12=4,"Inconnu",IF($H12=99,"Interrompu",$D12)),0),"Non requis") -> Non requis | M12: 0 | N12: =IF(INTRO!$E$41="Endémique", IF(AND($J12>1,$J12<5), IF($J12=4, "Inconnu", E12+F12), 0),"Non requis") -> 57235 | O12: =IF(INTRO!$E$43="Endémique", IF(AND($K12>0,$K12<5), IF($K12=4,"Inconnu", IF($K12=1, $F12*0.33, IF($K12=2, $F12*0.5+$G12*0.2, SUM(F12:G12)))), 0),"Non requis") -> 0 | Q12: 0 | R12: 2 | S12: 0 | U12: Yes | V12: Yes | W12: Yes | X12: 6380 | Y12: Zone centre
A13: =IF(INTRO!$E$33<>0,INTRO!$E$33, " ") -> Burundi | B13: Bujumbura Mairie | C13: Zone Sud | D13: 162045 | E13: =IF(INTRO!$E$48="","",ROUND($D13*INTRO!$E$48,0)) -> 23010 | F13: =IF(INTRO!$E$49="","",ROUND($D13*INTRO!$E$49,0)) -> 43266 | G13: =IF(INTRO!$E$50="","",ROUND($D13*INTRO!$E$50,0)) -> 89773 | I13: 0 | J13: 2 | K13: 0 | L13: =IF(INTRO!$E$37="Endémique",IF($H13>0,IF($H13=4,"Inconnu",IF($H13=99,"Interrompu",$D13)),0),"Non requis") -> Non requis | M13: 0 | N13: =IF(INTRO!$E$41="Endémique", IF(AND($J13>1,$J13<5), IF($J13=4, "Inconnu", E13+F13), 0),"Non requis") -> 66276 | O13: =IF(INTRO!$E$43="Endémique", IF(AND($K13>0,$K13<5), IF($K13=4,"Inconnu", IF($K13=1, $F13*0.33, IF($K13=2, $F13*0.5+$G13*0.2, SUM(F13:G13)))), 0),"Non requis") -> 0 | Q13: 0 | R13: 2 | S13: 0 | U13: Yes | V13: Yes | W13: Yes | X13: 6382 | Y13: Zone Sud
A14: =IF(INTRO!$E$33<>0,INTRO!$E$33, " ") -> Burundi | B14: Bujumbura Rural | C14: Kabezi | D14: 220844 | E14: =IF(INTRO!$E$48="","",ROUND($D14*INTRO!$E$48,0)) -> 31360 | F14: =IF(INTRO!$E$49="","",ROUND($D14*INTRO!$E$49,0)) -> 58965 | G14: =IF(INTRO!$E$50="","",ROUND($D14*INTRO!$E$50,0)) -> 122348 | I14: 0 | J14: 2 | K14: 1 | L14: =IF(INTRO!$E$37="Endémique",IF($H14>0,IF($H14=4,"Inconnu",IF($H14=99,"Interrompu",$D14)),0),"Non requis") -> Non requis | M14: 0 | N14: =IF(INTRO!$E$41="Endémique", IF(AND($J14>1,$J14<5), IF($J14=4, "Inconnu", E14+F14), 0),"Non requis") -> 90325 | O14: =IF(INTRO!$E$43="Endémique", IF(AND($K14>0,$K14<5), IF($K14=4,"Inconnu", IF($K14=1, $F14*0.33, IF($K14=2, $F14*0.5+$G14*0.2, SUM(F14:G14)))), 0),"Non requis") -> 19458.45 | Q14: 0 | R14: 2 | S14: 1 | U14: Yes | V14: Yes | W14: Yes | X14: 6378 | Y14: Kabezi
A15: =IF(INTRO!$E$33<>0,INTRO!$E$33, " ") -> Burundi | B15: Bujumbura Rural | C15: Isale | D15: 253606 | E15: =IF(INTRO!$E$48="","",ROUND($D15*INTRO!$E$48,0)) -> 36012 | F15: =IF(INTRO!$E$49="","",ROUND($D15*INTRO!$E$49,0)) -> 67713 | G15: =IF(INTRO!$E$50="","",ROUND($D15*INTRO!$E$50,0)) -> 140498 | I15: 0 | J15: 2 | K15: 1 | L15: =IF(INTRO!$E$37="Endémique",IF($H15>0,IF($H15=4,"Inconnu",IF($H15=99,"Interrompu",$D15)),0),"Non requis") -> Non requis | M15: 0 | N15: =IF(INTRO!$E$41="Endémique", IF(AND($J15>1,$J15<5), IF($J15=4, "Inconnu", E15+F15), 0),"Non requis") -> 103725 | O15: =IF(INTRO!$E$43="Endémique", IF(AND($K15>0,$K15<5), IF($K15=4,"Inconnu", IF($K15=1, $F15*0.33, IF($K15=2, $F15*0.5+$G15*0.2, SUM(F15:G15)))), 0),"Non requis") -> 22345.29 | Q15: 0 | R15: 2 | S15: 1 | U15: Yes | V15: Yes | W15: Yes | X15: 6377 | Y15: Isale
A16: =IF(INTRO!$E$33<>0,INTRO!$E$33, " ") -> Burundi | B16: Bujumbura Rural | C16: Rwibaga | D16: 112452 | E16: =IF(INTRO!$E$48="","",ROUND($D16*INTRO!$E$48,0)) -> 15968 | F16: =IF(INTRO!$E$49="","",ROUND($D16*INTRO!$E$49,0)) -> 30025 | G16: =IF(INTRO!$E$50="","",ROUND($D16*INTRO!$E$50,0)) -> 62298 | I16: 0 | J16: 2 | K16: 0 | L16: =IF(INTRO!$E$37="Endémique",IF($H16>0,IF($H16=4,"Inconnu",IF($H16=99,"Interrompu",$D16)),0),"Non requis") -> Non requis | M16: 0 | N16: =IF(INTRO!$E$41="Endémique", IF(AND($J16>1,$J16<5), IF($J16=4, "Inconnu", E16+F16), 0),"Non requis") -> 45993 | O16: =IF(INTRO!$E$43="Endémique", IF(AND($K16>0,$K16<5), IF($K16=4,"Inconnu", IF($K16=1, $F16*0.33, IF($K16=2, $F16*0.5+$G16*0.2, SUM(F16:G16)))), 0),"Non requis") -> 0 | Q16: 0 | R16: 2 | S16: 0 | U16: Yes | V16: Yes | W16: Yes | X16: 6379 | Y16: Rwibaga
A17: =IF(INTRO!$E$33<>0,INTRO!$E$33, " ") -> Burundi | B17: Bururi | C17: Bururi | D17: 156283 | E17: =IF(INTRO!$E$48="","",ROUND($D17*INTRO!$E$48,0)) -> 22192 | F17: =IF(INTRO!$E$49="","",ROUND($D17*INTRO!$E$49,0)) -> 41728 | G17: =IF(INTRO!$E$50="","",ROUND($D17*INTRO!$E$50,0)) -> 86581 | I17: 1 | J17: 2 | K17: 0 | L17: =IF(INTRO!$E$37="Endémique",IF($H17>0,IF($H17=4,"Inconnu",IF($H17=99,"Interrompu",$D17)),0),"Non requis") -> Non requis | M17: 42491 | N17: =IF(INTRO!$E$41="Endémique", IF(AND($J17>1,$J17<5), IF($J17=4, "Inconnu", E17+F17), 0),"Non requis") -> 63920 | O17: =IF(INTRO!$E$43="Endémique", IF(AND($K17>0,$K17<5), IF($K17=4,"Inconnu", IF($K17=1, $F17*0.33, IF($K17=2, $F17*0.5+$G17*0.2, SUM(F17:G17)))), 0),"Non requis") -> 0 | Q17: 1 | R17: 2 | S17: 0 | U17: Yes | V17: Yes | W17: Yes | X17: 6383 | Y17: Bururi
A18: =IF(INTRO!$E$33<>0,INTRO!$E$33, " ") -> Burundi | B18: Bururi | C18: Matana | D18: 256764 | E18: =IF(INTRO!$E$48="","",ROUND($D18*INTRO!$E$48,0)) -> 36460 | F18: =IF(INTRO!$E$49="","",ROUND($D18*INTRO!$E$49,0)) -> 68556 | G18: =IF(INTRO!$E$50="","",ROUND($D18*INTRO!$E$50,0)) -> 142247 | I18: 1 | J18: 2 | K18: 0 | L18: =IF(INTRO!$E$37="Endémique",IF($H18>0,IF($H18=4,"Inconnu",IF($H18=99,"Interrompu",$D18)),0),"Non requis") -> Non requis | M18: 23224 | N18: =IF(INTRO!$E$41="Endémique", IF(AND($J18>1,$J18<5), IF($J18=4, "Inconnu", E18+F18), 0),"Non requis") -> 105016 | O18: =IF(INTRO!$E$43="Endémique", IF(AND($K18>0,$K18<5), IF($K18=4,"Inconnu", IF($K18=1, $F18*0.33, IF($K18=2, $F18*0.5+$G18*0.2, SUM(F18:G18)))), 0),"Non requis") -> 0 | Q18: 1 | R18: 2 | S18: 0 | U18: Yes | V18: Yes | W18: Yes | X18: 6384 | Y18: Matana
A19: =IF(INTRO!$E$33<>0,INTRO!$E$33, " ") -> Burundi | B19: Cankuzo | C19: Cankuzo | D19: 185004 | E19: =IF(INTRO!$E$48="","",ROUND($D19*INTRO!$E$48,0)) -> 26271 | F19: =IF(INTRO!$E$49="","",ROUND($D19*INTRO!$E$49,0)) -> 49396 | G19: =IF(INTRO!$E$50="","",ROUND($D19*INTRO!$E$50,0)) -> 102492 | I19: 0 | J19: 2 | K19: 0 | L19: =IF(INTRO!$E$37="Endémique",IF($H19>0,IF($H19=4,"Inconnu",IF($H19=99,"Interrompu",$D19)),0),"Non requis") -> Non requis | M19: 0 | N19: =IF(INTRO!$E$41="Endémique", IF(AND($J19>1,$J19<5), IF($J19=4, "Inconnu", E19+F19), 0),"Non requis") -> 75667 | O19: =IF(INTRO!$E$43="Endémique", IF(AND($K19>0,$K19<5), IF($K19=4,"Inconnu", IF($K19=1, $F19*0.33, IF($K19=2, $F19*0.5+$G19*0.2, SUM(F19:G19)))), 0),"Non requis") -> 0 | Q19: 0 | R19: 2 | S19: 0 | U19: Yes | V19: Yes | W19: Yes | X19: 6386 | Y19: Cankuzo
A20: =IF(INTRO!$E$33<>0,INTRO!$E$33, " ") -> Burundi | B20: Cankuzo | C20: Murore | D20: 181254 | E20: =IF(INTRO!$E$48="","",ROUND($D20*INTRO!$E$48,0)) -> 25738 | F20: =IF(INTRO!$E$49="","",ROUND($D20*INTRO!$E$49,0)) -> 48395 | G20: =IF(INTRO!$E$50="","",ROUND($D20*INTRO!$E$50,0)) -> 100415 | I20: 0 | J20: 2 | K20: 1 | L20: =IF(INTRO!$E$37="Endémique",IF($H20>0,IF($H20=4,"Inconnu",IF($H20=99,"Interrompu",$D20)),0),"Non requis") -> Non requis | M20: 0 | N20: =IF(INTRO!$E$41="Endémique", IF(AND($J20>1,$J20<5), IF($J20=4, "Inconnu", E20+F20), 0),"Non requis") -> 74133 | O20: =IF(INTRO!$E$43="Endémique", IF(AND($K20>0,$K20<5), IF($K20=4,"Inconnu", IF($K20=1, $F20*0.33, IF($K20=2, $F20*0.5+$G20*0.2, SUM(F20:G20)))), 0),"Non requis") -> 15970.35 | Q20: 0 | R20: 2 | S20: 1 | U20: Yes | V20: Yes | W20: Yes | X20: 6387 | Y20: Murore
A21: =IF(INTRO!$E$33<>0,INTRO!$E$33, " ") -> Burundi | B21: Cibitoke | C21: Cibitoke | D21: 354094 | E21: =IF(INTRO!$E$48="","",ROUND($D21*INTRO!$E$48,0)) -> 50281 | F21: =IF(INTRO!$E$49="","",ROUND($D21*INTRO!$E$49,0)) -> 94543 | G21: =IF(INTRO!$E$50="","",ROUND($D21*INTRO!$E$50,0)) -> 196168 | I21: 1 | J21: 2 | K21: 2 | L21: =IF(INTRO!$E$37="Endémique",IF($H21>0,IF($H21=4,"Inconnu",IF($H21=99,"Interrompu",$D21)),0),"Non requis") -> Non requis | M21: 331336 | N21: =IF(INTRO!$E$41="Endémique", IF(AND($J21>1,$J21<5), IF($J21=4, "Inconnu", E21+F21), 0),"Non requis") -> 144824 | O21: =IF(INTRO!$E$43="Endémique", IF(AND($K21>0,$K21<5), IF($K21=4,"Inconnu", IF($K21=1, $F21*0.33, IF($K21=2, $F21*0.5+$G21*0.2, SUM(F21:G21)))), 0),"Non requis") -> 86505.1 | Q21: 1 | R21: 2 | S21: 1 | U21: Yes | V21: Yes | W21: Yes | X21: 6388 | Y21: Cibitoke
A22: =IF(INTRO!$E$33<>0,INTRO!$E$33, " ") -> Burundi | B22: Cibitoke | C22: Mabayi | D22: 297401 | E22: =IF(INTRO!$E$48="","",ROUND($D22*INTRO!$E$48,0)) -> 42231 | F22: =IF(INTRO!$E$49="","",ROUND($D22*INTRO!$E$49,0)) -> 79406 | G22: =IF(INTRO!$E$50="","",ROUND($D22*INTRO!$E$50,0)) -> 164760 | I22: 1 | J22: 2 | K22: 1 | L22: =IF(INTRO!$E$37="Endémique",IF($H22>0,IF($H22=4,"Inconnu",IF($H22=99,"Interrompu",$D22)),0),"Non requis") -> Non requis | M22: 301056 | N22: =IF(INTRO!$E$41="Endémique", IF(AND($J22>1,$J22<5), IF($J22=4, "Inconnu", E22+F22), 0),"Non requis") -> 121637 | O22: =IF(INTRO!$E$43="Endémique", IF(AND($K22>0,$K22<5), IF($K22=4,"Inconnu", IF($K22=1, $F22*0.33, IF($K22=2, $F22*0.5+$G22*0.2, SUM(F22:G22)))), 0),"Non requis") -> 26203.98 | Q22: 1 | R22: 2 | S22: 1 | U22: Yes | V22: Yes | W22: Yes | X22: 6389 | Y22: Mabayi
A23: =IF(INTRO!$E$33<>0,INTRO!$E$33, " ") -> Burundi | B23: Gitega | C23: Gitega | D23: 309292 | E23: =IF(INTRO!$E$48="","",ROUND($D23*INTRO!$E$48,0)) -> 43919 | F23: =IF(INTRO!$E$49="","",ROUND($D23*INTRO!$E$49,0)) -> 82581 | G23: =IF(INTRO!$E$50="","",ROUND($D23*INTRO!$E$50,0)) -> 171348 | I23: 0 | J23: 2 | K23: 0 | L23: =IF(INTRO!$E$37="Endémique",IF($H23>0,IF($H23=4,"Inconnu",IF($H23=99,"Interrompu",$D23)),0),"Non requis") -> Non requis | M23: 0 | N23: =IF(INTRO!$E$41="Endémique", IF(AND($J23>1,$J23<5), IF($J23=4, "Inconnu", E23+F23), 0),"Non requis") -> 126500 | O23: =IF(INTRO!$E$43="Endémique", IF(AND($K23>0,$K23<5), IF($K23=4,"Inconnu", IF($K23=1, $F23*0.33, IF($K23=2, $F23*0.5+$G23*0.2, SUM(F23:G23)))), 0),"Non requis") -> 0 | Q23: 0 | R23: 2 | S23: 0 | U23: Yes | V23: Yes | W23: Yes | X23: 6390 | Y23: Gitega
A24: =IF(INTRO!$E$33<>0,INTRO!$E$33, " ") -> Burundi | B24: Gitega | C24: Kibuye | D24: 229661 | E24: =IF(INTRO!$E$48="","",ROUND($D24*INTRO!$E$48,0)) -> 32612 | F24: =IF(INTRO!$E$49="","",ROUND($D24*INTRO!$E$49,0)) -> 61319 | G24: =IF(INTRO!$E$50="","",ROUND($D24*INTRO!$E$50,0)) -> 127232 | I24: 0 | J24: 2 | K24: 0 | L24: =IF(INTRO!$E$37="Endémique",IF($H24>0,IF($H24=4,"Inconnu",IF($H24=99,"Interrompu",$D24)),0),"Non requis") -> Non requis | M24: 0 | N24: =IF(INTRO!$E$41="Endémique", IF(AND($J24>1,$J24<5), IF($J24=4, "Inconnu", E24+F24), 0),"Non requis") -> 93931 | O24: =IF(INTRO!$E$43="Endémique", IF(AND($K24>0,$K24<5), IF($K24=4,"Inconnu", IF($K24=1, $F24*0.33, IF($K24=2, $F24*0.5+$G24*0.2, SUM(F24:G24)))), 0),"Non requis") -> 0 | Q24: 0 | R24: 2 | S24: 0 | U24: Yes | V24: Yes | W24: Yes | X24: 6391 | Y24: Kibuye
A25: =IF(INTRO!$E$33<>0,INTRO!$E$33, " ") -> Burundi | B25: Gitega | C25: Mutaho | D25: 222317 | E25: =IF(INTRO!$E$48="","",ROUND($D25*INTRO!$E$48,0)) -> 31569 | F25: =IF(INTRO!$E$49="","",ROUND($D25*INTRO!$E$49,0)) -> 59359 | G25: =IF(INTRO!$E$50="","",ROUND($D25*INTRO!$E$50,0)) -> 123164 | I25: 0 | J25: 2 | K25: 0 | L25: =IF(INTRO!$E$37="Endémique",IF($H25>0,IF($H25=4,"Inconnu",IF($H25=99,"Interrompu",$D25)),0),"Non requis") -> Non requis | M25: 0 | N25: =IF(INTRO!$E$41="Endémique", IF(AND($J25>1,$J25<5), IF($J25=4, "Inconnu", E25+F25), 0),"Non requis") -> 90928 | O25: =IF(INTRO!$E$43="Endémique", IF(AND($K25>0,$K25<5), IF($K25=4,"Inconnu", IF($K25=1, $F25*0.33, IF($K25=2, $F25*0.5+$G25*0.2, SUM(F25:G25)))), 0),"Non requis") -> 0 | Q25: 0 | R25: 2 | S25: 0 | U25: Yes | V25: Yes | W25: Yes | X25: 6392 | Y25: Mutaho
A26: =IF(INTRO!$E$33<>0,INTRO!$E$33, " ") -> Burundi | B26: Gitega | C26: Ryansoro | D26: 177780 | E26: =IF(INTRO!$E$48="","",ROUND($D26*INTRO!$E$48,0)) -> 25245 | F26: =IF(INTRO!$E$49="","",ROUND($D26*INTRO!$E$49,0)) -> 47467 | G26: =IF(INTRO!$E$50="","",ROUND($D26*INTRO!$E$50,0)) -> 98490 | I26: 0 | J26: 2 | K26: 0 | L26: =IF(INTRO!$E$37="Endémique",IF($H26>0,IF($H26=4,"Inconnu",IF($H26=99,"Interrompu",$D26)),0),"Non requis") -> Non requis | M26: 0 | N26: =IF(INTRO!$E$41="Endémique", IF(AND($J26>1,$J26<5), IF($J26=4, "Inconnu", E26+F26), 0),"Non requis") -> 72712 | O26: =IF(INTRO!$E$43="Endémique", IF(AND($K26>0,$K26<5), IF($K26=4,"Inconnu", IF($K26=1, $F26*0.33, IF($K26=2, $F26*0.5+$G26*0.2, SUM(F26:G26)))), 0),"Non requis") -> 0 | Q26: 0 | R26: 2 | S26: 0 | U26: Yes | V26: Yes | W26: Yes | X26: 6393 | Y26: Ryansoro
A27: =IF(INTRO!$E$33<>0,INTRO!$E$33, " ") -> Burundi | B27: Karusi | C27: Buhiga | D27: 309638 | E27: =IF(INTRO!$E$48="","",ROUND($D27*INTRO!$E$48,0)) -> 43969 | F27: =IF(INTRO!$E$49="","",ROUND($D27*INTRO!$E$49,0)) -> 82673 | G27: =IF(INTRO!$E$50="","",ROUND($D27*INTRO!$E$50,0)) -> 171539 | I27: 0 | J27: 2 | K27: 0 | L27: =IF(INTRO!$E$37="Endémique",IF($H27>0,IF($H27=4,"Inconnu",IF($H27=99,"Interrompu",$D27)),0),"Non requis") -> Non requis | M27: 0 | N27: =IF(INTRO!$E$41="Endémique", IF(AND($J27>1,$J27<5), IF($J27=4, "Inconnu", E27+F27), 0),"Non requis") -> 126642 | O27: =IF(INTRO!$E$43="Endémique", IF(AND($K27>0,$K27<5), IF($K27=4,"Inconnu", IF($K27=1, $F27*0.33, IF($K27=2, $F27*0.5+$G27*0.2, SUM(F27:G27)))), 0),"Non requis") -> 0 | Q27: 0 | R27: 2 | S27: 0 | U27: Yes | V27: Yes | W27: Yes | X27: 6394 | Y27: Buhiga
A28: =IF(INTRO!$E$33<>0,INTRO!$E$33, " ") -> Burundi | B28: Karusi | C28: Nyabikere | D28: 275407 | E28: =IF(INTRO!$E$48="","",ROUND($D28*INTRO!$E$48,0)) -> 39108 | F28: =IF(INTRO!$E$49="","",ROUND($D28*INTRO!$E$49,0)) -> 73534 | G28: =IF(INTRO!$E$50="","",ROUND($D28*INTRO!$E$50,0)) -> 152575 | I28: 0 | J28: 2 | K28: 0 | L28: =IF(INTRO!$E$37="Endémique",IF($H28>0,IF($H28=4,"Inconnu",IF($H28=99,"Interrompu",$D28)),0),"Non requis") -> Non requis | M28: 0 | N28: =IF(INTRO!$E$41="Endémique", IF(AND($J28>1,$J28<5), IF($J28=4, "Inconnu", E28+F28), 0),"Non requis") -> 112642 | O28: =IF(INTRO!$E$43="Endémique", IF(AND($K28>0,$K28<5), IF($K28=4,"Inconnu", IF($K28=1, $F28*0.33, IF($K28=2, $F28*0.5+$G28*0.2, SUM(F28:G28)))), 0),"Non requis") -> 0 | Q28: 0 | R28: 2 | S28: 0 | U28: Yes | V28: Yes | W28: Yes | X28: 6395 | Y28: Nyabikere
A29: =IF(INTRO!$E$33<>0,INTRO!$E$33, " ") -> Burundi | B29: Kayanza | C29: Gahombo | D29: 225839 | E29: =IF(INTRO!$E$48="","",ROUND($D29*INTRO!$E$48,0)) -> 32069 | F29: =IF(INTRO!$E$49="","",ROUND($D29*INTRO!$E$49,0)) -> 60299 | G29: =IF(INTRO!$E$50="","",ROUND($D29*INTRO!$E$50,0)) -> 125115 | I29: 0 | J29: 2 | K29: 0 | L29: =IF(INTRO!$E$37="Endémique",IF($H29>0,IF($H29=4,"Inconnu",IF($H29=99,"Interrompu",$D29)),0),"Non requis") -> Non requis | M29: 0 | N29: =IF(INTRO!$E$41="Endémique", IF(AND($J29>1,$J29<5), IF($J29=4, "Inconnu", E29+F29), 0),"Non requis") -> 92368 | O29: =IF(INTRO!$E$43="Endémique", IF(AND($K29>0,$K29<5), IF($K29=4,"Inconnu", IF($K29=1, $F29*0.33, IF($K29=2, $F29*0.5+$G29*0.2, SUM(F29:G29)))), 0),"Non requis") -> 0 | Q29: 0 | R29: 2 | S29: 0 | U29: Yes | V29: Yes | W29: Yes | X29: 6396 | Y29: Gahombo
A30: =IF(INTRO!$E$33<>0,INTRO!$E$33, " ") -> Burundi | B30: Kayanza | C30: Kayanza | D30: 268146 | E30: =IF(INTRO!$E$48="","",ROUND($D30*INTRO!$E$48,0)) -> 38077 | F30: =IF(INTRO!$E$49="","",ROUND($D30*INTRO!$E$49,0)) -> 71595 | G30: =IF(INTRO!$E$50="","",ROUND($D30*INTRO!$E$50,0)) -> 148553 | I30: 0 | J30: 2 | K30: 0 | L30: =IF(INTRO!$E$37="Endémique",IF($H30>0,IF($H30=4,"Inconnu",IF($H30=99,"Interrompu",$D30)),0),"Non requis") -> Non requis | M30: 0 | N30: =IF(INTRO!$E$41="Endémique", IF(AND($J30>1,$J30<5), IF($J30=4, "Inconnu", E30+F30), 0),"Non requis") -> 109672 | O30: =IF(INTRO!$E$43="Endémique", IF(AND($K30>0,$K30<5), IF($K30=4,"Inconnu", IF($K30=1, $F30*0.33, IF($K30=2, $F30*0.5+$G30*0.2, SUM(F30:G30)))), 0),"Non requis") -> 0 | Q30: 0 | R30: 2 | S30: 0 | U30: Yes | V30: Yes | W30: Yes | X30: 6397 | Y30: Kayanza
A31: =IF(INTRO!$E$33<>0,INTRO!$E$33, " ") -> Burundi | B31: Kayanza | C31: Musema | D31: 255264 | E31: =IF(INTRO!$E$48="","",ROUND($D31*INTRO!$E$48,0)) -> 36247 | F31: =IF(INTRO!$E$49="","",ROUND($D31*INTRO!$E$49,0)) -> 68155 | G31: =IF(INTRO!$E$50="","",ROUND($D31*INTRO!$E$50,0)) -> 141416 | I31: 0 | J31: 2 | K31: 0 | L31: =IF(INTRO!$E$37="Endémique",IF($H31>0,IF($H31=4,"Inconnu",IF($H31=99,"Interrompu",$D31)),0),"Non requis") -> Non requis | M31: 0 | N31: =IF(INTRO!$E$41="Endémique", IF(AND($J31>1,$J31<5), IF($J31=4, "Inconnu", E31+F31), 0),"Non requis") -> 104402 | O31: =IF(INTRO!$E$43="Endémique", IF(AND($K31>0,$K31<5), IF($K31=4,"Inconnu", IF($K31=1, $F31*0.33, IF($K31=2, $F31*0.5+$G31*0.2, SUM(F31:G31)))), 0),"Non requis") -> 0 | Q31: 0 | R31: 2 | S31: 0 | U31: Yes | V31: Yes | W31: Yes | X31: 6398 | Y31: Musema
A32: =IF(INTRO!$E$33<>0,INTRO!$E$33, " ") -> Burundi | B32: Kirundo | C32: Busoni | D32: 185591 | E32: =IF(INTRO!$E$48="","",ROUND($D32*INTRO!$E$48,0)) -> 26354 | F32: =IF(INTRO!$E$49="","",ROUND($D32*INTRO!$E$49,0)) -> 49553 | G32: =IF(INTRO!$E$50="","",ROUND($D32*INTRO!$E$50,0)) -> 102817 | I32: 0 | J32: 2 | K32: 1 | L32: =IF(INTRO!$E$37="Endémique",IF($H32>0,IF($H32=4,"Inconnu",IF($H32=99,"Interrompu",$D32)),0),"Non requis") -> Non requis | M32: 0 | N32: =IF(INTRO!$E$41="Endémique", IF(AND($J32>1,$J32<5), IF($J32=4, "Inconnu", E32+F32), 0),"Non requis") -> 75907 | O32: =IF(INTRO!$E$43="Endémique", IF(AND($K32>0,$K32<5), IF($K32=4,"Inconnu", IF($K32=1, $F32*0.33, IF($K32=2, $F32*0.5+$G32*0.2, SUM(F32:G32)))), 0),"Non requis") -> 16352.49 | Q32: 0 | R32: 2 | S32: 1 | U32: Yes | V32: Yes | W32: Yes | X32: 6399 | Y32: Busoni
A33: =IF(INTRO!$E$33<>0,INTRO!$E$33, " ") -> Burundi | B33: Kirundo | C33: Kirundo | D33: 236729 | E33: =IF(INTRO!$E$48="","",ROUND($D33*INTRO!$E$48,0)) -> 33616 | F33: =IF(INTRO!$E$49="","",ROUND($D33*INTRO!$E$49,0)) -> 63207 | G33: =IF(INTRO!$E$50="","",ROUND($D33*INTRO!$E$50,0)) -> 131148 | I33: 0 | J33: 2 | K33: 1 | L33: =IF(INTRO!$E$37="Endémique",IF($H33>0,IF($H33=4,"Inconnu",IF($H33=99,"Interrompu",$D33)),0),"Non requis") -> Non requis | M33: 0 | N33: =IF(INTRO!$E$41="Endémique", IF(AND($J33>1,$J33<5), IF($J33=4, "Inconnu", E33+F33), 0),"Non requis") -> 96823 | O33: =IF(INTRO!$E$43="Endémique", IF(AND($K33>0,$K33<5), IF($K33=4,"Inconnu", IF($K33=1, $F33*0.33, IF($K33=2, $F33*0.5+$G33*0.2, SUM(F33:G33)))), 0),"Non requis") -> 20858.31 | Q33: 0 | R33: 2 | S33: 1 | U33: Yes | V33: Yes | W33: Yes | X33: 6400 | Y33: Kirundo
A34: =IF(INTRO!$E$33<>0,INTRO!$E$33, " ") -> Burundi | B34: Kirundo | C34: Mukenke | D34: 174057 | E34: =IF(INTRO!$E$48="","",ROUND($D34*INTRO!$E$48,0)) -> 24716 | F34: =IF(INTRO!$E$49="","",ROUND($D34*INTRO!$E$49,0)) -> 46473 | G34: =IF(INTRO!$E$50="","",ROUND($D34*INTRO!$E$50,0)) -> 96428 | I34: 0 | J34: 2 | K34: 1 | L34: =IF(INTRO!$E$37="Endémique",IF($H34>0,IF($H34=4,"Inconnu",IF($H34=99,"Interrompu",$D34)),0),"Non requis") -> Non requis | M34: 0 | N34: =IF(INTRO!$E$41="Endémique", IF(AND($J34>1,$J34<5), IF($J34=4, "Inconnu", E34+F34), 0),"Non requis") -> 71189 | O34: =IF(INTRO!$E$43="Endémique", IF(AND($K34>0,$K34<5), IF($K34=4,"Inconnu", IF($K34=1, $F34*0.33, IF($K34=2, $F34*0.5+$G34*0.2, SUM(F34:G34)))), 0),"Non requis") -> 15336.09 | Q34: 0 | R34: 2 | S34: 1 | U34: Yes | V34: Yes | W34: Yes | X34: 6401 | Y34: Mukenke
A35: =IF(INTRO!$E$33<>0,INTRO!$E$33, " ") -> Burundi | B35: Kirundo | C35: Vumbi | D35: 220037 | E35: =IF(INTRO!$E$48="","",ROUND($D35*INTRO!$E$48,0)) -> 31245 | F35: =IF(INTRO!$E$49="","",ROUND($D35*INTRO!$E$49,0)) -> 58750 | G35: =IF(INTRO!$E$50="","",ROUND($D35*INTRO!$E$50,0)) -> 121900 | I35: 0 | J35: 2 | K35: 1 | L35: =IF(INTRO!$E$37="Endémique",IF($H35>0,IF($H35=4,"Inconnu",IF($H35=99,"Interrompu",$D35)),0),"Non requis") -> Non requis | M35: 0 | N35: =IF(INTRO!$E$41="Endémique", IF(AND($J35>1,$J35<5), IF($J35=4, "Inconnu", E35+F35), 0),"Non requis") -> 89995 | O35: =IF(INTRO!$E$43="Endémique", IF(AND($K35>0,$K35<5), IF($K35=4,"Inconnu", IF($K35=1, $F35*0.33, IF($K35=2, $F35*0.5+$G35*0.2, SUM(F35:G35)))), 0),"Non requis") -> 19387.5 | Q35: 0 | R35: 2 | S35: 1 | U35: Yes | V35: Yes | W35: Yes | X35: 6402 | Y35: Vumbi
A36: =IF(INTRO!$E$33<>0,INTRO!$E$33, " ") -> Burundi | B36: Makamba | C36: Makamba | D36: 343693 | E36: =IF(INTRO!$E$48="","",ROUND($D36*INTRO!$E$48,0)) -> 48804 | F36: =IF(INTRO!$E$49="","",ROUND($D36*INTRO!$E$49,0)) -> 91766 | G36: =IF(INTRO!$E$50="","",ROUND($D36*INTRO!$E$50,0)) -> 190406 | I36: 1 | J36: 2 | K36: 1 | L36: =IF(INTRO!$E$37="Endémique",IF($H36>0,IF($H36=4,"Inconnu",IF($H36=99,"Interrompu",$D36)),0),"Non requis") -> Non requis | M36: 47685 | N36: =IF(INTRO!$E$41="Endémique", IF(AND($J36>1,$J36<5), IF($J36=4, "Inconnu", E36+F36), 0),"Non requis") -> 140570 | O36: =IF(INTRO!$E$43="Endémique", IF(AND($K36>0,$K36<5), IF($K36=4,"Inconnu", IF($K36=1, $F36*0.33, IF($K36=2, $F36*0.5+$G36*0.2, SUM(F36:G36)))), 0),"Non requis") -> 30282.78 | Q36: 1 | R36: 2 | S36: 1 | U36: Yes | V36: Yes | W36: Yes | X36: 6403 | Y36: Makamba
A37: =IF(INTRO!$E$33<>0,INTRO!$E$33, " ") -> Burundi | B37: Makamba | C37: Nyanza Lac | D37: 390326 | E37: =IF(INTRO!$E$48="","",ROUND($D37*INTRO!$E$48,0)) -> 55426 | F37: =IF(INTRO!$E$49="","",ROUND($D37*INTRO!$E$49,0)) -> 104217 | G37: =IF(INTRO!$E$50="","",ROUND($D37*INTRO!$E$50,0)) -> 216241 | I37: 0 | J37: 2 | K37: 2 | L37: =IF(INTRO!$E$37="Endémique",IF($H37>0,IF($H37=4,"Inconnu",IF($H37=99,"Interrompu",$D37)),0),"Non requis") -> Non requis | M37: 0 | N37: =IF(INTRO!$E$41="Endémique", IF(AND($J37>1,$J37<5), IF($J37=4, "Inconnu", E37+F37), 0),"Non requis") -> 159643 | O37: =IF(INTRO!$E$43="Endémique", IF(AND($K37>0,$K37<5), IF($K37=4,"Inconnu", IF($K37=1, $F37*0.33, IF($K37=2, $F37*0.5+$G37*0.2, SUM(F37:G37)))), 0),"Non requis") -> 95356.7 | Q37: 0 | R37: 2 | S37: 1 | U37: Yes | V37: Yes | W37: Yes | X37: 6404 | Y37: Nyanza Lac
A38: =IF(INTRO!$E$33<>0,INTRO!$E$33, " ") -> Burundi | B38: Muramvya | C38: Muramvya | D38: 201129 | E38: =IF(INTRO!$E$48="","",ROUND($D38*INTRO!$E$48,0)) -> 28560 | F38: =IF(INTRO!$E$49="","",ROUND($D38*INTRO!$E$49,0)) -> 53701 | G38: =IF(INTRO!$E$50="","",ROUND($D38*INTRO!$E$50,0)) -> 111425 | I38: 0 | J38: 2 | K38: 0 | L38: =IF(INTRO!$E$37="Endémique",IF($H38>0,IF($H38=4,"Inconnu",IF($H38=99,"Interrompu",$D38)),0),"Non requis") -> Non requis | M38: 0 | N38: =IF(INTRO!$E$41="Endémique", IF(AND($J38>1,$J38<5), IF($J38=4, "Inconnu", E38+F38), 0),"Non requis") -> 82261 | O38: =IF(INTRO!$E$43="Endémique", IF(AND($K38>0,$K38<5), IF($K38=4,"Inconnu", IF($K38=1, $F38*0.33, IF($K38=2, $F38*0.5+$G38*0.2, SUM(F38:G38)))), 0),"Non requis") -> 0 | Q38: 0 | R38: 2 | S38: 0 | U38: Yes | V38: Yes | W38: Yes | X38: 6406 | Y38: Muramvya
A39: =IF(INTRO!$E$33<>0,INTRO!$E$33, " ") -> Burundi | B39: Muramvya | C39: Kiganda | D39: 194763 | E39: =IF(INTRO!$E$48="","",ROUND($D39*INTRO!$E$48,0)) -> 27656 | F39: =IF(INTRO!$E$49="","",ROUND($D39*INTRO!$E$49,0)) -> 52002 | G39: =IF(INTRO!$E$50="","",ROUND($D39*INTRO!$E$50,0)) -> 107899 | I39: 0 | J39: 2 | K39: 0 | L39: =IF(INTRO!$E$37="Endémique",IF($H39>0,IF($H39=4,"Inconnu",IF($H39=99,"Interrompu",$D39)),0),"Non requis") -> Non requis | M39: 0 | N39: =IF(INTRO!$E$41="Endémique", IF(AND($J39>1,$J39<5), IF($J39=4, "Inconnu", E39+F39), 0),"Non requis") -> 79658 | O39: =IF(INTRO!$E$43="Endémique", IF(AND($K39>0,$K39<5), IF($K39=4,"Inconnu", IF($K39=1, $F39*0.33, IF($K39=2, $F39*0.5+$G39*0.2, SUM(F39:G39)))), 0),"Non requis") -> 0 | Q39: 0 | R39: 2 | S39: 0 | U39: Yes | V39: Yes | W39: Yes | X39: 6405 | Y39: Kiganda
A40: =IF(INTRO!$E$33<>0,INTRO!$E$33, " ") -> Burundi | B40: Muyinga | C40: Gashoho | D40: 202544 | E40: =IF(INTRO!$E$48="","",ROUND($D40*INTRO!$E$48,0)) -> 28761 | F40: =IF(INTRO!$E$49="","",ROUND($D40*INTRO!$E$49,0)) -> 54079 | G40: =IF(INTRO!$E$50="","",ROUND($D40*INTRO!$E$50,0)) -> 112209 | I40: 0 | J40: 2 | K40: 0 | L40: =IF(INTRO!$E$37="Endémique",IF($H40>0,IF($H40=4,"Inconnu",IF($H40=99,"Interrompu",$D40)),0),"Non requis") -> Non requis | M40: 0 | N40: =IF(INTRO!$E$41="Endémique", IF(AND($J40>1,$J40<5), IF($J40=4, "Inconnu", E40+F40), 0),"Non requis") -> 82840 | O40: =IF(INTRO!$E$43="Endémique", IF(AND($K40>0,$K40<5), IF($K40=4,"Inconnu", IF($K40=1, $F40*0.33, IF($K40=2, $F40*0.5+$G40*0.2, SUM(F40:G40)))), 0),"Non requis") -> 0 | Q40: 0 | R40: 2 | S40: 0 | U40: Yes | V40: Yes | W40: Yes | X40: 6407 | Y40: Gashoho
A41: =IF(INTRO!$E$33<>0,INTRO!$E$33, " ") -> Burundi | B41: Muyinga | C41: Giteranyi | D41: 335462 | E41: =IF(INTRO!$E$48="","",ROUND($D41*INTRO!$E$48,0)) -> 47636 | F41: =IF(INTRO!$E$49="","",ROUND($D41*INTRO!$E$49,0)) -> 89568 | G41: =IF(INTRO!$E$50="","",ROUND($D41*INTRO!$E$50,0)) -> 185846 | I41: 0 | J41: 2 | K41: 0 | L41: =IF(INTRO!$E$37="Endémique",IF($H41>0,IF($H41=4,"Inconnu",IF($H41=99,"Interrompu",$D41)),0),"Non requis") -> Non requis | M41: 0 | N41: =IF(INTRO!$E$41="Endémique", IF(AND($J41>1,$J41<5), IF($J41=4, "Inconnu", E41+F41), 0),"Non requis") -> 137204 | O41: =IF(INTRO!$E$43="Endémique", IF(AND($K41>0,$K41<5), IF($K41=4,"Inconnu", IF($K41=1, $F41*0.33, IF($K41=2, $F41*0.5+$G41*0.2, SUM(F41:G41)))), 0),"Non requis") -> 0 | Q41: 0 | R41: 2 | S41: 0 | U41: Yes | V41: Yes | W41: Yes | X41: 6408 | Y41: Giteranyi
A42: =IF(INTRO!$E$33<>0,INTRO!$E$33, " ") -> Burundi | B42: Muyinga | C42: Muyinga | D42: 318014 | E42: =IF(INTRO!$E$48="","",ROUND($D42*INTRO!$E$48,0)) -> 45158 | F42: =IF(INTRO!$E$49="","",ROUND($D42*INTRO!$E$49,0)) -> 84910 | G42: =IF(INTRO!$E$50="","",ROUND($D42*INTRO!$E$50,0)) -> 176180 | I42: 0 | J42: 2 | K42: 1 | L42: =IF(INTRO!$E$37="Endémique",IF($H42>0,IF($H42=4,"Inconnu",IF($H42=99,"Interrompu",$D42)),0),"Non requis") -> Non requis | M42: 0 | N42: =IF(INTRO!$E$41="Endémique", IF(AND($J42>1,$J42<5), IF($J42=4, "Inconnu", E42+F42), 0),"Non requis") -> 130068 | O42: =IF(INTRO!$E$43="Endémique", IF(AND($K42>0,$K42<5), IF($K42=4,"Inconnu", IF($K42=1, $F42*0.33, IF($K42=2, $F42*0.5+$G42*0.2, SUM(F42:G42)))), 0),"Non requis") -> 28020.3 | Q42: 0 | R42: 2 | S42: 1 | U42: Yes | V42: Yes | W42: Yes | X42: 6409 | Y42: Muyinga
A43: =IF(INTRO!$E$33<>0,INTRO!$E$33, " ") -> Burundi | B43: Mwaro | C43: Fota | D43: 157038 | E43: =IF(INTRO!$E$48="","",ROUND($D43*INTRO!$E$48,0)) -> 22299 | F43: =IF(INTRO!$E$49="","",ROUND($D43*INTRO!$E$49,0)) -> 41929 | G43: =IF(INTRO!$E$50="","",ROUND($D43*INTRO!$E$50,0)) -> 86999 | I43: 0 | J43: 2 | K43: 0 | L43: =IF(INTRO!$E$37="Endémique",IF($H43>0,IF($H43=4,"Inconnu",IF($H43=99,"Interrompu",$D43)),0),"Non requis") -> Non requis | M43: 0 | N43: =IF(INTRO!$E$41="Endémique", IF(AND($J43>1,$J43<5), IF($J43=4, "Inconnu", E43+F43), 0),"Non requis") -> 64228 | O43: =IF(INTRO!$E$43="Endémique", IF(AND($K43>0,$K43<5), IF($K43=4,"Inconnu", IF($K43=1, $F43*0.33, IF($K43=2, $F43*0.5+$G43*0.2, SUM(F43:G43)))), 0),"Non requis") -> 0 | Q43: 0 | R43: 2 | S43: 0 | U43: Yes | V43: Yes | W43: Yes | X43: 6410 | Y43: Fota
A44: =IF(INTRO!$E$33<>0,INTRO!$E$33, " ") -> Burundi | B44: Mwaro | C44: Kibumbu | D44: 171375 | E44: =IF(INTRO!$E$48="","",ROUND($D44*INTRO!$E$48,0)) -> 24335 | F44: =IF(INTRO!$E$49="","",ROUND($D44*INTRO!$E$49,0)) -> 45757 | G44: =IF(INTRO!$E$50="","",ROUND($D44*INTRO!$E$50,0)) -> 94942 | I44: 0 | J44: 2 | K44: 0 | L44: =IF(INTRO!$E$37="Endémique",IF($H44>0,IF($H44=4,"Inconnu",IF($H44=99,"Interrompu",$D44)),0),"Non requis") -> Non requis | M44: 0 | N44: =IF(INTRO!$E$41="Endémique", IF(AND($J44>1,$J44<5), IF($J44=4, "Inconnu", E44+F44), 0),"Non requis") -> 70092 | O44: =IF(INTRO!$E$43="Endémique", IF(AND($K44>0,$K44<5), IF($K44=4,"Inconnu", IF($K44=1, $F44*0.33, IF($K44=2, $F44*0.5+$G44*0.2, SUM(F44:G44)))), 0),"Non requis") -> 0 | Q44: 0 | R44: 2 | S44: 0 | U44: Yes | V44: Yes | W44: Yes | X44: 6411 | Y44: Kibumbu
A45: =IF(INTRO!$E$33<>0,INTRO!$E$33, " ") -> Burundi | B45: Ngozi | C45: Buye | D45: 216739 | E45: =IF(INTRO!$E$48="","",ROUND($D45*INTRO!$E$48,0)) -> 30777 | F45: =IF(INTRO!$E$49="","",ROUND($D45*INTRO!$E$49,0)) -> 57869 | G45: =IF(INTRO!$E$50="","",ROUND($D45*INTRO!$E$50,0)) -> 120073 | I45: 0 | J45: 2 | K45: 0 | L45: =IF(INTRO!$E$37="Endémique",IF($H45>0,IF($H45=4,"Inconnu",IF($H45=99,"Interrompu",$D45)),0),"Non requis") -> Non requis | M45: 0 | N45: =IF(INTRO!$E$41="Endémique", IF(AND($J45>1,$J45<5), IF($J45=4, "Inconnu", E45+F45), 0),"Non requis") -> 88646 | O45: =IF(INTRO!$E$43="Endémique", IF(AND($K45>0,$K45<5), IF($K45=4,"Inconnu", IF($K45=1, $F45*0.33, IF($K45=2, $F45*0.5+$G45*0.2, SUM(F45:G45)))), 0),"Non requis") -> 0 | Q45: 0 | R45: 2 | S45: 0 | U45: Yes | V45: Yes | W45: Yes | X45: 6412 | Y45: Buye
A46: =IF(INTRO!$E$33<>0,INTRO!$E$33, " ") -> Burundi | B46: Ngozi | C46: Kiremba | D46: 314426 | E46: =IF(INTRO!$E$48="","",ROUND($D46*INTRO!$E$48,0)) -> 44648 | F46: =IF(INTRO!$E$49="","",ROUND($D46*INTRO!$E$49,0)) -> 83952 | G46: =IF(INTRO!$E$50="","",ROUND($D46*INTRO!$E$50,0)) -> 174192 | I46: 0 | J46: 2 | K46: 0 | L46: =IF(INTRO!$E$37="Endémique",IF($H46>0,IF($H46=4,"Inconnu",IF($H46=99,"Interrompu",$D46)),0),"Non requis") -> Non requis | M46: 0 | N46: =IF(INTRO!$E$41="Endémique", IF(AND($J46>1,$J46<5), IF($J46=4, "Inconnu", E46+F46), 0),"Non requis") -> 128600 | O46: =IF(INTRO!$E$43="Endémique", IF(AND($K46>0,$K46<5), IF($K46=4,"Inconnu", IF($K46=1, $F46*0.33, IF($K46=2, $F46*0.5+$G46*0.2, SUM(F46:G46)))), 0),"Non requis") -> 0 | Q46: 0 | R46: 2 | S46: 0 | U46: Yes | V46: Yes | W46: Yes | X46: 6413 | Y46: Kiremba
A47: =IF(INTRO!$E$33<>0,INTRO!$E$33, " ") -> Burundi | B47: Ngozi | C47: Ngozi | D47: 346352 | E47: =IF(INTRO!$E$48="","",ROUND($D47*INTRO!$E$48,0)) -> 49182 | F47: =IF(INTRO!$E$49="","",ROUND($D47*INTRO!$E$49,0)) -> 92476 | G47: =IF(INTRO!$E$50="","",ROUND($D47*INTRO!$E$50,0)) -> 191879 | I47: 0 | J47: 2 | K47: 0 | L47: =IF(INTRO!$E$37="Endémique",IF($H47>0,IF($H47=4,"Inconnu",IF($H47=99,"Interrompu",$D47)),0),"Non requis") -> Non requis | M47: 0 | N47: =IF(INTRO!$E$41="Endémique", IF(AND($J47>1,$J47<5), IF($J47=4, "Inconnu", E47+F47), 0),"Non requis") -> 141658 | O47: =IF(INTRO!$E$43="Endémique", IF(AND($K47>0,$K47<5), IF($K47=4,"Inconnu", IF($K47=1, $F47*0.33, IF($K47=2, $F47*0.5+$G47*0.2, SUM(F47:G47)))), 0),"Non requis") -> 0 | Q47: 0 | R47: 2 | S47: 0 | U47: Yes | V47: Yes | W47: Yes | X47: 6414 | Y47: Ngozi
A48: =IF(INTRO!$E$33<>0,INTRO!$E$33, " ") -> Burundi | B48: Rumonge | C48: Bugarama | D48: 205554 | E48: =IF(INTRO!$E$48="","",ROUND($D48*INTRO!$E$48,0)) -> 29189 | F48: =IF(INTRO!$E$49="","",ROUND($D48*INTRO!$E$49,0)) -> 54883 | G48: =IF(INTRO!$E$50="","",ROUND($D48*INTRO!$E$50,0)) -> 113877 | I48: 1 | J48: 2 | K48: 1 | L48: =IF(INTRO!$E$37="Endémique",IF($H48>0,IF($H48=4,"Inconnu",IF($H48=99,"Interrompu",$D48)),0),"Non requis") -> Non requis | M48: 79134 | N48: =IF(INTRO!$E$41="Endémique", IF(AND($J48>1,$J48<5), IF($J48=4, "Inconnu", E48+F48), 0),"Non requis") -> 84072 | O48: =IF(INTRO!$E$43="Endémique", IF(AND($K48>0,$K48<5), IF($K48=4,"Inconnu", IF($K48=1, $F48*0.33, IF($K48=2, $F48*0.5+$G48*0.2, SUM(F48:G48)))), 0),"Non requis") -> 18111.39 | Q48: 1 | R48: 2 | S48: 1 | U48: Yes | V48: Yes | W48: Yes | X48: 6420 | Y48: Bugarama
A49: =IF(INTRO!$E$33<>0,INTRO!$E$33, " ") -> Burundi | B49: Rumonge | C49: Rumonge | D49: 328229 | E49: =IF(INTRO!$E$48="","",ROUND($D49*INTRO!$E$48,0)) -> 46609 | F49: =IF(INTRO!$E$49="","",ROUND($D49*INTRO!$E$49,0)) -> 87637 | G49: =IF(INTRO!$E$50="","",ROUND($D49*INTRO!$E$50,0)) -> 181839 | I49: 1 | J49: 2 | K49: 1 | L49: =IF(INTRO!$E$37="Endémique",IF($H49>0,IF($H49=4,"Inconnu",IF($H49=99,"Interrompu",$D49)),0),"Non requis") -> Non requis | M49: 315034 | N49: =IF(INTRO!$E$41="Endémique", IF(AND($J49>1,$J49<5), IF($J49=4, "Inconnu", E49+F49), 0),"Non requis") -> 134246 | O49: =IF(INTRO!$E$43="Endémique", IF(AND($K49>0,$K49<5), IF($K49=4,"Inconnu", IF($K49=1, $F49*0.33, IF($K49=2, $F49*0.5+$G49*0.2, SUM(F49:G49)))), 0),"Non requis") -> 28920.21 | Q49: 1 | R49: 2 | S49: 1 | U49: Yes | V49: Yes | W49: Yes | X49: 6385 | Y49: Rumonge
A50: =IF(INTRO!$E$33<>0,INTRO!$E$33, " ") -> Burundi | B50: Rutana | C50: Gihofi | D50: 274235 | E50: =IF(INTRO!$E$48="","",ROUND($D50*INTRO!$E$48,0)) -> 38941 | F50: =IF(INTRO!$E$49="","",ROUND($D50*INTRO!$E$49,0)) -> 73221 | G50: =IF(INTRO!$E$50="","",ROUND($D50*INTRO!$E$50,0)) -> 151926 | I50: 1 | J50: 2 | K50: 1 | L50: =IF(INTRO!$E$37="Endémique",IF($H50>0,IF($H50=4,"Inconnu",IF($H50=99,"Interrompu",$D50)),0),"Non requis") -> Non requis | M50: 276405 | N50: =IF(INTRO!$E$41="Endémique", IF(AND($J50>1,$J50<5), IF($J50=4, "Inconnu", E50+F50), 0),"Non requis") -> 112162 | O50: =IF(INTRO!$E$43="Endémique", IF(AND($K50>0,$K50<5), IF($K50=4,"Inconnu", IF($K50=1, $F50*0.33, IF($K50=2, $F50*0.5+$G50*0.2, SUM(F50:G50)))), 0),"Non requis") -> 24162.93 | Q50: 1 | R50: 2 | S50: 1 | U50: Yes | V50: Yes | W50: Yes | X50: 6415 | Y50: Gihofi
A51: =IF(INTRO!$E$33<>0,INTRO!$E$33, " ") -> Burundi | B51: Rutana | C51: Rutana | D51: 207731 | E51: =IF(INTRO!$E$48="","",ROUND($D51*INTRO!$E$48,0)) -> 29498 | F51: =IF(INTRO!$E$49="","",ROUND($D51*INTRO!$E$49,0)) -> 55464 | G51: =IF(INTRO!$E$50="","",ROUND($D51*INTRO!$E$50,0)) -> 115083 | I51: 1 | J51: 2 | K51: 1 | L51: =IF(INTRO!$E$37="Endémique",IF($H51>0,IF($H51=4,"Inconnu",IF($H51=99,"Interrompu",$D51)),0),"Non requis") -> Non requis | M51: 24588 | N51: =IF(INTRO!$E$41="Endémique", IF(AND($J51>1,$J51<5), IF($J51=4, "Inconnu", E51+F51), 0),"Non requis") -> 84962 | O51: =IF(INTRO!$E$43="Endémique", IF(AND($K51>0,$K51<5), IF($K51=4,"Inconnu", IF($K51=1, $F51*0.33, IF($K51=2, $F51*0.5+$G51*0.2, SUM(F51:G51)))), 0),"Non requis") -> 18303.12 | Q51: 1 | R51: 2 | S51: 1 | U51: Yes | V51: Yes | W51: Yes | X51: 6416 | Y51: Rutana
A52: =IF(INTRO!$E$33<>0,INTRO!$E$33, " ") -> Burundi | B52: Ruyigi | C52: Butezi | D52: 153688 | E52: =IF(INTRO!$E$48="","",ROUND($D52*INTRO!$E$48,0)) -> 21824 | F52: =IF(INTRO!$E$49="","",ROUND($D52*INTRO!$E$49,0)) -> 41035 | G52: =IF(INTRO!$E$50="","",ROUND($D52*INTRO!$E$50,0)) -> 85143 | I52: 0 | J52: 2 | K52: 1 | L52: =IF(INTRO!$E$37="Endémique",IF($H52>0,IF($H52=4,"Inconnu",IF($H52=99,"Interrompu",$D52)),0),"Non requis") -> Non requis | M52: 0 | N52: =IF(INTRO!$E$41="Endémique", IF(AND($J52>1,$J52<5), IF($J52=4, "Inconnu", E52+F52), 0),"Non requis") -> 62859 | O52: =IF(INTRO!$E$43="Endémique", IF(AND($K52>0,$K52<5), IF($K52=4,"Inconnu", IF($K52=1, $F52*0.33, IF($K52=2, $F52*0.5+$G52*0.2, SUM(F52:G52)))), 0),"Non requis") -> 13541.55 | Q52: 0 | R52: 2 | S52: 1 | U52: Yes | V52: Yes | W52: Yes | X52: 6417 | Y52: Butezi
A53: =IF(INTRO!$E$33<>0,INTRO!$E$33, " ") -> Burundi | B53: Ruyigi | C53: Kinyinya | D53: 290570 | E53: =IF(INTRO!$E$48="","",ROUND($D53*INTRO!$E$48,0)) -> 41261 | F53: =IF(INTRO!$E$49="","",ROUND($D53*INTRO!$E$49,0)) -> 77582 | G53: =IF(INTRO!$E$50="","",ROUND($D53*INTRO!$E$50,0)) -> 160976 | I53: 0 | J53: 2 | K53: 1 | L53: =IF(INTRO!$E$37="Endémique",IF($H53>0,IF($H53=4,"Inconnu",IF($H53=99,"Interrompu",$D53)),0),"Non requis") -> Non requis | M53: 0 | N53: =IF(INTRO!$E$41="Endémique", IF(AND($J53>1,$J53<5), IF($J53=4, "Inconnu", E53+F53), 0),"Non requis") -> 118843 | O53: =IF(INTRO!$E$43="Endémique", IF(AND($K53>0,$K53<5), IF($K53=4,"Inconnu", IF($K53=1, $F53*0.33, IF($K53=2, $F53*0.5+$G53*0.2, SUM(F53:G53)))), 0),"Non requis") -> 25602.06 | Q53: 0 | R53: 2 | S53: 1 | U53: Yes | V53: Yes | W53: Yes | X53: 6418 | Y53: Kinyinya
A54: =IF(INTRO!$E$33<>0,INTRO!$E$33, " ") -> Burundi | B54: Ruyigi | C54: Ruyigi | D54: 133447 | E54: =IF(INTRO!$E$48="","",ROUND($D54*INTRO!$E$48,0)) -> 18949 | F54: =IF(INTRO!$E$49="","",ROUND($D54*INTRO!$E$49,0)) -> 35630 | G54: =IF(INTRO!$E$50="","",ROUND($D54*INTRO!$E$50,0)) -> 73930 | I54: 0 | J54: 2 | K54: 0 | L54: =IF(INTRO!$E$37="Endémique",IF($H54>0,IF($H54=4,"Inconnu",IF($H54=99,"Interrompu",$D54)),0),"Non requis") -> Non requis | M54: 0 | N54: =IF(INTRO!$E$41="Endémique", IF(AND($J54>1,$J54<5), IF($J54=4, "Inconnu", E54+F54), 0),"Non requis") -> 54579 | O54: =IF(INTRO!$E$43="Endémique", IF(AND($K54>0,$K54<5), IF($K54=4,"Inconnu", IF($K54=1, $F54*0.33, IF($K54=2, $F54*0.5+$G54*0.2, SUM(F54:G54)))), 0),"Non requis") -> 0 | Q54: 0 | R54: 2 | S54: 0 | U54: Yes | V54: Yes | W54: Yes | X54: 6419 | Y54: Ruyigi

Sheet DEC (hidden)
A1: Diethylcarbamazine (DEC)
A2: Structure administrative, population ciblée par groupe d'âge, plan de traitement et information sur les comprimés
A4: TOTAL | D4: =SUM(D$9:D$1000) -> 0 | E4: =SUM(E$9:E$1000) -> 0 | F4: =SUM(F$9:F$1000) -> 0 | G4: =SUM(G$9:G$1000) -> 0 | I4: =SUM(I$9:I$1000) -> 0 | J4: =SUM(J$9:J$1000) -> 0 | K4: =SUM(K$9:K$1000) -> 0 | L4: =SUM(L$9:L$1000) -> 0 | M4: =SUM(M$9:M$1000) -> 0
A6: Structure administrative du pays | D6: Population nécessitant un traitement avec DEC | H6: Plan de traitement | I6: Population cible | J6: Diethylcarbamazine (DEC)
A7: Pays | B7: Région/Département | C7: District | D7: EAPréS | E7: EAS | F7: Adultes | G7: Total | H7: FL | I7: FL | J7: Total requis | K7: Reste en stock | L7: Comprimés devant être fournis | M7: Flacons (100mg) 1000 comprimés
A9: =IF(INTRO!$E$39<>"Non endémique", " ", IF(INTRO!$E$37="Non endémique"," ", IF(COUNTRY_INFO!A9=0," ",COUNTRY_INFO!A9))) ->  | B9: =IF(INTRO!$E$39<>"Non endémique", " ", IF(INTRO!$E$37="Non endémique"," ", IF(COUNTRY_INFO!B9=0," ",COUNTRY_INFO!B9))) ->  | C9: =IF(INTRO!$E$39<>"Non endémique", " ", IF(INTRO!$E$37="Non endémique"," ", IF(COUNTRY_INFO!C9=0," ",COUNTRY_INFO!C9))) ->  | D9: =IF(INTRO!$E$39<>"Non endémique", 0, IF(INTRO!$E$37="Non endémique",0,IF(COUNTRY_INFO!$H9=1,COUNTRY_INFO!E9,0))) -> 0 | E9: =IF(INTRO!$E$39<>"Non endémique", 0, IF(INTRO!$E$37="Non endémique",0,IF(COUNTRY_INFO!$H9=1,COUNTRY_INFO!F9,0))) -> 0 | F9: =IF(INTRO!$E$39<>"Non endémique", 0, IF(INTRO!$E$37="Non endémique",0,IF(COUNTRY_INFO!$H9=1,COUNTRY_INFO!G9,0))) -> 0 | G9: =SUM(D9:F9) -> 0 | H9: =IF(INTRO!$E$39="Non endémique",IF(INTRO!$E$37="Non endémique","Non requis",COUNTRY_INFO!P9),"Traiter avec IVM") -> Traiter avec IVM | I9: =IF(H9=1,G9,0) -> 0 | J9: =IF(I9>0,I9*2.5,0) -> 0 | L9: =IF($J9>$K9,$J9-$K9,0) -> 0 | M9: =ROUNDUP($J9/1000,0) -> 0
A10: =IF(INTRO!$E$39<>"Non endémique", " ", IF(INTRO!$E$37="Non endémique"," ", IF(COUNTRY_INFO!A10=0," ",COUNTRY_INFO!A10))) ->  | B10: =IF(INTRO!$E$39<>"Non endémique", " ", IF(INTRO!$E$37="Non endémique"," ", IF(COUNTRY_INFO!B10=0," ",COUNTRY_INFO!B10))) ->  | C10: =IF(INTRO!$E$39<>"Non endémique", " ", IF(INTRO!$E$37="Non endémique"," ", IF(COUNTRY_INFO!C10=0," ",COUNTRY_INFO!C10))) ->  | D10: =IF(INTRO!$E$39<>"Non endémique", 0, IF(INTRO!$E$37="Non endémique",0,IF(COUNTRY_INFO!$H10=1,COUNTRY_INFO!E10,0))) -> 0 | E10: =IF(INTRO!$E$39<>"Non endémique", 0, IF(INTRO!$E$37="Non endémique",0,IF(COUNTRY_INFO!$H10=1,COUNTRY_INFO!F10,0))) -> 0 | F10: =IF(INTRO!$E$39<>"Non endémique", 0, IF(INTRO!$E$37="Non endémique",0,IF(COUNTRY_INFO!$H10=1,COUNTRY_INFO!G10,0))) -> 0 | G10: 0 | H10: =IF(INTRO!$E$39="Non endémique",IF(INTRO!$E$37="Non endémique","Non requis",COUNTRY_INFO!P10),"Traiter avec IVM") -> Traiter avec IVM | I10: 0 | J10: 0 | L10: 0 | M10: 0
A11: =IF(INTRO!$E$39<>"Non endémique", " ", IF(INTRO!$E$37="Non endémique"," ", IF(COUNTRY_INFO!A11=0," ",COUNTRY_INFO!A11))) ->  | B11: =IF(INTRO!$E$39<>"Non endémique", " ", IF(INTRO!$E$37="Non endémique"," ", IF(COUNTRY_INFO!B11=0," ",COUNTRY_INFO!B11))) ->  | C11: =IF(INTRO!$E$39<>"Non endémique", " ", IF(INTRO!$E$37="Non endémique"," ", IF(COUNTRY_INFO!C11=0," ",COUNTRY_INFO!C11))) ->  | D11: =IF(INTRO!$E$39<>"Non endémique", 0, IF(INTRO!$E$37="Non endémique",0,IF(COUNTRY_INFO!$H11=1,COUNTRY_INFO!E11,0))) -> 0 | E11: =IF(INTRO!$E$39<>"Non endémique", 0, IF(INTRO!$E$37="Non endémique",0,IF(COUNTRY_INFO!$H11=1,COUNTRY_INFO!F11,0))) -> 0 | F11: =IF(INTRO!$E$39<>"Non endémique", 0, IF(INTRO!$E$37="Non endémique",0,IF(COUNTRY_INFO!$H11=1,COUNTRY_INFO!G11,0))) -> 0 | G11: 0 | H11: =IF(INTRO!$E$39="Non endémique",IF(INTRO!$E$37="Non endémique","Non requis",COUNTRY_INFO!P11),"Traiter avec IVM") -> Traiter avec IVM | I11: 0 | J11: 0 | L11: 0 | M11: 0
A12: =IF(INTRO!$E$39<>"Non endémique", " ", IF(INTRO!$E$37="Non endémique"," ", IF(COUNTRY_INFO!A12=0," ",COUNTRY_INFO!A12))) ->  | B12: =IF(INTRO!$E$39<>"Non endémique", " ", IF(INTRO!$E$37="Non endémique"," ", IF(COUNTRY_INFO!B12=0," ",COUNTRY_INFO!B12))) ->  | C12: =IF(INTRO!$E$39<>"Non endémique", " ", IF(INTRO!$E$37="Non endémique"," ", IF(COUNTRY_INFO!C12=0," ",COUNTRY_INFO!C12))) ->  | D12: =IF(INTRO!$E$39<>"Non endémique", 0, IF(INTRO!$E$37="Non endémique",0,IF(COUNTRY_INFO!$H12=1,COUNTRY_INFO!E12,0))) -> 0 | E12: =IF(INTRO!$E$39<>"Non endémique", 0, IF(INTRO!$E$37="Non endémique",0,IF(COUNTRY_INFO!$H12=1,COUNTRY_INFO!F12,0))) -> 0 | F12: =IF(INTRO!$E$39<>"Non endémique", 0, IF(INTRO!$E$37="Non endémique",0,IF(COUNTRY_INFO!$H12=1,COUNTRY_INFO!G12,0))) -> 0 | G12: 0 | H12: =IF(INTRO!$E$39="Non endémique",IF(INTRO!$E$37="Non endémique","Non requis",COUNTRY_INFO!P12),"Traiter avec IVM") -> Traiter avec IVM | I12: 0 | J12: 0 | L12: 0 | M12: 0
A13: =IF(INTRO!$E$39<>"Non endémique", " ", IF(INTRO!$E$37="Non endémique"," ", IF(COUNTRY_INFO!A13=0," ",COUNTRY_INFO!A13))) ->  | B13: =IF(INTRO!$E$39<>"Non endémique", " ", IF(INTRO!$E$37="Non endémique"," ", IF(COUNTRY_INFO!B13=0," ",COUNTRY_INFO!B13))) ->  | C13: =IF(INTRO!$E$39<>"Non endémique", " ", IF(INTRO!$E$37="Non endémique"," ", IF(COUNTRY_INFO!C13=0," ",COUNTRY_INFO!C13))) ->  | D13: =IF(INTRO!$E$39<>"Non endémique", 0, IF(INTRO!$E$37="Non endémique",0,IF(COUNTRY_INFO!$H13=1,COUNTRY_INFO!E13,0))) -> 0 | E13: =IF(INTRO!$E$39<>"Non endémique", 0, IF(INTRO!$E$37="Non endémique",0,IF(COUNTRY_INFO!$H13=1,COUNTRY_INFO!F13,0))) -> 0 | F13: =IF(INTRO!$E$39<>"Non endémique", 0, IF(INTRO!$E$37="Non endémique",0,IF(COUNTRY_INFO!$H13=1,COUNTRY_INFO!G13,0))) -> 0 | G13: 0 | H13: =IF(INTRO!$E$39="Non endémique",IF(INTRO!$E$37="Non endémique","Non requis",COUNTRY_INFO!P13),"Traiter avec IVM") -> Traiter avec IVM | I13: 0 | J13: 0 | L13: 0 | M13: 0
A14: =IF(INTRO!$E$39<>"Non endémique", " ", IF(INTRO!$E$37="Non endémique"," ", IF(COUNTRY_INFO!A14=0," ",COUNTRY_INFO!A14))) ->  | B14: =IF(INTRO!$E$39<>"Non endémique", " ", IF(INTRO!$E$37="Non endémique"," ", IF(COUNTRY_INFO!B14=0," ",COUNTRY_INFO!B14))) ->  | C14: =IF(INTRO!$E$39<>"Non endémique", " ", IF(INTRO!$E$37="Non endémique"," ", IF(COUNTRY_INFO!C14=0," ",COUNTRY_INFO!C14))) ->  | D14: =IF(INTRO!$E$39<>"Non endémique", 0, IF(INTRO!$E$37="Non endémique",0,IF(COUNTRY_INFO!$H14=1,COUNTRY_INFO!E14,0))) -> 0 | E14: =IF(INTRO!$E$39<>"Non endémique", 0, IF(INTRO!$E$37="Non endémique",0,IF(COUNTRY_INFO!$H14=1,COUNTRY_INFO!F14,0))) -> 0 | F14: =IF(INTRO!$E$39<>"Non endémique", 0, IF(INTRO!$E$37="Non endémique",0,IF(COUNTRY_INFO!$H14=1,COUNTRY_INFO!G14,0))) -> 0 | G14: 0 | H14: =IF(INTRO!$E$39="Non endémique",IF(INTRO!$E$37="Non endémique","Non requis",COUNTRY_INFO!P14),"Traiter avec IVM") -> Traiter avec IVM | I14: 0 | J14: 0 | L14: 0 | M14: 0
A15: =IF(INTRO!$E$39<>"Non endémique", " ", IF(INTRO!$E$37="Non endémique"," ", IF(COUNTRY_INFO!A15=0," ",COUNTRY_INFO!A15))) ->  | B15: =IF(INTRO!$E$39<>"Non endémique", " ", IF(INTRO!$E$37="Non endémique"," ", IF(COUNTRY_INFO!B15=0," ",COUNTRY_INFO!B15))) ->  | C15: =IF(INTRO!$E$39<>"Non endémique", " ", IF(INTRO!$E$37="Non endémique"," ", IF(COUNTRY_INFO!C15=0," ",COUNTRY_INFO!C15))) ->  | D15: =IF(INTRO!$E$39<>"Non endémique", 0, IF(INTRO!$E$37="Non endémique",0,IF(COUNTRY_INFO!$H15=1,COUNTRY_INFO!E15,0))) -> 0 | E15: =IF(INTRO!$E$39<>"Non endémique", 0, IF(INTRO!$E$37="Non endémique",0,IF(COUNTRY_INFO!$H15=1,COUNTRY_INFO!F15,0))) -> 0 | F15: =IF(INTRO!$E$39<>"Non endémique", 0, IF(INTRO!$E$37="Non endémique",0,IF(COUNTRY_INFO!$H15=1,COUNTRY_INFO!G15,0))) -> 0 | G15: 0 | H15: =IF(INTRO!$E$39="Non endémique",IF(INTRO!$E$37="Non endémique","Non requis",COUNTRY_INFO!P15),"Traiter avec IVM") -> Traiter avec IVM | I15: 0 | J15: 0 | L15: 0 | M15: 0
A16: =IF(INTRO!$E$39<>"Non endémique", " ", IF(INTRO!$E$37="Non endémique"," ", IF(COUNTRY_INFO!A16=0," ",COUNTRY_INFO!A16))) ->  | B16: =IF(INTRO!$E$39<>"Non endémique", " ", IF(INTRO!$E$37="Non endémique"," ", IF(COUNTRY_INFO!B16=0," ",COUNTRY_INFO!B16))) ->  | C16: =IF(INTRO!$E$39<>"Non endémique", " ", IF(INTRO!$E$37="Non endémique"," ", IF(COUNTRY_INFO!C16=0," ",COUNTRY_INFO!C16))) ->  | D16: =IF(INTRO!$E$39<>"Non endémique", 0, IF(INTRO!$E$37="Non endémique",0,IF(COUNTRY_INFO!$H16=1,COUNTRY_INFO!E16,0))) -> 0 | E16: =IF(INTRO!$E$39<>"Non endémique", 0, IF(INTRO!$E$37="Non endémique",0,IF(COUNTRY_INFO!$H16=1,COUNTRY_INFO!F16,0))) -> 0 | F16: =IF(INTRO!$E$39<>"Non endémique", 0, IF(INTRO!$E$37="Non endémique",0,IF(COUNTRY_INFO!$H16=1,COUNTRY_INFO!G16,0))) -> 0 | G16: 0 | H16: =IF(INTRO!$E$39="Non endémique",IF(INTRO!$E$37="Non endémique","Non requis",COUNTRY_INFO!P16),"Traiter avec IVM") -> Traiter avec IVM | I16: 0 | J16: 0 | L16: 0 | M16: 0
A17: =IF(INTRO!$E$39<>"Non endémique", " ", IF(INTRO!$E$37="Non endémique"," ", IF(COUNTRY_INFO!A17=0," ",COUNTRY_INFO!A17))) ->  | B17: =IF(INTRO!$E$39<>"Non endémique", " ", IF(INTRO!$E$37="Non endémique"," ", IF(COUNTRY_INFO!B17=0," ",COUNTRY_INFO!B17))) ->  | C17: =IF(INTRO!$E$39<>"Non endémique", " ", IF(INTRO!$E$37="Non endémique"," ", IF(COUNTRY_INFO!C17=0," ",COUNTRY_INFO!C17))) ->  | D17: =IF(INTRO!$E$39<>"Non endémique", 0, IF(INTRO!$E$37="Non endémique",0,IF(COUNTRY_INFO!$H17=1,COUNTRY_INFO!E17,0))) -> 0 | E17: =IF(INTRO!$E$39<>"Non endémique", 0, IF(INTRO!$E$37="Non endémique",0,IF(COUNTRY_INFO!$H17=1,COUNTRY_INFO!F17,0))) -> 0 | F17: =IF(INTRO!$E$39<>"Non endémique", 0, IF(INTRO!$E$37="Non endémique",0,IF(COUNTRY_INFO!$H17=1,COUNTRY_INFO!G17,0))) -> 0 | G17: 0 | H17: =IF(INTRO!$E$39="Non endémique",IF(INTRO!$E$37="Non endémique","Non requis",COUNTRY_INFO!P17),"Traiter avec IVM") -> Traiter avec IVM | I17: 0 | J17: 0 | L17: 0 | M17: 0
A18: =IF(INTRO!$E$39<>"Non endémique", " ", IF(INTRO!$E$37="Non endémique"," ", IF(COUNTRY_INFO!A18=0," ",COUNTRY_INFO!A18))) ->  | B18: =IF(INTRO!$E$39<>"Non endémique", " ", IF(INTRO!$E$37="Non endémique"," ", IF(COUNTRY_INFO!B18=0," ",COUNTRY_INFO!B18))) ->  | C18: =IF(INTRO!$E$39<>"Non endémique", " ", IF(INTRO!$E$37="Non endémique"," ", IF(COUNTRY_INFO!C18=0," ",COUNTRY_INFO!C18))) ->  | D18: =IF(INTRO!$E$39<>"Non endémique", 0, IF(INTRO!$E$37="Non endémique",0,IF(COUNTRY_INFO!$H18=1,COUNTRY_INFO!E18,0))) -> 0 | E18: =IF(INTRO!$E$39<>"Non endémique", 0, IF(INTRO!$E$37="Non endémique",0,IF(COUNTRY_INFO!$H18=1,COUNTRY_INFO!F18,0))) -> 0 | F18: =IF(INTRO!$E$39<>"Non endémique", 0, IF(INTRO!$E$37="Non endémique",0,IF(COUNTRY_INFO!$H18=1,COUNTRY_INFO!G18,0))) -> 0 | G18: 0 | H18: =IF(INTRO!$E$39="Non endémique",IF(INTRO!$E$37="Non endémique","Non requis",COUNTRY_INFO!P18),"Traiter avec IVM") -> Traiter avec IVM | I18: 0 | J18: 0 | L18: 0 | M18: 0
A19: =IF(INTRO!$E$39<>"Non endémique", " ", IF(INTRO!$E$37="Non endémique"," ", IF(COUNTRY_INFO!A19=0," ",COUNTRY_INFO!A19))) ->  | B19: =IF(INTRO!$E$39<>"Non endémique", " ", IF(INTRO!$E$37="Non endémique"," ", IF(COUNTRY_INFO!B19=0," ",COUNTRY_INFO!B19))) ->  | C19: =IF(INTRO!$E$39<>"Non endémique", " ", IF(INTRO!$E$37="Non endémique"," ", IF(COUNTRY_INFO!C19=0," ",COUNTRY_INFO!C19))) ->  | D19: =IF(INTRO!$E$39<>"Non endémique", 0, IF(INTRO!$E$37="Non endémique",0,IF(COUNTRY_INFO!$H19=1,COUNTRY_INFO!E19,0))) -> 0 | E19: =IF(INTRO!$E$39<>"Non endémique", 0, IF(INTRO!$E$37="Non endémique",0,IF(COUNTRY_INFO!$H19=1,COUNTRY_INFO!F19,0))) -> 0 | F19: =IF(INTRO!$E$39<>"Non endémique", 0, IF(INTRO!$E$37="Non endémique",0,IF(COUNTRY_INFO!$H19=1,COUNTRY_INFO!G19,0))) -> 0 | G19: 0 | H19: =IF(INTRO!$E$39="Non endémique",IF(INTRO!$E$37="Non endémique","Non requis",COUNTRY_INFO!P19),"Traiter avec IVM") -> Traiter avec IVM | I19: 0 | J19: 0 | L19: 0 | M19: 0
A20: =IF(INTRO!$E$39<>"Non endémique", " ", IF(INTRO!$E$37="Non endémique"," ", IF(COUNTRY_INFO!A20=0," ",COUNTRY_INFO!A20))) ->  | B20: =IF(INTRO!$E$39<>"Non endémique", " ", IF(INTRO!$E$37="Non endémique"," ", IF(COUNTRY_INFO!B20=0," ",COUNTRY_INFO!B20))) ->  | C20: =IF(INTRO!$E$39<>"Non endémique", " ", IF(INTRO!$E$37="Non endémique"," ", IF(COUNTRY_INFO!C20=0," ",COUNTRY_INFO!C20))) ->  | D20: =IF(INTRO!$E$39<>"Non endémique", 0, IF(INTRO!$E$37="Non endémique",0,IF(COUNTRY_INFO!$H20=1,COUNTRY_INFO!E20,0))) -> 0 | E20: =IF(INTRO!$E$39<>"Non endémique", 0, IF(INTRO!$E$37="Non endémique",0,IF(COUNTRY_INFO!$H20=1,COUNTRY_INFO!F20,0))) -> 0 | F20: =IF(INTRO!$E$39<>"Non endémique", 0, IF(INTRO!$E$37="Non endémique",0,IF(COUNTRY_INFO!$H20=1,COUNTRY_INFO!G20,0))) -> 0 | G20: 0 | H20: =IF(INTRO!$E$39="Non endémique",IF(INTRO!$E$37="Non endémique","Non requis",COUNTRY_INFO!P20),"Traiter avec IVM") -> Traiter avec IVM | I20: 0 | J20: 0 | L20: 0 | M20: 0
A21: =IF(INTRO!$E$39<>"Non endémique", " ", IF(INTRO!$E$37="Non endémique"," ", IF(COUNTRY_INFO!A21=0," ",COUNTRY_INFO!A21))) ->  | B21: =IF(INTRO!$E$39<>"Non endémique", " ", IF(INTRO!$E$37="Non endémique"," ", IF(COUNTRY_INFO!B21=0," ",COUNTRY_INFO!B21))) ->  | C21: =IF(INTRO!$E$39<>"Non endémique", " ", IF(INTRO!$E$37="Non endémique"," ", IF(COUNTRY_INFO!C21=0," ",COUNTRY_INFO!C21))) ->  | D21: =IF(INTRO!$E$39<>"Non endémique", 0, IF(INTRO!$E$37="Non endémique",0,IF(COUNTRY_INFO!$H21=1,COUNTRY_INFO!E21,0))) -> 0 | E21: =IF(INTRO!$E$39<>"Non endémique", 0, IF(INTRO!$E$37="Non endémique",0,IF(COUNTRY_INFO!$H21=1,COUNTRY_INFO!F21,0))) -> 0 | F21: =IF(INTRO!$E$39<>"Non endémique", 0, IF(INTRO!$E$37="Non endémique",0,IF(COUNTRY_INFO!$H21=1,COUNTRY_INFO!G21,0))) -> 0 | G21: 0 | H21: =IF(INTRO!$E$39="Non endémique",IF(INTRO!$E$37="Non endémique","Non requis",COUNTRY_INFO!P21),"Traiter avec IVM") -> Traiter avec IVM | I21: 0 | J21: 0 | L21: 0 | M21: 0
A22: =IF(INTRO!$E$39<>"Non endémique", " ", IF(INTRO!$E$37="Non endémique"," ", IF(COUNTRY_INFO!A22=0," ",COUNTRY_INFO!A22))) ->  | B22: =IF(INTRO!$E$39<>"Non endémique", " ", IF(INTRO!$E$37="Non endémique"," ", IF(COUNTRY_INFO!B22=0," ",COUNTRY_INFO!B22))) ->  | C22: =IF(INTRO!$E$39<>"Non endémique", " ", IF(INTRO!$E$37="Non endémique"," ", IF(COUNTRY_INFO!C22=0," ",COUNTRY_INFO!C22))) ->  | D22: =IF(INTRO!$E$39<>"Non endémique", 0, IF(INTRO!$E$37="Non endémique",0,IF(COUNTRY_INFO!$H22=1,COUNTRY_INFO!E22,0))) -> 0 | E22: =IF(INTRO!$E$39<>"Non endémique", 0, IF(INTRO!$E$37="Non endémique",0,IF(COUNTRY_INFO!$H22=1,COUNTRY_INFO!F22,0))) -> 0 | F22: =IF(INTRO!$E$39<>"Non endémique", 0, IF(INTRO!$E$37="Non endémique",0,IF(COUNTRY_INFO!$H22=1,COUNTRY_INFO!G22,0))) -> 0 | G22: 0 | H22: =IF(INTRO!$E$39="Non endémique",IF(INTRO!$E$37="Non endémique","Non requis",COUNTRY_INFO!P22),"Traiter avec IVM") -> Traiter avec IVM | I22: 0 | J22: 0 | L22: 0 | M22: 0
A23: =IF(INTRO!$E$39<>"Non endémique", " ", IF(INTRO!$E$37="Non endémique"," ", IF(COUNTRY_INFO!A23=0," ",COUNTRY_INFO!A23))) ->  | B23: =IF(INTRO!$E$39<>"Non endémique", " ", IF(INTRO!$E$37="Non endémique"," ", IF(COUNTRY_INFO!B23=0," ",COUNTRY_INFO!B23))) ->  | C23: =IF(INTRO!$E$39<>"Non endémique", " ", IF(INTRO!$E$37="Non endémique"," ", IF(COUNTRY_INFO!C23=0," ",COUNTRY_INFO!C23))) ->  | D23: =IF(INTRO!$E$39<>"Non endémique", 0, IF(INTRO!$E$37="Non endémique",0,IF(COUNTRY_INFO!$H23=1,COUNTRY_INFO!E23,0))) -> 0 | E23: =IF(INTRO!$E$39<>"Non endémique", 0, IF(INTRO!$E$37="Non endémique",0,IF(COUNTRY_INFO!$H23=1,COUNTRY_INFO!F23,0))) -> 0 | F23: =IF(INTRO!$E$39<>"Non endémique", 0, IF(INTRO!$E$37="Non endémique",0,IF(COUNTRY_INFO!$H23=1,COUNTRY_INFO!G23,0))) -> 0 | G23: 0 | H23: =IF(INTRO!$E$39="Non endémique",IF(INTRO!$E$37="Non endémique","Non requis",COUNTRY_INFO!P23),"Traiter avec IVM") -> Traiter avec IVM | I23: 0 | J23: 0 | L23: 0 | M23: 0
A24: =IF(INTRO!$E$39<>"Non endémique", " ", IF(INTRO!$E$37="Non endémique"," ", IF(COUNTRY_INFO!A24=0," ",COUNTRY_INFO!A24))) ->  | B24: =IF(INTRO!$E$39<>"Non endémique", " ", IF(INTRO!$E$37="Non endémique"," ", IF(COUNTRY_INFO!B24=0," ",COUNTRY_INFO!B24))) ->  | C24: =IF(INTRO!$E$39<>"Non endémique", " ", IF(INTRO!$E$37="Non endémique"," ", IF(COUNTRY_INFO!C24=0," ",COUNTRY_INFO!C24))) ->  | D24: =IF(INTRO!$E$39<>"Non endémique", 0, IF(INTRO!$E$37="Non endémique",0,IF(COUNTRY_INFO!$H24=1,COUNTRY_INFO!E24,0))) -> 0 | E24: =IF(INTRO!$E$39<>"Non endémique", 0, IF(INTRO!$E$37="Non endémique",0,IF(COUNTRY_INFO!$H24=1,COUNTRY_INFO!F24,0))) -> 0 | F24: =IF(INTRO!$E$39<>"Non endémique", 0, IF(INTRO!$E$37="Non endémique",0,IF(COUNTRY_INFO!$H24=1,COUNTRY_INFO!G24,0))) -> 0 | G24: 0 | H24: =IF(INTRO!$E$39="Non endémique",IF(INTRO!$E$37="Non endémique","Non requis",COUNTRY_INFO!P24),"Traiter avec IVM") -> Traiter avec IVM | I24: 0 | J24: 0 | L24: 0 | M24: 0
A25: =IF(INTRO!$E$39<>"Non endémique", " ", IF(INTRO!$E$37="Non endémique"," ", IF(COUNTRY_INFO!A25=0," ",COUNTRY_INFO!A25))) ->  | B25: =IF(INTRO!$E$39<>"Non endémique", " ", IF(INTRO!$E$37="Non endémique"," ", IF(COUNTRY_INFO!B25=0," ",COUNTRY_INFO!B25))) ->  | C25: =IF(INTRO!$E$39<>"Non endémique", " ", IF(INTRO!$E$37="Non endémique"," ", IF(COUNTRY_INFO!C25=0," ",COUNTRY_INFO!C25))) ->  | D25: =IF(INTRO!$E$39<>"Non endémique", 0, IF(INTRO!$E$37="Non endémique",0,IF(COUNTRY_INFO!$H25=1,COUNTRY_INFO!E25,0))) -> 0 | E25: =IF(INTRO!$E$39<>"Non endémique", 0, IF(INTRO!$E$37="Non endémique",0,IF(COUNTRY_INFO!$H25=1,COUNTRY_INFO!F25,0))) -> 0 | F25: =IF(INTRO!$E$39<>"Non endémique", 0, IF(INTRO!$E$37="Non endémique",0,IF(COUNTRY_INFO!$H25=1,COUNTRY_INFO!G25,0))) -> 0 | G25: 0 | H25: =IF(INTRO!$E$39="Non endémique",IF(INTRO!$E$37="Non endémique","Non requis",COUNTRY_INFO!P25),"Traiter avec IVM") -> Traiter avec IVM | I25: 0 | J25: 0 | L25: 0 | M25: 0
A26: =IF(INTRO!$E$39<>"Non endémique", " ", IF(INTRO!$E$37="Non endémique"," ", IF(COUNTRY_INFO!A26=0," ",COUNTRY_INFO!A26))) ->  | B26: =IF(INTRO!$E$39<>"Non endémique", " ", IF(INTRO!$E$37="Non endémique"," ", IF(COUNTRY_INFO!B26=0," ",COUNTRY_INFO!B26))) ->  | C26: =IF(INTRO!$E$39<>"Non endémique", " ", IF(INTRO!$E$37="Non endémique"," ", IF(COUNTRY_INFO!C26=0," ",COUNTRY_INFO!C26))) ->  | D26: =IF(INTRO!$E$39<>"Non endémique", 0, IF(INTRO!$E$37="Non endémique",0,IF(COUNTRY_INFO!$H26=1,COUNTRY_INFO!E26,0))) -> 0 | E26: =IF(INTRO!$E$39<>"Non endémique", 0, IF(INTRO!$E$37="Non endémique",0,IF(COUNTRY_INFO!$H26=1,COUNTRY_INFO!F26,0))) -> 0 | F26: =IF(INTRO!$E$39<>"Non endémique", 0, IF(INTRO!$E$37="Non endémique",0,IF(COUNTRY_INFO!$H26=1,COUNTRY_INFO!G26,0))) -> 0 | G26: 0 | H26: =IF(INTRO!$E$39="Non endémique",IF(INTRO!$E$37="Non endémique","Non requis",COUNTRY_INFO!P26),"Traiter avec IVM") -> Traiter avec IVM | I26: 0 | J26: 0 | L26: 0 | M26: 0
A27: =IF(INTRO!$E$39<>"Non endémique", " ", IF(INTRO!$E$37="Non endémique"," ", IF(COUNTRY_INFO!A27=0," ",COUNTRY_INFO!A27))) ->  | B27: =IF(INTRO!$E$39<>"Non endémique", " ", IF(INTRO!$E$37="Non endémique"," ", IF(COUNTRY_INFO!B27=0," ",COUNTRY_INFO!B27))) ->  | C27: =IF(INTRO!$E$39<>"Non endémique", " ", IF(INTRO!$E$37="Non endémique"," ", IF(COUNTRY_INFO!C27=0," ",COUNTRY_INFO!C27))) ->  | D27: =IF(INTRO!$E$39<>"Non endémique", 0, IF(INTRO!$E$37="Non endémique",0,IF(COUNTRY_INFO!$H27=1,COUNTRY_INFO!E27,0))) -> 0 | E27: =IF(INTRO!$E$39<>"Non endémique", 0, IF(INTRO!$E$37="Non endémique",0,IF(COUNTRY_INFO!$H27=1,COUNTRY_INFO!F27,0))) -> 0 | F27: =IF(INTRO!$E$39<>"Non endémique", 0, IF(INTRO!$E$37="Non endémique",0,IF(COUNTRY_INFO!$H27=1,COUNTRY_INFO!G27,0))) -> 0 | G27: 0 | H27: =IF(INTRO!$E$39="Non endémique",IF(INTRO!$E$37="Non endémique","Non requis",COUNTRY_INFO!P27),"Traiter avec IVM") -> Traiter avec IVM | I27: 0 | J27: 0 | L27: 0 | M27: 0
A28: =IF(INTRO!$E$39<>"Non endémique", " ", IF(INTRO!$E$37="Non endémique"," ", IF(COUNTRY_INFO!A28=0," ",COUNTRY_INFO!A28))) ->  | B28: =IF(INTRO!$E$39<>"Non endémique", " ", IF(INTRO!$E$37="Non endémique"," ", IF(COUNTRY_INFO!B28=0," ",COUNTRY_INFO!B28))) ->  | C28: =IF(INTRO!$E$39<>"Non endémique", " ", IF(INTRO!$E$37="Non endémique"," ", IF(COUNTRY_INFO!C28=0," ",COUNTRY_INFO!C28))) ->  | D28: =IF(INTRO!$E$39<>"Non endémique", 0, IF(INTRO!$E$37="Non endémique",0,IF(COUNTRY_INFO!$H28=1,COUNTRY_INFO!E28,0))) -> 0 | E28: =IF(INTRO!$E$39<>"Non endémique", 0, IF(INTRO!$E$37="Non endémique",0,IF(COUNTRY_INFO!$H28=1,COUNTRY_INFO!F28,0))) -> 0 | F28: =IF(INTRO!$E$39<>"Non endémique", 0, IF(INTRO!$E$37="Non endémique",0,IF(COUNTRY_INFO!$H28=1,COUNTRY_INFO!G28,0))) -> 0 | G28: 0 | H28: =IF(INTRO!$E$39="Non endémique",IF(INTRO!$E$37="Non endémique","Non requis",COUNTRY_INFO!P28),"Traiter avec IVM") -> Traiter avec IVM | I28: 0 | J28: 0 | L28: 0 | M28: 0
A29: =IF(INTRO!$E$39<>"Non endémique", " ", IF(INTRO!$E$37="Non endémique"," ", IF(COUNTRY_INFO!A29=0," ",COUNTRY_INFO!A29))) ->  | B29: =IF(INTRO!$E$39<>"Non endémique", " ", IF(INTRO!$E$37="Non endémique"," ", IF(COUNTRY_INFO!B29=0," ",COUNTRY_INFO!B29))) ->  | C29: =IF(INTRO!$E$39<>"Non endémique", " ", IF(INTRO!$E$37="Non endémique"," ", IF(COUNTRY_INFO!C29=0," ",COUNTRY_INFO!C29))) ->  | D29: =IF(INTRO!$E$39<>"Non endémique", 0, IF(INTRO!$E$37="Non endémique",0,IF(COUNTRY_INFO!$H29=1,COUNTRY_INFO!E29,0))) -> 0 | E29: =IF(INTRO!$E$39<>"Non endémique", 0, IF(INTRO!$E$37="Non endémique",0,IF(COUNTRY_INFO!$H29=1,COUNTRY_INFO!F29,0))) -> 0 | F29: =IF(INTRO!$E$39<>"Non endémique", 0, IF(INTRO!$E$37="Non endémique",0,IF(COUNTRY_INFO!$H29=1,COUNTRY_INFO!G29,0))) -> 0 | G29: 0 | H29: =IF(INTRO!$E$39="Non endémique",IF(INTRO!$E$37="Non endémique","Non requis",COUNTRY_INFO!P29),"Traiter avec IVM") -> Traiter avec IVM | I29: 0 | J29: 0 | L29: 0 | M29: 0
A30: =IF(INTRO!$E$39<>"Non endémique", " ", IF(INTRO!$E$37="Non endémique"," ", IF(COUNTRY_INFO!A30=0," ",COUNTRY_INFO!A30))) ->  | B30: =IF(INTRO!$E$39<>"Non endémique", " ", IF(INTRO!$E$37="Non endémique"," ", IF(COUNTRY_INFO!B30=0," ",COUNTRY_INFO!B30))) ->  | C30: =IF(INTRO!$E$39<>"Non endémique", " ", IF(INTRO!$E$37="Non endémique"," ", IF(COUNTRY_INFO!C30=0," ",COUNTRY_INFO!C30))) ->  | D30: =IF(INTRO!$E$39<>"Non endémique", 0, IF(INTRO!$E$37="Non endémique",0,IF(COUNTRY_INFO!$H30=1,COUNTRY_INFO!E30,0))) -> 0 | E30: =IF(INTRO!$E$39<>"Non endémique", 0, IF(INTRO!$E$37="Non endémique",0,IF(COUNTRY_INFO!$H30=1,COUNTRY_INFO!F30,0))) -> 0 | F30: =IF(INTRO!$E$39<>"Non endémique", 0, IF(INTRO!$E$37="Non endémique",0,IF(COUNTRY_INFO!$H30=1,COUNTRY_INFO!G30,0))) -> 0 | G30: 0 | H30: =IF(INTRO!$E$39="Non endémique",IF(INTRO!$E$37="Non endémique","Non requis",COUNTRY_INFO!P30),"Traiter avec IVM") -> Traiter avec IVM | I30: 0 | J30: 0 | L30: 0 | M30: 0
A31: =IF(INTRO!$E$39<>"Non endémique", " ", IF(INTRO!$E$37="Non endémique"," ", IF(COUNTRY_INFO!A31=0," ",COUNTRY_INFO!A31))) ->  | B31: =IF(INTRO!$E$39<>"Non endémique", " ", IF(INTRO!$E$37="Non endémique"," ", IF(COUNTRY_INFO!B31=0," ",COUNTRY_INFO!B31))) ->  | C31: =IF(INTRO!$E$39<>"Non endémique", " ", IF(INTRO!$E$37="Non endémique"," ", IF(COUNTRY_INFO!C31=0," ",COUNTRY_INFO!C31))) ->  | D31: =IF(INTRO!$E$39<>"Non endémique", 0, IF(INTRO!$E$37="Non endémique",0,IF(COUNTRY_INFO!$H31=1,COUNTRY_INFO!E31,0))) -> 0 | E31: =IF(INTRO!$E$39<>"Non endémique", 0, IF(INTRO!$E$37="Non endémique",0,IF(COUNTRY_INFO!$H31=1,COUNTRY_INFO!F31,0))) -> 0 | F31: =IF(INTRO!$E$39<>"Non endémique", 0, IF(INTRO!$E$37="Non endémique",0,IF(COUNTRY_INFO!$H31=1,COUNTRY_INFO!G31,0))) -> 0 | G31: 0 | H31: =IF(INTRO!$E$39="Non endémique",IF(INTRO!$E$37="Non endémique","Non requis",COUNTRY_INFO!P31),"Traiter avec IVM") -> Traiter avec IVM | I31: 0 | J31: 0 | L31: 0 | M31: 0
A32: =IF(INTRO!$E$39<>"Non endémique", " ", IF(INTRO!$E$37="Non endémique"," ", IF(COUNTRY_INFO!A32=0," ",COUNTRY_INFO!A32))) ->  | B32: =IF(INTRO!$E$39<>"Non endémique", " ", IF(INTRO!$E$37="Non endémique"," ", IF(COUNTRY_INFO!B32=0," ",COUNTRY_INFO!B32))) ->  | C32: =IF(INTRO!$E$39<>"Non endémique", " ", IF(INTRO!$E$37="Non endémique"," ", IF(COUNTRY_INFO!C32=0," ",COUNTRY_INFO!C32))) ->  | D32: =IF(INTRO!$E$39<>"Non endémique", 0, IF(INTRO!$E$37="Non endémique",0,IF(COUNTRY_INFO!$H32=1,COUNTRY_INFO!E32,0))) -> 0 | E32: =IF(INTRO!$E$39<>"Non endémique", 0, IF(INTRO!$E$37="Non endémique",0,IF(COUNTRY_INFO!$H32=1,COUNTRY_INFO!F32,0))) -> 0 | F32: =IF(INTRO!$E$39<>"Non endémique", 0, IF(INTRO!$E$37="Non endémique",0,IF(COUNTRY_INFO!$H32=1,COUNTRY_INFO!G32,0))) -> 0 | G32: 0 | H32: =IF(INTRO!$E$39="Non endémique",IF(INTRO!$E$37="Non endémique","Non requis",COUNTRY_INFO!P32),"Traiter avec IVM") -> Traiter avec IVM | I32: 0 | J32: 0 | L32: 0 | M32: 0
A33: =IF(INTRO!$E$39<>"Non endémique", " ", IF(INTRO!$E$37="Non endémique"," ", IF(COUNTRY_INFO!A33=0," ",COUNTRY_INFO!A33))) ->  | B33: =IF(INTRO!$E$39<>"Non endémique", " ", IF(INTRO!$E$37="Non endémique"," ", IF(COUNTRY_INFO!B33=0," ",COUNTRY_INFO!B33))) ->  | C33: =IF(INTRO!$E$39<>"Non endémique", " ", IF(INTRO!$E$37="Non endémique"," ", IF(COUNTRY_INFO!C33=0," ",COUNTRY_INFO!C33))) ->  | D33: =IF(INTRO!$E$39<>"Non endémique", 0, IF(INTRO!$E$37="Non endémique",0,IF(COUNTRY_INFO!$H33=1,COUNTRY_INFO!E33,0))) -> 0 | E33: =IF(INTRO!$E$39<>"Non endémique", 0, IF(INTRO!$E$37="Non endémique",0,IF(COUNTRY_INFO!$H33=1,COUNTRY_INFO!F33,0))) -> 0 | F33: =IF(INTRO!$E$39<>"Non endémique", 0, IF(INTRO!$E$37="Non endémique",0,IF(COUNTRY_INFO!$H33=1,COUNTRY_INFO!G33,0))) -> 0 | G33: 0 | H33: =IF(INTRO!$E$39="Non endémique",IF(INTRO!$E$37="Non endémique","Non requis",COUNTRY_INFO!P33),"Traiter avec IVM") -> Traiter avec IVM | I33: 0 | J33: 0 | L33: 0 | M33: 0
A34: =IF(INTRO!$E$39<>"Non endémique", " ", IF(INTRO!$E$37="Non endémique"," ", IF(COUNTRY_INFO!A34=0," ",COUNTRY_INFO!A34))) ->  | B34: =IF(INTRO!$E$39<>"Non endémique", " ", IF(INTRO!$E$37="Non endémique"," ", IF(COUNTRY_INFO!B34=0," ",COUNTRY_INFO!B34))) ->  | C34: =IF(INTRO!$E$39<>"Non endémique", " ", IF(INTRO!$E$37="Non endémique"," ", IF(COUNTRY_INFO!C34=0," ",COUNTRY_INFO!C34))) ->  | D34: =IF(INTRO!$E$39<>"Non endémique", 0, IF(INTRO!$E$37="Non endémique",0,IF(COUNTRY_INFO!$H34=1,COUNTRY_INFO!E34,0))) -> 0 | E34: =IF(INTRO!$E$39<>"Non endémique", 0, IF(INTRO!$E$37="Non endémique",0,IF(COUNTRY_INFO!$H34=1,COUNTRY_INFO!F34,0))) -> 0 | F34: =IF(INTRO!$E$39<>"Non endémique", 0, IF(INTRO!$E$37="Non endémique",0,IF(COUNTRY_INFO!$H34=1,COUNTRY_INFO!G34,0))) -> 0 | G34: 0 | H34: =IF(INTRO!$E$39="Non endémique",IF(INTRO!$E$37="Non endémique","Non requis",COUNTRY_INFO!P34),"Traiter avec IVM") -> Traiter avec IVM | I34: 0 | J34: 0 | L34: 0 | M34: 0
A35: =IF(INTRO!$E$39<>"Non endémique", " ", IF(INTRO!$E$37="Non endémique"," ", IF(COUNTRY_INFO!A35=0," ",COUNTRY_INFO!A35))) ->  | B35: =IF(INTRO!$E$39<>"Non endémique", " ", IF(INTRO!$E$37="Non endémique"," ", IF(COUNTRY_INFO!B35=0," ",COUNTRY_INFO!B35))) ->  | C35: =IF(INTRO!$E$39<>"Non endémique", " ", IF(INTRO!$E$37="Non endémique"," ", IF(COUNTRY_INFO!C35=0," ",COUNTRY_INFO!C35))) ->  | D35: =IF(INTRO!$E$39<>"Non endémique", 0, IF(INTRO!$E$37="Non endémique",0,IF(COUNTRY_INFO!$H35=1,COUNTRY_INFO!E35,0))) -> 0 | E35: =IF(INTRO!$E$39<>"Non endémique", 0, IF(INTRO!$E$37="Non endémique",0,IF(COUNTRY_INFO!$H35=1,COUNTRY_INFO!F35,0))) -> 0 | F35: =IF(INTRO!$E$39<>"Non endémique", 0, IF(INTRO!$E$37="Non endémique",0,IF(COUNTRY_INFO!$H35=1,COUNTRY_INFO!G35,0))) -> 0 | G35: 0 | H35: =IF(INTRO!$E$39="Non endémique",IF(INTRO!$E$37="Non endémique","Non requis",COUNTRY_INFO!P35),"Traiter avec IVM") -> Traiter avec IVM | I35: 0 | J35: 0 | L35: 0 | M35: 0
A36: =IF(INTRO!$E$39<>"Non endémique", " ", IF(INTRO!$E$37="Non endémique"," ", IF(COUNTRY_INFO!A36=0," ",COUNTRY_INFO!A36))) ->  | B36: =IF(INTRO!$E$39<>"Non endémique", " ", IF(INTRO!$E$37="Non endémique"," ", IF(COUNTRY_INFO!B36=0," ",COUNTRY_INFO!B36))) ->  | C36: =IF(INTRO!$E$39<>"Non endémique", " ", IF(INTRO!$E$37="Non endémique"," ", IF(COUNTRY_INFO!C36=0," ",COUNTRY_INFO!C36))) ->  | D36: =IF(INTRO!$E$39<>"Non endémique", 0, IF(INTRO!$E$37="Non endémique",0,IF(COUNTRY_INFO!$H36=1,COUNTRY_INFO!E36,0))) -> 0 | E36: =IF(INTRO!$E$39<>"Non endémique", 0, IF(INTRO!$E$37="Non endémique",0,IF(COUNTRY_INFO!$H36=1,COUNTRY_INFO!F36,0))) -> 0 | F36: =IF(INTRO!$E$39<>"Non endémique", 0, IF(INTRO!$E$37="Non endémique",0,IF(COUNTRY_INFO!$H36=1,COUNTRY_INFO!G36,0))) -> 0 | G36: 0 | H36: =IF(INTRO!$E$39="Non endémique",IF(INTRO!$E$37="Non endémique","Non requis",COUNTRY_INFO!P36),"Traiter avec IVM") -> Traiter avec IVM | I36: 0 | J36: 0 | L36: 0 | M36: 0
A37: =IF(INTRO!$E$39<>"Non endémique", " ", IF(INTRO!$E$37="Non endémique"," ", IF(COUNTRY_INFO!A37=0," ",COUNTRY_INFO!A37))) ->  | B37: =IF(INTRO!$E$39<>"Non endémique", " ", IF(INTRO!$E$37="Non endémique"," ", IF(COUNTRY_INFO!B37=0," ",COUNTRY_INFO!B37))) ->  | C37: =IF(INTRO!$E$39<>"Non endémique", " ", IF(INTRO!$E$37="Non endémique"," ", IF(COUNTRY_INFO!C37=0," ",COUNTRY_INFO!C37))) ->  | D37: =IF(INTRO!$E$39<>"Non endémique", 0, IF(INTRO!$E$37="Non endémique",0,IF(COUNTRY_INFO!$H37=1,COUNTRY_INFO!E37,0))) -> 0 | E37: =IF(INTRO!$E$39<>"Non endémique", 0, IF(INTRO!$E$37="Non endémique",0,IF(COUNTRY_INFO!$H37=1,COUNTRY_INFO!F37,0))) -> 0 | F37: =IF(INTRO!$E$39<>"Non endémique", 0, IF(INTRO!$E$37="Non endémique",0,IF(COUNTRY_INFO!$H37=1,COUNTRY_INFO!G37,0))) -> 0 | G37: 0 | H37: =IF(INTRO!$E$39="Non endémique",IF(INTRO!$E$37="Non endémique","Non requis",COUNTRY_INFO!P37),"Traiter avec IVM") -> Traiter avec IVM | I37: 0 | J37: 0 | L37: 0 | M37: 0
A38: =IF(INTRO!$E$39<>"Non endémique", " ", IF(INTRO!$E$37="Non endémique"," ", IF(COUNTRY_INFO!A38=0," ",COUNTRY_INFO!A38))) ->  | B38: =IF(INTRO!$E$39<>"Non endémique", " ", IF(INTRO!$E$37="Non endémique"," ", IF(COUNTRY_INFO!B38=0," ",COUNTRY_INFO!B38))) ->  | C38: =IF(INTRO!$E$39<>"Non endémique", " ", IF(INTRO!$E$37="Non endémique"," ", IF(COUNTRY_INFO!C38=0," ",COUNTRY_INFO!C38))) ->  | D38: =IF(INTRO!$E$39<>"Non endémique", 0, IF(INTRO!$E$37="Non endémique",0,IF(COUNTRY_INFO!$H38=1,COUNTRY_INFO!E38,0))) -> 0 | E38: =IF(INTRO!$E$39<>"Non endémique", 0, IF(INTRO!$E$37="Non endémique",0,IF(COUNTRY_INFO!$H38=1,COUNTRY_INFO!F38,0))) -> 0 | F38: =IF(INTRO!$E$39<>"Non endémique", 0, IF(INTRO!$E$37="Non endémique",0,IF(COUNTRY_INFO!$H38=1,COUNTRY_INFO!G38,0))) -> 0 | G38: 0 | H38: =IF(INTRO!$E$39="Non endémique",IF(INTRO!$E$37="Non endémique","Non requis",COUNTRY_INFO!P38),"Traiter avec IVM") -> Traiter avec IVM | I38: 0 | J38: 0 | L38: 0 | M38: 0
A39: =IF(INTRO!$E$39<>"Non endémique", " ", IF(INTRO!$E$37="Non endémique"," ", IF(COUNTRY_INFO!A39=0," ",COUNTRY_INFO!A39))) ->  | B39: =IF(INTRO!$E$39<>"Non endémique", " ", IF(INTRO!$E$37="Non endémique"," ", IF(COUNTRY_INFO!B39=0," ",COUNTRY_INFO!B39))) ->  | C39: =IF(INTRO!$E$39<>"Non endémique", " ", IF(INTRO!$E$37="Non endémique"," ", IF(COUNTRY_INFO!C39=0," ",COUNTRY_INFO!C39))) ->  | D39: =IF(INTRO!$E$39<>"Non endémique", 0, IF(INTRO!$E$37="Non endémique",0,IF(COUNTRY_INFO!$H39=1,COUNTRY_INFO!E39,0))) -> 0 | E39: =IF(INTRO!$E$39<>"Non endémique", 0, IF(INTRO!$E$37="Non endémique",0,IF(COUNTRY_INFO!$H39=1,COUNTRY_INFO!F39,0))) -> 0 | F39: =IF(INTRO!$E$39<>"Non endémique", 0, IF(INTRO!$E$37="Non endémique",0,IF(COUNTRY_INFO!$H39=1,COUNTRY_INFO!G39,0))) -> 0 | G39: 0 | H39: =IF(INTRO!$E$39="Non endémique",IF(INTRO!$E$37="Non endémique","Non requis",COUNTRY_INFO!P39),"Traiter avec IVM") -> Traiter avec IVM | I39: 0 | J39: 0 | L39: 0 | M39: 0
A40: =IF(INTRO!$E$39<>"Non endémique", " ", IF(INTRO!$E$37="Non endémique"," ", IF(COUNTRY_INFO!A40=0," ",COUNTRY_INFO!A40))) ->  | B40: =IF(INTRO!$E$39<>"Non endémique", " ", IF(INTRO!$E$37="Non endémique"," ", IF(COUNTRY_INFO!B40=0," ",COUNTRY_INFO!B40))) ->  | C40: =IF(INTRO!$E$39<>"Non endémique", " ", IF(INTRO!$E$37="Non endémique"," ", IF(COUNTRY_INFO!C40=0," ",COUNTRY_INFO!C40))) ->  | D40: =IF(INTRO!$E$39<>"Non endémique", 0, IF(INTRO!$E$37="Non endémique",0,IF(COUNTRY_INFO!$H40=1,COUNTRY_INFO!E40,0))) -> 0 | E40: =IF(INTRO!$E$39<>"Non endémique", 0, IF(INTRO!$E$37="Non endémique",0,IF(COUNTRY_INFO!$H40=1,COUNTRY_INFO!F40,0))) -> 0 | F40: =IF(INTRO!$E$39<>"Non endémique", 0, IF(INTRO!$E$37="Non endémique",0,IF(COUNTRY_INFO!$H40=1,COUNTRY_INFO!G40,0))) -> 0 | G40: 0 | H40: =IF(INTRO!$E$39="Non endémique",IF(INTRO!$E$37="Non endémique","Non requis",COUNTRY_INFO!P40),"Traiter avec IVM") -> Traiter avec IVM | I40: 0 | J40: 0 | L40: 0 | M40: 0
A41: =IF(INTRO!$E$39<>"Non endémique", " ", IF(INTRO!$E$37="Non endémique"," ", IF(COUNTRY_INFO!A41=0," ",COUNTRY_INFO!A41))) ->  | B41: =IF(INTRO!$E$39<>"Non endémique", " ", IF(INTRO!$E$37="Non endémique"," ", IF(COUNTRY_INFO!B41=0," ",COUNTRY_INFO!B41))) ->  | C41: =IF(INTRO!$E$39<>"Non endémique", " ", IF(INTRO!$E$37="Non endémique"," ", IF(COUNTRY_INFO!C41=0," ",COUNTRY_INFO!C41))) ->  | D41: =IF(INTRO!$E$39<>"Non endémique", 0, IF(INTRO!$E$37="Non endémique",0,IF(COUNTRY_INFO!$H41=1,COUNTRY_INFO!E41,0))) -> 0 | E41: =IF(INTRO!$E$39<>"Non endémique", 0, IF(INTRO!$E$37="Non endémique",0,IF(COUNTRY_INFO!$H41=1,COUNTRY_INFO!F41,0))) -> 0 | F41: =IF(INTRO!$E$39<>"Non endémique", 0, IF(INTRO!$E$37="Non endémique",0,IF(COUNTRY_INFO!$H41=1,COUNTRY_INFO!G41,0))) -> 0 | G41: 0 | H41: =IF(INTRO!$E$39="Non endémique",IF(INTRO!$E$37="Non endémique","Non requis",COUNTRY_INFO!P41),"Traiter avec IVM") -> Traiter avec IVM | I41: 0 | J41: 0 | L41: 0 | M41: 0
A42: =IF(INTRO!$E$39<>"Non endémique", " ", IF(INTRO!$E$37="Non endémique"," ", IF(COUNTRY_INFO!A42=0," ",COUNTRY_INFO!A42))) ->  | B42: =IF(INTRO!$E$39<>"Non endémique", " ", IF(INTRO!$E$37="Non endémique"," ", IF(COUNTRY_INFO!B42=0," ",COUNTRY_INFO!B42))) ->  | C42: =IF(INTRO!$E$39<>"Non endémique", " ", IF(INTRO!$E$37="Non endémique"," ", IF(COUNTRY_INFO!C42=0," ",COUNTRY_INFO!C42))) ->  | D42: =IF(INTRO!$E$39<>"Non endémique", 0, IF(INTRO!$E$37="Non endémique",0,IF(COUNTRY_INFO!$H42=1,COUNTRY_INFO!E42,0))) -> 0 | E42: =IF(INTRO!$E$39<>"Non endémique", 0, IF(INTRO!$E$37="Non endémique",0,IF(COUNTRY_INFO!$H42=1,COUNTRY_INFO!F42,0))) -> 0 | F42: =IF(INTRO!$E$39<>"Non endémique", 0, IF(INTRO!$E$37="Non endémique",0,IF(COUNTRY_INFO!$H42=1,COUNTRY_INFO!G42,0))) -> 0 | G42: 0 | H42: =IF(INTRO!$E$39="Non endémique",IF(INTRO!$E$37="Non endémique","Non requis",COUNTRY_INFO!P42),"Traiter avec IVM") -> Traiter avec IVM | I42: 0 | J42: 0 | L42: 0 | M42: 0
A43: =IF(INTRO!$E$39<>"Non endémique", " ", IF(INTRO!$E$37="Non endémique"," ", IF(COUNTRY_INFO!A43=0," ",COUNTRY_INFO!A43))) ->  | B43: =IF(INTRO!$E$39<>"Non endémique", " ", IF(INTRO!$E$37="Non endémique"," ", IF(COUNTRY_INFO!B43=0," ",COUNTRY_INFO!B43))) ->  | C43: =IF(INTRO!$E$39<>"Non endémique", " ", IF(INTRO!$E$37="Non endémique"," ", IF(COUNTRY_INFO!C43=0," ",COUNTRY_INFO!C43))) ->  | D43: =IF(INTRO!$E$39<>"Non endémique", 0, IF(INTRO!$E$37="Non endémique",0,IF(COUNTRY_INFO!$H43=1,COUNTRY_INFO!E43,0))) -> 0 | E43: =IF(INTRO!$E$39<>"Non endémique", 0, IF(INTRO!$E$37="Non endémique",0,IF(COUNTRY_INFO!$H43=1,COUNTRY_INFO!F43,0))) -> 0 | F43: =IF(INTRO!$E$39<>"Non endémique", 0, IF(INTRO!$E$37="Non endémique",0,IF(COUNTRY_INFO!$H43=1,COUNTRY_INFO!G43,0))) -> 0 | G43: 0 | H43: =IF(INTRO!$E$39="Non endémique",IF(INTRO!$E$37="Non endémique","Non requis",COUNTRY_INFO!P43),"Traiter avec IVM") -> Traiter avec IVM | I43: 0 | J43: 0 | L43: 0 | M43: 0
A44: =IF(INTRO!$E$39<>"Non endémique", " ", IF(INTRO!$E$37="Non endémique"," ", IF(COUNTRY_INFO!A44=0," ",COUNTRY_INFO!A44))) ->  | B44: =IF(INTRO!$E$39<>"Non endémique", " ", IF(INTRO!$E$37="Non endémique"," ", IF(COUNTRY_INFO!B44=0," ",COUNTRY_INFO!B44))) ->  | C44: =IF(INTRO!$E$39<>"Non endémique", " ", IF(INTRO!$E$37="Non endémique"," ", IF(COUNTRY_INFO!C44=0," ",COUNTRY_INFO!C44))) ->  | D44: =IF(INTRO!$E$39<>"Non endémique", 0, IF(INTRO!$E$37="Non endémique",0,IF(COUNTRY_INFO!$H44=1,COUNTRY_INFO!E44,0))) -> 0 | E44: =IF(INTRO!$E$39<>"Non endémique", 0, IF(INTRO!$E$37="Non endémique",0,IF(COUNTRY_INFO!$H44=1,COUNTRY_INFO!F44,0))) -> 0 | F44: =IF(INTRO!$E$39<>"Non endémique", 0, IF(INTRO!$E$37="Non endémique",0,IF(COUNTRY_INFO!$H44=1,COUNTRY_INFO!G44,0))) -> 0 | G44: 0 | H44: =IF(INTRO!$E$39="Non endémique",IF(INTRO!$E$37="Non endémique","Non requis",COUNTRY_INFO!P44),"Traiter avec IVM") -> Traiter avec IVM | I44: 0 | J44: 0 | L44: 0 | M44: 0
A45: =IF(INTRO!$E$39<>"Non endémique", " ", IF(INTRO!$E$37="Non endémique"," ", IF(COUNTRY_INFO!A45=0," ",COUNTRY_INFO!A45))) ->  | B45: =IF(INTRO!$E$39<>"Non endémique", " ", IF(INTRO!$E$37="Non endémique"," ", IF(COUNTRY_INFO!B45=0," ",COUNTRY_INFO!B45))) ->  | C45: =IF(INTRO!$E$39<>"Non endémique", " ", IF(INTRO!$E$37="Non endémique"," ", IF(COUNTRY_INFO!C45=0," ",COUNTRY_INFO!C45))) ->  | D45: =IF(INTRO!$E$39<>"Non endémique", 0, IF(INTRO!$E$37="Non endémique",0,IF(COUNTRY_INFO!$H45=1,COUNTRY_INFO!E45,0))) -> 0 | E45: =IF(INTRO!$E$39<>"Non endémique", 0, IF(INTRO!$E$37="Non endémique",0,IF(COUNTRY_INFO!$H45=1,COUNTRY_INFO!F45,0))) -> 0 | F45: =IF(INTRO!$E$39<>"Non endémique", 0, IF(INTRO!$E$37="Non endémique",0,IF(COUNTRY_INFO!$H45=1,COUNTRY_INFO!G45,0))) -> 0 | G45: 0 | H45: =IF(INTRO!$E$39="Non endémique",IF(INTRO!$E$37="Non endémique","Non requis",COUNTRY_INFO!P45),"Traiter avec IVM") -> Traiter avec IVM | I45: 0 | J45: 0 | L45: 0 | M45: 0
A46: =IF(INTRO!$E$39<>"Non endémique", " ", IF(INTRO!$E$37="Non endémique"," ", IF(COUNTRY_INFO!A46=0," ",COUNTRY_INFO!A46))) ->  | B46: =IF(INTRO!$E$39<>"Non endémique", " ", IF(INTRO!$E$37="Non endémique"," ", IF(COUNTRY_INFO!B46=0," ",COUNTRY_INFO!B46))) ->  | C46: =IF(INTRO!$E$39<>"Non endémique", " ", IF(INTRO!$E$37="Non endémique"," ", IF(COUNTRY_INFO!C46=0," ",COUNTRY_INFO!C46))) ->  | D46: =IF(INTRO!$E$39<>"Non endémique", 0, IF(INTRO!$E$37="Non endémique",0,IF(COUNTRY_INFO!$H46=1,COUNTRY_INFO!E46,0))) -> 0 | E46: =IF(INTRO!$E$39<>"Non endémique", 0, IF(INTRO!$E$37="Non endémique",0,IF(COUNTRY_INFO!$H46=1,COUNTRY_INFO!F46,0))) -> 0 | F46: =IF(INTRO!$E$39<>"Non endémique", 0, IF(INTRO!$E$37="Non endémique",0,IF(COUNTRY_INFO!$H46=1,COUNTRY_INFO!G46,0))) -> 0 | G46: 0 | H46: =IF(INTRO!$E$39="Non endémique",IF(INTRO!$E$37="Non endémique","Non requis",COUNTRY_INFO!P46),"Traiter avec IVM") -> Traiter avec IVM | I46: 0 | J46: 0 | L46: 0 | M46: 0
A47: =IF(INTRO!$E$39<>"Non endémique", " ", IF(INTRO!$E$37="Non endémique"," ", IF(COUNTRY_INFO!A47=0," ",COUNTRY_INFO!A47))) ->  | B47: =IF(INTRO!$E$39<>"Non endémique", " ", IF(INTRO!$E$37="Non endémique"," ", IF(COUNTRY_INFO!B47=0," ",COUNTRY_INFO!B47))) ->  | C47: =IF(INTRO!$E$39<>"Non endémique", " ", IF(INTRO!$E$37="Non endémique"," ", IF(COUNTRY_INFO!C47=0," ",COUNTRY_INFO!C47))) ->  | D47: =IF(INTRO!$E$39<>"Non endémique", 0, IF(INTRO!$E$37="Non endémique",0,IF(COUNTRY_INFO!$H47=1,COUNTRY_INFO!E47,0))) -> 0 | E47: =IF(INTRO!$E$39<>"Non endémique", 0, IF(INTRO!$E$37="Non endémique",0,IF(COUNTRY_INFO!$H47=1,COUNTRY_INFO!F47,0))) -> 0 | F47: =IF(INTRO!$E$39<>"Non endémique", 0, IF(INTRO!$E$37="Non endémique",0,IF(COUNTRY_INFO!$H47=1,COUNTRY_INFO!G47,0))) -> 0 | G47: 0 | H47: =IF(INTRO!$E$39="Non endémique",IF(INTRO!$E$37="Non endémique","Non requis",COUNTRY_INFO!P47),"Traiter avec IVM") -> Traiter avec IVM | I47: 0 | J47: 0 | L47: 0 | M47: 0
A48: =IF(INTRO!$E$39<>"Non endémique", " ", IF(INTRO!$E$37="Non endémique"," ", IF(COUNTRY_INFO!A48=0," ",COUNTRY_INFO!A48))) ->  | B48: =IF(INTRO!$E$39<>"Non endémique", " ", IF(INTRO!$E$37="Non endémique"," ", IF(COUNTRY_INFO!B48=0," ",COUNTRY_INFO!B48))) ->  | C48: =IF(INTRO!$E$39<>"Non endémique", " ", IF(INTRO!$E$37="Non endémique"," ", IF(COUNTRY_INFO!C48=0," ",COUNTRY_INFO!C48))) ->  | D48: =IF(INTRO!$E$39<>"Non endémique", 0, IF(INTRO!$E$37="Non endémique",0,IF(COUNTRY_INFO!$H48=1,COUNTRY_INFO!E48,0))) -> 0 | E48: =IF(INTRO!$E$39<>"Non endémique", 0, IF(INTRO!$E$37="Non endémique",0,IF(COUNTRY_INFO!$H48=1,COUNTRY_INFO!F48,0))) -> 0 | F48: =IF(INTRO!$E$39<>"Non endémique", 0, IF(INTRO!$E$37="Non endémique",0,IF(COUNTRY_INFO!$H48=1,COUNTRY_INFO!G48,0))) -> 0 | G48: 0 | H48: =IF(INTRO!$E$39="Non endémique",IF(INTRO!$E$37="Non endémique","Non requis",COUNTRY_INFO!P48),"Traiter avec IVM") -> Traiter avec IVM | I48: 0 | J48: 0 | L48: 0 | M48: 0
A49: =IF(INTRO!$E$39<>"Non endémique", " ", IF(INTRO!$E$37="Non endémique"," ", IF(COUNTRY_INFO!A49=0," ",COUNTRY_INFO!A49))) ->  | B49: =IF(INTRO!$E$39<>"Non endémique", " ", IF(INTRO!$E$37="Non endémique"," ", IF(COUNTRY_INFO!B49=0," ",COUNTRY_INFO!B49))) ->  | C49: =IF(INTRO!$E$39<>"Non endémique", " ", IF(INTRO!$E$37="Non endémique"," ", IF(COUNTRY_INFO!C49=0," ",COUNTRY_INFO!C49))) ->  | D49: =IF(INTRO!$E$39<>"Non endémique", 0, IF(INTRO!$E$37="Non endémique",0,IF(COUNTRY_INFO!$H49=1,COUNTRY_INFO!E49,0))) -> 0 | E49: =IF(INTRO!$E$39<>"Non endémique", 0, IF(INTRO!$E$37="Non endémique",0,IF(COUNTRY_INFO!$H49=1,COUNTRY_INFO!F49,0))) -> 0 | F49: =IF(INTRO!$E$39<>"Non endémique", 0, IF(INTRO!$E$37="Non endémique",0,IF(COUNTRY_INFO!$H49=1,COUNTRY_INFO!G49,0))) -> 0 | G49: 0 | H49: =IF(INTRO!$E$39="Non endémique",IF(INTRO!$E$37="Non endémique","Non requis",COUNTRY_INFO!P49),"Traiter avec IVM") -> Traiter avec IVM | I49: 0 | J49: 0 | L49: 0 | M49: 0
A50: =IF(INTRO!$E$39<>"Non endémique", " ", IF(INTRO!$E$37="Non endémique"," ", IF(COUNTRY_INFO!A50=0," ",COUNTRY_INFO!A50))) ->  | B50: =IF(INTRO!$E$39<>"Non endémique", " ", IF(INTRO!$E$37="Non endémique"," ", IF(COUNTRY_INFO!B50=0," ",COUNTRY_INFO!B50))) ->  | C50: =IF(INTRO!$E$39<>"Non endémique", " ", IF(INTRO!$E$37="Non endémique"," ", IF(COUNTRY_INFO!C50=0," ",COUNTRY_INFO!C50))) ->  | D50: =IF(INTRO!$E$39<>"Non endémique", 0, IF(INTRO!$E$37="Non endémique",0,IF(COUNTRY_INFO!$H50=1,COUNTRY_INFO!E50,0))) -> 0 | E50: =IF(INTRO!$E$39<>"Non endémique", 0, IF(INTRO!$E$37="Non endémique",0,IF(COUNTRY_INFO!$H50=1,COUNTRY_INFO!F50,0))) -> 0 | F50: =IF(INTRO!$E$39<>"Non endémique", 0, IF(INTRO!$E$37="Non endémique",0,IF(COUNTRY_INFO!$H50=1,COUNTRY_INFO!G50,0))) -> 0 | G50: 0 | H50: =IF(INTRO!$E$39="Non endémique",IF(INTRO!$E$37="Non endémique","Non requis",COUNTRY_INFO!P50),"Traiter avec IVM") -> Traiter avec IVM | I50: 0 | J50: 0 | L50: 0 | M50: 0
A51: =IF(INTRO!$E$39<>"Non endémique", " ", IF(INTRO!$E$37="Non endémique"," ", IF(COUNTRY_INFO!A51=0," ",COUNTRY_INFO!A51))) ->  | B51: =IF(INTRO!$E$39<>"Non endémique", " ", IF(INTRO!$E$37="Non endémique"," ", IF(COUNTRY_INFO!B51=0," ",COUNTRY_INFO!B51))) ->  | C51: =IF(INTRO!$E$39<>"Non endémique", " ", IF(INTRO!$E$37="Non endémique"," ", IF(COUNTRY_INFO!C51=0," ",COUNTRY_INFO!C51))) ->  | D51: =IF(INTRO!$E$39<>"Non endémique", 0, IF(INTRO!$E$37="Non endémique",0,IF(COUNTRY_INFO!$H51=1,COUNTRY_INFO!E51,0))) -> 0 | E51: =IF(INTRO!$E$39<>"Non endémique", 0, IF(INTRO!$E$37="Non endémique",0,IF(COUNTRY_INFO!$H51=1,COUNTRY_INFO!F51,0))) -> 0 | F51: =IF(INTRO!$E$39<>"Non endémique", 0, IF(INTRO!$E$37="Non endémique",0,IF(COUNTRY_INFO!$H51=1,COUNTRY_INFO!G51,0))) -> 0 | G51: 0 | H51: =IF(INTRO!$E$39="Non endémique",IF(INTRO!$E$37="Non endémique","Non requis",COUNTRY_INFO!P51),"Traiter avec IVM") -> Traiter avec IVM | I51: 0 | J51: 0 | L51: 0 | M51: 0
A52: =IF(INTRO!$E$39<>"Non endémique", " ", IF(INTRO!$E$37="Non endémique"," ", IF(COUNTRY_INFO!A52=0," ",COUNTRY_INFO!A52))) ->  | B52: =IF(INTRO!$E$39<>"Non endémique", " ", IF(INTRO!$E$37="Non endémique"," ", IF(COUNTRY_INFO!B52=0," ",COUNTRY_INFO!B52))) ->  | C52: =IF(INTRO!$E$39<>"Non endémique", " ", IF(INTRO!$E$37="Non endémique"," ", IF(COUNTRY_INFO!C52=0," ",COUNTRY_INFO!C52))) ->  | D52: =IF(INTRO!$E$39<>"Non endémique", 0, IF(INTRO!$E$37="Non endémique",0,IF(COUNTRY_INFO!$H52=1,COUNTRY_INFO!E52,0))) -> 0 | E52: =IF(INTRO!$E$39<>"Non endémique", 0, IF(INTRO!$E$37="Non endémique",0,IF(COUNTRY_INFO!$H52=1,COUNTRY_INFO!F52,0))) -> 0 | F52: =IF(INTRO!$E$39<>"Non endémique", 0, IF(INTRO!$E$37="Non endémique",0,IF(COUNTRY_INFO!$H52=1,COUNTRY_INFO!G52,0))) -> 0 | G52: 0 | H52: =IF(INTRO!$E$39="Non endémique",IF(INTRO!$E$37="Non endémique","Non requis",COUNTRY_INFO!P52),"Traiter avec IVM") -> Traiter avec IVM | I52: 0 | J52: 0 | L52: 0 | M52: 0
A53: =IF(INTRO!$E$39<>"Non endémique", " ", IF(INTRO!$E$37="Non endémique"," ", IF(COUNTRY_INFO!A53=0," ",COUNTRY_INFO!A53))) ->  | B53: =IF(INTRO!$E$39<>"Non endémique", " ", IF(INTRO!$E$37="Non endémique"," ", IF(COUNTRY_INFO!B53=0," ",COUNTRY_INFO!B53))) ->  | C53: =IF(INTRO!$E$39<>"Non endémique", " ", IF(INTRO!$E$37="Non endémique"," ", IF(COUNTRY_INFO!C53=0," ",COUNTRY_INFO!C53))) ->  | D53: =IF(INTRO!$E$39<>"Non endémique", 0, IF(INTRO!$E$37="Non endémique",0,IF(COUNTRY_INFO!$H53=1,COUNTRY_INFO!E53,0))) -> 0 | E53: =IF(INTRO!$E$39<>"Non endémique", 0, IF(INTRO!$E$37="Non endémique",0,IF(COUNTRY_INFO!$H53=1,COUNTRY_INFO!F53,0))) -> 0 | F53: =IF(INTRO!$E$39<>"Non endémique", 0, IF(INTRO!$E$37="Non endémique",0,IF(COUNTRY_INFO!$H53=1,COUNTRY_INFO!G53,0))) -> 0 | G53: 0 | H53: =IF(INTRO!$E$39="Non endémique",IF(INTRO!$E$37="Non endémique","Non requis",COUNTRY_INFO!P53),"Traiter avec IVM") -> Traiter avec IVM | I53: 0 | J53: 0 | L53: 0 | M53: 0
A54: =IF(INTRO!$E$39<>"Non endémique", " ", IF(INTRO!$E$37="Non endémique"," ", IF(COUNTRY_INFO!A54=0," ",COUNTRY_INFO!A54))) ->  | B54: =IF(INTRO!$E$39<>"Non endémique", " ", IF(INTRO!$E$37="Non endémique"," ", IF(COUNTRY_INFO!B54=0," ",COUNTRY_INFO!B54))) ->  | C54: =IF(INTRO!$E$39<>"Non endémique", " ", IF(INTRO!$E$37="Non endémique"," ", IF(COUNTRY_INFO!C54=0," ",COUNTRY_INFO!C54))) ->  | D54: =IF(INTRO!$E$39<>"Non endémique", 0, IF(INTRO!$E$37="Non endémique",0,IF(COUNTRY_INFO!$H54=1,COUNTRY_INFO!E54,0))) -> 0 | E54: =IF(INTRO!$E$39<>"Non endémique", 0, IF(INTRO!$E$37="Non endémique",0,IF(COUNTRY_INFO!$H54=1,COUNTRY_INFO!F54,0))) -> 0 | F54: =IF(INTRO!$E$39<>"Non endémique", 0, IF(INTRO!$E$37="Non endémique",0,IF(COUNTRY_INFO!$H54=1,COUNTRY_INFO!G54,0))) -> 0 | G54: 0 | H54: =IF(INTRO!$E$39="Non endémique",IF(INTRO!$E$37="Non endémique","Non requis",COUNTRY_INFO!P54),"Traiter avec IVM") -> Traiter avec IVM | I54: 0 | J54: 0 | L54: 0 | M54: 0

Sheet ALB_MBD
A1: Albendazole (ALB) et Mebendazole (MBD)
A2: Structure administrative, population ciblée par groupe d'âge, plan de traitement et information sur les comprimés
A4: TOTAL | D4: =SUM(D$9:D$1000) -> 1568662 | E4: =SUM(E$9:E$1000) -> 2949531 | F4: =SUM(F$9:F$1000) -> 4518193 | I4: =SUM(I$9:I$1000) -> 0 | K4: =SUM(K$9:K$1000) -> 3137324 | L4: =SUM(L$9:L$1000) -> 5899062 | M4: =SUM(M$9:M$1000) -> 1303688 | N4: =SUM(N$9:N$1000) -> 10340074 | O4: =SUM(O$9:O$1000) -> 0 | P4: =SUM(P$9:P$1000) -> 0 | Q4: 0 | R4: 0 | S4: 0 | T4: 0 | U4: 0 | V4: 0 | W4: 5899062 | X4: 29518 | Y4: 0 | Z4: 0 | AA4: 0
A6: Structure administrative du pays | D6: Population nécessitant un traitement avec ALB/MBD | G6: Plan de traitement | I6: Population couverte par le PEFL avec ALB | J6: Médicament choisi pour le traitement des STH | K6: Population cible | S6: Albendazole (ALB) | Y6: Mebendazole (MBD)
A7: Pays | B7: Région/Département | C7: District | D7: EAPréS | E7: EAS | F7: Total | G7: FL | H7: STH | K7: STH (ALB) | O7: STH (MBD) | S7: Reste en stock (FL) | T7: Comprimés devant être fournis (FL) | U7: Flacons (400mg) 200 comprimés (FL) | V7: Reste en stock (STH) | W7: Comprimés devant être fournis pour EAS (STH) | X7: Flacons (400mg) 200 comprimés (STH) | Y7: Reste en stock | Z7: Comprimés devant être fournis pour EAS | AA7: Flacons (500mg) 150 comprimés
K8: EAPréS | L8: EAS | M8: Autres | N8: Total | O8: EAPréS | P8: EAS | Q8: Autres | R8: Total
A9: =IF(AND(INTRO!$E$37="Non endémique",INTRO!$E$41="Non endémique")," ",IF(COUNTRY_INFO!A9=0," ",COUNTRY_INFO!A9)) -> Burundi | B9: =IF(AND(INTRO!$E$37="Non endémique",INTRO!$E$41="Non endémique")," ",IF(COUNTRY_INFO!B9=0," ",COUNTRY_INFO!B9)) -> Bubanza | C9: =IF(AND(INTRO!$E$37="Non endémique",INTRO!$E$41="Non endémique")," ",IF(COUNTRY_INFO!C9=0," ",COUNTRY_INFO!C9)) -> Bubanza | D9: =IF(AND(INTRO!$E$37="Non endémique",INTRO!$E$41="Non endémique"),0,IF(AND(OR(COUNTRY_INFO!$H9=0,COUNTRY_INFO!$H9=4,COUNTRY_INFO!$H9=99),OR(COUNTRY_INFO!$J9=0,COUNTRY_INFO!$J9=4)),0,COUNTRY_INFO!$E9)) -> 33907 | E9: =IF(AND(INTRO!$E$37="Non endémique",INTRO!$E$41="Non endémique"),0,IF(AND(OR(COUNTRY_INFO!$H9=0,COUNTRY_INFO!$H9=4,COUNTRY_INFO!$H9=99),OR(COUNTRY_INFO!$J9=0,COUNTRY_INFO!$J9=4)),0,COUNTRY_INFO!$F9)) -> 63756 | F9: =SUM(D9:E9) -> 97663 | G9: =IF(AND(INTRO!$E$37="Non endémique",INTRO!$E$41="Non endémique"),0,COUNTRY_INFO!P9) -> 0 | H9: =IF(AND(INTRO!$E$37="Non endémique",INTRO!$E$41="Non endémique"),0,COUNTRY_INFO!R9) -> 2 | I9: =IF(INTRO!$E$39="Non endémique",IF($G9=1,DEC!I9,0),IF($G9=1,IVM!G9,0)) -> 0 | J9: ALB | K9: =IF($J9="ALB", IF(INTRO!$E$39="Non endémique",IF($H9<>0,$D9*($H9-$G9),0),$D9*$H9), 0) -> 67814 | L9: =IF($J9="ALB", IF($H9<>0, IF($I9=0, $E9*$H9, $E9*($H9-$G9)),0), 0) -> 127512 | M9: 138413 | N9: =SUM(K9:M9) -> 333739 | O9: =IF($J9="MBD", IF(INTRO!$E$39="Non endémique",IF($H9<>0,$D9*($H9-$G9),0),$D9*$H9),0) -> 0 | P9: =IF($J9="MBD", IF($H9<>0,IF($I9=0, $E9*$H9, $E9*($H9-$G9)),0), 0 ) -> 0 | R9: =SUM(O9:Q9) -> 0 | T9: =IF($I9>$S9, $I9-$S9,0) -> 0 | U9: =ROUNDUP($I9/200,0) -> 0 | W9: =IF($L9>$V9,$L9-$V9,0) -> 127512 | X9: =ROUNDUP($L9/200,0) -> 638 | Z9: =IF($P9>$Y9,$P9-$Y9,0) -> 0 | AA9: =ROUNDUP($P9/150,0) -> 0
A10: =IF(AND(INTRO!$E$37="Non endémique",INTRO!$E$41="Non endémique")," ",IF(COUNTRY_INFO!A10=0," ",COUNTRY_INFO!A10)) -> Burundi | B10: =IF(AND(INTRO!$E$37="Non endémique",INTRO!$E$41="Non endémique")," ",IF(COUNTRY_INFO!B10=0," ",COUNTRY_INFO!B10)) -> Bubanza | C10: =IF(AND(INTRO!$E$37="Non endémique",INTRO!$E$41="Non endémique")," ",IF(COUNTRY_INFO!C10=0," ",COUNTRY_INFO!C10)) -> Mpanda | D10: =IF(AND(INTRO!$E$37="Non endémique",INTRO!$E$41="Non endémique"),0,IF(AND(OR(COUNTRY_INFO!$H10=0,COUNTRY_INFO!$H10=4,COUNTRY_INFO!$H10=99),OR(COUNTRY_INFO!$J10=0,COUNTRY_INFO!$J10=4)),0,COUNTRY_INFO!$E10)) -> 41220 | E10: =IF(AND(INTRO!$E$37="Non endémique",INTRO!$E$41="Non endémique"),0,IF(AND(OR(COUNTRY_INFO!$H10=0,COUNTRY_INFO!$H10=4,COUNTRY_INFO!$H10=99),OR(COUNTRY_INFO!$J10=0,COUNTRY_INFO!$J10=4)),0,COUNTRY_INFO!$F10)) -> 77505 | F10: 118725 | G10: =IF(AND(INTRO!$E$37="Non endémique",INTRO!$E$41="Non endémique"),0,COUNTRY_INFO!P10) -> 0 | H10: =IF(AND(INTRO!$E$37="Non endémique",INTRO!$E$41="Non endémique"),0,COUNTRY_INFO!R10) -> 2 | I10: =IF(INTRO!$E$39="Non endémique",IF($G10=1,DEC!I10,0),IF($G10=1,IVM!G10,0)) -> 0 | J10: ALB | K10: =IF($J10="ALB", IF(INTRO!$E$39="Non endémique",IF($H10<>0,$D10*($H10-$G10),0),$D10*$H10), 0) -> 82440 | L10: 155010 | M10: 96737 | N10: 334187 | O10: =IF($J10="MBD", IF(INTRO!$E$39="Non endémique",IF($H10<>0,$D10*($H10-$G10),0),$D10*$H10),0) -> 0 | P10: 0 | R10: 0 | T10: 0 | U10: 0 | W10: 155010 | X10: 776 | Z10: 0 | AA10: 0
A11: =IF(AND(INTRO!$E$37="Non endémique",INTRO!$E$41="Non endémique")," ",IF(COUNTRY_INFO!A11=0," ",COUNTRY_INFO!A11)) -> Burundi | B11: =IF(AND(INTRO!$E$37="Non endémique",INTRO!$E$41="Non endémique")," ",IF(COUNTRY_INFO!B11=0," ",COUNTRY_INFO!B11)) -> Bujumbura Mairie | C11: =IF(AND(INTRO!$E$37="Non endémique",INTRO!$E$41="Non endémique")," ",IF(COUNTRY_INFO!C11=0," ",COUNTRY_INFO!C11)) -> Zone Nord | D11: =IF(AND(INTRO!$E$37="Non endémique",INTRO!$E$41="Non endémique"),0,IF(AND(OR(COUNTRY_INFO!$H11=0,COUNTRY_INFO!$H11=4,COUNTRY_INFO!$H11=99),OR(COUNTRY_INFO!$J11=0,COUNTRY_INFO!$J11=4)),0,COUNTRY_INFO!$E11)) -> 45882 | E11: =IF(AND(INTRO!$E$37="Non endémique",INTRO!$E$41="Non endémique"),0,IF(AND(OR(COUNTRY_INFO!$H11=0,COUNTRY_INFO!$H11=4,COUNTRY_INFO!$H11=99),OR(COUNTRY_INFO!$J11=0,COUNTRY_INFO!$J11=4)),0,COUNTRY_INFO!$F11)) -> 86270 | F11: 132152 | G11: =IF(AND(INTRO!$E$37="Non endémique",INTRO!$E$41="Non endémique"),0,COUNTRY_INFO!P11) -> 0 | H11: =IF(AND(INTRO!$E$37="Non endémique",INTRO!$E$41="Non endémique"),0,COUNTRY_INFO!R11) -> 2 | I11: =IF(INTRO!$E$39="Non endémique",IF($G11=1,DEC!I11,0),IF($G11=1,IVM!G11,0)) -> 0 | J11: ALB | K11: =IF($J11="ALB", IF(INTRO!$E$39="Non endémique",IF($H11<>0,$D11*($H11-$G11),0),$D11*$H11), 0) -> 91764 | L11: 172540 | M11: 3929 | N11: 268233 | O11: =IF($J11="MBD", IF(INTRO!$E$39="Non endémique",IF($H11<>0,$D11*($H11-$G11),0),$D11*$H11),0) -> 0 | P11: 0 | R11: 0 | T11: 0 | U11: 0 | W11: 172540 | X11: 863 | Z11: 0 | AA11: 0
A12: =IF(AND(INTRO!$E$37="Non endémique",INTRO!$E$41="Non endémique")," ",IF(COUNTRY_INFO!A12=0," ",COUNTRY_INFO!A12)) -> Burundi | B12: =IF(AND(INTRO!$E$37="Non endémique",INTRO!$E$41="Non endémique")," ",IF(COUNTRY_INFO!B12=0," ",COUNTRY_INFO!B12)) -> Bujumbura Mairie | C12: =IF(AND(INTRO!$E$37="Non endémique",INTRO!$E$41="Non endémique")," ",IF(COUNTRY_INFO!C12=0," ",COUNTRY_INFO!C12)) -> Zone centre | D12: =IF(AND(INTRO!$E$37="Non endémique",INTRO!$E$41="Non endémique"),0,IF(AND(OR(COUNTRY_INFO!$H12=0,COUNTRY_INFO!$H12=4,COUNTRY_INFO!$H12=99),OR(COUNTRY_INFO!$J12=0,COUNTRY_INFO!$J12=4)),0,COUNTRY_INFO!$E12)) -> 19871 | E12: =IF(AND(INTRO!$E$37="Non endémique",INTRO!$E$41="Non endémique"),0,IF(AND(OR(COUNTRY_INFO!$H12=0,COUNTRY_INFO!$H12=4,COUNTRY_INFO!$H12=99),OR(COUNTRY_INFO!$J12=0,COUNTRY_INFO!$J12=4)),0,COUNTRY_INFO!$F12)) -> 37364 | F12: 57235 | G12: =IF(AND(INTRO!$E$37="Non endémique",INTRO!$E$41="Non endémique"),0,COUNTRY_INFO!P12) -> 0 | H12: =IF(AND(INTRO!$E$37="Non endémique",INTRO!$E$41="Non endémique"),0,COUNTRY_INFO!R12) -> 2 | I12: =IF(INTRO!$E$39="Non endémique",IF($G12=1,DEC!I12,0),IF($G12=1,IVM!G12,0)) -> 0 | J12: ALB | K12: =IF($J12="ALB", IF(INTRO!$E$39="Non endémique",IF($H12<>0,$D12*($H12-$G12),0),$D12*$H12), 0) -> 39742 | L12: 74728 | M12: 6806 | N12: 121276 | O12: =IF($J12="MBD", IF(INTRO!$E$39="Non endémique",IF($H12<>0,$D12*($H12-$G12),0),$D12*$H12),0) -> 0 | P12: 0 | R12: 0 | T12: 0 | U12: 0 | W12: 74728 | X12: 374 | Z12: 0 | AA12: 0
A13: =IF(AND(INTRO!$E$37="Non endémique",INTRO!$E$41="Non endémique")," ",IF(COUNTRY_INFO!A13=0," ",COUNTRY_INFO!A13)) -> Burundi | B13: =IF(AND(INTRO!$E$37="Non endémique",INTRO!$E$41="Non endémique")," ",IF(COUNTRY_INFO!B13=0," ",COUNTRY_INFO!B13)) -> Bujumbura Mairie | C13: =IF(AND(INTRO!$E$37="Non endémique",INTRO!$E$41="Non endémique")," ",IF(COUNTRY_INFO!C13=0," ",COUNTRY_INFO!C13)) -> Zone Sud | D13: =IF(AND(INTRO!$E$37="Non endémique",INTRO!$E$41="Non endémique"),0,IF(AND(OR(COUNTRY_INFO!$H13=0,COUNTRY_INFO!$H13=4,COUNTRY_INFO!$H13=99),OR(COUNTRY_INFO!$J13=0,COUNTRY_INFO!$J13=4)),0,COUNTRY_INFO!$E13)) -> 23010 | E13: =IF(AND(INTRO!$E$37="Non endémique",INTRO!$E$41="Non endémique"),0,IF(AND(OR(COUNTRY_INFO!$H13=0,COUNTRY_INFO!$H13=4,COUNTRY_INFO!$H13=99),OR(COUNTRY_INFO!$J13=0,COUNTRY_INFO!$J13=4)),0,COUNTRY_INFO!$F13)) -> 43266 | F13: 66276 | G13: =IF(AND(INTRO!$E$37="Non endémique",INTRO!$E$41="Non endémique"),0,COUNTRY_INFO!P13) -> 0 | H13: =IF(AND(INTRO!$E$37="Non endémique",INTRO!$E$41="Non endémique"),0,COUNTRY_INFO!R13) -> 2 | I13: =IF(INTRO!$E$39="Non endémique",IF($G13=1,DEC!I13,0),IF($G13=1,IVM!G13,0)) -> 0 | J13: ALB | K13: =IF($J13="ALB", IF(INTRO!$E$39="Non endémique",IF($H13<>0,$D13*($H13-$G13),0),$D13*$H13), 0) -> 46020 | L13: 86532 | M13: 7881 | N13: 140433 | O13: =IF($J13="MBD", IF(INTRO!$E$39="Non endémique",IF($H13<>0,$D13*($H13-$G13),0),$D13*$H13),0) -> 0 | P13: 0 | R13: 0 | T13: 0 | U13: 0 | W13: 86532 | X13: 433 | Z13: 0 | AA13: 0
A14: =IF(AND(INTRO!$E$37="Non endémique",INTRO!$E$41="Non endémique")," ",IF(COUNTRY_INFO!A14=0," ",COUNTRY_INFO!A14)) -> Burundi | B14: =IF(AND(INTRO!$E$37="Non endémique",INTRO!$E$41="Non endémique")," ",IF(COUNTRY_INFO!B14=0," ",COUNTRY_INFO!B14)) -> Bujumbura Rural | C14: =IF(AND(INTRO!$E$37="Non endémique",INTRO!$E$41="Non endémique")," ",IF(COUNTRY_INFO!C14=0," ",COUNTRY_INFO!C14)) -> Kabezi | D14: =IF(AND(INTRO!$E$37="Non endémique",INTRO!$E$41="Non endémique"),0,IF(AND(OR(COUNTRY_INFO!$H14=0,COUNTRY_INFO!$H14=4,COUNTRY_INFO!$H14=99),OR(COUNTRY_INFO!$J14=0,COUNTRY_INFO!$J14=4)),0,COUNTRY_INFO!$E14)) -> 31360 | E14: =IF(AND(INTRO!$E$37="Non endémique",INTRO!$E$41="Non endémique"),0,IF(AND(OR(COUNTRY_INFO!$H14=0,COUNTRY_INFO!$H14=4,COUNTRY_INFO!$H14=99),OR(COUNTRY_INFO!$J14=0,COUNTRY_INFO!$J14=4)),0,COUNTRY_INFO!$F14)) -> 58965 | F14: 90325 | G14: =IF(AND(INTRO!$E$37="Non endémique",INTRO!$E$41="Non endémique"),0,COUNTRY_INFO!P14) -> 0 | H14: =IF(AND(INTRO!$E$37="Non endémique",INTRO!$E$41="Non endémique"),0,COUNTRY_INFO!R14) -> 2 | I14: =IF(INTRO!$E$39="Non endémique",IF($G14=1,DEC!I14,0),IF($G14=1,IVM!G14,0)) -> 0 | J14: ALB | K14: =IF($J14="ALB", IF(INTRO!$E$39="Non endémique",IF($H14<>0,$D14*($H14-$G14),0),$D14*$H14), 0) -> 62720 | L14: 117930 | M14: 10740 | N14: 191390 | O14: =IF($J14="MBD", IF(INTRO!$E$39="Non endémique",IF($H14<>0,$D14*($H14-$G14),0),$D14*$H14),0) -> 0 | P14: 0 | R14: 0 | T14: 0 | U14: 0 | W14: 117930 | X14: 590 | Z14: 0 | AA14: 0
A15: =IF(AND(INTRO!$E$37="Non endémique",INTRO!$E$41="Non endémique")," ",IF(COUNTRY_INFO!A15=0," ",COUNTRY_INFO!A15)) -> Burundi | B15: =IF(AND(INTRO!$E$37="Non endémique",INTRO!$E$41="Non endémique")," ",IF(COUNTRY_INFO!B15=0," ",COUNTRY_INFO!B15)) -> Bujumbura Rural | C15: =IF(AND(INTRO!$E$37="Non endémique",INTRO!$E$41="Non endémique")," ",IF(COUNTRY_INFO!C15=0," ",COUNTRY_INFO!C15)) -> Isale | D15: =IF(AND(INTRO!$E$37="Non endémique",INTRO!$E$41="Non endémique"),0,IF(AND(OR(COUNTRY_INFO!$H15=0,COUNTRY_INFO!$H15=4,COUNTRY_INFO!$H15=99),OR(COUNTRY_INFO!$J15=0,COUNTRY_INFO!$J15=4)),0,COUNTRY_INFO!$E15)) -> 36012 | E15: =IF(AND(INTRO!$E$37="Non endémique",INTRO!$E$41="Non endémique"),0,IF(AND(OR(COUNTRY_INFO!$H15=0,COUNTRY_INFO!$H15=4,COUNTRY_INFO!$H15=99),OR(COUNTRY_INFO!$J15=0,COUNTRY_INFO!$J15=4)),0,COUNTRY_INFO!$F15)) -> 67713 | F15: 103725 | G15: =IF(AND(INTRO!$E$37="Non endémique",INTRO!$E$41="Non endémique"),0,COUNTRY_INFO!P15) -> 0 | H15: =IF(AND(INTRO!$E$37="Non endémique",INTRO!$E$41="Non endémique"),0,COUNTRY_INFO!R15) -> 2 | I15: =IF(INTRO!$E$39="Non endémique",IF($G15=1,DEC!I15,0),IF($G15=1,IVM!G15,0)) -> 0 | J15: ALB | K15: =IF($J15="ALB", IF(INTRO!$E$39="Non endémique",IF($H15<>0,$D15*($H15-$G15),0),$D15*$H15), 0) -> 72024 | L15: 135426 | M15: 5468 | N15: 212918 | O15: =IF($J15="MBD", IF(INTRO!$E$39="Non endémique",IF($H15<>0,$D15*($H15-$G15),0),$D15*$H15),0) -> 0 | P15: 0 | R15: 0 | T15: 0 | U15: 0 | W15: 135426 | X15: 678 | Z15: 0 | AA15: 0
A16: =IF(AND(INTRO!$E$37="Non endémique",INTRO!$E$41="Non endémique")," ",IF(COUNTRY_INFO!A16=0," ",COUNTRY_INFO!A16)) -> Burundi | B16: =IF(AND(INTRO!$E$37="Non endémique",INTRO!$E$41="Non endémique")," ",IF(COUNTRY_INFO!B16=0," ",COUNTRY_INFO!B16)) -> Bujumbura Rural | C16: =IF(AND(INTRO!$E$37="Non endémique",INTRO!$E$41="Non endémique")," ",IF(COUNTRY_INFO!C16=0," ",COUNTRY_INFO!C16)) -> Rwibaga | D16: =IF(AND(INTRO!$E$37="Non endémique",INTRO!$E$41="Non endémique"),0,IF(AND(OR(COUNTRY_INFO!$H16=0,COUNTRY_INFO!$H16=4,COUNTRY_INFO!$H16=99),OR(COUNTRY_INFO!$J16=0,COUNTRY_INFO!$J16=4)),0,COUNTRY_INFO!$E16)) -> 15968 | E16: =IF(AND(INTRO!$E$37="Non endémique",INTRO!$E$41="Non endémique"),0,IF(AND(OR(COUNTRY_INFO!$H16=0,COUNTRY_INFO!$H16=4,COUNTRY_INFO!$H16=99),OR(COUNTRY_INFO!$J16=0,COUNTRY_INFO!$J16=4)),0,COUNTRY_INFO!$F16)) -> 30025 | F16: 45993 | G16: =IF(AND(INTRO!$E$37="Non endémique",INTRO!$E$41="Non endémique"),0,COUNTRY_INFO!P16) -> 0 | H16: =IF(AND(INTRO!$E$37="Non endémique",INTRO!$E$41="Non endémique"),0,COUNTRY_INFO!R16) -> 2 | I16: =IF(INTRO!$E$39="Non endémique",IF($G16=1,DEC!I16,0),IF($G16=1,IVM!G16,0)) -> 0 | J16: ALB | K16: =IF($J16="ALB", IF(INTRO!$E$39="Non endémique",IF($H16<>0,$D16*($H16-$G16),0),$D16*$H16), 0) -> 31936 | L16: 60050 | M16: 12335 | N16: 104321 | O16: =IF($J16="MBD", IF(INTRO!$E$39="Non endémique",IF($H16<>0,$D16*($H16-$G16),0),$D16*$H16),0) -> 0 | P16: 0 | R16: 0 | T16: 0 | U16: 0 | W16: 60050 | X16: 301 | Z16: 0 | AA16: 0
A17: =IF(AND(INTRO!$E$37="Non endémique",INTRO!$E$41="Non endémique")," ",IF(COUNTRY_INFO!A17=0," ",COUNTRY_INFO!A17)) -> Burundi | B17: =IF(AND(INTRO!$E$37="Non endémique",INTRO!$E$41="Non endémique")," ",IF(COUNTRY_INFO!B17=0," ",COUNTRY_INFO!B17)) -> Bururi | C17: =IF(AND(INTRO!$E$37="Non endémique",INTRO!$E$41="Non endémique")," ",IF(COUNTRY_INFO!C17=0," ",COUNTRY_INFO!C17)) -> Bururi | D17: =IF(AND(INTRO!$E$37="Non endémique",INTRO!$E$41="Non endémique"),0,IF(AND(OR(COUNTRY_INFO!$H17=0,COUNTRY_INFO!$H17=4,COUNTRY_INFO!$H17=99),OR(COUNTRY_INFO!$J17=0,COUNTRY_INFO!$J17=4)),0,COUNTRY_INFO!$E17)) -> 22192 | E17: =IF(AND(INTRO!$E$37="Non endémique",INTRO!$E$41="Non endémique"),0,IF(AND(OR(COUNTRY_INFO!$H17=0,COUNTRY_INFO!$H17=4,COUNTRY_INFO!$H17=99),OR(COUNTRY_INFO!$J17=0,COUNTRY_INFO!$J17=4)),0,COUNTRY_INFO!$F17)) -> 41728 | F17: 63920 | G17: =IF(AND(INTRO!$E$37="Non endémique",INTRO!$E$41="Non endémique"),0,COUNTRY_INFO!P17) -> 0 | H17: =IF(AND(INTRO!$E$37="Non endémique",INTRO!$E$41="Non endémique"),0,COUNTRY_INFO!R17) -> 2 | I17: =IF(INTRO!$E$39="Non endémique",IF($G17=1,DEC!I17,0),IF($G17=1,IVM!G17,0)) -> 0 | J17: ALB | K17: =IF($J17="ALB", IF(INTRO!$E$39="Non endémique",IF($H17<>0,$D17*($H17-$G17),0),$D17*$H17), 0) -> 44384 | L17: 83456 | M17: 32758 | N17: 160598 | O17: =IF($J17="MBD", IF(INTRO!$E$39="Non endémique",IF($H17<>0,$D17*($H17-$G17),0),$D17*$H17),0) -> 0 | P17: 0 | R17: 0 | T17: 0 | U17: 0 | W17: 83456 | X17: 418 | Z17: 0 | AA17: 0
A18: =IF(AND(INTRO!$E$37="Non endémique",INTRO!$E$41="Non endémique")," ",IF(COUNTRY_INFO!A18=0," ",COUNTRY_INFO!A18)) -> Burundi | B18: =IF(AND(INTRO!$E$37="Non endémique",INTRO!$E$41="Non endémique")," ",IF(COUNTRY_INFO!B18=0," ",COUNTRY_INFO!B18)) -> Bururi | C18: =IF(AND(INTRO!$E$37="Non endémique",INTRO!$E$41="Non endémique")," ",IF(COUNTRY_INFO!C18=0," ",COUNTRY_INFO!C18)) -> Matana | D18: =IF(AND(INTRO!$E$37="Non endémique",INTRO!$E$41="Non endémique"),0,IF(AND(OR(COUNTRY_INFO!$H18=0,COUNTRY_INFO!$H18=4,COUNTRY_INFO!$H18=99),OR(COUNTRY_INFO!$J18=0,COUNTRY_INFO!$J18=4)),0,COUNTRY_INFO!$E18)) -> 36460 | E18: =IF(AND(INTRO!$E$37="Non endémique",INTRO!$E$41="Non endémique"),0,IF(AND(OR(COUNTRY_INFO!$H18=0,COUNTRY_INFO!$H18=4,COUNTRY_INFO!$H18=99),OR(COUNTRY_INFO!$J18=0,COUNTRY_INFO!$J18=4)),0,COUNTRY_INFO!$F18)) -> 68556 | F18: 105016 | G18: =IF(AND(INTRO!$E$37="Non endémique",INTRO!$E$41="Non endémique"),0,COUNTRY_INFO!P18) -> 0 | H18: =IF(AND(INTRO!$E$37="Non endémique",INTRO!$E$41="Non endémique"),0,COUNTRY_INFO!R18) -> 2 | I18: =IF(INTRO!$E$39="Non endémique",IF($G18=1,DEC!I18,0),IF($G18=1,IVM!G18,0)) -> 0 | J18: ALB | K18: =IF($J18="ALB", IF(INTRO!$E$39="Non endémique",IF($H18<>0,$D18*($H18-$G18),0),$D18*$H18), 0) -> 72920 | L18: 137112 | M18: 18792 | N18: 228824 | O18: =IF($J18="MBD", IF(INTRO!$E$39="Non endémique",IF($H18<>0,$D18*($H18-$G18),0),$D18*$H18),0) -> 0 | P18: 0 | R18: 0 | T18: 0 | U18: 0 | W18: 137112 | X18: 686 | Z18: 0 | AA18: 0
A19: =IF(AND(INTRO!$E$37="Non endémique",INTRO!$E$41="Non endémique")," ",IF(COUNTRY_INFO!A19=0," ",COUNTRY_INFO!A19)) -> Burundi | B19: =IF(AND(INTRO!$E$37="Non endémique",INTRO!$E$41="Non endémique")," ",IF(COUNTRY_INFO!B19=0," ",COUNTRY_INFO!B19)) -> Cankuzo | C19: =IF(AND(INTRO!$E$37="Non endémique",INTRO!$E$41="Non endémique")," ",IF(COUNTRY_INFO!C19=0," ",COUNTRY_INFO!C19)) -> Cankuzo | D19: =IF(AND(INTRO!$E$37="Non endémique",INTRO!$E$41="Non endémique"),0,IF(AND(OR(COUNTRY_INFO!$H19=0,COUNTRY_INFO!$H19=4,COUNTRY_INFO!$H19=99),OR(COUNTRY_INFO!$J19=0,COUNTRY_INFO!$J19=4)),0,COUNTRY_INFO!$E19)) -> 26271 | E19: =IF(AND(INTRO!$E$37="Non endémique",INTRO!$E$41="Non endémique"),0,IF(AND(OR(COUNTRY_INFO!$H19=0,COUNTRY_INFO!$H19=4,COUNTRY_INFO!$H19=99),OR(COUNTRY_INFO!$J19=0,COUNTRY_INFO!$J19=4)),0,COUNTRY_INFO!$F19)) -> 49396 | F19: 75667 | G19: =IF(AND(INTRO!$E$37="Non endémique",INTRO!$E$41="Non endémique"),0,COUNTRY_INFO!P19) -> 0 | H19: =IF(AND(INTRO!$E$37="Non endémique",INTRO!$E$41="Non endémique"),0,COUNTRY_INFO!R19) -> 2 | I19: =IF(INTRO!$E$39="Non endémique",IF($G19=1,DEC!I19,0),IF($G19=1,IVM!G19,0)) -> 0 | J19: ALB | K19: =IF($J19="ALB", IF(INTRO!$E$39="Non endémique",IF($H19<>0,$D19*($H19-$G19),0),$D19*$H19), 0) -> 52542 | L19: 98792 | M19: 4499 | N19: 155833 | O19: =IF($J19="MBD", IF(INTRO!$E$39="Non endémique",IF($H19<>0,$D19*($H19-$G19),0),$D19*$H19),0) -> 0 | P19: 0 | R19: 0 | T19: 0 | U19: 0 | W19: 98792 | X19: 494 | Z19: 0 | AA19: 0
A20: =IF(AND(INTRO!$E$37="Non endémique",INTRO!$E$41="Non endémique")," ",IF(COUNTRY_INFO!A20=0," ",COUNTRY_INFO!A20)) -> Burundi | B20: =IF(AND(INTRO!$E$37="Non endémique",INTRO!$E$41="Non endémique")," ",IF(COUNTRY_INFO!B20=0," ",COUNTRY_INFO!B20)) -> Cankuzo | C20: =IF(AND(INTRO!$E$37="Non endémique",INTRO!$E$41="Non endémique")," ",IF(COUNTRY_INFO!C20=0," ",COUNTRY_INFO!C20)) -> Murore | D20: =IF(AND(INTRO!$E$37="Non endémique",INTRO!$E$41="Non endémique"),0,IF(AND(OR(COUNTRY_INFO!$H20=0,COUNTRY_INFO!$H20=4,COUNTRY_INFO!$H20=99),OR(COUNTRY_INFO!$J20=0,COUNTRY_INFO!$J20=4)),0,COUNTRY_INFO!$E20)) -> 25738 | E20: =IF(AND(INTRO!$E$37="Non endémique",INTRO!$E$41="Non endémique"),0,IF(AND(OR(COUNTRY_INFO!$H20=0,COUNTRY_INFO!$H20=4,COUNTRY_INFO!$H20=99),OR(COUNTRY_INFO!$J20=0,COUNTRY_INFO!$J20=4)),0,COUNTRY_INFO!$F20)) -> 48395 | F20: 74133 | G20: =IF(AND(INTRO!$E$37="Non endémique",INTRO!$E$41="Non endémique"),0,COUNTRY_INFO!P20) -> 0 | H20: =IF(AND(INTRO!$E$37="Non endémique",INTRO!$E$41="Non endémique"),0,COUNTRY_INFO!R20) -> 2 | I20: =IF(INTRO!$E$39="Non endémique",IF($G20=1,DEC!I20,0),IF($G20=1,IVM!G20,0)) -> 0 | J20: ALB | K20: =IF($J20="ALB", IF(INTRO!$E$39="Non endémique",IF($H20<>0,$D20*($H20-$G20),0),$D20*$H20), 0) -> 51476 | L20: 96790 | M20: 4408 | N20: 152674 | O20: =IF($J20="MBD", IF(INTRO!$E$39="Non endémique",IF($H20<>0,$D20*($H20-$G20),0),$D20*$H20),0) -> 0 | P20: 0 | R20: 0 | T20: 0 | U20: 0 | W20: 96790 | X20: 484 | Z20: 0 | AA20: 0
A21: =IF(AND(INTRO!$E$37="Non endémique",INTRO!$E$41="Non endémique")," ",IF(COUNTRY_INFO!A21=0," ",COUNTRY_INFO!A21)) -> Burundi | B21: =IF(AND(INTRO!$E$37="Non endémique",INTRO!$E$41="Non endémique")," ",IF(COUNTRY_INFO!B21=0," ",COUNTRY_INFO!B21)) -> Cibitoke | C21: =IF(AND(INTRO!$E$37="Non endémique",INTRO!$E$41="Non endémique")," ",IF(COUNTRY_INFO!C21=0," ",COUNTRY_INFO!C21)) -> Cibitoke | D21: =IF(AND(INTRO!$E$37="Non endémique",INTRO!$E$41="Non endémique"),0,IF(AND(OR(COUNTRY_INFO!$H21=0,COUNTRY_INFO!$H21=4,COUNTRY_INFO!$H21=99),OR(COUNTRY_INFO!$J21=0,COUNTRY_INFO!$J21=4)),0,COUNTRY_INFO!$E21)) -> 50281 | E21: =IF(AND(INTRO!$E$37="Non endémique",INTRO!$E$41="Non endémique"),0,IF(AND(OR(COUNTRY_INFO!$H21=0,COUNTRY_INFO!$H21=4,COUNTRY_INFO!$H21=99),OR(COUNTRY_INFO!$J21=0,COUNTRY_INFO!$J21=4)),0,COUNTRY_INFO!$F21)) -> 94543 | F21: 144824 | G21: =IF(AND(INTRO!$E$37="Non endémique",INTRO!$E$41="Non endémique"),0,COUNTRY_INFO!P21) -> 0 | H21: =IF(AND(INTRO!$E$37="Non endémique",INTRO!$E$41="Non endémique"),0,COUNTRY_INFO!R21) -> 2 | I21: =IF(INTRO!$E$39="Non endémique",IF($G21=1,DEC!I21,0),IF($G21=1,IVM!G21,0)) -> 0 | J21: ALB | K21: =IF($J21="ALB", IF(INTRO!$E$39="Non endémique",IF($H21<>0,$D21*($H21-$G21),0),$D21*$H21), 0) -> 100562 | L21: 189086 | M21: 191181 | N21: 480829 | O21: =IF($J21="MBD", IF(INTRO!$E$39="Non endémique",IF($H21<>0,$D21*($H21-$G21),0),$D21*$H21),0) -> 0 | P21: 0 | R21: 0 | T21: 0 | U21: 0 | W21: 189086 | X21: 946 | Z21: 0 | AA21: 0
A22: =IF(AND(INTRO!$E$37="Non endémique",INTRO!$E$41="Non endémique")," ",IF(COUNTRY_INFO!A22=0," ",COUNTRY_INFO!A22)) -> Burundi | B22: =IF(AND(INTRO!$E$37="Non endémique",INTRO!$E$41="Non endémique")," ",IF(COUNTRY_INFO!B22=0," ",COUNTRY_INFO!B22)) -> Cibitoke | C22: =IF(AND(INTRO!$E$37="Non endémique",INTRO!$E$41="Non endémique")," ",IF(COUNTRY_INFO!C22=0," ",COUNTRY_INFO!C22)) -> Mabayi | D22: =IF(AND(INTRO!$E$37="Non endémique",INTRO!$E$41="Non endémique"),0,IF(AND(OR(COUNTRY_INFO!$H22=0,COUNTRY_INFO!$H22=4,COUNTRY_INFO!$H22=99),OR(COUNTRY_INFO!$J22=0,COUNTRY_INFO!$J22=4)),0,COUNTRY_INFO!$E22)) -> 42231 | E22: =IF(AND(INTRO!$E$37="Non endémique",INTRO!$E$41="Non endémique"),0,IF(AND(OR(COUNTRY_INFO!$H22=0,COUNTRY_INFO!$H22=4,COUNTRY_INFO!$H22=99),OR(COUNTRY_INFO!$J22=0,COUNTRY_INFO!$J22=4)),0,COUNTRY_INFO!$F22)) -> 79406 | F22: 121637 | G22: =IF(AND(INTRO!$E$37="Non endémique",INTRO!$E$41="Non endémique"),0,COUNTRY_INFO!P22) -> 0 | H22: =IF(AND(INTRO!$E$37="Non endémique",INTRO!$E$41="Non endémique"),0,COUNTRY_INFO!R22) -> 2 | I22: =IF(INTRO!$E$39="Non endémique",IF($G22=1,DEC!I22,0),IF($G22=1,IVM!G22,0)) -> 0 | J22: ALB | K22: =IF($J22="ALB", IF(INTRO!$E$39="Non endémique",IF($H22<>0,$D22*($H22-$G22),0),$D22*$H22), 0) -> 84462 | L22: 158812 | M22: 188881 | N22: 432155 | O22: =IF($J22="MBD", IF(INTRO!$E$39="Non endémique",IF($H22<>0,$D22*($H22-$G22),0),$D22*$H22),0) -> 0 | P22: 0 | R22: 0 | T22: 0 | U22: 0 | W22: 158812 | X22: 795 | Z22: 0 | AA22: 0
A23: =IF(AND(INTRO!$E$37="Non endémique",INTRO!$E$41="Non endémique")," ",IF(COUNTRY_INFO!A23=0," ",COUNTRY_INFO!A23)) -> Burundi | B23: =IF(AND(INTRO!$E$37="Non endémique",INTRO!$E$41="Non endémique")," ",IF(COUNTRY_INFO!B23=0," ",COUNTRY_INFO!B23)) -> Gitega | C23: =IF(AND(INTRO!$E$37="Non endémique",INTRO!$E$41="Non endémique")," ",IF(COUNTRY_INFO!C23=0," ",COUNTRY_INFO!C23)) -> Gitega | D23: =IF(AND(INTRO!$E$37="Non endémique",INTRO!$E$41="Non endémique"),0,IF(AND(OR(COUNTRY_INFO!$H23=0,COUNTRY_INFO!$H23=4,COUNTRY_INFO!$H23=99),OR(COUNTRY_INFO!$J23=0,COUNTRY_INFO!$J23=4)),0,COUNTRY_INFO!$E23)) -> 43919 | E23: =IF(AND(INTRO!$E$37="Non endémique",INTRO!$E$41="Non endémique"),0,IF(AND(OR(COUNTRY_INFO!$H23=0,COUNTRY_INFO!$H23=4,COUNTRY_INFO!$H23=99),OR(COUNTRY_INFO!$J23=0,COUNTRY_INFO!$J23=4)),0,COUNTRY_INFO!$F23)) -> 82581 | F23: 126500 | G23: =IF(AND(INTRO!$E$37="Non endémique",INTRO!$E$41="Non endémique"),0,COUNTRY_INFO!P23) -> 0 | H23: =IF(AND(INTRO!$E$37="Non endémique",INTRO!$E$41="Non endémique"),0,COUNTRY_INFO!R23) -> 2 | I23: =IF(INTRO!$E$39="Non endémique",IF($G23=1,DEC!I23,0),IF($G23=1,IVM!G23,0)) -> 0 | J23: ALB | K23: =IF($J23="ALB", IF(INTRO!$E$39="Non endémique",IF($H23<>0,$D23*($H23-$G23),0),$D23*$H23), 0) -> 87838 | L23: 165162 | M23: 7521 | N23: 260521 | O23: =IF($J23="MBD", IF(INTRO!$E$39="Non endémique",IF($H23<>0,$D23*($H23-$G23),0),$D23*$H23),0) -> 0 | P23: 0 | R23: 0 | T23: 0 | U23: 0 | W23: 165162 | X23: 826 | Z23: 0 | AA23: 0
A24: =IF(AND(INTRO!$E$37="Non endémique",INTRO!$E$41="Non endémique")," ",IF(COUNTRY_INFO!A24=0," ",COUNTRY_INFO!A24)) -> Burundi | B24: =IF(AND(INTRO!$E$37="Non endémique",INTRO!$E$41="Non endémique")," ",IF(COUNTRY_INFO!B24=0," ",COUNTRY_INFO!B24)) -> Gitega | C24: =IF(AND(INTRO!$E$37="Non endémique",INTRO!$E$41="Non endémique")," ",IF(COUNTRY_INFO!C24=0," ",COUNTRY_INFO!C24)) -> Kibuye | D24: =IF(AND(INTRO!$E$37="Non endémique",INTRO!$E$41="Non endémique"),0,IF(AND(OR(COUNTRY_INFO!$H24=0,COUNTRY_INFO!$H24=4,COUNTRY_INFO!$H24=99),OR(COUNTRY_INFO!$J24=0,COUNTRY_INFO!$J24=4)),0,COUNTRY_INFO!$E24)) -> 32612 | E24: =IF(AND(INTRO!$E$37="Non endémique",INTRO!$E$41="Non endémique"),0,IF(AND(OR(COUNTRY_INFO!$H24=0,COUNTRY_INFO!$H24=4,COUNTRY_INFO!$H24=99),OR(COUNTRY_INFO!$J24=0,COUNTRY_INFO!$J24=4)),0,COUNTRY_INFO!$F24)) -> 61319 | F24: 93931 | G24: =IF(AND(INTRO!$E$37="Non endémique",INTRO!$E$41="Non endémique"),0,COUNTRY_INFO!P24) -> 0 | H24: =IF(AND(INTRO!$E$37="Non endémique",INTRO!$E$41="Non endémique"),0,COUNTRY_INFO!R24) -> 2 | I24: =IF(INTRO!$E$39="Non endémique",IF($G24=1,DEC!I24,0),IF($G24=1,IVM!G24,0)) -> 0 | J24: ALB | K24: =IF($J24="ALB", IF(INTRO!$E$39="Non endémique",IF($H24<>0,$D24*($H24-$G24),0),$D24*$H24), 0) -> 65224 | L24: 122638 | M24: 5585 | N24: 193447 | O24: =IF($J24="MBD", IF(INTRO!$E$39="Non endémique",IF($H24<>0,$D24*($H24-$G24),0),$D24*$H24),0) -> 0 | P24: 0 | R24: 0 | T24: 0 | U24: 0 | W24: 122638 | X24: 614 | Z24: 0 | AA24: 0
A25: =IF(AND(INTRO!$E$37="Non endémique",INTRO!$E$41="Non endémique")," ",IF(COUNTRY_INFO!A25=0," ",COUNTRY_INFO!A25)) -> Burundi | B25: =IF(AND(INTRO!$E$37="Non endémique",INTRO!$E$41="Non endémique")," ",IF(COUNTRY_INFO!B25=0," ",COUNTRY_INFO!B25)) -> Gitega | C25: =IF(AND(INTRO!$E$37="Non endémique",INTRO!$E$41="Non endémique")," ",IF(COUNTRY_INFO!C25=0," ",COUNTRY_INFO!C25)) -> Mutaho | D25: =IF(AND(INTRO!$E$37="Non endémique",INTRO!$E$41="Non endémique"),0,IF(AND(OR(COUNTRY_INFO!$H25=0,COUNTRY_INFO!$H25=4,COUNTRY_INFO!$H25=99),OR(COUNTRY_INFO!$J25=0,COUNTRY_INFO!$J25=4)),0,COUNTRY_INFO!$E25)) -> 31569 | E25: =IF(AND(INTRO!$E$37="Non endémique",INTRO!$E$41="Non endémique"),0,IF(AND(OR(COUNTRY_INFO!$H25=0,COUNTRY_INFO!$H25=4,COUNTRY_INFO!$H25=99),OR(COUNTRY_INFO!$J25=0,COUNTRY_INFO!$J25=4)),0,COUNTRY_INFO!$F25)) -> 59359 | F25: 90928 | G25: =IF(AND(INTRO!$E$37="Non endémique",INTRO!$E$41="Non endémique"),0,COUNTRY_INFO!P25) -> 0 | H25: =IF(AND(INTRO!$E$37="Non endémique",INTRO!$E$41="Non endémique"),0,COUNTRY_INFO!R25) -> 2 | I25: =IF(INTRO!$E$39="Non endémique",IF($G25=1,DEC!I25,0),IF($G25=1,IVM!G25,0)) -> 0 | J25: ALB | K25: =IF($J25="ALB", IF(INTRO!$E$39="Non endémique",IF($H25<>0,$D25*($H25-$G25),0),$D25*$H25), 0) -> 63138 | L25: 118718 | M25: 5407 | N25: 187263 | O25: =IF($J25="MBD", IF(INTRO!$E$39="Non endémique",IF($H25<>0,$D25*($H25-$G25),0),$D25*$H25),0) -> 0 | P25: 0 | R25: 0 | T25: 0 | U25: 0 | W25: 118718 | X25: 594 | Z25: 0 | AA25: 0
A26: =IF(AND(INTRO!$E$37="Non endémique",INTRO!$E$41="Non endémique")," ",IF(COUNTRY_INFO!A26=0," ",COUNTRY_INFO!A26)) -> Burundi | B26: =IF(AND(INTRO!$E$37="Non endémique",INTRO!$E$41="Non endémique")," ",IF(COUNTRY_INFO!B26=0," ",COUNTRY_INFO!B26)) -> Gitega | C26: =IF(AND(INTRO!$E$37="Non endémique",INTRO!$E$41="Non endémique")," ",IF(COUNTRY_INFO!C26=0," ",COUNTRY_INFO!C26)) -> Ryansoro | D26: =IF(AND(INTRO!$E$37="Non endémique",INTRO!$E$41="Non endémique"),0,IF(AND(OR(COUNTRY_INFO!$H26=0,COUNTRY_INFO!$H26=4,COUNTRY_INFO!$H26=99),OR(COUNTRY_INFO!$J26=0,COUNTRY_INFO!$J26=4)),0,COUNTRY_INFO!$E26)) -> 25245 | E26: =IF(AND(INTRO!$E$37="Non endémique",INTRO!$E$41="Non endémique"),0,IF(AND(OR(COUNTRY_INFO!$H26=0,COUNTRY_INFO!$H26=4,COUNTRY_INFO!$H26=99),OR(COUNTRY_INFO!$J26=0,COUNTRY_INFO!$J26=4)),0,COUNTRY_INFO!$F26)) -> 47467 | F26: 72712 | G26: =IF(AND(INTRO!$E$37="Non endémique",INTRO!$E$41="Non endémique"),0,COUNTRY_INFO!P26) -> 0 | H26: =IF(AND(INTRO!$E$37="Non endémique",INTRO!$E$41="Non endémique"),0,COUNTRY_INFO!R26) -> 2 | I26: =IF(INTRO!$E$39="Non endémique",IF($G26=1,DEC!I26,0),IF($G26=1,IVM!G26,0)) -> 0 | J26: ALB | K26: =IF($J26="ALB", IF(INTRO!$E$39="Non endémique",IF($H26<>0,$D26*($H26-$G26),0),$D26*$H26), 0) -> 50490 | L26: 94934 | M26: 4323 | N26: 149747 | O26: =IF($J26="MBD", IF(INTRO!$E$39="Non endémique",IF($H26<>0,$D26*($H26-$G26),0),$D26*$H26),0) -> 0 | P26: 0 | R26: 0 | T26: 0 | U26: 0 | W26: 94934 | X26: 475 | Z26: 0 | AA26: 0
A27: =IF(AND(INTRO!$E$37="Non endémique",INTRO!$E$41="Non endémique")," ",IF(COUNTRY_INFO!A27=0," ",COUNTRY_INFO!A27)) -> Burundi | B27: =IF(AND(INTRO!$E$37="Non endémique",INTRO!$E$41="Non endémique")," ",IF(COUNTRY_INFO!B27=0," ",COUNTRY_INFO!B27)) -> Karusi | C27: =IF(AND(INTRO!$E$37="Non endémique",INTRO!$E$41="Non endémique")," ",IF(COUNTRY_INFO!C27=0," ",COUNTRY_INFO!C27)) -> Buhiga | D27: =IF(AND(INTRO!$E$37="Non endémique",INTRO!$E$41="Non endémique"),0,IF(AND(OR(COUNTRY_INFO!$H27=0,COUNTRY_INFO!$H27=4,COUNTRY_INFO!$H27=99),OR(COUNTRY_INFO!$J27=0,COUNTRY_INFO!$J27=4)),0,COUNTRY_INFO!$E27)) -> 43969 | E27: =IF(AND(INTRO!$E$37="Non endémique",INTRO!$E$41="Non endémique"),0,IF(AND(OR(COUNTRY_INFO!$H27=0,COUNTRY_INFO!$H27=4,COUNTRY_INFO!$H27=99),OR(COUNTRY_INFO!$J27=0,COUNTRY_INFO!$J27=4)),0,COUNTRY_INFO!$F27)) -> 82673 | F27: 126642 | G27: =IF(AND(INTRO!$E$37="Non endémique",INTRO!$E$41="Non endémique"),0,COUNTRY_INFO!P27) -> 0 | H27: =IF(AND(INTRO!$E$37="Non endémique",INTRO!$E$41="Non endémique"),0,COUNTRY_INFO!R27) -> 2 | I27: =IF(INTRO!$E$39="Non endémique",IF($G27=1,DEC!I27,0),IF($G27=1,IVM!G27,0)) -> 0 | J27: ALB | K27: =IF($J27="ALB", IF(INTRO!$E$39="Non endémique",IF($H27<>0,$D27*($H27-$G27),0),$D27*$H27), 0) -> 87938 | L27: 165346 | M27: 7529 | N27: 260813 | O27: =IF($J27="MBD", IF(INTRO!$E$39="Non endémique",IF($H27<>0,$D27*($H27-$G27),0),$D27*$H27),0) -> 0 | P27: 0 | R27: 0 | T27: 0 | U27: 0 | W27: 165346 | X27: 827 | Z27: 0 | AA27: 0
A28: =IF(AND(INTRO!$E$37="Non endémique",INTRO!$E$41="Non endémique")," ",IF(COUNTRY_INFO!A28=0," ",COUNTRY_INFO!A28)) -> Burundi | B28: =IF(AND(INTRO!$E$37="Non endémique",INTRO!$E$41="Non endémique")," ",IF(COUNTRY_INFO!B28=0," ",COUNTRY_INFO!B28)) -> Karusi | C28: =IF(AND(INTRO!$E$37="Non endémique",INTRO!$E$41="Non endémique")," ",IF(COUNTRY_INFO!C28=0," ",COUNTRY_INFO!C28)) -> Nyabikere | D28: =IF(AND(INTRO!$E$37="Non endémique",INTRO!$E$41="Non endémique"),0,IF(AND(OR(COUNTRY_INFO!$H28=0,COUNTRY_INFO!$H28=4,COUNTRY_INFO!$H28=99),OR(COUNTRY_INFO!$J28=0,COUNTRY_INFO!$J28=4)),0,COUNTRY_INFO!$E28)) -> 39108 | E28: =IF(AND(INTRO!$E$37="Non endémique",INTRO!$E$41="Non endémique"),0,IF(AND(OR(COUNTRY_INFO!$H28=0,COUNTRY_INFO!$H28=4,COUNTRY_INFO!$H28=99),OR(COUNTRY_INFO!$J28=0,COUNTRY_INFO!$J28=4)),0,COUNTRY_INFO!$F28)) -> 73534 | F28: 112642 | G28: =IF(AND(INTRO!$E$37="Non endémique",INTRO!$E$41="Non endémique"),0,COUNTRY_INFO!P28) -> 0 | H28: =IF(AND(INTRO!$E$37="Non endémique",INTRO!$E$41="Non endémique"),0,COUNTRY_INFO!R28) -> 2 | I28: =IF(INTRO!$E$39="Non endémique",IF($G28=1,DEC!I28,0),IF($G28=1,IVM!G28,0)) -> 0 | J28: ALB | K28: =IF($J28="ALB", IF(INTRO!$E$39="Non endémique",IF($H28<>0,$D28*($H28-$G28),0),$D28*$H28), 0) -> 78216 | L28: 147068 | M28: 6698 | N28: 231982 | O28: =IF($J28="MBD", IF(INTRO!$E$39="Non endémique",IF($H28<>0,$D28*($H28-$G28),0),$D28*$H28),0) -> 0 | P28: 0 | R28: 0 | T28: 0 | U28: 0 | W28: 147068 | X28: 736 | Z28: 0 | AA28: 0
A29: =IF(AND(INTRO!$E$37="Non endémique",INTRO!$E$41="Non endémique")," ",IF(COUNTRY_INFO!A29=0," ",COUNTRY_INFO!A29)) -> Burundi | B29: =IF(AND(INTRO!$E$37="Non endémique",INTRO!$E$41="Non endémique")," ",IF(COUNTRY_INFO!B29=0," ",COUNTRY_INFO!B29)) -> Kayanza | C29: =IF(AND(INTRO!$E$37="Non endémique",INTRO!$E$41="Non endémique")," ",IF(COUNTRY_INFO!C29=0," ",COUNTRY_INFO!C29)) -> Gahombo | D29: =IF(AND(INTRO!$E$37="Non endémique",INTRO!$E$41="Non endémique"),0,IF(AND(OR(COUNTRY_INFO!$H29=0,COUNTRY_INFO!$H29=4,COUNTRY_INFO!$H29=99),OR(COUNTRY_INFO!$J29=0,COUNTRY_INFO!$J29=4)),0,COUNTRY_INFO!$E29)) -> 32069 | E29: =IF(AND(INTRO!$E$37="Non endémique",INTRO!$E$41="Non endémique"),0,IF(AND(OR(COUNTRY_INFO!$H29=0,COUNTRY_INFO!$H29=4,COUNTRY_INFO!$H29=99),OR(COUNTRY_INFO!$J29=0,COUNTRY_INFO!$J29=4)),0,COUNTRY_INFO!$F29)) -> 60299 | F29: 92368 | G29: =IF(AND(INTRO!$E$37="Non endémique",INTRO!$E$41="Non endémique"),0,COUNTRY_INFO!P29) -> 0 | H29: =IF(AND(INTRO!$E$37="Non endémique",INTRO!$E$41="Non endémique"),0,COUNTRY_INFO!R29) -> 2 | I29: =IF(INTRO!$E$39="Non endémique",IF($G29=1,DEC!I29,0),IF($G29=1,IVM!G29,0)) -> 0 | J29: ALB | K29: =IF($J29="ALB", IF(INTRO!$E$39="Non endémique",IF($H29<>0,$D29*($H29-$G29),0),$D29*$H29), 0) -> 64138 | L29: 120598 | M29: 6521 | N29: 191257 | O29: =IF($J29="MBD", IF(INTRO!$E$39="Non endémique",IF($H29<>0,$D29*($H29-$G29),0),$D29*$H29),0) -> 0 | P29: 0 | R29: 0 | T29: 0 | U29: 0 | W29: 120598 | X29: 603 | Z29: 0 | AA29: 0
A30: =IF(AND(INTRO!$E$37="Non endémique",INTRO!$E$41="Non endémique")," ",IF(COUNTRY_INFO!A30=0," ",COUNTRY_INFO!A30)) -> Burundi | B30: =IF(AND(INTRO!$E$37="Non endémique",INTRO!$E$41="Non endémique")," ",IF(COUNTRY_INFO!B30=0," ",COUNTRY_INFO!B30)) -> Kayanza | C30: =IF(AND(INTRO!$E$37="Non endémique",INTRO!$E$41="Non endémique")," ",IF(COUNTRY_INFO!C30=0," ",COUNTRY_INFO!C30)) -> Kayanza | D30: =IF(AND(INTRO!$E$37="Non endémique",INTRO!$E$41="Non endémique"),0,IF(AND(OR(COUNTRY_INFO!$H30=0,COUNTRY_INFO!$H30=4,COUNTRY_INFO!$H30=99),OR(COUNTRY_INFO!$J30=0,COUNTRY_INFO!$J30=4)),0,COUNTRY_INFO!$E30)) -> 38077 | E30: =IF(AND(INTRO!$E$37="Non endémique",INTRO!$E$41="Non endémique"),0,IF(AND(OR(COUNTRY_INFO!$H30=0,COUNTRY_INFO!$H30=4,COUNTRY_INFO!$H30=99),OR(COUNTRY_INFO!$J30=0,COUNTRY_INFO!$J30=4)),0,COUNTRY_INFO!$F30)) -> 71595 | F30: 109672 | G30: =IF(AND(INTRO!$E$37="Non endémique",INTRO!$E$41="Non endémique"),0,COUNTRY_INFO!P30) -> 0 | H30: =IF(AND(INTRO!$E$37="Non endémique",INTRO!$E$41="Non endémique"),0,COUNTRY_INFO!R30) -> 2 | I30: =IF(INTRO!$E$39="Non endémique",IF($G30=1,DEC!I30,0),IF($G30=1,IVM!G30,0)) -> 0 | J30: ALB | K30: =IF($J30="ALB", IF(INTRO!$E$39="Non endémique",IF($H30<>0,$D30*($H30-$G30),0),$D30*$H30), 0) -> 76154 | L30: 143190 | M30: 6207 | N30: 225551 | O30: =IF($J30="MBD", IF(INTRO!$E$39="Non endémique",IF($H30<>0,$D30*($H30-$G30),0),$D30*$H30),0) -> 0 | P30: 0 | R30: 0 | T30: 0 | U30: 0 | W30: 143190 | X30: 716 | Z30: 0 | AA30: 0
A31: =IF(AND(INTRO!$E$37="Non endémique",INTRO!$E$41="Non endémique")," ",IF(COUNTRY_INFO!A31=0," ",COUNTRY_INFO!A31)) -> Burundi | B31: =IF(AND(INTRO!$E$37="Non endémique",INTRO!$E$41="Non endémique")," ",IF(COUNTRY_INFO!B31=0," ",COUNTRY_INFO!B31)) -> Kayanza | C31: =IF(AND(INTRO!$E$37="Non endémique",INTRO!$E$41="Non endémique")," ",IF(COUNTRY_INFO!C31=0," ",COUNTRY_INFO!C31)) -> Musema | D31: =IF(AND(INTRO!$E$37="Non endémique",INTRO!$E$41="Non endémique"),0,IF(AND(OR(COUNTRY_INFO!$H31=0,COUNTRY_INFO!$H31=4,COUNTRY_INFO!$H31=99),OR(COUNTRY_INFO!$J31=0,COUNTRY_INFO!$J31=4)),0,COUNTRY_INFO!$E31)) -> 36247 | E31: =IF(AND(INTRO!$E$37="Non endémique",INTRO!$E$41="Non endémique"),0,IF(AND(OR(COUNTRY_INFO!$H31=0,COUNTRY_INFO!$H31=4,COUNTRY_INFO!$H31=99),OR(COUNTRY_INFO!$J31=0,COUNTRY_INFO!$J31=4)),0,COUNTRY_INFO!$F31)) -> 68155 | F31: 104402 | G31: =IF(AND(INTRO!$E$37="Non endémique",INTRO!$E$41="Non endémique"),0,COUNTRY_INFO!P31) -> 0 | H31: =IF(AND(INTRO!$E$37="Non endémique",INTRO!$E$41="Non endémique"),0,COUNTRY_INFO!R31) -> 2 | I31: =IF(INTRO!$E$39="Non endémique",IF($G31=1,DEC!I31,0),IF($G31=1,IVM!G31,0)) -> 0 | J31: ALB | K31: =IF($J31="ALB", IF(INTRO!$E$39="Non endémique",IF($H31<>0,$D31*($H31-$G31),0),$D31*$H31), 0) -> 72494 | L31: 136310 | M31: 5493 | N31: 214297 | O31: =IF($J31="MBD", IF(INTRO!$E$39="Non endémique",IF($H31<>0,$D31*($H31-$G31),0),$D31*$H31),0) -> 0 | P31: 0 | R31: 0 | T31: 0 | U31: 0 | W31: 136310 | X31: 682 | Z31: 0 | AA31: 0
A32: =IF(AND(INTRO!$E$37="Non endémique",INTRO!$E$41="Non endémique")," ",IF(COUNTRY_INFO!A32=0," ",COUNTRY_INFO!A32)) -> Burundi | B32: =IF(AND(INTRO!$E$37="Non endémique",INTRO!$E$41="Non endémique")," ",IF(COUNTRY_INFO!B32=0," ",COUNTRY_INFO!B32)) -> Kirundo | C32: =IF(AND(INTRO!$E$37="Non endémique",INTRO!$E$41="Non endémique")," ",IF(COUNTRY_INFO!C32=0," ",COUNTRY_INFO!C32)) -> Busoni | D32: =IF(AND(INTRO!$E$37="Non endémique",INTRO!$E$41="Non endémique"),0,IF(AND(OR(COUNTRY_INFO!$H32=0,COUNTRY_INFO!$H32=4,COUNTRY_INFO!$H32=99),OR(COUNTRY_INFO!$J32=0,COUNTRY_INFO!$J32=4)),0,COUNTRY_INFO!$E32)) -> 26354 | E32: =IF(AND(INTRO!$E$37="Non endémique",INTRO!$E$41="Non endémique"),0,IF(AND(OR(COUNTRY_INFO!$H32=0,COUNTRY_INFO!$H32=4,COUNTRY_INFO!$H32=99),OR(COUNTRY_INFO!$J32=0,COUNTRY_INFO!$J32=4)),0,COUNTRY_INFO!$F32)) -> 49553 | F32: 75907 | G32: =IF(AND(INTRO!$E$37="Non endémique",INTRO!$E$41="Non endémique"),0,COUNTRY_INFO!P32) -> 0 | H32: =IF(AND(INTRO!$E$37="Non endémique",INTRO!$E$41="Non endémique"),0,COUNTRY_INFO!R32) -> 2 | I32: =IF(INTRO!$E$39="Non endémique",IF($G32=1,DEC!I32,0),IF($G32=1,IVM!G32,0)) -> 0 | J32: ALB | K32: =IF($J32="ALB", IF(INTRO!$E$39="Non endémique",IF($H32<>0,$D32*($H32-$G32),0),$D32*$H32), 0) -> 52708 | L32: 99106 | M32: 5757 | N32: 157571 | O32: =IF($J32="MBD", IF(INTRO!$E$39="Non endémique",IF($H32<>0,$D32*($H32-$G32),0),$D32*$H32),0) -> 0 | P32: 0 | R32: 0 | T32: 0 | U32: 0 | W32: 99106 | X32: 496 | Z32: 0 | AA32: 0
A33: =IF(AND(INTRO!$E$37="Non endémique",INTRO!$E$41="Non endémique")," ",IF(COUNTRY_INFO!A33=0," ",COUNTRY_INFO!A33)) -> Burundi | B33: =IF(AND(INTRO!$E$37="Non endémique",INTRO!$E$41="Non endémique")," ",IF(COUNTRY_INFO!B33=0," ",COUNTRY_INFO!B33)) -> Kirundo | C33: =IF(AND(INTRO!$E$37="Non endémique",INTRO!$E$41="Non endémique")," ",IF(COUNTRY_INFO!C33=0," ",COUNTRY_INFO!C33)) -> Kirundo | D33: =IF(AND(INTRO!$E$37="Non endémique",INTRO!$E$41="Non endémique"),0,IF(AND(OR(COUNTRY_INFO!$H33=0,COUNTRY_INFO!$H33=4,COUNTRY_INFO!$H33=99),OR(COUNTRY_INFO!$J33=0,COUNTRY_INFO!$J33=4)),0,COUNTRY_INFO!$E33)) -> 33616 | E33: =IF(AND(INTRO!$E$37="Non endémique",INTRO!$E$41="Non endémique"),0,IF(AND(OR(COUNTRY_INFO!$H33=0,COUNTRY_INFO!$H33=4,COUNTRY_INFO!$H33=99),OR(COUNTRY_INFO!$J33=0,COUNTRY_INFO!$J33=4)),0,COUNTRY_INFO!$F33)) -> 63207 | F33: 96823 | G33: =IF(AND(INTRO!$E$37="Non endémique",INTRO!$E$41="Non endémique"),0,COUNTRY_INFO!P33) -> 0 | H33: =IF(AND(INTRO!$E$37="Non endémique",INTRO!$E$41="Non endémique"),0,COUNTRY_INFO!R33) -> 2 | I33: =IF(INTRO!$E$39="Non endémique",IF($G33=1,DEC!I33,0),IF($G33=1,IVM!G33,0)) -> 0 | J33: ALB | K33: =IF($J33="ALB", IF(INTRO!$E$39="Non endémique",IF($H33<>0,$D33*($H33-$G33),0),$D33*$H33), 0) -> 67232 | L33: 126414 | M33: 4233 | N33: 197879 | O33: =IF($J33="MBD", IF(INTRO!$E$39="Non endémique",IF($H33<>0,$D33*($H33-$G33),0),$D33*$H33),0) -> 0 | P33: 0 | R33: 0 | T33: 0 | U33: 0 | W33: 126414 | X33: 633 | Z33: 0 | AA33: 0
A34: =IF(AND(INTRO!$E$37="Non endémique",INTRO!$E$41="Non endémique")," ",IF(COUNTRY_INFO!A34=0," ",COUNTRY_INFO!A34)) -> Burundi | B34: =IF(AND(INTRO!$E$37="Non endémique",INTRO!$E$41="Non endémique")," ",IF(COUNTRY_INFO!B34=0," ",COUNTRY_INFO!B34)) -> Kirundo | C34: =IF(AND(INTRO!$E$37="Non endémique",INTRO!$E$41="Non endémique")," ",IF(COUNTRY_INFO!C34=0," ",COUNTRY_INFO!C34)) -> Mukenke | D34: =IF(AND(INTRO!$E$37="Non endémique",INTRO!$E$41="Non endémique"),0,IF(AND(OR(COUNTRY_INFO!$H34=0,COUNTRY_INFO!$H34=4,COUNTRY_INFO!$H34=99),OR(COUNTRY_INFO!$J34=0,COUNTRY_INFO!$J34=4)),0,COUNTRY_INFO!$E34)) -> 24716 | E34: =IF(AND(INTRO!$E$37="Non endémique",INTRO!$E$41="Non endémique"),0,IF(AND(OR(COUNTRY_INFO!$H34=0,COUNTRY_INFO!$H34=4,COUNTRY_INFO!$H34=99),OR(COUNTRY_INFO!$J34=0,COUNTRY_INFO!$J34=4)),0,COUNTRY_INFO!$F34)) -> 46473 | F34: 71189 | G34: =IF(AND(INTRO!$E$37="Non endémique",INTRO!$E$41="Non endémique"),0,COUNTRY_INFO!P34) -> 0 | H34: =IF(AND(INTRO!$E$37="Non endémique",INTRO!$E$41="Non endémique"),0,COUNTRY_INFO!R34) -> 2 | I34: =IF(INTRO!$E$39="Non endémique",IF($G34=1,DEC!I34,0),IF($G34=1,IVM!G34,0)) -> 0 | J34: ALB | K34: =IF($J34="ALB", IF(INTRO!$E$39="Non endémique",IF($H34<>0,$D34*($H34-$G34),0),$D34*$H34), 0) -> 49432 | L34: 92946 | M34: 5350 | N34: 147728 | O34: =IF($J34="MBD", IF(INTRO!$E$39="Non endémique",IF($H34<>0,$D34*($H34-$G34),0),$D34*$H34),0) -> 0 | P34: 0 | R34: 0 | T34: 0 | U34: 0 | W34: 92946 | X34: 465 | Z34: 0 | AA34: 0
A35: =IF(AND(INTRO!$E$37="Non endémique",INTRO!$E$41="Non endémique")," ",IF(COUNTRY_INFO!A35=0," ",COUNTRY_INFO!A35)) -> Burundi | B35: =IF(AND(INTRO!$E$37="Non endémique",INTRO!$E$41="Non endémique")," ",IF(COUNTRY_INFO!B35=0," ",COUNTRY_INFO!B35)) -> Kirundo | C35: =IF(AND(INTRO!$E$37="Non endémique",INTRO!$E$41="Non endémique")," ",IF(COUNTRY_INFO!C35=0," ",COUNTRY_INFO!C35)) -> Vumbi | D35: =IF(AND(INTRO!$E$37="Non endémique",INTRO!$E$41="Non endémique"),0,IF(AND(OR(COUNTRY_INFO!$H35=0,COUNTRY_INFO!$H35=4,COUNTRY_INFO!$H35=99),OR(COUNTRY_INFO!$J35=0,COUNTRY_INFO!$J35=4)),0,COUNTRY_INFO!$E35)) -> 31245 | E35: =IF(AND(INTRO!$E$37="Non endémique",INTRO!$E$41="Non endémique"),0,IF(AND(OR(COUNTRY_INFO!$H35=0,COUNTRY_INFO!$H35=4,COUNTRY_INFO!$H35=99),OR(COUNTRY_INFO!$J35=0,COUNTRY_INFO!$J35=4)),0,COUNTRY_INFO!$F35)) -> 58750 | F35: 89995 | G35: =IF(AND(INTRO!$E$37="Non endémique",INTRO!$E$41="Non endémique"),0,COUNTRY_INFO!P35) -> 0 | H35: =IF(AND(INTRO!$E$37="Non endémique",INTRO!$E$41="Non endémique"),0,COUNTRY_INFO!R35) -> 2 | I35: =IF(INTRO!$E$39="Non endémique",IF($G35=1,DEC!I35,0),IF($G35=1,IVM!G35,0)) -> 0 | J35: ALB | K35: =IF($J35="ALB", IF(INTRO!$E$39="Non endémique",IF($H35<>0,$D35*($H35-$G35),0),$D35*$H35), 0) -> 62490 | L35: 117500 | M35: 4514 | N35: 184504 | O35: =IF($J35="MBD", IF(INTRO!$E$39="Non endémique",IF($H35<>0,$D35*($H35-$G35),0),$D35*$H35),0) -> 0 | P35: 0 | R35: 0 | T35: 0 | U35: 0 | W35: 117500 | X35: 588 | Z35: 0 | AA35: 0
A36: =IF(AND(INTRO!$E$37="Non endémique",INTRO!$E$41="Non endémique")," ",IF(COUNTRY_INFO!A36=0," ",COUNTRY_INFO!A36)) -> Burundi | B36: =IF(AND(INTRO!$E$37="Non endémique",INTRO!$E$41="Non endémique")," ",IF(COUNTRY_INFO!B36=0," ",COUNTRY_INFO!B36)) -> Makamba | C36: =IF(AND(INTRO!$E$37="Non endémique",INTRO!$E$41="Non endémique")," ",IF(COUNTRY_INFO!C36=0," ",COUNTRY_INFO!C36)) -> Makamba | D36: =IF(AND(INTRO!$E$37="Non endémique",INTRO!$E$41="Non endémique"),0,IF(AND(OR(COUNTRY_INFO!$H36=0,COUNTRY_INFO!$H36=4,COUNTRY_INFO!$H36=99),OR(COUNTRY_INFO!$J36=0,COUNTRY_INFO!$J36=4)),0,COUNTRY_INFO!$E36)) -> 48804 | E36: =IF(AND(INTRO!$E$37="Non endémique",INTRO!$E$41="Non endémique"),0,IF(AND(OR(COUNTRY_INFO!$H36=0,COUNTRY_INFO!$H36=4,COUNTRY_INFO!$H36=99),OR(COUNTRY_INFO!$J36=0,COUNTRY_INFO!$J36=4)),0,COUNTRY_INFO!$F36)) -> 91766 | F36: 140570 | G36: =IF(AND(INTRO!$E$37="Non endémique",INTRO!$E$41="Non endémique"),0,COUNTRY_INFO!P36) -> 0 | H36: =IF(AND(INTRO!$E$37="Non endémique",INTRO!$E$41="Non endémique"),0,COUNTRY_INFO!R36) -> 2 | I36: =IF(INTRO!$E$39="Non endémique",IF($G36=1,DEC!I36,0),IF($G36=1,IVM!G36,0)) -> 0 | J36: ALB | K36: =IF($J36="ALB", IF(INTRO!$E$39="Non endémique",IF($H36<>0,$D36*($H36-$G36),0),$D36*$H36), 0) -> 97608 | L36: 183532 | M36: 32906 | N36: 314046 | O36: =IF($J36="MBD", IF(INTRO!$E$39="Non endémique",IF($H36<>0,$D36*($H36-$G36),0),$D36*$H36),0) -> 0 | P36: 0 | R36: 0 | T36: 0 | U36: 0 | W36: 183532 | X36: 918 | Z36: 0 | AA36: 0
A37: =IF(AND(INTRO!$E$37="Non endémique",INTRO!$E$41="Non endémique")," ",IF(COUNTRY_INFO!A37=0," ",COUNTRY_INFO!A37)) -> Burundi | B37: =IF(AND(INTRO!$E$37="Non endémique",INTRO!$E$41="Non endémique")," ",IF(COUNTRY_INFO!B37=0," ",COUNTRY_INFO!B37)) -> Makamba | C37: =IF(AND(INTRO!$E$37="Non endémique",INTRO!$E$41="Non endémique")," ",IF(COUNTRY_INFO!C37=0," ",COUNTRY_INFO!C37)) -> Nyanza Lac | D37: =IF(AND(INTRO!$E$37="Non endémique",INTRO!$E$41="Non endémique"),0,IF(AND(OR(COUNTRY_INFO!$H37=0,COUNTRY_INFO!$H37=4,COUNTRY_INFO!$H37=99),OR(COUNTRY_INFO!$J37=0,COUNTRY_INFO!$J37=4)),0,COUNTRY_INFO!$E37)) -> 55426 | E37: =IF(AND(INTRO!$E$37="Non endémique",INTRO!$E$41="Non endémique"),0,IF(AND(OR(COUNTRY_INFO!$H37=0,COUNTRY_INFO!$H37=4,COUNTRY_INFO!$H37=99),OR(COUNTRY_INFO!$J37=0,COUNTRY_INFO!$J37=4)),0,COUNTRY_INFO!$F37)) -> 104217 | F37: 159643 | G37: =IF(AND(INTRO!$E$37="Non endémique",INTRO!$E$41="Non endémique"),0,COUNTRY_INFO!P37) -> 0 | H37: =IF(AND(INTRO!$E$37="Non endémique",INTRO!$E$41="Non endémique"),0,COUNTRY_INFO!R37) -> 2 | I37: =IF(INTRO!$E$39="Non endémique",IF($G37=1,DEC!I37,0),IF($G37=1,IVM!G37,0)) -> 0 | J37: ALB | K37: =IF($J37="ALB", IF(INTRO!$E$39="Non endémique",IF($H37<>0,$D37*($H37-$G37),0),$D37*$H37), 0) -> 110852 | L37: 208434 | M37: 9492 | N37: 328778 | O37: =IF($J37="MBD", IF(INTRO!$E$39="Non endémique",IF($H37<>0,$D37*($H37-$G37),0),$D37*$H37),0) -> 0 | P37: 0 | R37: 0 | T37: 0 | U37: 0 | W37: 208434 | X37: 1043 | Z37: 0 | AA37: 0
A38: =IF(AND(INTRO!$E$37="Non endémique",INTRO!$E$41="Non endémique")," ",IF(COUNTRY_INFO!A38=0," ",COUNTRY_INFO!A38)) -> Burundi | B38: =IF(AND(INTRO!$E$37="Non endémique",INTRO!$E$41="Non endémique")," ",IF(COUNTRY_INFO!B38=0," ",COUNTRY_INFO!B38)) -> Muramvya | C38: =IF(AND(INTRO!$E$37="Non endémique",INTRO!$E$41="Non endémique")," ",IF(COUNTRY_INFO!C38=0," ",COUNTRY_INFO!C38)) -> Muramvya | D38: =IF(AND(INTRO!$E$37="Non endémique",INTRO!$E$41="Non endémique"),0,IF(AND(OR(COUNTRY_INFO!$H38=0,COUNTRY_INFO!$H38=4,COUNTRY_INFO!$H38=99),OR(COUNTRY_INFO!$J38=0,COUNTRY_INFO!$J38=4)),0,COUNTRY_INFO!$E38)) -> 28560 | E38: =IF(AND(INTRO!$E$37="Non endémique",INTRO!$E$41="Non endémique"),0,IF(AND(OR(COUNTRY_INFO!$H38=0,COUNTRY_INFO!$H38=4,COUNTRY_INFO!$H38=99),OR(COUNTRY_INFO!$J38=0,COUNTRY_INFO!$J38=4)),0,COUNTRY_INFO!$F38)) -> 53701 | F38: 82261 | G38: =IF(AND(INTRO!$E$37="Non endémique",INTRO!$E$41="Non endémique"),0,COUNTRY_INFO!P38) -> 0 | H38: =IF(AND(INTRO!$E$37="Non endémique",INTRO!$E$41="Non endémique"),0,COUNTRY_INFO!R38) -> 2 | I38: =IF(INTRO!$E$39="Non endémique",IF($G38=1,DEC!I38,0),IF($G38=1,IVM!G38,0)) -> 0 | J38: ALB | K38: =IF($J38="ALB", IF(INTRO!$E$39="Non endémique",IF($H38<>0,$D38*($H38-$G38),0),$D38*$H38), 0) -> 57120 | L38: 107402 | M38: 4891 | N38: 169413 | O38: =IF($J38="MBD", IF(INTRO!$E$39="Non endémique",IF($H38<>0,$D38*($H38-$G38),0),$D38*$H38),0) -> 0 | P38: 0 | R38: 0 | T38: 0 | U38: 0 | W38: 107402 | X38: 538 | Z38: 0 | AA38: 0
A39: =IF(AND(INTRO!$E$37="Non endémique",INTRO!$E$41="Non endémique")," ",IF(COUNTRY_INFO!A39=0," ",COUNTRY_INFO!A39)) -> Burundi | B39: =IF(AND(INTRO!$E$37="Non endémique",INTRO!$E$41="Non endémique")," ",IF(COUNTRY_INFO!B39=0," ",COUNTRY_INFO!B39)) -> Muramvya | C39: =IF(AND(INTRO!$E$37="Non endémique",INTRO!$E$41="Non endémique")," ",IF(COUNTRY_INFO!C39=0," ",COUNTRY_INFO!C39)) -> Kiganda | D39: =IF(AND(INTRO!$E$37="Non endémique",INTRO!$E$41="Non endémique"),0,IF(AND(OR(COUNTRY_INFO!$H39=0,COUNTRY_INFO!$H39=4,COUNTRY_INFO!$H39=99),OR(COUNTRY_INFO!$J39=0,COUNTRY_INFO!$J39=4)),0,COUNTRY_INFO!$E39)) -> 27656 | E39: =IF(AND(INTRO!$E$37="Non endémique",INTRO!$E$41="Non endémique"),0,IF(AND(OR(COUNTRY_INFO!$H39=0,COUNTRY_INFO!$H39=4,COUNTRY_INFO!$H39=99),OR(COUNTRY_INFO!$J39=0,COUNTRY_INFO!$J39=4)),0,COUNTRY_INFO!$F39)) -> 52002 | F39: 79658 | G39: =IF(AND(INTRO!$E$37="Non endémique",INTRO!$E$41="Non endémique"),0,COUNTRY_INFO!P39) -> 0 | H39: =IF(AND(INTRO!$E$37="Non endémique",INTRO!$E$41="Non endémique"),0,COUNTRY_INFO!R39) -> 2 | I39: =IF(INTRO!$E$39="Non endémique",IF($G39=1,DEC!I39,0),IF($G39=1,IVM!G39,0)) -> 0 | J39: ALB | K39: =IF($J39="ALB", IF(INTRO!$E$39="Non endémique",IF($H39<>0,$D39*($H39-$G39),0),$D39*$H39), 0) -> 55312 | L39: 104004 | M39: 4736 | N39: 164052 | O39: =IF($J39="MBD", IF(INTRO!$E$39="Non endémique",IF($H39<>0,$D39*($H39-$G39),0),$D39*$H39),0) -> 0 | P39: 0 | R39: 0 | T39: 0 | U39: 0 | W39: 104004 | X39: 521 | Z39: 0 | AA39: 0
A40: =IF(AND(INTRO!$E$37="Non endémique",INTRO!$E$41="Non endémique")," ",IF(COUNTRY_INFO!A40=0," ",COUNTRY_INFO!A40)) -> Burundi | B40: =IF(AND(INTRO!$E$37="Non endémique",INTRO!$E$41="Non endémique")," ",IF(COUNTRY_INFO!B40=0," ",COUNTRY_INFO!B40)) -> Muyinga | C40: =IF(AND(INTRO!$E$37="Non endémique",INTRO!$E$41="Non endémique")," ",IF(COUNTRY_INFO!C40=0," ",COUNTRY_INFO!C40)) -> Gashoho | D40: =IF(AND(INTRO!$E$37="Non endémique",INTRO!$E$41="Non endémique"),0,IF(AND(OR(COUNTRY_INFO!$H40=0,COUNTRY_INFO!$H40=4,COUNTRY_INFO!$H40=99),OR(COUNTRY_INFO!$J40=0,COUNTRY_INFO!$J40=4)),0,COUNTRY_INFO!$E40)) -> 28761 | E40: =IF(AND(INTRO!$E$37="Non endémique",INTRO!$E$41="Non endémique"),0,IF(AND(OR(COUNTRY_INFO!$H40=0,COUNTRY_INFO!$H40=4,COUNTRY_INFO!$H40=99),OR(COUNTRY_INFO!$J40=0,COUNTRY_INFO!$J40=4)),0,COUNTRY_INFO!$F40)) -> 54079 | F40: 82840 | G40: =IF(AND(INTRO!$E$37="Non endémique",INTRO!$E$41="Non endémique"),0,COUNTRY_INFO!P40) -> 0 | H40: =IF(AND(INTRO!$E$37="Non endémique",INTRO!$E$41="Non endémique"),0,COUNTRY_INFO!R40) -> 2 | I40: =IF(INTRO!$E$39="Non endémique",IF($G40=1,DEC!I40,0),IF($G40=1,IVM!G40,0)) -> 0 | J40: ALB | K40: =IF($J40="ALB", IF(INTRO!$E$39="Non endémique",IF($H40<>0,$D40*($H40-$G40),0),$D40*$H40), 0) -> 57522 | L40: 108158 | M40: 8158 | N40: 173838 | O40: =IF($J40="MBD", IF(INTRO!$E$39="Non endémique",IF($H40<>0,$D40*($H40-$G40),0),$D40*$H40),0) -> 0 | P40: 0 | R40: 0 | T40: 0 | U40: 0 | W40: 108158 | X40: 541 | Z40: 0 | AA40: 0
A41: =IF(AND(INTRO!$E$37="Non endémique",INTRO!$E$41="Non endémique")," ",IF(COUNTRY_INFO!A41=0," ",COUNTRY_INFO!A41)) -> Burundi | B41: =IF(AND(INTRO!$E$37="Non endémique",INTRO!$E$41="Non endémique")," ",IF(COUNTRY_INFO!B41=0," ",COUNTRY_INFO!B41)) -> Muyinga | C41: =IF(AND(INTRO!$E$37="Non endémique",INTRO!$E$41="Non endémique")," ",IF(COUNTRY_INFO!C41=0," ",COUNTRY_INFO!C41)) -> Giteranyi | D41: =IF(AND(INTRO!$E$37="Non endémique",INTRO!$E$41="Non endémique"),0,IF(AND(OR(COUNTRY_INFO!$H41=0,COUNTRY_INFO!$H41=4,COUNTRY_INFO!$H41=99),OR(COUNTRY_INFO!$J41=0,COUNTRY_INFO!$J41=4)),0,COUNTRY_INFO!$E41)) -> 47636 | E41: =IF(AND(INTRO!$E$37="Non endémique",INTRO!$E$41="Non endémique"),0,IF(AND(OR(COUNTRY_INFO!$H41=0,COUNTRY_INFO!$H41=4,COUNTRY_INFO!$H41=99),OR(COUNTRY_INFO!$J41=0,COUNTRY_INFO!$J41=4)),0,COUNTRY_INFO!$F41)) -> 89568 | F41: 137204 | G41: =IF(AND(INTRO!$E$37="Non endémique",INTRO!$E$41="Non endémique"),0,COUNTRY_INFO!P41) -> 0 | H41: =IF(AND(INTRO!$E$37="Non endémique",INTRO!$E$41="Non endémique"),0,COUNTRY_INFO!R41) -> 2 | I41: =IF(INTRO!$E$39="Non endémique",IF($G41=1,DEC!I41,0),IF($G41=1,IVM!G41,0)) -> 0 | J41: ALB | K41: =IF($J41="ALB", IF(INTRO!$E$39="Non endémique",IF($H41<>0,$D41*($H41-$G41),0),$D41*$H41), 0) -> 95272 | L41: 179136 | M41: 4925 | N41: 279333 | O41: =IF($J41="MBD", IF(INTRO!$E$39="Non endémique",IF($H41<>0,$D41*($H41-$G41),0),$D41*$H41),0) -> 0 | P41: 0 | R41: 0 | T41: 0 | U41: 0 | W41: 179136 | X41: 896 | Z41: 0 | AA41: 0
A42: =IF(AND(INTRO!$E$37="Non endémique",INTRO!$E$41="Non endémique")," ",IF(COUNTRY_INFO!A42=0," ",COUNTRY_INFO!A42)) -> Burundi | B42: =IF(AND(INTRO!$E$37="Non endémique",INTRO!$E$41="Non endémique")," ",IF(COUNTRY_INFO!B42=0," ",COUNTRY_INFO!B42)) -> Muyinga | C42: =IF(AND(INTRO!$E$37="Non endémique",INTRO!$E$41="Non endémique")," ",IF(COUNTRY_INFO!C42=0," ",COUNTRY_INFO!C42)) -> Muyinga | D42: =IF(AND(INTRO!$E$37="Non endémique",INTRO!$E$41="Non endémique"),0,IF(AND(OR(COUNTRY_INFO!$H42=0,COUNTRY_INFO!$H42=4,COUNTRY_INFO!$H42=99),OR(COUNTRY_INFO!$J42=0,COUNTRY_INFO!$J42=4)),0,COUNTRY_INFO!$E42)) -> 45158 | E42: =IF(AND(INTRO!$E$37="Non endémique",INTRO!$E$41="Non endémique"),0,IF(AND(OR(COUNTRY_INFO!$H42=0,COUNTRY_INFO!$H42=4,COUNTRY_INFO!$H42=99),OR(COUNTRY_INFO!$J42=0,COUNTRY_INFO!$J42=4)),0,COUNTRY_INFO!$F42)) -> 84910 | F42: 130068 | G42: =IF(AND(INTRO!$E$37="Non endémique",INTRO!$E$41="Non endémique"),0,COUNTRY_INFO!P42) -> 0 | H42: =IF(AND(INTRO!$E$37="Non endémique",INTRO!$E$41="Non endémique"),0,COUNTRY_INFO!R42) -> 2 | I42: =IF(INTRO!$E$39="Non endémique",IF($G42=1,DEC!I42,0),IF($G42=1,IVM!G42,0)) -> 0 | J42: ALB | K42: =IF($J42="ALB", IF(INTRO!$E$39="Non endémique",IF($H42<>0,$D42*($H42-$G42),0),$D42*$H42), 0) -> 90316 | L42: 169820 | M42: 7733 | N42: 267869 | O42: =IF($J42="MBD", IF(INTRO!$E$39="Non endémique",IF($H42<>0,$D42*($H42-$G42),0),$D42*$H42),0) -> 0 | P42: 0 | R42: 0 | T42: 0 | U42: 0 | W42: 169820 | X42: 850 | Z42: 0 | AA42: 0
A43: =IF(AND(INTRO!$E$37="Non endémique",INTRO!$E$41="Non endémique")," ",IF(COUNTRY_INFO!A43=0," ",COUNTRY_INFO!A43)) -> Burundi | B43: =IF(AND(INTRO!$E$37="Non endémique",INTRO!$E$41="Non endémique")," ",IF(COUNTRY_INFO!B43=0," ",COUNTRY_INFO!B43)) -> Mwaro | C43: =IF(AND(INTRO!$E$37="Non endémique",INTRO!$E$41="Non endémique")," ",IF(COUNTRY_INFO!C43=0," ",COUNTRY_INFO!C43)) -> Fota | D43: =IF(AND(INTRO!$E$37="Non endémique",INTRO!$E$41="Non endémique"),0,IF(AND(OR(COUNTRY_INFO!$H43=0,COUNTRY_INFO!$H43=4,COUNTRY_INFO!$H43=99),OR(COUNTRY_INFO!$J43=0,COUNTRY_INFO!$J43=4)),0,COUNTRY_INFO!$E43)) -> 22299 | E43: =IF(AND(INTRO!$E$37="Non endémique",INTRO!$E$41="Non endémique"),0,IF(AND(OR(COUNTRY_INFO!$H43=0,COUNTRY_INFO!$H43=4,COUNTRY_INFO!$H43=99),OR(COUNTRY_INFO!$J43=0,COUNTRY_INFO!$J43=4)),0,COUNTRY_INFO!$F43)) -> 41929 | F43: 64228 | G43: =IF(AND(INTRO!$E$37="Non endémique",INTRO!$E$41="Non endémique"),0,COUNTRY_INFO!P43) -> 0 | H43: =IF(AND(INTRO!$E$37="Non endémique",INTRO!$E$41="Non endémique"),0,COUNTRY_INFO!R43) -> 2 | I43: =IF(INTRO!$E$39="Non endémique",IF($G43=1,DEC!I43,0),IF($G43=1,IVM!G43,0)) -> 0 | J43: ALB | K43: =IF($J43="ALB", IF(INTRO!$E$39="Non endémique",IF($H43<>0,$D43*($H43-$G43),0),$D43*$H43), 0) -> 44598 | L43: 83858 | M43: 4168 | N43: 132624 | O43: =IF($J43="MBD", IF(INTRO!$E$39="Non endémique",IF($H43<>0,$D43*($H43-$G43),0),$D43*$H43),0) -> 0 | P43: 0 | R43: 0 | T43: 0 | U43: 0 | W43: 83858 | X43: 420 | Z43: 0 | AA43: 0
A44: =IF(AND(INTRO!$E$37="Non endémique",INTRO!$E$41="Non endémique")," ",IF(COUNTRY_INFO!A44=0," ",COUNTRY_INFO!A44)) -> Burundi | B44: =IF(AND(INTRO!$E$37="Non endémique",INTRO!$E$41="Non endémique")," ",IF(COUNTRY_INFO!B44=0," ",COUNTRY_INFO!B44)) -> Mwaro | C44: =IF(AND(INTRO!$E$37="Non endémique",INTRO!$E$41="Non endémique")," ",IF(COUNTRY_INFO!C44=0," ",COUNTRY_INFO!C44)) -> Kibumbu | D44: =IF(AND(INTRO!$E$37="Non endémique",INTRO!$E$41="Non endémique"),0,IF(AND(OR(COUNTRY_INFO!$H44=0,COUNTRY_INFO!$H44=4,COUNTRY_INFO!$H44=99),OR(COUNTRY_INFO!$J44=0,COUNTRY_INFO!$J44=4)),0,COUNTRY_INFO!$E44)) -> 24335 | E44: =IF(AND(INTRO!$E$37="Non endémique",INTRO!$E$41="Non endémique"),0,IF(AND(OR(COUNTRY_INFO!$H44=0,COUNTRY_INFO!$H44=4,COUNTRY_INFO!$H44=99),OR(COUNTRY_INFO!$J44=0,COUNTRY_INFO!$J44=4)),0,COUNTRY_INFO!$F44)) -> 45757 | F44: 70092 | G44: =IF(AND(INTRO!$E$37="Non endémique",INTRO!$E$41="Non endémique"),0,COUNTRY_INFO!P44) -> 0 | H44: =IF(AND(INTRO!$E$37="Non endémique",INTRO!$E$41="Non endémique"),0,COUNTRY_INFO!R44) -> 2 | I44: =IF(INTRO!$E$39="Non endémique",IF($G44=1,DEC!I44,0),IF($G44=1,IVM!G44,0)) -> 0 | J44: ALB | K44: =IF($J44="ALB", IF(INTRO!$E$39="Non endémique",IF($H44<>0,$D44*($H44-$G44),0),$D44*$H44), 0) -> 48670 | L44: 91514 | M44: 3818 | N44: 144002 | O44: =IF($J44="MBD", IF(INTRO!$E$39="Non endémique",IF($H44<>0,$D44*($H44-$G44),0),$D44*$H44),0) -> 0 | P44: 0 | R44: 0 | T44: 0 | U44: 0 | W44: 91514 | X44: 458 | Z44: 0 | AA44: 0
A45: =IF(AND(INTRO!$E$37="Non endémique",INTRO!$E$41="Non endémique")," ",IF(COUNTRY_INFO!A45=0," ",COUNTRY_INFO!A45)) -> Burundi | B45: =IF(AND(INTRO!$E$37="Non endémique",INTRO!$E$41="Non endémique")," ",IF(COUNTRY_INFO!B45=0," ",COUNTRY_INFO!B45)) -> Ngozi | C45: =IF(AND(INTRO!$E$37="Non endémique",INTRO!$E$41="Non endémique")," ",IF(COUNTRY_INFO!C45=0," ",COUNTRY_INFO!C45)) -> Buye | D45: =IF(AND(INTRO!$E$37="Non endémique",INTRO!$E$41="Non endémique"),0,IF(AND(OR(COUNTRY_INFO!$H45=0,COUNTRY_INFO!$H45=4,COUNTRY_INFO!$H45=99),OR(COUNTRY_INFO!$J45=0,COUNTRY_INFO!$J45=4)),0,COUNTRY_INFO!$E45)) -> 30777 | E45: =IF(AND(INTRO!$E$37="Non endémique",INTRO!$E$41="Non endémique"),0,IF(AND(OR(COUNTRY_INFO!$H45=0,COUNTRY_INFO!$H45=4,COUNTRY_INFO!$H45=99),OR(COUNTRY_INFO!$J45=0,COUNTRY_INFO!$J45=4)),0,COUNTRY_INFO!$F45)) -> 57869 | F45: 88646 | G45: =IF(AND(INTRO!$E$37="Non endémique",INTRO!$E$41="Non endémique"),0,COUNTRY_INFO!P45) -> 0 | H45: =IF(AND(INTRO!$E$37="Non endémique",INTRO!$E$41="Non endémique"),0,COUNTRY_INFO!R45) -> 2 | I45: =IF(INTRO!$E$39="Non endémique",IF($G45=1,DEC!I45,0),IF($G45=1,IVM!G45,0)) -> 0 | J45: ALB | K45: =IF($J45="ALB", IF(INTRO!$E$39="Non endémique",IF($H45<>0,$D45*($H45-$G45),0),$D45*$H45), 0) -> 61554 | L45: 115738 | M45: 8422 | N45: 185714 | O45: =IF($J45="MBD", IF(INTRO!$E$39="Non endémique",IF($H45<>0,$D45*($H45-$G45),0),$D45*$H45),0) -> 0 | P45: 0 | R45: 0 | T45: 0 | U45: 0 | W45: 115738 | X45: 579 | Z45: 0 | AA45: 0
A46: =IF(AND(INTRO!$E$37="Non endémique",INTRO!$E$41="Non endémique")," ",IF(COUNTRY_INFO!A46=0," ",COUNTRY_INFO!A46)) -> Burundi | B46: =IF(AND(INTRO!$E$37="Non endémique",INTRO!$E$41="Non endémique")," ",IF(COUNTRY_INFO!B46=0," ",COUNTRY_INFO!B46)) -> Ngozi | C46: =IF(AND(INTRO!$E$37="Non endémique",INTRO!$E$41="Non endémique")," ",IF(COUNTRY_INFO!C46=0," ",COUNTRY_INFO!C46)) -> Kiremba | D46: =IF(AND(INTRO!$E$37="Non endémique",INTRO!$E$41="Non endémique"),0,IF(AND(OR(COUNTRY_INFO!$H46=0,COUNTRY_INFO!$H46=4,COUNTRY_INFO!$H46=99),OR(COUNTRY_INFO!$J46=0,COUNTRY_INFO!$J46=4)),0,COUNTRY_INFO!$E46)) -> 44648 | E46: =IF(AND(INTRO!$E$37="Non endémique",INTRO!$E$41="Non endémique"),0,IF(AND(OR(COUNTRY_INFO!$H46=0,COUNTRY_INFO!$H46=4,COUNTRY_INFO!$H46=99),OR(COUNTRY_INFO!$J46=0,COUNTRY_INFO!$J46=4)),0,COUNTRY_INFO!$F46)) -> 83952 | F46: 128600 | G46: =IF(AND(INTRO!$E$37="Non endémique",INTRO!$E$41="Non endémique"),0,COUNTRY_INFO!P46) -> 0 | H46: =IF(AND(INTRO!$E$37="Non endémique",INTRO!$E$41="Non endémique"),0,COUNTRY_INFO!R46) -> 2 | I46: =IF(INTRO!$E$39="Non endémique",IF($G46=1,DEC!I46,0),IF($G46=1,IVM!G46,0)) -> 0 | J46: ALB | K46: =IF($J46="ALB", IF(INTRO!$E$39="Non endémique",IF($H46<>0,$D46*($H46-$G46),0),$D46*$H46), 0) -> 89296 | L46: 167904 | M46: 7646 | N46: 264846 | O46: =IF($J46="MBD", IF(INTRO!$E$39="Non endémique",IF($H46<>0,$D46*($H46-$G46),0),$D46*$H46),0) -> 0 | P46: 0 | R46: 0 | T46: 0 | U46: 0 | W46: 167904 | X46: 840 | Z46: 0 | AA46: 0
A47: =IF(AND(INTRO!$E$37="Non endémique",INTRO!$E$41="Non endémique")," ",IF(COUNTRY_INFO!A47=0," ",COUNTRY_INFO!A47)) -> Burundi | B47: =IF(AND(INTRO!$E$37="Non endémique",INTRO!$E$41="Non endémique")," ",IF(COUNTRY_INFO!B47=0," ",COUNTRY_INFO!B47)) -> Ngozi | C47: =IF(AND(INTRO!$E$37="Non endémique",INTRO!$E$41="Non endémique")," ",IF(COUNTRY_INFO!C47=0," ",COUNTRY_INFO!C47)) -> Ngozi | D47: =IF(AND(INTRO!$E$37="Non endémique",INTRO!$E$41="Non endémique"),0,IF(AND(OR(COUNTRY_INFO!$H47=0,COUNTRY_INFO!$H47=4,COUNTRY_INFO!$H47=99),OR(COUNTRY_INFO!$J47=0,COUNTRY_INFO!$J47=4)),0,COUNTRY_INFO!$E47)) -> 49182 | E47: =IF(AND(INTRO!$E$37="Non endémique",INTRO!$E$41="Non endémique"),0,IF(AND(OR(COUNTRY_INFO!$H47=0,COUNTRY_INFO!$H47=4,COUNTRY_INFO!$H47=99),OR(COUNTRY_INFO!$J47=0,COUNTRY_INFO!$J47=4)),0,COUNTRY_INFO!$F47)) -> 92476 | F47: 141658 | G47: =IF(AND(INTRO!$E$37="Non endémique",INTRO!$E$41="Non endémique"),0,COUNTRY_INFO!P47) -> 0 | H47: =IF(AND(INTRO!$E$37="Non endémique",INTRO!$E$41="Non endémique"),0,COUNTRY_INFO!R47) -> 2 | I47: =IF(INTRO!$E$39="Non endémique",IF($G47=1,DEC!I47,0),IF($G47=1,IVM!G47,0)) -> 0 | J47: ALB | K47: =IF($J47="ALB", IF(INTRO!$E$39="Non endémique",IF($H47<>0,$D47*($H47-$G47),0),$D47*$H47), 0) -> 98364 | L47: 184952 | M47: 5271 | N47: 288587 | O47: =IF($J47="MBD", IF(INTRO!$E$39="Non endémique",IF($H47<>0,$D47*($H47-$G47),0),$D47*$H47),0) -> 0 | P47: 0 | R47: 0 | T47: 0 | U47: 0 | W47: 184952 | X47: 925 | Z47: 0 | AA47: 0
A48: =IF(AND(INTRO!$E$37="Non endémique",INTRO!$E$41="Non endémique")," ",IF(COUNTRY_INFO!A48=0," ",COUNTRY_INFO!A48)) -> Burundi | B48: =IF(AND(INTRO!$E$37="Non endémique",INTRO!$E$41="Non endémique")," ",IF(COUNTRY_INFO!B48=0," ",COUNTRY_INFO!B48)) -> Rumonge | C48: =IF(AND(INTRO!$E$37="Non endémique",INTRO!$E$41="Non endémique")," ",IF(COUNTRY_INFO!C48=0," ",COUNTRY_INFO!C48)) -> Bugarama | D48: =IF(AND(INTRO!$E$37="Non endémique",INTRO!$E$41="Non endémique"),0,IF(AND(OR(COUNTRY_INFO!$H48=0,COUNTRY_INFO!$H48=4,COUNTRY_INFO!$H48=99),OR(COUNTRY_INFO!$J48=0,COUNTRY_INFO!$J48=4)),0,COUNTRY_INFO!$E48)) -> 29189 | E48: =IF(AND(INTRO!$E$37="Non endémique",INTRO!$E$41="Non endémique"),0,IF(AND(OR(COUNTRY_INFO!$H48=0,COUNTRY_INFO!$H48=4,COUNTRY_INFO!$H48=99),OR(COUNTRY_INFO!$J48=0,COUNTRY_INFO!$J48=4)),0,COUNTRY_INFO!$F48)) -> 54883 | F48: 84072 | G48: =IF(AND(INTRO!$E$37="Non endémique",INTRO!$E$41="Non endémique"),0,COUNTRY_INFO!P48) -> 0 | H48: =IF(AND(INTRO!$E$37="Non endémique",INTRO!$E$41="Non endémique"),0,COUNTRY_INFO!R48) -> 2 | I48: =IF(INTRO!$E$39="Non endémique",IF($G48=1,DEC!I48,0),IF($G48=1,IVM!G48,0)) -> 0 | J48: ALB | K48: =IF($J48="ALB", IF(INTRO!$E$39="Non endémique",IF($H48<>0,$D48*($H48-$G48),0),$D48*$H48), 0) -> 58378 | L48: 109766 | M48: 19275 | N48: 187419 | O48: =IF($J48="MBD", IF(INTRO!$E$39="Non endémique",IF($H48<>0,$D48*($H48-$G48),0),$D48*$H48),0) -> 0 | P48: 0 | R48: 0 | T48: 0 | U48: 0 | W48: 109766 | X48: 549 | Z48: 0 | AA48: 0
A49: =IF(AND(INTRO!$E$37="Non endémique",INTRO!$E$41="Non endémique")," ",IF(COUNTRY_INFO!A49=0," ",COUNTRY_INFO!A49)) -> Burundi | B49: =IF(AND(INTRO!$E$37="Non endémique",INTRO!$E$41="Non endémique")," ",IF(COUNTRY_INFO!B49=0," ",COUNTRY_INFO!B49)) -> Rumonge | C49: =IF(AND(INTRO!$E$37="Non endémique",INTRO!$E$41="Non endémique")," ",IF(COUNTRY_INFO!C49=0," ",COUNTRY_INFO!C49)) -> Rumonge | D49: =IF(AND(INTRO!$E$37="Non endémique",INTRO!$E$41="Non endémique"),0,IF(AND(OR(COUNTRY_INFO!$H49=0,COUNTRY_INFO!$H49=4,COUNTRY_INFO!$H49=99),OR(COUNTRY_INFO!$J49=0,COUNTRY_INFO!$J49=4)),0,COUNTRY_INFO!$E49)) -> 46609 | E49: =IF(AND(INTRO!$E$37="Non endémique",INTRO!$E$41="Non endémique"),0,IF(AND(OR(COUNTRY_INFO!$H49=0,COUNTRY_INFO!$H49=4,COUNTRY_INFO!$H49=99),OR(COUNTRY_INFO!$J49=0,COUNTRY_INFO!$J49=4)),0,COUNTRY_INFO!$F49)) -> 87637 | F49: 134246 | G49: =IF(AND(INTRO!$E$37="Non endémique",INTRO!$E$41="Non endémique"),0,COUNTRY_INFO!P49) -> 0 | H49: =IF(AND(INTRO!$E$37="Non endémique",INTRO!$E$41="Non endémique"),0,COUNTRY_INFO!R49) -> 2 | I49: =IF(INTRO!$E$39="Non endémique",IF($G49=1,DEC!I49,0),IF($G49=1,IVM!G49,0)) -> 0 | J49: ALB | K49: =IF($J49="ALB", IF(INTRO!$E$39="Non endémique",IF($H49<>0,$D49*($H49-$G49),0),$D49*$H49), 0) -> 93218 | L49: 175274 | M49: 139573 | N49: 408065 | O49: =IF($J49="MBD", IF(INTRO!$E$39="Non endémique",IF($H49<>0,$D49*($H49-$G49),0),$D49*$H49),0) -> 0 | P49: 0 | R49: 0 | T49: 0 | U49: 0 | W49: 175274 | X49: 877 | Z49: 0 | AA49: 0
A50: =IF(AND(INTRO!$E$37="Non endémique",INTRO!$E$41="Non endémique")," ",IF(COUNTRY_INFO!A50=0," ",COUNTRY_INFO!A50)) -> Burundi | B50: =IF(AND(INTRO!$E$37="Non endémique",INTRO!$E$41="Non endémique")," ",IF(COUNTRY_INFO!B50=0," ",COUNTRY_INFO!B50)) -> Rutana | C50: =IF(AND(INTRO!$E$37="Non endémique",INTRO!$E$41="Non endémique")," ",IF(COUNTRY_INFO!C50=0," ",COUNTRY_INFO!C50)) -> Gihofi | D50: =IF(AND(INTRO!$E$37="Non endémique",INTRO!$E$41="Non endémique"),0,IF(AND(OR(COUNTRY_INFO!$H50=0,COUNTRY_INFO!$H50=4,COUNTRY_INFO!$H50=99),OR(COUNTRY_INFO!$J50=0,COUNTRY_INFO!$J50=4)),0,COUNTRY_INFO!$E50)) -> 38941 | E50: =IF(AND(INTRO!$E$37="Non endémique",INTRO!$E$41="Non endémique"),0,IF(AND(OR(COUNTRY_INFO!$H50=0,COUNTRY_INFO!$H50=4,COUNTRY_INFO!$H50=99),OR(COUNTRY_INFO!$J50=0,COUNTRY_INFO!$J50=4)),0,COUNTRY_INFO!$F50)) -> 73221 | F50: 112162 | G50: =IF(AND(INTRO!$E$37="Non endémique",INTRO!$E$41="Non endémique"),0,COUNTRY_INFO!P50) -> 0 | H50: =IF(AND(INTRO!$E$37="Non endémique",INTRO!$E$41="Non endémique"),0,COUNTRY_INFO!R50) -> 2 | I50: =IF(INTRO!$E$39="Non endémique",IF($G50=1,DEC!I50,0),IF($G50=1,IVM!G50,0)) -> 0 | J50: ALB | K50: =IF($J50="ALB", IF(INTRO!$E$39="Non endémique",IF($H50<>0,$D50*($H50-$G50),0),$D50*$H50), 0) -> 77882 | L50: 146442 | M50: 3738 | N50: 228062 | O50: =IF($J50="MBD", IF(INTRO!$E$39="Non endémique",IF($H50<>0,$D50*($H50-$G50),0),$D50*$H50),0) -> 0 | P50: 0 | R50: 0 | T50: 0 | U50: 0 | W50: 146442 | X50: 733 | Z50: 0 | AA50: 0
A51: =IF(AND(INTRO!$E$37="Non endémique",INTRO!$E$41="Non endémique")," ",IF(COUNTRY_INFO!A51=0," ",COUNTRY_INFO!A51)) -> Burundi | B51: =IF(AND(INTRO!$E$37="Non endémique",INTRO!$E$41="Non endémique")," ",IF(COUNTRY_INFO!B51=0," ",COUNTRY_INFO!B51)) -> Rutana | C51: =IF(AND(INTRO!$E$37="Non endémique",INTRO!$E$41="Non endémique")," ",IF(COUNTRY_INFO!C51=0," ",COUNTRY_INFO!C51)) -> Rutana | D51: =IF(AND(INTRO!$E$37="Non endémique",INTRO!$E$41="Non endémique"),0,IF(AND(OR(COUNTRY_INFO!$H51=0,COUNTRY_INFO!$H51=4,COUNTRY_INFO!$H51=99),OR(COUNTRY_INFO!$J51=0,COUNTRY_INFO!$J51=4)),0,COUNTRY_INFO!$E51)) -> 29498 | E51: =IF(AND(INTRO!$E$37="Non endémique",INTRO!$E$41="Non endémique"),0,IF(AND(OR(COUNTRY_INFO!$H51=0,COUNTRY_INFO!$H51=4,COUNTRY_INFO!$H51=99),OR(COUNTRY_INFO!$J51=0,COUNTRY_INFO!$J51=4)),0,COUNTRY_INFO!$F51)) -> 55464 | F51: 84962 | G51: =IF(AND(INTRO!$E$37="Non endémique",INTRO!$E$41="Non endémique"),0,COUNTRY_INFO!P51) -> 0 | H51: =IF(AND(INTRO!$E$37="Non endémique",INTRO!$E$41="Non endémique"),0,COUNTRY_INFO!R51) -> 2 | I51: =IF(INTRO!$E$39="Non endémique",IF($G51=1,DEC!I51,0),IF($G51=1,IVM!G51,0)) -> 0 | J51: ALB | K51: =IF($J51="ALB", IF(INTRO!$E$39="Non endémique",IF($H51<>0,$D51*($H51-$G51),0),$D51*$H51), 0) -> 58996 | L51: 110928 | M51: 181680 | N51: 351604 | O51: =IF($J51="MBD", IF(INTRO!$E$39="Non endémique",IF($H51<>0,$D51*($H51-$G51),0),$D51*$H51),0) -> 0 | P51: 0 | R51: 0 | T51: 0 | U51: 0 | W51: 110928 | X51: 555 | Z51: 0 | AA51: 0
A52: =IF(AND(INTRO!$E$37="Non endémique",INTRO!$E$41="Non endémique")," ",IF(COUNTRY_INFO!A52=0," ",COUNTRY_INFO!A52)) -> Burundi | B52: =IF(AND(INTRO!$E$37="Non endémique",INTRO!$E$41="Non endémique")," ",IF(COUNTRY_INFO!B52=0," ",COUNTRY_INFO!B52)) -> Ruyigi | C52: =IF(AND(INTRO!$E$37="Non endémique",INTRO!$E$41="Non endémique")," ",IF(COUNTRY_INFO!C52=0," ",COUNTRY_INFO!C52)) -> Butezi | D52: =IF(AND(INTRO!$E$37="Non endémique",INTRO!$E$41="Non endémique"),0,IF(AND(OR(COUNTRY_INFO!$H52=0,COUNTRY_INFO!$H52=4,COUNTRY_INFO!$H52=99),OR(COUNTRY_INFO!$J52=0,COUNTRY_INFO!$J52=4)),0,COUNTRY_INFO!$E52)) -> 21824 | E52: =IF(AND(INTRO!$E$37="Non endémique",INTRO!$E$41="Non endémique"),0,IF(AND(OR(COUNTRY_INFO!$H52=0,COUNTRY_INFO!$H52=4,COUNTRY_INFO!$H52=99),OR(COUNTRY_INFO!$J52=0,COUNTRY_INFO!$J52=4)),0,COUNTRY_INFO!$F52)) -> 41035 | F52: 62859 | G52: =IF(AND(INTRO!$E$37="Non endémique",INTRO!$E$41="Non endémique"),0,COUNTRY_INFO!P52) -> 0 | H52: =IF(AND(INTRO!$E$37="Non endémique",INTRO!$E$41="Non endémique"),0,COUNTRY_INFO!R52) -> 2 | I52: =IF(INTRO!$E$39="Non endémique",IF($G52=1,DEC!I52,0),IF($G52=1,IVM!G52,0)) -> 0 | J52: ALB | K52: =IF($J52="ALB", IF(INTRO!$E$39="Non endémique",IF($H52<>0,$D52*($H52-$G52),0),$D52*$H52), 0) -> 43648 | L52: 82070 | M52: 48977 | N52: 174695 | O52: =IF($J52="MBD", IF(INTRO!$E$39="Non endémique",IF($H52<>0,$D52*($H52-$G52),0),$D52*$H52),0) -> 0 | P52: 0 | R52: 0 | T52: 0 | U52: 0 | W52: 82070 | X52: 411 | Z52: 0 | AA52: 0
A53: =IF(AND(INTRO!$E$37="Non endémique",INTRO!$E$41="Non endémique")," ",IF(COUNTRY_INFO!A53=0," ",COUNTRY_INFO!A53)) -> Burundi | B53: =IF(AND(INTRO!$E$37="Non endémique",INTRO!$E$41="Non endémique")," ",IF(COUNTRY_INFO!B53=0," ",COUNTRY_INFO!B53)) -> Ruyigi | C53: =IF(AND(INTRO!$E$37="Non endémique",INTRO!$E$41="Non endémique")," ",IF(COUNTRY_INFO!C53=0," ",COUNTRY_INFO!C53)) -> Kinyinya | D53: =IF(AND(INTRO!$E$37="Non endémique",INTRO!$E$41="Non endémique"),0,IF(AND(OR(COUNTRY_INFO!$H53=0,COUNTRY_INFO!$H53=4,COUNTRY_INFO!$H53=99),OR(COUNTRY_INFO!$J53=0,COUNTRY_INFO!$J53=4)),0,COUNTRY_INFO!$E53)) -> 41261 | E53: =IF(AND(INTRO!$E$37="Non endémique",INTRO!$E$41="Non endémique"),0,IF(AND(OR(COUNTRY_INFO!$H53=0,COUNTRY_INFO!$H53=4,COUNTRY_INFO!$H53=99),OR(COUNTRY_INFO!$J53=0,COUNTRY_INFO!$J53=4)),0,COUNTRY_INFO!$F53)) -> 77582 | F53: 118843 | G53: =IF(AND(INTRO!$E$37="Non endémique",INTRO!$E$41="Non endémique"),0,COUNTRY_INFO!P53) -> 0 | H53: =IF(AND(INTRO!$E$37="Non endémique",INTRO!$E$41="Non endémique"),0,COUNTRY_INFO!R53) -> 2 | I53: =IF(INTRO!$E$39="Non endémique",IF($G53=1,DEC!I53,0),IF($G53=1,IVM!G53,0)) -> 0 | J53: ALB | K53: =IF($J53="ALB", IF(INTRO!$E$39="Non endémique",IF($H53<>0,$D53*($H53-$G53),0),$D53*$H53), 0) -> 82522 | L53: 155164 | M53: 7067 | N53: 244753 | O53: =IF($J53="MBD", IF(INTRO!$E$39="Non endémique",IF($H53<>0,$D53*($H53-$G53),0),$D53*$H53),0) -> 0 | P53: 0 | R53: 0 | T53: 0 | U53: 0 | W53: 155164 | X53: 776 | Z53: 0 | AA53: 0
A54: =IF(AND(INTRO!$E$37="Non endémique",INTRO!$E$41="Non endémique")," ",IF(COUNTRY_INFO!A54=0," ",COUNTRY_INFO!A54)) -> Burundi | B54: =IF(AND(INTRO!$E$37="Non endémique",INTRO!$E$41="Non endémique")," ",IF(COUNTRY_INFO!B54=0," ",COUNTRY_INFO!B54)) -> Ruyigi | C54: =IF(AND(INTRO!$E$37="Non endémique",INTRO!$E$41="Non endémique")," ",IF(COUNTRY_INFO!C54=0," ",COUNTRY_INFO!C54)) -> Ruyigi | D54: =IF(AND(INTRO!$E$37="Non endémique",INTRO!$E$41="Non endémique"),0,IF(AND(OR(COUNTRY_INFO!$H54=0,COUNTRY_INFO!$H54=4,COUNTRY_INFO!$H54=99),OR(COUNTRY_INFO!$J54=0,COUNTRY_INFO!$J54=4)),0,COUNTRY_INFO!$E54)) -> 18949 | E54: =IF(AND(INTRO!$E$37="Non endémique",INTRO!$E$41="Non endémique"),0,IF(AND(OR(COUNTRY_INFO!$H54=0,COUNTRY_INFO!$H54=4,COUNTRY_INFO!$H54=99),OR(COUNTRY_INFO!$J54=0,COUNTRY_INFO!$J54=4)),0,COUNTRY_INFO!$F54)) -> 35630 | F54: 54579 | G54: =IF(AND(INTRO!$E$37="Non endémique",INTRO!$E$41="Non endémique"),0,COUNTRY_INFO!P54) -> 0 | H54: =IF(AND(INTRO!$E$37="Non endémique",INTRO!$E$41="Non endémique"),0,COUNTRY_INFO!R54) -> 2 | I54: =IF(INTRO!$E$39="Non endémique",IF($G54=1,DEC!I54,0),IF($G54=1,IVM!G54,0)) -> 0 | J54: ALB | K54: =IF($J54="ALB", IF(INTRO!$E$39="Non endémique",IF($H54<>0,$D54*($H54-$G54),0),$D54*$H54), 0) -> 37898 | L54: 71260 | M54: 3246 | N54: 112404 | O54: =IF($J54="MBD", IF(INTRO!$E$39="Non endémique",IF($H54<>0,$D54*($H54-$G54),0),$D54*$H54),0) -> 0 | P54: 0 | R54: 0 | T54: 0 | U54: 0 | W54: 71260 | X54: 357 | Z54: 0 | AA54: 0

Sheet PZQ
A1: Praziquantel (PZQ)
A2: Structure administrative, population ciblée par groupe d'âge, plan de traitement et information sur les comprimés
A4: TOTAL | D4: =SUM(D$9:D$1000) -> 517322.03 | E4: =SUM(E$9:E$1000) -> 82481.8 | F4: =SUM(F$9:F$1000) -> 599803.83 | I4: =SUM(I$9:I$1000) -> 1465251 | J4: 0 | K4: 82481.8 | L4: 1547732.8 | M4: 3663127.5 | N4: 247445.4 | O4: 3663127.5 | P4: 0 | Q4: 3663127.5 | R4: 3674
A6: Structure administrative du pays | D6: Population nécessitant un traitement avec PZQ | G6: Plan de traitement | I6: Population cible | M6: Praziquantel (PZQ)
A7: Pays | B7: Région/Département | C7: District | D7: EAS | E7: Adultes | F7: Total | G7: SCH | H7: Tous EAS ciblés ? | I7: EAS | J7: EAS à un niveau inférieur | K7: Adultes | L7: Total | M7: EAS | N7: Adultes | O7: Total requis pour EAS | P7: Reste en stock | Q7: Comprimés devant être fournis | R7: Flacons (600mg) 1000 comprimés
A9: =IF(INTRO!$E$43="Non endémique"," ", IF(COUNTRY_INFO!A9=0," ",COUNTRY_INFO!A9)) -> Burundi | B9: =IF(INTRO!$E$43="Non endémique"," ", IF(COUNTRY_INFO!B9=0," ",COUNTRY_INFO!B9)) -> Bubanza | C9: =IF(INTRO!$E$43="Non endémique"," ", IF(COUNTRY_INFO!C9=0," ",COUNTRY_INFO!C9)) -> Bubanza | D9: =IF(INTRO!$E$43="Non endémique", 0, IF(COUNTRY_INFO!$K9>0, IF(COUNTRY_INFO!$K9=4, 0, IF(COUNTRY_INFO!$K9=1, COUNTRY_INFO!$F9*0.33, IF(COUNTRY_INFO!$K9=2, COUNTRY_INFO!$F9*0.5, COUNTRY_INFO!$F9))), 0)) -> 21039.48 | E9: =IF(INTRO!$E$43="Non endémique", 0, IF(COUNTRY_INFO!$K9>0, IF(COUNTRY_INFO!$K9=4, 0, IF(COUNTRY_INFO!$K9=1, 0, IF(COUNTRY_INFO!$K9=2, COUNTRY_INFO!$G9*0.2, COUNTRY_INFO!$G9))), 0)) -> 0 | F9: =SUM(D9:E9) -> 21039.48 | G9: =IF(INTRO!$E$43="Non endémique", "Non requis", COUNTRY_INFO!S9) -> 1 | H9: Oui | I9: =IF($D9=0,0,IF(AND($G9>0,$H9<>"Oui"),D9,IF(AND($G9>0,$H9="Oui"),COUNTRY_INFO!$F9,0))) -> 63756 | K9: =IF($G9>0,E9, 0) -> 0 | L9: =IF($J9=0,SUM(I9,K9),SUM(J9,K9)) -> 63756 | M9: =IF($J9=0,$I9*2.5,$J9*2.5) -> 159390 | N9: =$K9*3 -> 0 | O9: =M9 -> 159390 | Q9: =IF($O9>$P9,O9-P9,0) -> 159390 | R9: =ROUNDUP($O9/1000,0) -> 160
A10: =IF(INTRO!$E$43="Non endémique"," ", IF(COUNTRY_INFO!A10=0," ",COUNTRY_INFO!A10)) -> Burundi | B10: =IF(INTRO!$E$43="Non endémique"," ", IF(COUNTRY_INFO!B10=0," ",COUNTRY_INFO!B10)) -> Bubanza | C10: =IF(INTRO!$E$43="Non endémique"," ", IF(COUNTRY_INFO!C10=0," ",COUNTRY_INFO!C10)) -> Mpanda | D10: =IF(INTRO!$E$43="Non endémique", 0, IF(COUNTRY_INFO!$K10>0, IF(COUNTRY_INFO!$K10=4, 0, IF(COUNTRY_INFO!$K10=1, COUNTRY_INFO!$F10*0.33, IF(COUNTRY_INFO!$K10=2, COUNTRY_INFO!$F10*0.5, COUNTRY_INFO!$F10))), 0)) -> 25576.65 | E10: =IF(INTRO!$E$43="Non endémique", 0, IF(COUNTRY_INFO!$K10>0, IF(COUNTRY_INFO!$K10=4, 0, IF(COUNTRY_INFO!$K10=1, 0, IF(COUNTRY_INFO!$K10=2, COUNTRY_INFO!$G10*0.2, COUNTRY_INFO!$G10))), 0)) -> 0 | F10: 25576.65 | G10: =IF(INTRO!$E$43="Non endémique", "Non requis", COUNTRY_INFO!S10) -> 1 | H10: Oui | I10: =IF($D10=0,0,IF(AND($G10>0,$H10<>"Oui"),D10,IF(AND($G10>0,$H10="Oui"),COUNTRY_INFO!$F10,0))) -> 77505 | K10: 0 | L10: 77505 | M10: 193762.5 | N10: 0 | O10: 193762.5 | Q10: 193762.5 | R10: 194
A11: =IF(INTRO!$E$43="Non endémique"," ", IF(COUNTRY_INFO!A11=0," ",COUNTRY_INFO!A11)) -> Burundi | B11: =IF(INTRO!$E$43="Non endémique"," ", IF(COUNTRY_INFO!B11=0," ",COUNTRY_INFO!B11)) -> Bujumbura Mairie | C11: =IF(INTRO!$E$43="Non endémique"," ", IF(COUNTRY_INFO!C11=0," ",COUNTRY_INFO!C11)) -> Zone Nord | D11: =IF(INTRO!$E$43="Non endémique", 0, IF(COUNTRY_INFO!$K11>0, IF(COUNTRY_INFO!$K11=4, 0, IF(COUNTRY_INFO!$K11=1, COUNTRY_INFO!$F11*0.33, IF(COUNTRY_INFO!$K11=2, COUNTRY_INFO!$F11*0.5, COUNTRY_INFO!$F11))), 0)) -> 28469.1 | E11: =IF(INTRO!$E$43="Non endémique", 0, IF(COUNTRY_INFO!$K11>0, IF(COUNTRY_INFO!$K11=4, 0, IF(COUNTRY_INFO!$K11=1, 0, IF(COUNTRY_INFO!$K11=2, COUNTRY_INFO!$G11*0.2, COUNTRY_INFO!$G11))), 0)) -> 0 | F11: 28469.1 | G11: =IF(INTRO!$E$43="Non endémique", "Non requis", COUNTRY_INFO!S11) -> 1 | H11: Oui | I11: =IF($D11=0,0,IF(AND($G11>0,$H11<>"Oui"),D11,IF(AND($G11>0,$H11="Oui"),COUNTRY_INFO!$F11,0))) -> 86270 | K11: 0 | L11: 86270 | M11: 215675 | N11: 0 | O11: 215675 | Q11: 215675 | R11: 216
A12: =IF(INTRO!$E$43="Non endémique"," ", IF(COUNTRY_INFO!A12=0," ",COUNTRY_INFO!A12)) -> Burundi | B12: =IF(INTRO!$E$43="Non endémique"," ", IF(COUNTRY_INFO!B12=0," ",COUNTRY_INFO!B12)) -> Bujumbura Mairie | C12: =IF(INTRO!$E$43="Non endémique"," ", IF(COUNTRY_INFO!C12=0," ",COUNTRY_INFO!C12)) -> Zone centre | D12: =IF(INTRO!$E$43="Non endémique", 0, IF(COUNTRY_INFO!$K12>0, IF(COUNTRY_INFO!$K12=4, 0, IF(COUNTRY_INFO!$K12=1, COUNTRY_INFO!$F12*0.33, IF(COUNTRY_INFO!$K12=2, COUNTRY_INFO!$F12*0.5, COUNTRY_INFO!$F12))), 0)) -> 0 | E12: =IF(INTRO!$E$43="Non endémique", 0, IF(COUNTRY_INFO!$K12>0, IF(COUNTRY_INFO!$K12=4, 0, IF(COUNTRY_INFO!$K12=1, 0, IF(COUNTRY_INFO!$K12=2, COUNTRY_INFO!$G12*0.2, COUNTRY_INFO!$G12))), 0)) -> 0 | F12: 0 | G12: =IF(INTRO!$E$43="Non endémique", "Non requis", COUNTRY_INFO!S12) -> 0 | I12: =IF($D12=0,0,IF(AND($G12>0,$H12<>"Oui"),D12,IF(AND($G12>0,$H12="Oui"),COUNTRY_INFO!$F12,0))) -> 0 | K12: 0 | L12: 0 | M12: 0 | N12: 0 | O12: 0 | Q12: 0 | R12: 0
A13: =IF(INTRO!$E$43="Non endémique"," ", IF(COUNTRY_INFO!A13=0," ",COUNTRY_INFO!A13)) -> Burundi | B13: =IF(INTRO!$E$43="Non endémique"," ", IF(COUNTRY_INFO!B13=0," ",COUNTRY_INFO!B13)) -> Bujumbura Mairie | C13: =IF(INTRO!$E$43="Non endémique"," ", IF(COUNTRY_INFO!C13=0," ",COUNTRY_INFO!C13)) -> Zone Sud | D13: =IF(INTRO!$E$43="Non endémique", 0, IF(COUNTRY_INFO!$K13>0, IF(COUNTRY_INFO!$K13=4, 0, IF(COUNTRY_INFO!$K13=1, COUNTRY_INFO!$F13*0.33, IF(COUNTRY_INFO!$K13=2, COUNTRY_INFO!$F13*0.5, COUNTRY_INFO!$F13))), 0)) -> 0 | E13: =IF(INTRO!$E$43="Non endémique", 0, IF(COUNTRY_INFO!$K13>0, IF(COUNTRY_INFO!$K13=4, 0, IF(COUNTRY_INFO!$K13=1, 0, IF(COUNTRY_INFO!$K13=2, COUNTRY_INFO!$G13*0.2, COUNTRY_INFO!$G13))), 0)) -> 0 | F13: 0 | G13: =IF(INTRO!$E$43="Non endémique", "Non requis", COUNTRY_INFO!S13) -> 0 | I13: =IF($D13=0,0,IF(AND($G13>0,$H13<>"Oui"),D13,IF(AND($G13>0,$H13="Oui"),COUNTRY_INFO!$F13,0))) -> 0 | K13: 0 | L13: 0 | M13: 0 | N13: 0 | O13: 0 | Q13: 0 | R13: 0
A14: =IF(INTRO!$E$43="Non endémique"," ", IF(COUNTRY_INFO!A14=0," ",COUNTRY_INFO!A14)) -> Burundi | B14: =IF(INTRO!$E$43="Non endémique"," ", IF(COUNTRY_INFO!B14=0," ",COUNTRY_INFO!B14)) -> Bujumbura Rural | C14: =IF(INTRO!$E$43="Non endémique"," ", IF(COUNTRY_INFO!C14=0," ",COUNTRY_INFO!C14)) -> Kabezi | D14: =IF(INTRO!$E$43="Non endémique", 0, IF(COUNTRY_INFO!$K14>0, IF(COUNTRY_INFO!$K14=4, 0, IF(COUNTRY_INFO!$K14=1, COUNTRY_INFO!$F14*0.33, IF(COUNTRY_INFO!$K14=2, COUNTRY_INFO!$F14*0.5, COUNTRY_INFO!$F14))), 0)) -> 19458.45 | E14: =IF(INTRO!$E$43="Non endémique", 0, IF(COUNTRY_INFO!$K14>0, IF(COUNTRY_INFO!$K14=4, 0, IF(COUNTRY_INFO!$K14=1, 0, IF(COUNTRY_INFO!$K14=2, COUNTRY_INFO!$G14*0.2, COUNTRY_INFO!$G14))), 0)) -> 0 | F14: 19458.45 | G14: =IF(INTRO!$E$43="Non endémique", "Non requis", COUNTRY_INFO!S14) -> 1 | H14: Oui | I14: =IF($D14=0,0,IF(AND($G14>0,$H14<>"Oui"),D14,IF(AND($G14>0,$H14="Oui"),COUNTRY_INFO!$F14,0))) -> 58965 | K14: 0 | L14: 58965 | M14: 147412.5 | N14: 0 | O14: 147412.5 | Q14: 147412.5 | R14: 148
A15: =IF(INTRO!$E$43="Non endémique"," ", IF(COUNTRY_INFO!A15=0," ",COUNTRY_INFO!A15)) -> Burundi | B15: =IF(INTRO!$E$43="Non endémique"," ", IF(COUNTRY_INFO!B15=0," ",COUNTRY_INFO!B15)) -> Bujumbura Rural | C15: =IF(INTRO!$E$43="Non endémique"," ", IF(COUNTRY_INFO!C15=0," ",COUNTRY_INFO!C15)) -> Isale | D15: =IF(INTRO!$E$43="Non endémique", 0, IF(COUNTRY_INFO!$K15>0, IF(COUNTRY_INFO!$K15=4, 0, IF(COUNTRY_INFO!$K15=1, COUNTRY_INFO!$F15*0.33, IF(COUNTRY_INFO!$K15=2, COUNTRY_INFO!$F15*0.5, COUNTRY_INFO!$F15))), 0)) -> 22345.29 | E15: =IF(INTRO!$E$43="Non endémique", 0, IF(COUNTRY_INFO!$K15>0, IF(COUNTRY_INFO!$K15=4, 0, IF(COUNTRY_INFO!$K15=1, 0, IF(COUNTRY_INFO!$K15=2, COUNTRY_INFO!$G15*0.2, COUNTRY_INFO!$G15))), 0)) -> 0 | F15: 22345.29 | G15: =IF(INTRO!$E$43="Non endémique", "Non requis", COUNTRY_INFO!S15) -> 1 | H15: Oui | I15: =IF($D15=0,0,IF(AND($G15>0,$H15<>"Oui"),D15,IF(AND($G15>0,$H15="Oui"),COUNTRY_INFO!$F15,0))) -> 67713 | K15: 0 | L15: 67713 | M15: 169282.5 | N15: 0 | O15: 169282.5 | Q15: 169282.5 | R15: 170
A16: =IF(INTRO!$E$43="Non endémique"," ", IF(COUNTRY_INFO!A16=0," ",COUNTRY_INFO!A16)) -> Burundi | B16: =IF(INTRO!$E$43="Non endémique"," ", IF(COUNTRY_INFO!B16=0," ",COUNTRY_INFO!B16)) -> Bujumbura Rural | C16: =IF(INTRO!$E$43="Non endémique"," ", IF(COUNTRY_INFO!C16=0," ",COUNTRY_INFO!C16)) -> Rwibaga | D16: =IF(INTRO!$E$43="Non endémique", 0, IF(COUNTRY_INFO!$K16>0, IF(COUNTRY_INFO!$K16=4, 0, IF(COUNTRY_INFO!$K16=1, COUNTRY_INFO!$F16*0.33, IF(COUNTRY_INFO!$K16=2, COUNTRY_INFO!$F16*0.5, COUNTRY_INFO!$F16))), 0)) -> 0 | E16: =IF(INTRO!$E$43="Non endémique", 0, IF(COUNTRY_INFO!$K16>0, IF(COUNTRY_INFO!$K16=4, 0, IF(COUNTRY_INFO!$K16=1, 0, IF(COUNTRY_INFO!$K16=2, COUNTRY_INFO!$G16*0.2, COUNTRY_INFO!$G16))), 0)) -> 0 | F16: 0 | G16: =IF(INTRO!$E$43="Non endémique", "Non requis", COUNTRY_INFO!S16) -> 0 | I16: =IF($D16=0,0,IF(AND($G16>0,$H16<>"Oui"),D16,IF(AND($G16>0,$H16="Oui"),COUNTRY_INFO!$F16,0))) -> 0 | K16: 0 | L16: 0 | M16: 0 | N16: 0 | O16: 0 | Q16: 0 | R16: 0
A17: =IF(INTRO!$E$43="Non endémique"," ", IF(COUNTRY_INFO!A17=0," ",COUNTRY_INFO!A17)) -> Burundi | B17: =IF(INTRO!$E$43="Non endémique"," ", IF(COUNTRY_INFO!B17=0," ",COUNTRY_INFO!B17)) -> Bururi | C17: =IF(INTRO!$E$43="Non endémique"," ", IF(COUNTRY_INFO!C17=0," ",COUNTRY_INFO!C17)) -> Bururi | D17: =IF(INTRO!$E$43="Non endémique", 0, IF(COUNTRY_INFO!$K17>0, IF(COUNTRY_INFO!$K17=4, 0, IF(COUNTRY_INFO!$K17=1, COUNTRY_INFO!$F17*0.33, IF(COUNTRY_INFO!$K17=2, COUNTRY_INFO!$F17*0.5, COUNTRY_INFO!$F17))), 0)) -> 0 | E17: =IF(INTRO!$E$43="Non endémique", 0, IF(COUNTRY_INFO!$K17>0, IF(COUNTRY_INFO!$K17=4, 0, IF(COUNTRY_INFO!$K17=1, 0, IF(COUNTRY_INFO!$K17=2, COUNTRY_INFO!$G17*0.2, COUNTRY_INFO!$G17))), 0)) -> 0 | F17: 0 | G17: =IF(INTRO!$E$43="Non endémique", "Non requis", COUNTRY_INFO!S17) -> 0 | I17: =IF($D17=0,0,IF(AND($G17>0,$H17<>"Oui"),D17,IF(AND($G17>0,$H17="Oui"),COUNTRY_INFO!$F17,0))) -> 0 | K17: 0 | L17: 0 | M17: 0 | N17: 0 | O17: 0 | Q17: 0 | R17: 0
A18: =IF(INTRO!$E$43="Non endémique"," ", IF(COUNTRY_INFO!A18=0," ",COUNTRY_INFO!A18)) -> Burundi | B18: =IF(INTRO!$E$43="Non endémique"," ", IF(COUNTRY_INFO!B18=0," ",COUNTRY_INFO!B18)) -> Bururi | C18: =IF(INTRO!$E$43="Non endémique"," ", IF(COUNTRY_INFO!C18=0," ",COUNTRY_INFO!C18)) -> Matana | D18: =IF(INTRO!$E$43="Non endémique", 0, IF(COUNTRY_INFO!$K18>0, IF(COUNTRY_INFO!$K18=4, 0, IF(COUNTRY_INFO!$K18=1, COUNTRY_INFO!$F18*0.33, IF(COUNTRY_INFO!$K18=2, COUNTRY_INFO!$F18*0.5, COUNTRY_INFO!$F18))), 0)) -> 0 | E18: =IF(INTRO!$E$43="Non endémique", 0, IF(COUNTRY_INFO!$K18>0, IF(COUNTRY_INFO!$K18=4, 0, IF(COUNTRY_INFO!$K18=1, 0, IF(COUNTRY_INFO!$K18=2, COUNTRY_INFO!$G18*0.2, COUNTRY_INFO!$G18))), 0)) -> 0 | F18: 0 | G18: =IF(INTRO!$E$43="Non endémique", "Non requis", COUNTRY_INFO!S18) -> 0 | I18: =IF($D18=0,0,IF(AND($G18>0,$H18<>"Oui"),D18,IF(AND($G18>0,$H18="Oui"),COUNTRY_INFO!$F18,0))) -> 0 | K18: 0 | L18: 0 | M18: 0 | N18: 0 | O18: 0 | Q18: 0 | R18: 0
A19: =IF(INTRO!$E$43="Non endémique"," ", IF(COUNTRY_INFO!A19=0," ",COUNTRY_INFO!A19)) -> Burundi | B19: =IF(INTRO!$E$43="Non endémique"," ", IF(COUNTRY_INFO!B19=0," ",COUNTRY_INFO!B19)) -> Cankuzo | C19: =IF(INTRO!$E$43="Non endémique"," ", IF(COUNTRY_INFO!C19=0," ",COUNTRY_INFO!C19)) -> Cankuzo | D19: =IF(INTRO!$E$43="Non endémique", 0, IF(COUNTRY_INFO!$K19>0, IF(COUNTRY_INFO!$K19=4, 0, IF(COUNTRY_INFO!$K19=1, COUNTRY_INFO!$F19*0.33, IF(COUNTRY_INFO!$K19=2, COUNTRY_INFO!$F19*0.5, COUNTRY_INFO!$F19))), 0)) -> 0 | E19: =IF(INTRO!$E$43="Non endémique", 0, IF(COUNTRY_INFO!$K19>0, IF(COUNTRY_INFO!$K19=4, 0, IF(COUNTRY_INFO!$K19=1, 0, IF(COUNTRY_INFO!$K19=2, COUNTRY_INFO!$G19*0.2, COUNTRY_INFO!$G19))), 0)) -> 0 | F19: 0 | G19: =IF(INTRO!$E$43="Non endémique", "Non requis", COUNTRY_INFO!S19) -> 0 | I19: =IF($D19=0,0,IF(AND($G19>0,$H19<>"Oui"),D19,IF(AND($G19>0,$H19="Oui"),COUNTRY_INFO!$F19,0))) -> 0 | K19: 0 | L19: 0 | M19: 0 | N19: 0 | O19: 0 | Q19: 0 | R19: 0
A20: =IF(INTRO!$E$43="Non endémique"," ", IF(COUNTRY_INFO!A20=0," ",COUNTRY_INFO!A20)) -> Burundi | B20: =IF(INTRO!$E$43="Non endémique"," ", IF(COUNTRY_INFO!B20=0," ",COUNTRY_INFO!B20)) -> Cankuzo | C20: =IF(INTRO!$E$43="Non endémique"," ", IF(COUNTRY_INFO!C20=0," ",COUNTRY_INFO!C20)) -> Murore | D20: =IF(INTRO!$E$43="Non endémique", 0, IF(COUNTRY_INFO!$K20>0, IF(COUNTRY_INFO!$K20=4, 0, IF(COUNTRY_INFO!$K20=1, COUNTRY_INFO!$F20*0.33, IF(COUNTRY_INFO!$K20=2, COUNTRY_INFO!$F20*0.5, COUNTRY_INFO!$F20))), 0)) -> 15970.35 | E20: =IF(INTRO!$E$43="Non endémique", 0, IF(COUNTRY_INFO!$K20>0, IF(COUNTRY_INFO!$K20=4, 0, IF(COUNTRY_INFO!$K20=1, 0, IF(COUNTRY_INFO!$K20=2, COUNTRY_INFO!$G20*0.2, COUNTRY_INFO!$G20))), 0)) -> 0 | F20: 15970.35 | G20: =IF(INTRO!$E$43="Non endémique", "Non requis", COUNTRY_INFO!S20) -> 1 | H20: Oui | I20: =IF($D20=0,0,IF(AND($G20>0,$H20<>"Oui"),D20,IF(AND($G20>0,$H20="Oui"),COUNTRY_INFO!$F20,0))) -> 48395 | K20: 0 | L20: 48395 | M20: 120987.5 | N20: 0 | O20: 120987.5 | Q20: 120987.5 | R20: 121
A21: =IF(INTRO!$E$43="Non endémique"," ", IF(COUNTRY_INFO!A21=0," ",COUNTRY_INFO!A21)) -> Burundi | B21: =IF(INTRO!$E$43="Non endémique"," ", IF(COUNTRY_INFO!B21=0," ",COUNTRY_INFO!B21)) -> Cibitoke | C21: =IF(INTRO!$E$43="Non endémique"," ", IF(COUNTRY_INFO!C21=0," ",COUNTRY_INFO!C21)) -> Cibitoke | D21: =IF(INTRO!$E$43="Non endémique", 0, IF(COUNTRY_INFO!$K21>0, IF(COUNTRY_INFO!$K21=4, 0, IF(COUNTRY_INFO!$K21=1, COUNTRY_INFO!$F21*0.33, IF(COUNTRY_INFO!$K21=2, COUNTRY_INFO!$F21*0.5, COUNTRY_INFO!$F21))), 0)) -> 47271.5 | E21: =IF(INTRO!$E$43="Non endémique", 0, IF(COUNTRY_INFO!$K21>0, IF(COUNTRY_INFO!$K21=4, 0, IF(COUNTRY_INFO!$K21=1, 0, IF(COUNTRY_INFO!$K21=2, COUNTRY_INFO!$G21*0.2, COUNTRY_INFO!$G21))), 0)) -> 39233.6 | F21: 86505.1 | G21: =IF(INTRO!$E$43="Non endémique", "Non requis", COUNTRY_INFO!S21) -> 1 | H21: Oui | I21: =IF($D21=0,0,IF(AND($G21>0,$H21<>"Oui"),D21,IF(AND($G21>0,$H21="Oui"),COUNTRY_INFO!$F21,0))) -> 94543 | K21: 39233.6 | L21: 133776.6 | M21: 236357.5 | N21: 117700.8 | O21: 236357.5 | Q21: 236357.5 | R21: 237
A22: =IF(INTRO!$E$43="Non endémique"," ", IF(COUNTRY_INFO!A22=0," ",COUNTRY_INFO!A22)) -> Burundi | B22: =IF(INTRO!$E$43="Non endémique"," ", IF(COUNTRY_INFO!B22=0," ",COUNTRY_INFO!B22)) -> Cibitoke | C22: =IF(INTRO!$E$43="Non endémique"," ", IF(COUNTRY_INFO!C22=0," ",COUNTRY_INFO!C22)) -> Mabayi | D22: =IF(INTRO!$E$43="Non endémique", 0, IF(COUNTRY_INFO!$K22>0, IF(COUNTRY_INFO!$K22=4, 0, IF(COUNTRY_INFO!$K22=1, COUNTRY_INFO!$F22*0.33, IF(COUNTRY_INFO!$K22=2, COUNTRY_INFO!$F22*0.5, COUNTRY_INFO!$F22))), 0)) -> 26203.98 | E22: =IF(INTRO!$E$43="Non endémique", 0, IF(COUNTRY_INFO!$K22>0, IF(COUNTRY_INFO!$K22=4, 0, IF(COUNTRY_INFO!$K22=1, 0, IF(COUNTRY_INFO!$K22=2, COUNTRY_INFO!$G22*0.2, COUNTRY_INFO!$G22))), 0)) -> 0 | F22: 26203.98 | G22: =IF(INTRO!$E$43="Non endémique", "Non requis", COUNTRY_INFO!S22) -> 1 | H22: Oui | I22: =IF($D22=0,0,IF(AND($G22>0,$H22<>"Oui"),D22,IF(AND($G22>0,$H22="Oui"),COUNTRY_INFO!$F22,0))) -> 79406 | K22: 0 | L22: 79406 | M22: 198515 | N22: 0 | O22: 198515 | Q22: 198515 | R22: 199
A23: =IF(INTRO!$E$43="Non endémique"," ", IF(COUNTRY_INFO!A23=0," ",COUNTRY_INFO!A23)) -> Burundi | B23: =IF(INTRO!$E$43="Non endémique"," ", IF(COUNTRY_INFO!B23=0," ",COUNTRY_INFO!B23)) -> Gitega | C23: =IF(INTRO!$E$43="Non endémique"," ", IF(COUNTRY_INFO!C23=0," ",COUNTRY_INFO!C23)) -> Gitega | D23: =IF(INTRO!$E$43="Non endémique", 0, IF(COUNTRY_INFO!$K23>0, IF(COUNTRY_INFO!$K23=4, 0, IF(COUNTRY_INFO!$K23=1, COUNTRY_INFO!$F23*0.33, IF(COUNTRY_INFO!$K23=2, COUNTRY_INFO!$F23*0.5, COUNTRY_INFO!$F23))), 0)) -> 0 | E23: =IF(INTRO!$E$43="Non endémique", 0, IF(COUNTRY_INFO!$K23>0, IF(COUNTRY_INFO!$K23=4, 0, IF(COUNTRY_INFO!$K23=1, 0, IF(COUNTRY_INFO!$K23=2, COUNTRY_INFO!$G23*0.2, COUNTRY_INFO!$G23))), 0)) -> 0 | F23: 0 | G23: =IF(INTRO!$E$43="Non endémique", "Non requis", COUNTRY_INFO!S23) -> 0 | I23: =IF($D23=0,0,IF(AND($G23>0,$H23<>"Oui"),D23,IF(AND($G23>0,$H23="Oui"),COUNTRY_INFO!$F23,0))) -> 0 | K23: 0 | L23: 0 | M23: 0 | N23: 0 | O23: 0 | Q23: 0 | R23: 0
A24: =IF(INTRO!$E$43="Non endémique"," ", IF(COUNTRY_INFO!A24=0," ",COUNTRY_INFO!A24)) -> Burundi | B24: =IF(INTRO!$E$43="Non endémique"," ", IF(COUNTRY_INFO!B24=0," ",COUNTRY_INFO!B24)) -> Gitega | C24: =IF(INTRO!$E$43="Non endémique"," ", IF(COUNTRY_INFO!C24=0," ",COUNTRY_INFO!C24)) -> Kibuye | D24: =IF(INTRO!$E$43="Non endémique", 0, IF(COUNTRY_INFO!$K24>0, IF(COUNTRY_INFO!$K24=4, 0, IF(COUNTRY_INFO!$K24=1, COUNTRY_INFO!$F24*0.33, IF(COUNTRY_INFO!$K24=2, COUNTRY_INFO!$F24*0.5, COUNTRY_INFO!$F24))), 0)) -> 0 | E24: =IF(INTRO!$E$43="Non endémique", 0, IF(COUNTRY_INFO!$K24>0, IF(COUNTRY_INFO!$K24=4, 0, IF(COUNTRY_INFO!$K24=1, 0, IF(COUNTRY_INFO!$K24=2, COUNTRY_INFO!$G24*0.2, COUNTRY_INFO!$G24))), 0)) -> 0 | F24: 0 | G24: =IF(INTRO!$E$43="Non endémique", "Non requis", COUNTRY_INFO!S24) -> 0 | I24: =IF($D24=0,0,IF(AND($G24>0,$H24<>"Oui"),D24,IF(AND($G24>0,$H24="Oui"),COUNTRY_INFO!$F24,0))) -> 0 | K24: 0 | L24: 0 | M24: 0 | N24: 0 | O24: 0 | Q24: 0 | R24: 0
A25: =IF(INTRO!$E$43="Non endémique"," ", IF(COUNTRY_INFO!A25=0," ",COUNTRY_INFO!A25)) -> Burundi | B25: =IF(INTRO!$E$43="Non endémique"," ", IF(COUNTRY_INFO!B25=0," ",COUNTRY_INFO!B25)) -> Gitega | C25: =IF(INTRO!$E$43="Non endémique"," ", IF(COUNTRY_INFO!C25=0," ",COUNTRY_INFO!C25)) -> Mutaho | D25: =IF(INTRO!$E$43="Non endémique", 0, IF(COUNTRY_INFO!$K25>0, IF(COUNTRY_INFO!$K25=4, 0, IF(COUNTRY_INFO!$K25=1, COUNTRY_INFO!$F25*0.33, IF(COUNTRY_INFO!$K25=2, COUNTRY_INFO!$F25*0.5, COUNTRY_INFO!$F25))), 0)) -> 0 | E25: =IF(INTRO!$E$43="Non endémique", 0, IF(COUNTRY_INFO!$K25>0, IF(COUNTRY_INFO!$K25=4, 0, IF(COUNTRY_INFO!$K25=1, 0, IF(COUNTRY_INFO!$K25=2, COUNTRY_INFO!$G25*0.2, COUNTRY_INFO!$G25))), 0)) -> 0 | F25: 0 | G25: =IF(INTRO!$E$43="Non endémique", "Non requis", COUNTRY_INFO!S25) -> 0 | I25: =IF($D25=0,0,IF(AND($G25>0,$H25<>"Oui"),D25,IF(AND($G25>0,$H25="Oui"),COUNTRY_INFO!$F25,0))) -> 0 | K25: 0 | L25: 0 | M25: 0 | N25: 0 | O25: 0 | Q25: 0 | R25: 0
A26: =IF(INTRO!$E$43="Non endémique"," ", IF(COUNTRY_INFO!A26=0," ",COUNTRY_INFO!A26)) -> Burundi | B26: =IF(INTRO!$E$43="Non endémique"," ", IF(COUNTRY_INFO!B26=0," ",COUNTRY_INFO!B26)) -> Gitega | C26: =IF(INTRO!$E$43="Non endémique"," ", IF(COUNTRY_INFO!C26=0," ",COUNTRY_INFO!C26)) -> Ryansoro | D26: =IF(INTRO!$E$43="Non endémique", 0, IF(COUNTRY_INFO!$K26>0, IF(COUNTRY_INFO!$K26=4, 0, IF(COUNTRY_INFO!$K26=1, COUNTRY_INFO!$F26*0.33, IF(COUNTRY_INFO!$K26=2, COUNTRY_INFO!$F26*0.5, COUNTRY_INFO!$F26))), 0)) -> 0 | E26: =IF(INTRO!$E$43="Non endémique", 0, IF(COUNTRY_INFO!$K26>0, IF(COUNTRY_INFO!$K26=4, 0, IF(COUNTRY_INFO!$K26=1, 0, IF(COUNTRY_INFO!$K26=2, COUNTRY_INFO!$G26*0.2, COUNTRY_INFO!$G26))), 0)) -> 0 | F26: 0 | G26: =IF(INTRO!$E$43="Non endémique", "Non requis", COUNTRY_INFO!S26) -> 0 | I26: =IF($D26=0,0,IF(AND($G26>0,$H26<>"Oui"),D26,IF(AND($G26>0,$H26="Oui"),COUNTRY_INFO!$F26,0))) -> 0 | K26: 0 | L26: 0 | M26: 0 | N26: 0 | O26: 0 | Q26: 0 | R26: 0
A27: =IF(INTRO!$E$43="Non endémique"," ", IF(COUNTRY_INFO!A27=0," ",COUNTRY_INFO!A27)) -> Burundi | B27: =IF(INTRO!$E$43="Non endémique"," ", IF(COUNTRY_INFO!B27=0," ",COUNTRY_INFO!B27)) -> Karusi | C27: =IF(INTRO!$E$43="Non endémique"," ", IF(COUNTRY_INFO!C27=0," ",COUNTRY_INFO!C27)) -> Buhiga | D27: =IF(INTRO!$E$43="Non endémique", 0, IF(COUNTRY_INFO!$K27>0, IF(COUNTRY_INFO!$K27=4, 0, IF(COUNTRY_INFO!$K27=1, COUNTRY_INFO!$F27*0.33, IF(COUNTRY_INFO!$K27=2, COUNTRY_INFO!$F27*0.5, COUNTRY_INFO!$F27))), 0)) -> 0 | E27: =IF(INTRO!$E$43="Non endémique", 0, IF(COUNTRY_INFO!$K27>0, IF(COUNTRY_INFO!$K27=4, 0, IF(COUNTRY_INFO!$K27=1, 0, IF(COUNTRY_INFO!$K27=2, COUNTRY_INFO!$G27*0.2, COUNTRY_INFO!$G27))), 0)) -> 0 | F27: 0 | G27: =IF(INTRO!$E$43="Non endémique", "Non requis", COUNTRY_INFO!S27) -> 0 | I27: =IF($D27=0,0,IF(AND($G27>0,$H27<>"Oui"),D27,IF(AND($G27>0,$H27="Oui"),COUNTRY_INFO!$F27,0))) -> 0 | K27: 0 | L27: 0 | M27: 0 | N27: 0 | O27: 0 | Q27: 0 | R27: 0
A28: =IF(INTRO!$E$43="Non endémique"," ", IF(COUNTRY_INFO!A28=0," ",COUNTRY_INFO!A28)) -> Burundi | B28: =IF(INTRO!$E$43="Non endémique"," ", IF(COUNTRY_INFO!B28=0," ",COUNTRY_INFO!B28)) -> Karusi | C28: =IF(INTRO!$E$43="Non endémique"," ", IF(COUNTRY_INFO!C28=0," ",COUNTRY_INFO!C28)) -> Nyabikere | D28: =IF(INTRO!$E$43="Non endémique", 0, IF(COUNTRY_INFO!$K28>0, IF(COUNTRY_INFO!$K28=4, 0, IF(COUNTRY_INFO!$K28=1, COUNTRY_INFO!$F28*0.33, IF(COUNTRY_INFO!$K28=2, COUNTRY_INFO!$F28*0.5, COUNTRY_INFO!$F28))), 0)) -> 0 | E28: =IF(INTRO!$E$43="Non endémique", 0, IF(COUNTRY_INFO!$K28>0, IF(COUNTRY_INFO!$K28=4, 0, IF(COUNTRY_INFO!$K28=1, 0, IF(COUNTRY_INFO!$K28=2, COUNTRY_INFO!$G28*0.2, COUNTRY_INFO!$G28))), 0)) -> 0 | F28: 0 | G28: =IF(INTRO!$E$43="Non endémique", "Non requis", COUNTRY_INFO!S28) -> 0 | I28: =IF($D28=0,0,IF(AND($G28>0,$H28<>"Oui"),D28,IF(AND($G28>0,$H28="Oui"),COUNTRY_INFO!$F28,0))) -> 0 | K28: 0 | L28: 0 | M28: 0 | N28: 0 | O28: 0 | Q28: 0 | R28: 0
A29: =IF(INTRO!$E$43="Non endémique"," ", IF(COUNTRY_INFO!A29=0," ",COUNTRY_INFO!A29)) -> Burundi | B29: =IF(INTRO!$E$43="Non endémique"," ", IF(COUNTRY_INFO!B29=0," ",COUNTRY_INFO!B29)) -> Kayanza | C29: =IF(INTRO!$E$43="Non endémique"," ", IF(COUNTRY_INFO!C29=0," ",COUNTRY_INFO!C29)) -> Gahombo | D29: =IF(INTRO!$E$43="Non endémique", 0, IF(COUNTRY_INFO!$K29>0, IF(COUNTRY_INFO!$K29=4, 0, IF(COUNTRY_INFO!$K29=1, COUNTRY_INFO!$F29*0.33, IF(COUNTRY_INFO!$K29=2, COUNTRY_INFO!$F29*0.5, COUNTRY_INFO!$F29))), 0)) -> 0 | E29: =IF(INTRO!$E$43="Non endémique", 0, IF(COUNTRY_INFO!$K29>0, IF(COUNTRY_INFO!$K29=4, 0, IF(COUNTRY_INFO!$K29=1, 0, IF(COUNTRY_INFO!$K29=2, COUNTRY_INFO!$G29*0.2, COUNTRY_INFO!$G29))), 0)) -> 0 | F29: 0 | G29: =IF(INTRO!$E$43="Non endémique", "Non requis", COUNTRY_INFO!S29) -> 0 | I29: =IF($D29=0,0,IF(AND($G29>0,$H29<>"Oui"),D29,IF(AND($G29>0,$H29="Oui"),COUNTRY_INFO!$F29,0))) -> 0 | K29: 0 | L29: 0 | M29: 0 | N29: 0 | O29: 0 | Q29: 0 | R29: 0
A30: =IF(INTRO!$E$43="Non endémique"," ", IF(COUNTRY_INFO!A30=0," ",COUNTRY_INFO!A30)) -> Burundi | B30: =IF(INTRO!$E$43="Non endémique"," ", IF(COUNTRY_INFO!B30=0," ",COUNTRY_INFO!B30)) -> Kayanza | C30: =IF(INTRO!$E$43="Non endémique"," ", IF(COUNTRY_INFO!C30=0," ",COUNTRY_INFO!C30)) -> Kayanza | D30: =IF(INTRO!$E$43="Non endémique", 0, IF(COUNTRY_INFO!$K30>0, IF(COUNTRY_INFO!$K30=4, 0, IF(COUNTRY_INFO!$K30=1, COUNTRY_INFO!$F30*0.33, IF(COUNTRY_INFO!$K30=2, COUNTRY_INFO!$F30*0.5, COUNTRY_INFO!$F30))), 0)) -> 0 | E30: =IF(INTRO!$E$43="Non endémique", 0, IF(COUNTRY_INFO!$K30>0, IF(COUNTRY_INFO!$K30=4, 0, IF(COUNTRY_INFO!$K30=1, 0, IF(COUNTRY_INFO!$K30=2, COUNTRY_INFO!$G30*0.2, COUNTRY_INFO!$G30))), 0)) -> 0 | F30: 0 | G30: =IF(INTRO!$E$43="Non endémique", "Non requis", COUNTRY_INFO!S30) -> 0 | I30: =IF($D30=0,0,IF(AND($G30>0,$H30<>"Oui"),D30,IF(AND($G30>0,$H30="Oui"),COUNTRY_INFO!$F30,0))) -> 0 | K30: 0 | L30: 0 | M30: 0 | N30: 0 | O30: 0 | Q30: 0 | R30: 0
A31: =IF(INTRO!$E$43="Non endémique"," ", IF(COUNTRY_INFO!A31=0," ",COUNTRY_INFO!A31)) -> Burundi | B31: =IF(INTRO!$E$43="Non endémique"," ", IF(COUNTRY_INFO!B31=0," ",COUNTRY_INFO!B31)) -> Kayanza | C31: =IF(INTRO!$E$43="Non endémique"," ", IF(COUNTRY_INFO!C31=0," ",COUNTRY_INFO!C31)) -> Musema | D31: =IF(INTRO!$E$43="Non endémique", 0, IF(COUNTRY_INFO!$K31>0, IF(COUNTRY_INFO!$K31=4, 0, IF(COUNTRY_INFO!$K31=1, COUNTRY_INFO!$F31*0.33, IF(COUNTRY_INFO!$K31=2, COUNTRY_INFO!$F31*0.5, COUNTRY_INFO!$F31))), 0)) -> 0 | E31: =IF(INTRO!$E$43="Non endémique", 0, IF(COUNTRY_INFO!$K31>0, IF(COUNTRY_INFO!$K31=4, 0, IF(COUNTRY_INFO!$K31=1, 0, IF(COUNTRY_INFO!$K31=2, COUNTRY_INFO!$G31*0.2, COUNTRY_INFO!$G31))), 0)) -> 0 | F31: 0 | G31: =IF(INTRO!$E$43="Non endémique", "Non requis", COUNTRY_INFO!S31) -> 0 | I31: =IF($D31=0,0,IF(AND($G31>0,$H31<>"Oui"),D31,IF(AND($G31>0,$H31="Oui"),COUNTRY_INFO!$F31,0))) -> 0 | K31: 0 | L31: 0 | M31: 0 | N31: 0 | O31: 0 | Q31: 0 | R31: 0
A32: =IF(INTRO!$E$43="Non endémique"," ", IF(COUNTRY_INFO!A32=0," ",COUNTRY_INFO!A32)) -> Burundi | B32: =IF(INTRO!$E$43="Non endémique"," ", IF(COUNTRY_INFO!B32=0," ",COUNTRY_INFO!B32)) -> Kirundo | C32: =IF(INTRO!$E$43="Non endémique"," ", IF(COUNTRY_INFO!C32=0," ",COUNTRY_INFO!C32)) -> Busoni | D32: =IF(INTRO!$E$43="Non endémique", 0, IF(COUNTRY_INFO!$K32>0, IF(COUNTRY_INFO!$K32=4, 0, IF(COUNTRY_INFO!$K32=1, COUNTRY_INFO!$F32*0.33, IF(COUNTRY_INFO!$K32=2, COUNTRY_INFO!$F32*0.5, COUNTRY_INFO!$F32))), 0)) -> 16352.49 | E32: =IF(INTRO!$E$43="Non endémique", 0, IF(COUNTRY_INFO!$K32>0, IF(COUNTRY_INFO!$K32=4, 0, IF(COUNTRY_INFO!$K32=1, 0, IF(COUNTRY_INFO!$K32=2, COUNTRY_INFO!$G32*0.2, COUNTRY_INFO!$G32))), 0)) -> 0 | F32: 16352.49 | G32: =IF(INTRO!$E$43="Non endémique", "Non requis", COUNTRY_INFO!S32) -> 1 | H32: Oui | I32: =IF($D32=0,0,IF(AND($G32>0,$H32<>"Oui"),D32,IF(AND($G32>0,$H32="Oui"),COUNTRY_INFO!$F32,0))) -> 49553 | K32: 0 | L32: 49553 | M32: 123882.5 | N32: 0 | O32: 123882.5 | Q32: 123882.5 | R32: 124
A33: =IF(INTRO!$E$43="Non endémique"," ", IF(COUNTRY_INFO!A33=0," ",COUNTRY_INFO!A33)) -> Burundi | B33: =IF(INTRO!$E$43="Non endémique"," ", IF(COUNTRY_INFO!B33=0," ",COUNTRY_INFO!B33)) -> Kirundo | C33: =IF(INTRO!$E$43="Non endémique"," ", IF(COUNTRY_INFO!C33=0," ",COUNTRY_INFO!C33)) -> Kirundo | D33: =IF(INTRO!$E$43="Non endémique", 0, IF(COUNTRY_INFO!$K33>0, IF(COUNTRY_INFO!$K33=4, 0, IF(COUNTRY_INFO!$K33=1, COUNTRY_INFO!$F33*0.33, IF(COUNTRY_INFO!$K33=2, COUNTRY_INFO!$F33*0.5, COUNTRY_INFO!$F33))), 0)) -> 20858.31 | E33: =IF(INTRO!$E$43="Non endémique", 0, IF(COUNTRY_INFO!$K33>0, IF(COUNTRY_INFO!$K33=4, 0, IF(COUNTRY_INFO!$K33=1, 0, IF(COUNTRY_INFO!$K33=2, COUNTRY_INFO!$G33*0.2, COUNTRY_INFO!$G33))), 0)) -> 0 | F33: 20858.31 | G33: =IF(INTRO!$E$43="Non endémique", "Non requis", COUNTRY_INFO!S33) -> 1 | H33: Oui | I33: =IF($D33=0,0,IF(AND($G33>0,$H33<>"Oui"),D33,IF(AND($G33>0,$H33="Oui"),COUNTRY_INFO!$F33,0))) -> 63207 | K33: 0 | L33: 63207 | M33: 158017.5 | N33: 0 | O33: 158017.5 | Q33: 158017.5 | R33: 159
A34: =IF(INTRO!$E$43="Non endémique"," ", IF(COUNTRY_INFO!A34=0," ",COUNTRY_INFO!A34)) -> Burundi | B34: =IF(INTRO!$E$43="Non endémique"," ", IF(COUNTRY_INFO!B34=0," ",COUNTRY_INFO!B34)) -> Kirundo | C34: =IF(INTRO!$E$43="Non endémique"," ", IF(COUNTRY_INFO!C34=0," ",COUNTRY_INFO!C34)) -> Mukenke | D34: =IF(INTRO!$E$43="Non endémique", 0, IF(COUNTRY_INFO!$K34>0, IF(COUNTRY_INFO!$K34=4, 0, IF(COUNTRY_INFO!$K34=1, COUNTRY_INFO!$F34*0.33, IF(COUNTRY_INFO!$K34=2, COUNTRY_INFO!$F34*0.5, COUNTRY_INFO!$F34))), 0)) -> 15336.09 | E34: =IF(INTRO!$E$43="Non endémique", 0, IF(COUNTRY_INFO!$K34>0, IF(COUNTRY_INFO!$K34=4, 0, IF(COUNTRY_INFO!$K34=1, 0, IF(COUNTRY_INFO!$K34=2, COUNTRY_INFO!$G34*0.2, COUNTRY_INFO!$G34))), 0)) -> 0 | F34: 15336.09 | G34: =IF(INTRO!$E$43="Non endémique", "Non requis", COUNTRY_INFO!S34) -> 1 | H34: Oui | I34: =IF($D34=0,0,IF(AND($G34>0,$H34<>"Oui"),D34,IF(AND($G34>0,$H34="Oui"),COUNTRY_INFO!$F34,0))) -> 46473 | K34: 0 | L34: 46473 | M34: 116182.5 | N34: 0 | O34: 116182.5 | Q34: 116182.5 | R34: 117
A35: =IF(INTRO!$E$43="Non endémique"," ", IF(COUNTRY_INFO!A35=0," ",COUNTRY_INFO!A35)) -> Burundi | B35: =IF(INTRO!$E$43="Non endémique"," ", IF(COUNTRY_INFO!B35=0," ",COUNTRY_INFO!B35)) -> Kirundo | C35: =IF(INTRO!$E$43="Non endémique"," ", IF(COUNTRY_INFO!C35=0," ",COUNTRY_INFO!C35)) -> Vumbi | D35: =IF(INTRO!$E$43="Non endémique", 0, IF(COUNTRY_INFO!$K35>0, IF(COUNTRY_INFO!$K35=4, 0, IF(COUNTRY_INFO!$K35=1, COUNTRY_INFO!$F35*0.33, IF(COUNTRY_INFO!$K35=2, COUNTRY_INFO!$F35*0.5, COUNTRY_INFO!$F35))), 0)) -> 19387.5 | E35: =IF(INTRO!$E$43="Non endémique", 0, IF(COUNTRY_INFO!$K35>0, IF(COUNTRY_INFO!$K35=4, 0, IF(COUNTRY_INFO!$K35=1, 0, IF(COUNTRY_INFO!$K35=2, COUNTRY_INFO!$G35*0.2, COUNTRY_INFO!$G35))), 0)) -> 0 | F35: 19387.5 | G35: =IF(INTRO!$E$43="Non endémique", "Non requis", COUNTRY_INFO!S35) -> 1 | H35: Oui | I35: =IF($D35=0,0,IF(AND($G35>0,$H35<>"Oui"),D35,IF(AND($G35>0,$H35="Oui"),COUNTRY_INFO!$F35,0))) -> 58750 | K35: 0 | L35: 58750 | M35: 146875 | N35: 0 | O35: 146875 | Q35: 146875 | R35: 147
A36: =IF(INTRO!$E$43="Non endémique"," ", IF(COUNTRY_INFO!A36=0," ",COUNTRY_INFO!A36)) -> Burundi | B36: =IF(INTRO!$E$43="Non endémique"," ", IF(COUNTRY_INFO!B36=0," ",COUNTRY_INFO!B36)) -> Makamba | C36: =IF(INTRO!$E$43="Non endémique"," ", IF(COUNTRY_INFO!C36=0," ",COUNTRY_INFO!C36)) -> Makamba | D36: =IF(INTRO!$E$43="Non endémique", 0, IF(COUNTRY_INFO!$K36>0, IF(COUNTRY_INFO!$K36=4, 0, IF(COUNTRY_INFO!$K36=1, COUNTRY_INFO!$F36*0.33, IF(COUNTRY_INFO!$K36=2, COUNTRY_INFO!$F36*0.5, COUNTRY_INFO!$F36))), 0)) -> 30282.78 | E36: =IF(INTRO!$E$43="Non endémique", 0, IF(COUNTRY_INFO!$K36>0, IF(COUNTRY_INFO!$K36=4, 0, IF(COUNTRY_INFO!$K36=1, 0, IF(COUNTRY_INFO!$K36=2, COUNTRY_INFO!$G36*0.2, COUNTRY_INFO!$G36))), 0)) -> 0 | F36: 30282.78 | G36: =IF(INTRO!$E$43="Non endémique", "Non requis", COUNTRY_INFO!S36) -> 1 | H36: Oui | I36: =IF($D36=0,0,IF(AND($G36>0,$H36<>"Oui"),D36,IF(AND($G36>0,$H36="Oui"),COUNTRY_INFO!$F36,0))) -> 91766 | K36: 0 | L36: 91766 | M36: 229415 | N36: 0 | O36: 229415 | Q36: 229415 | R36: 230
A37: =IF(INTRO!$E$43="Non endémique"," ", IF(COUNTRY_INFO!A37=0," ",COUNTRY_INFO!A37)) -> Burundi | B37: =IF(INTRO!$E$43="Non endémique"," ", IF(COUNTRY_INFO!B37=0," ",COUNTRY_INFO!B37)) -> Makamba | C37: =IF(INTRO!$E$43="Non endémique"," ", IF(COUNTRY_INFO!C37=0," ",COUNTRY_INFO!C37)) -> Nyanza Lac | D37: =IF(INTRO!$E$43="Non endémique", 0, IF(COUNTRY_INFO!$K37>0, IF(COUNTRY_INFO!$K37=4, 0, IF(COUNTRY_INFO!$K37=1, COUNTRY_INFO!$F37*0.33, IF(COUNTRY_INFO!$K37=2, COUNTRY_INFO!$F37*0.5, COUNTRY_INFO!$F37))), 0)) -> 52108.5 | E37: =IF(INTRO!$E$43="Non endémique", 0, IF(COUNTRY_INFO!$K37>0, IF(COUNTRY_INFO!$K37=4, 0, IF(COUNTRY_INFO!$K37=1, 0, IF(COUNTRY_INFO!$K37=2, COUNTRY_INFO!$G37*0.2, COUNTRY_INFO!$G37))), 0)) -> 43248.2 | F37: 95356.7 | G37: =IF(INTRO!$E$43="Non endémique", "Non requis", COUNTRY_INFO!S37) -> 1 | H37: Oui | I37: =IF($D37=0,0,IF(AND($G37>0,$H37<>"Oui"),D37,IF(AND($G37>0,$H37="Oui"),COUNTRY_INFO!$F37,0))) -> 104217 | K37: 43248.2 | L37: 147465.2 | M37: 260542.5 | N37: 129744.6 | O37: 260542.5 | Q37: 260542.5 | R37: 261
A38: =IF(INTRO!$E$43="Non endémique"," ", IF(COUNTRY_INFO!A38=0," ",COUNTRY_INFO!A38)) -> Burundi | B38: =IF(INTRO!$E$43="Non endémique"," ", IF(COUNTRY_INFO!B38=0," ",COUNTRY_INFO!B38)) -> Muramvya | C38: =IF(INTRO!$E$43="Non endémique"," ", IF(COUNTRY_INFO!C38=0," ",COUNTRY_INFO!C38)) -> Muramvya | D38: =IF(INTRO!$E$43="Non endémique", 0, IF(COUNTRY_INFO!$K38>0, IF(COUNTRY_INFO!$K38=4, 0, IF(COUNTRY_INFO!$K38=1, COUNTRY_INFO!$F38*0.33, IF(COUNTRY_INFO!$K38=2, COUNTRY_INFO!$F38*0.5, COUNTRY_INFO!$F38))), 0)) -> 0 | E38: =IF(INTRO!$E$43="Non endémique", 0, IF(COUNTRY_INFO!$K38>0, IF(COUNTRY_INFO!$K38=4, 0, IF(COUNTRY_INFO!$K38=1, 0, IF(COUNTRY_INFO!$K38=2, COUNTRY_INFO!$G38*0.2, COUNTRY_INFO!$G38))), 0)) -> 0 | F38: 0 | G38: =IF(INTRO!$E$43="Non endémique", "Non requis", COUNTRY_INFO!S38) -> 0 | I38: =IF($D38=0,0,IF(AND($G38>0,$H38<>"Oui"),D38,IF(AND($G38>0,$H38="Oui"),COUNTRY_INFO!$F38,0))) -> 0 | K38: 0 | L38: 0 | M38: 0 | N38: 0 | O38: 0 | Q38: 0 | R38: 0
A39: =IF(INTRO!$E$43="Non endémique"," ", IF(COUNTRY_INFO!A39=0," ",COUNTRY_INFO!A39)) -> Burundi | B39: =IF(INTRO!$E$43="Non endémique"," ", IF(COUNTRY_INFO!B39=0," ",COUNTRY_INFO!B39)) -> Muramvya | C39: =IF(INTRO!$E$43="Non endémique"," ", IF(COUNTRY_INFO!C39=0," ",COUNTRY_INFO!C39)) -> Kiganda | D39: =IF(INTRO!$E$43="Non endémique", 0, IF(COUNTRY_INFO!$K39>0, IF(COUNTRY_INFO!$K39=4, 0, IF(COUNTRY_INFO!$K39=1, COUNTRY_INFO!$F39*0.33, IF(COUNTRY_INFO!$K39=2, COUNTRY_INFO!$F39*0.5, COUNTRY_INFO!$F39))), 0)) -> 0 | E39: =IF(INTRO!$E$43="Non endémique", 0, IF(COUNTRY_INFO!$K39>0, IF(COUNTRY_INFO!$K39=4, 0, IF(COUNTRY_INFO!$K39=1, 0, IF(COUNTRY_INFO!$K39=2, COUNTRY_INFO!$G39*0.2, COUNTRY_INFO!$G39))), 0)) -> 0 | F39: 0 | G39: =IF(INTRO!$E$43="Non endémique", "Non requis", COUNTRY_INFO!S39) -> 0 | I39: =IF($D39=0,0,IF(AND($G39>0,$H39<>"Oui"),D39,IF(AND($G39>0,$H39="Oui"),COUNTRY_INFO!$F39,0))) -> 0 | K39: 0 | L39: 0 | M39: 0 | N39: 0 | O39: 0 | Q39: 0 | R39: 0
A40: =IF(INTRO!$E$43="Non endémique"," ", IF(COUNTRY_INFO!A40=0," ",COUNTRY_INFO!A40)) -> Burundi | B40: =IF(INTRO!$E$43="Non endémique"," ", IF(COUNTRY_INFO!B40=0," ",COUNTRY_INFO!B40)) -> Muyinga | C40: =IF(INTRO!$E$43="Non endémique"," ", IF(COUNTRY_INFO!C40=0," ",COUNTRY_INFO!C40)) -> Gashoho | D40: =IF(INTRO!$E$43="Non endémique", 0, IF(COUNTRY_INFO!$K40>0, IF(COUNTRY_INFO!$K40=4, 0, IF(COUNTRY_INFO!$K40=1, COUNTRY_INFO!$F40*0.33, IF(COUNTRY_INFO!$K40=2, COUNTRY_INFO!$F40*0.5, COUNTRY_INFO!$F40))), 0)) -> 0 | E40: =IF(INTRO!$E$43="Non endémique", 0, IF(COUNTRY_INFO!$K40>0, IF(COUNTRY_INFO!$K40=4, 0, IF(COUNTRY_INFO!$K40=1, 0, IF(COUNTRY_INFO!$K40=2, COUNTRY_INFO!$G40*0.2, COUNTRY_INFO!$G40))), 0)) -> 0 | F40: 0 | G40: =IF(INTRO!$E$43="Non endémique", "Non requis", COUNTRY_INFO!S40) -> 0 | I40: =IF($D40=0,0,IF(AND($G40>0,$H40<>"Oui"),D40,IF(AND($G40>0,$H40="Oui"),COUNTRY_INFO!$F40,0))) -> 0 | K40: 0 | L40: 0 | M40: 0 | N40: 0 | O40: 0 | Q40: 0 | R40: 0
A41: =IF(INTRO!$E$43="Non endémique"," ", IF(COUNTRY_INFO!A41=0," ",COUNTRY_INFO!A41)) -> Burundi | B41: =IF(INTRO!$E$43="Non endémique"," ", IF(COUNTRY_INFO!B41=0," ",COUNTRY_INFO!B41)) -> Muyinga | C41: =IF(INTRO!$E$43="Non endémique"," ", IF(COUNTRY_INFO!C41=0," ",COUNTRY_INFO!C41)) -> Giteranyi | D41: =IF(INTRO!$E$43="Non endémique", 0, IF(COUNTRY_INFO!$K41>0, IF(COUNTRY_INFO!$K41=4, 0, IF(COUNTRY_INFO!$K41=1, COUNTRY_INFO!$F41*0.33, IF(COUNTRY_INFO!$K41=2, COUNTRY_INFO!$F41*0.5, COUNTRY_INFO!$F41))), 0)) -> 0 | E41: =IF(INTRO!$E$43="Non endémique", 0, IF(COUNTRY_INFO!$K41>0, IF(COUNTRY_INFO!$K41=4, 0, IF(COUNTRY_INFO!$K41=1, 0, IF(COUNTRY_INFO!$K41=2, COUNTRY_INFO!$G41*0.2, COUNTRY_INFO!$G41))), 0)) -> 0 | F41: 0 | G41: =IF(INTRO!$E$43="Non endémique", "Non requis", COUNTRY_INFO!S41) -> 0 | I41: =IF($D41=0,0,IF(AND($G41>0,$H41<>"Oui"),D41,IF(AND($G41>0,$H41="Oui"),COUNTRY_INFO!$F41,0))) -> 0 | K41: 0 | L41: 0 | M41: 0 | N41: 0 | O41: 0 | Q41: 0 | R41: 0
A42: =IF(INTRO!$E$43="Non endémique"," ", IF(COUNTRY_INFO!A42=0," ",COUNTRY_INFO!A42)) -> Burundi | B42: =IF(INTRO!$E$43="Non endémique"," ", IF(COUNTRY_INFO!B42=0," ",COUNTRY_INFO!B42)) -> Muyinga | C42: =IF(INTRO!$E$43="Non endémique"," ", IF(COUNTRY_INFO!C42=0," ",COUNTRY_INFO!C42)) -> Muyinga | D42: =IF(INTRO!$E$43="Non endémique", 0, IF(COUNTRY_INFO!$K42>0, IF(COUNTRY_INFO!$K42=4, 0, IF(COUNTRY_INFO!$K42=1, COUNTRY_INFO!$F42*0.33, IF(COUNTRY_INFO!$K42=2, COUNTRY_INFO!$F42*0.5, COUNTRY_INFO!$F42))), 0)) -> 28020.3 | E42: =IF(INTRO!$E$43="Non endémique", 0, IF(COUNTRY_INFO!$K42>0, IF(COUNTRY_INFO!$K42=4, 0, IF(COUNTRY_INFO!$K42=1, 0, IF(COUNTRY_INFO!$K42=2, COUNTRY_INFO!$G42*0.2, COUNTRY_INFO!$G42))), 0)) -> 0 | F42: 28020.3 | G42: =IF(INTRO!$E$43="Non endémique", "Non requis", COUNTRY_INFO!S42) -> 1 | H42: Oui | I42: =IF($D42=0,0,IF(AND($G42>0,$H42<>"Oui"),D42,IF(AND($G42>0,$H42="Oui"),COUNTRY_INFO!$F42,0))) -> 84910 | K42: 0 | L42: 84910 | M42: 212275 | N42: 0 | O42: 212275 | Q42: 212275 | R42: 213
A43: =IF(INTRO!$E$43="Non endémique"," ", IF(COUNTRY_INFO!A43=0," ",COUNTRY_INFO!A43)) -> Burundi | B43: =IF(INTRO!$E$43="Non endémique"," ", IF(COUNTRY_INFO!B43=0," ",COUNTRY_INFO!B43)) -> Mwaro | C43: =IF(INTRO!$E$43="Non endémique"," ", IF(COUNTRY_INFO!C43=0," ",COUNTRY_INFO!C43)) -> Fota | D43: =IF(INTRO!$E$43="Non endémique", 0, IF(COUNTRY_INFO!$K43>0, IF(COUNTRY_INFO!$K43=4, 0, IF(COUNTRY_INFO!$K43=1, COUNTRY_INFO!$F43*0.33, IF(COUNTRY_INFO!$K43=2, COUNTRY_INFO!$F43*0.5, COUNTRY_INFO!$F43))), 0)) -> 0 | E43: =IF(INTRO!$E$43="Non endémique", 0, IF(COUNTRY_INFO!$K43>0, IF(COUNTRY_INFO!$K43=4, 0, IF(COUNTRY_INFO!$K43=1, 0, IF(COUNTRY_INFO!$K43=2, COUNTRY_INFO!$G43*0.2, COUNTRY_INFO!$G43))), 0)) -> 0 | F43: 0 | G43: =IF(INTRO!$E$43="Non endémique", "Non requis", COUNTRY_INFO!S43) -> 0 | I43: =IF($D43=0,0,IF(AND($G43>0,$H43<>"Oui"),D43,IF(AND($G43>0,$H43="Oui"),COUNTRY_INFO!$F43,0))) -> 0 | K43: 0 | L43: 0 | M43: 0 | N43: 0 | O43: 0 | Q43: 0 | R43: 0
A44: =IF(INTRO!$E$43="Non endémique"," ", IF(COUNTRY_INFO!A44=0," ",COUNTRY_INFO!A44)) -> Burundi | B44: =IF(INTRO!$E$43="Non endémique"," ", IF(COUNTRY_INFO!B44=0," ",COUNTRY_INFO!B44)) -> Mwaro | C44: =IF(INTRO!$E$43="Non endémique"," ", IF(COUNTRY_INFO!C44=0," ",COUNTRY_INFO!C44)) -> Kibumbu | D44: =IF(INTRO!$E$43="Non endémique", 0, IF(COUNTRY_INFO!$K44>0, IF(COUNTRY_INFO!$K44=4, 0, IF(COUNTRY_INFO!$K44=1, COUNTRY_INFO!$F44*0.33, IF(COUNTRY_INFO!$K44=2, COUNTRY_INFO!$F44*0.5, COUNTRY_INFO!$F44))), 0)) -> 0 | E44: =IF(INTRO!$E$43="Non endémique", 0, IF(COUNTRY_INFO!$K44>0, IF(COUNTRY_INFO!$K44=4, 0, IF(COUNTRY_INFO!$K44=1, 0, IF(COUNTRY_INFO!$K44=2, COUNTRY_INFO!$G44*0.2, COUNTRY_INFO!$G44))), 0)) -> 0 | F44: 0 | G44: =IF(INTRO!$E$43="Non endémique", "Non requis", COUNTRY_INFO!S44) -> 0 | I44: =IF($D44=0,0,IF(AND($G44>0,$H44<>"Oui"),D44,IF(AND($G44>0,$H44="Oui"),COUNTRY_INFO!$F44,0))) -> 0 | K44: 0 | L44: 0 | M44: 0 | N44: 0 | O44: 0 | Q44: 0 | R44: 0
A45: =IF(INTRO!$E$43="Non endémique"," ", IF(COUNTRY_INFO!A45=0," ",COUNTRY_INFO!A45)) -> Burundi | B45: =IF(INTRO!$E$43="Non endémique"," ", IF(COUNTRY_INFO!B45=0," ",COUNTRY_INFO!B45)) -> Ngozi | C45: =IF(INTRO!$E$43="Non endémique"," ", IF(COUNTRY_INFO!C45=0," ",COUNTRY_INFO!C45)) -> Buye | D45: =IF(INTRO!$E$43="Non endémique", 0, IF(COUNTRY_INFO!$K45>0, IF(COUNTRY_INFO!$K45=4, 0, IF(COUNTRY_INFO!$K45=1, COUNTRY_INFO!$F45*0.33, IF(COUNTRY_INFO!$K45=2, COUNTRY_INFO!$F45*0.5, COUNTRY_INFO!$F45))), 0)) -> 0 | E45: =IF(INTRO!$E$43="Non endémique", 0, IF(COUNTRY_INFO!$K45>0, IF(COUNTRY_INFO!$K45=4, 0, IF(COUNTRY_INFO!$K45=1, 0, IF(COUNTRY_INFO!$K45=2, COUNTRY_INFO!$G45*0.2, COUNTRY_INFO!$G45))), 0)) -> 0 | F45: 0 | G45: =IF(INTRO!$E$43="Non endémique", "Non requis", COUNTRY_INFO!S45) -> 0 | I45: =IF($D45=0,0,IF(AND($G45>0,$H45<>"Oui"),D45,IF(AND($G45>0,$H45="Oui"),COUNTRY_INFO!$F45,0))) -> 0 | K45: 0 | L45: 0 | M45: 0 | N45: 0 | O45: 0 | Q45: 0 | R45: 0
A46: =IF(INTRO!$E$43="Non endémique"," ", IF(COUNTRY_INFO!A46=0," ",COUNTRY_INFO!A46)) -> Burundi | B46: =IF(INTRO!$E$43="Non endémique"," ", IF(COUNTRY_INFO!B46=0," ",COUNTRY_INFO!B46)) -> Ngozi | C46: =IF(INTRO!$E$43="Non endémique"," ", IF(COUNTRY_INFO!C46=0," ",COUNTRY_INFO!C46)) -> Kiremba | D46: =IF(INTRO!$E$43="Non endémique", 0, IF(COUNTRY_INFO!$K46>0, IF(COUNTRY_INFO!$K46=4, 0, IF(COUNTRY_INFO!$K46=1, COUNTRY_INFO!$F46*0.33, IF(COUNTRY_INFO!$K46=2, COUNTRY_INFO!$F46*0.5, COUNTRY_INFO!$F46))), 0)) -> 0 | E46: =IF(INTRO!$E$43="Non endémique", 0, IF(COUNTRY_INFO!$K46>0, IF(COUNTRY_INFO!$K46=4, 0, IF(COUNTRY_INFO!$K46=1, 0, IF(COUNTRY_INFO!$K46=2, COUNTRY_INFO!$G46*0.2, COUNTRY_INFO!$G46))), 0)) -> 0 | F46: 0 | G46: =IF(INTRO!$E$43="Non endémique", "Non requis", COUNTRY_INFO!S46) -> 0 | I46: =IF($D46=0,0,IF(AND($G46>0,$H46<>"Oui"),D46,IF(AND($G46>0,$H46="Oui"),COUNTRY_INFO!$F46,0))) -> 0 | K46: 0 | L46: 0 | M46: 0 | N46: 0 | O46: 0 | Q46: 0 | R46: 0
A47: =IF(INTRO!$E$43="Non endémique"," ", IF(COUNTRY_INFO!A47=0," ",COUNTRY_INFO!A47)) -> Burundi | B47: =IF(INTRO!$E$43="Non endémique"," ", IF(COUNTRY_INFO!B47=0," ",COUNTRY_INFO!B47)) -> Ngozi | C47: =IF(INTRO!$E$43="Non endémique"," ", IF(COUNTRY_INFO!C47=0," ",COUNTRY_INFO!C47)) -> Ngozi | D47: =IF(INTRO!$E$43="Non endémique", 0, IF(COUNTRY_INFO!$K47>0, IF(COUNTRY_INFO!$K47=4, 0, IF(COUNTRY_INFO!$K47=1, COUNTRY_INFO!$F47*0.33, IF(COUNTRY_INFO!$K47=2, COUNTRY_INFO!$F47*0.5, COUNTRY_INFO!$F47))), 0)) -> 0 | E47: =IF(INTRO!$E$43="Non endémique", 0, IF(COUNTRY_INFO!$K47>0, IF(COUNTRY_INFO!$K47=4, 0, IF(COUNTRY_INFO!$K47=1, 0, IF(COUNTRY_INFO!$K47=2, COUNTRY_INFO!$G47*0.2, COUNTRY_INFO!$G47))), 0)) -> 0 | F47: 0 | G47: =IF(INTRO!$E$43="Non endémique", "Non requis", COUNTRY_INFO!S47) -> 0 | I47: =IF($D47=0,0,IF(AND($G47>0,$H47<>"Oui"),D47,IF(AND($G47>0,$H47="Oui"),COUNTRY_INFO!$F47,0))) -> 0 | K47: 0 | L47: 0 | M47: 0 | N47: 0 | O47: 0 | Q47: 0 | R47: 0
A48: =IF(INTRO!$E$43="Non endémique"," ", IF(COUNTRY_INFO!A48=0," ",COUNTRY_INFO!A48)) -> Burundi | B48: =IF(INTRO!$E$43="Non endémique"," ", IF(COUNTRY_INFO!B48=0," ",COUNTRY_INFO!B48)) -> Rumonge | C48: =IF(INTRO!$E$43="Non endémique"," ", IF(COUNTRY_INFO!C48=0," ",COUNTRY_INFO!C48)) -> Bugarama | D48: =IF(INTRO!$E$43="Non endémique", 0, IF(COUNTRY_INFO!$K48>0, IF(COUNTRY_INFO!$K48=4, 0, IF(COUNTRY_INFO!$K48=1, COUNTRY_INFO!$F48*0.33, IF(COUNTRY_INFO!$K48=2, COUNTRY_INFO!$F48*0.5, COUNTRY_INFO!$F48))), 0)) -> 18111.39 | E48: =IF(INTRO!$E$43="Non endémique", 0, IF(COUNTRY_INFO!$K48>0, IF(COUNTRY_INFO!$K48=4, 0, IF(COUNTRY_INFO!$K48=1, 0, IF(COUNTRY_INFO!$K48=2, COUNTRY_INFO!$G48*0.2, COUNTRY_INFO!$G48))), 0)) -> 0 | F48: 18111.39 | G48: =IF(INTRO!$E$43="Non endémique", "Non requis", COUNTRY_INFO!S48) -> 1 | H48: Oui | I48: =IF($D48=0,0,IF(AND($G48>0,$H48<>"Oui"),D48,IF(AND($G48>0,$H48="Oui"),COUNTRY_INFO!$F48,0))) -> 54883 | K48: 0 | L48: 54883 | M48: 137207.5 | N48: 0 | O48: 137207.5 | Q48: 137207.5 | R48: 138
A49: =IF(INTRO!$E$43="Non endémique"," ", IF(COUNTRY_INFO!A49=0," ",COUNTRY_INFO!A49)) -> Burundi | B49: =IF(INTRO!$E$43="Non endémique"," ", IF(COUNTRY_INFO!B49=0," ",COUNTRY_INFO!B49)) -> Rumonge | C49: =IF(INTRO!$E$43="Non endémique"," ", IF(COUNTRY_INFO!C49=0," ",COUNTRY_INFO!C49)) -> Rumonge | D49: =IF(INTRO!$E$43="Non endémique", 0, IF(COUNTRY_INFO!$K49>0, IF(COUNTRY_INFO!$K49=4, 0, IF(COUNTRY_INFO!$K49=1, COUNTRY_INFO!$F49*0.33, IF(COUNTRY_INFO!$K49=2, COUNTRY_INFO!$F49*0.5, COUNTRY_INFO!$F49))), 0)) -> 28920.21 | E49: =IF(INTRO!$E$43="Non endémique", 0, IF(COUNTRY_INFO!$K49>0, IF(COUNTRY_INFO!$K49=4, 0, IF(COUNTRY_INFO!$K49=1, 0, IF(COUNTRY_INFO!$K49=2, COUNTRY_INFO!$G49*0.2, COUNTRY_INFO!$G49))), 0)) -> 0 | F49: 28920.21 | G49: =IF(INTRO!$E$43="Non endémique", "Non requis", COUNTRY_INFO!S49) -> 1 | H49: Oui | I49: =IF($D49=0,0,IF(AND($G49>0,$H49<>"Oui"),D49,IF(AND($G49>0,$H49="Oui"),COUNTRY_INFO!$F49,0))) -> 87637 | K49: 0 | L49: 87637 | M49: 219092.5 | N49: 0 | O49: 219092.5 | Q49: 219092.5 | R49: 220
A50: =IF(INTRO!$E$43="Non endémique"," ", IF(COUNTRY_INFO!A50=0," ",COUNTRY_INFO!A50)) -> Burundi | B50: =IF(INTRO!$E$43="Non endémique"," ", IF(COUNTRY_INFO!B50=0," ",COUNTRY_INFO!B50)) -> Rutana | C50: =IF(INTRO!$E$43="Non endémique"," ", IF(COUNTRY_INFO!C50=0," ",COUNTRY_INFO!C50)) -> Gihofi | D50: =IF(INTRO!$E$43="Non endémique", 0, IF(COUNTRY_INFO!$K50>0, IF(COUNTRY_INFO!$K50=4, 0, IF(COUNTRY_INFO!$K50=1, COUNTRY_INFO!$F50*0.33, IF(COUNTRY_INFO!$K50=2, COUNTRY_INFO!$F50*0.5, COUNTRY_INFO!$F50))), 0)) -> 24162.93 | E50: =IF(INTRO!$E$43="Non endémique", 0, IF(COUNTRY_INFO!$K50>0, IF(COUNTRY_INFO!$K50=4, 0, IF(COUNTRY_INFO!$K50=1, 0, IF(COUNTRY_INFO!$K50=2, COUNTRY_INFO!$G50*0.2, COUNTRY_INFO!$G50))), 0)) -> 0 | F50: 24162.93 | G50: =IF(INTRO!$E$43="Non endémique", "Non requis", COUNTRY_INFO!S50) -> 1 | H50: Oui | I50: =IF($D50=0,0,IF(AND($G50>0,$H50<>"Oui"),D50,IF(AND($G50>0,$H50="Oui"),COUNTRY_INFO!$F50,0))) -> 73221 | K50: 0 | L50: 73221 | M50: 183052.5 | N50: 0 | O50: 183052.5 | Q50: 183052.5 | R50: 184
A51: =IF(INTRO!$E$43="Non endémique"," ", IF(COUNTRY_INFO!A51=0," ",COUNTRY_INFO!A51)) -> Burundi | B51: =IF(INTRO!$E$43="Non endémique"," ", IF(COUNTRY_INFO!B51=0," ",COUNTRY_INFO!B51)) -> Rutana | C51: =IF(INTRO!$E$43="Non endémique"," ", IF(COUNTRY_INFO!C51=0," ",COUNTRY_INFO!C51)) -> Rutana | D51: =IF(INTRO!$E$43="Non endémique", 0, IF(COUNTRY_INFO!$K51>0, IF(COUNTRY_INFO!$K51=4, 0, IF(COUNTRY_INFO!$K51=1, COUNTRY_INFO!$F51*0.33, IF(COUNTRY_INFO!$K51=2, COUNTRY_INFO!$F51*0.5, COUNTRY_INFO!$F51))), 0)) -> 18303.12 | E51: =IF(INTRO!$E$43="Non endémique", 0, IF(COUNTRY_INFO!$K51>0, IF(COUNTRY_INFO!$K51=4, 0, IF(COUNTRY_INFO!$K51=1, 0, IF(COUNTRY_INFO!$K51=2, COUNTRY_INFO!$G51*0.2, COUNTRY_INFO!$G51))), 0)) -> 0 | F51: 18303.12 | G51: =IF(INTRO!$E$43="Non endémique", "Non requis", COUNTRY_INFO!S51) -> 1 | H51: Oui | I51: =IF($D51=0,0,IF(AND($G51>0,$H51<>"Oui"),D51,IF(AND($G51>0,$H51="Oui"),COUNTRY_INFO!$F51,0))) -> 55464 | K51: 0 | L51: 55464 | M51: 138660 | N51: 0 | O51: 138660 | Q51: 138660 | R51: 139
A52: =IF(INTRO!$E$43="Non endémique"," ", IF(COUNTRY_INFO!A52=0," ",COUNTRY_INFO!A52)) -> Burundi | B52: =IF(INTRO!$E$43="Non endémique"," ", IF(COUNTRY_INFO!B52=0," ",COUNTRY_INFO!B52)) -> Ruyigi | C52: =IF(INTRO!$E$43="Non endémique"," ", IF(COUNTRY_INFO!C52=0," ",COUNTRY_INFO!C52)) -> Butezi | D52: =IF(INTRO!$E$43="Non endémique", 0, IF(COUNTRY_INFO!$K52>0, IF(COUNTRY_INFO!$K52=4, 0, IF(COUNTRY_INFO!$K52=1, COUNTRY_INFO!$F52*0.33, IF(COUNTRY_INFO!$K52=2, COUNTRY_INFO!$F52*0.5, COUNTRY_INFO!$F52))), 0)) -> 13541.55 | E52: =IF(INTRO!$E$43="Non endémique", 0, IF(COUNTRY_INFO!$K52>0, IF(COUNTRY_INFO!$K52=4, 0, IF(COUNTRY_INFO!$K52=1, 0, IF(COUNTRY_INFO!$K52=2, COUNTRY_INFO!$G52*0.2, COUNTRY_INFO!$G52))), 0)) -> 0 | F52: 13541.55 | G52: =IF(INTRO!$E$43="Non endémique", "Non requis", COUNTRY_INFO!S52) -> 1 | H52: Oui | I52: =IF($D52=0,0,IF(AND($G52>0,$H52<>"Oui"),D52,IF(AND($G52>0,$H52="Oui"),COUNTRY_INFO!$F52,0))) -> 41035 | K52: 0 | L52: 41035 | M52: 102587.5 | N52: 0 | O52: 102587.5 | Q52: 102587.5 | R52: 103
A53: =IF(INTRO!$E$43="Non endémique"," ", IF(COUNTRY_INFO!A53=0," ",COUNTRY_INFO!A53)) -> Burundi | B53: =IF(INTRO!$E$43="Non endémique"," ", IF(COUNTRY_INFO!B53=0," ",COUNTRY_INFO!B53)) -> Ruyigi | C53: =IF(INTRO!$E$43="Non endémique"," ", IF(COUNTRY_INFO!C53=0," ",COUNTRY_INFO!C53)) -> Kinyinya | D53: =IF(INTRO!$E$43="Non endémique", 0, IF(COUNTRY_INFO!$K53>0, IF(COUNTRY_INFO!$K53=4, 0, IF(COUNTRY_INFO!$K53=1, COUNTRY_INFO!$F53*0.33, IF(COUNTRY_INFO!$K53=2, COUNTRY_INFO!$F53*0.5, COUNTRY_INFO!$F53))), 0)) -> 25602.06 | E53: =IF(INTRO!$E$43="Non endémique", 0, IF(COUNTRY_INFO!$K53>0, IF(COUNTRY_INFO!$K53=4, 0, IF(COUNTRY_INFO!$K53=1, 0, IF(COUNTRY_INFO!$K53=2, COUNTRY_INFO!$G53*0.2, COUNTRY_INFO!$G53))), 0)) -> 0 | F53: 25602.06 | G53: =IF(INTRO!$E$43="Non endémique", "Non requis", COUNTRY_INFO!S53) -> 1 | H53: Oui | I53: =IF($D53=0,0,IF(AND($G53>0,$H53<>"Oui"),D53,IF(AND($G53>0,$H53="Oui"),COUNTRY_INFO!$F53,0))) -> 77582 | K53: 0 | L53: 77582 | M53: 193955 | N53: 0 | O53: 193955 | Q53: 193955 | R53: 194
A54: =IF(INTRO!$E$43="Non endémique"," ", IF(COUNTRY_INFO!A54=0," ",COUNTRY_INFO!A54)) -> Burundi | B54: =IF(INTRO!$E$43="Non endémique"," ", IF(COUNTRY_INFO!B54=0," ",COUNTRY_INFO!B54)) -> Ruyigi | C54: =IF(INTRO!$E$43="Non endémique"," ", IF(COUNTRY_INFO!C54=0," ",COUNTRY_INFO!C54)) -> Ruyigi | D54: =IF(INTRO!$E$43="Non endémique", 0, IF(COUNTRY_INFO!$K54>0, IF(COUNTRY_INFO!$K54=4, 0, IF(COUNTRY_INFO!$K54=1, COUNTRY_INFO!$F54*0.33, IF(COUNTRY_INFO!$K54=2, COUNTRY_INFO!$F54*0.5, COUNTRY_INFO!$F54))), 0)) -> 0 | E54: =IF(INTRO!$E$43="Non endémique", 0, IF(COUNTRY_INFO!$K54>0, IF(COUNTRY_INFO!$K54=4, 0, IF(COUNTRY_INFO!$K54=1, 0, IF(COUNTRY_INFO!$K54=2, COUNTRY_INFO!$G54*0.2, COUNTRY_INFO!$G54))), 0)) -> 0 | F54: 0 | G54: =IF(INTRO!$E$43="Non endémique", "Non requis", COUNTRY_INFO!S54) -> 0 | I54: =IF($D54=0,0,IF(AND($G54>0,$H54<>"Oui"),D54,IF(AND($G54>0,$H54="Oui"),COUNTRY_INFO!$F54,0))) -> 0 | K54: 0 | L54: 0 | M54: 0 | N54: 0 | O54: 0 | Q54: 0 | R54: 0

Sheet IVM
A1: Ivermectine (IVM)
A2: Structure administrative, population ciblée par groupe d'âge, plan de traitement et information sur les comprimés
A4: TOTAL | D4: =SUM(D$9:D$1000) -> 1606922 | G4: =SUM(G$9:G$1000) -> 0 | H4: 1606922 | I4: 0 | J4: 1606922 | K4: 0 | L4: 4499381.6 | M4: 0 | N4: 4499381.6 | O4: 0 | P4: 4499381.6 | Q4: 9004
A6: Structure administrative du pays | E6: Plan de traitement | G6: Population cible | K6: Ivermectine (IVM)
A7: Pays | B7: Région/Département | C7: District | D7: Population nécessitant un traitement avec IVM | E7: FL | F7: Oncho | G7: FL | H7: Oncho | K7: FL uniquement | L7: Oncho uniquement | M7: FL+Oncho | N7: Total requis | O7: Reste en stock | P7: Comprimés devant être fournis | Q7: Flacons (3mg) 500 comprimés
H8: dans le district | I8: dans les village | J8: total
A9: =IF(INTRO!$E$39="Non endémique"," ",IF(COUNTRY_INFO!A9=0," ",COUNTRY_INFO!A9)) -> Burundi | B9: =IF(INTRO!$E$39="Non endémique"," ",IF(COUNTRY_INFO!B9=0," ",COUNTRY_INFO!B9)) -> Bubanza | C9: =IF(INTRO!$E$39="Non endémique"," ",IF(COUNTRY_INFO!C9=0," ",COUNTRY_INFO!C9)) -> Bubanza | D9: =IF(INTRO!$E$39="Non endémique",0,IF(INTRO!$E$39="Endémique mais pas de CP",IF(COUNTRY_INFO!$H9=1,COUNTRY_INFO!F9+COUNTRY_INFO!G9,0),IF(COUNTRY_INFO!$H9=1,COUNTRY_INFO!F9+COUNTRY_INFO!G9,IF(COUNTRY_INFO!$I9=1,IF(COUNTRY_INFO!M9>=(COUNTRY_INFO!F9+COUNTRY_INFO!G9),COUNTRY_INFO!F9+COUNTRY_INFO!G9,COUNTRY_INFO!$M9),0)))) -> 196043 | E9: =IF(AND(INTRO!$E$39="Non endémique",INTRO!$E$37="Non endémique"),"Non requis",IF(INTRO!$E$39="Non endémique","Traiter avec DEC",COUNTRY_INFO!P9)) -> 0 | F9: =IF(INTRO!$E$39<>"Non endémique",COUNTRY_INFO!Q9,"Non requis") -> 1 | G9: =IF(COUNTRY_INFO!H9=1, IF($E9=1,$D9, 0),0) -> 0 | H9: =IF(INTRO!$E$39<>"Endémique",0, IF(AND(COUNTRY_INFO!$I9=1,$F9<>0),IF(COUNTRY_INFO!M9>=(COUNTRY_INFO!F9+COUNTRY_INFO!G9),COUNTRY_INFO!F9+COUNTRY_INFO!G9,COUNTRY_INFO!$M9), 0)) -> 196043 | J9: =IF(I9=0,H9,IF(I9>H9,H9,I9)) -> 196043 | K9: =IF(G9<J9,0,IF($E9=1, (G9-J9)*2.8, 0)) -> 0 | L9: =IF($E9<$F9, J9*(F9-E9)*2.8, 0) -> 548920.4 | M9: =IF(AND($E9=1, $F9<>0), J9*2.8, 0) -> 0 | N9: =SUM(K9:M9) -> 548920.4 | P9: =IF($N9>$O9,$N9-$O9,0) -> 548920.4 | Q9: =ROUNDUP($N9/500,0) -> 1098
A10: =IF(INTRO!$E$39="Non endémique"," ",IF(COUNTRY_INFO!A10=0," ",COUNTRY_INFO!A10)) -> Burundi | B10: =IF(INTRO!$E$39="Non endémique"," ",IF(COUNTRY_INFO!B10=0," ",COUNTRY_INFO!B10)) -> Bubanza | C10: =IF(INTRO!$E$39="Non endémique"," ",IF(COUNTRY_INFO!C10=0," ",COUNTRY_INFO!C10)) -> Mpanda | D10: =IF(INTRO!$E$39="Non endémique",0,IF(INTRO!$E$39="Endémique mais pas de CP",IF(COUNTRY_INFO!$H10=1,COUNTRY_INFO!F10+COUNTRY_INFO!G10,0),IF(COUNTRY_INFO!$H10=1,COUNTRY_INFO!F10+COUNTRY_INFO!G10,IF(COUNTRY_INFO!$I10=1,IF(COUNTRY_INFO!M10>=(COUNTRY_INFO!F10+COUNTRY_INFO!G10),COUNTRY_INFO!F10+COUNTRY_INFO!G10,COUNTRY_INFO!$M10),0)))) -> 164257 | E10: =IF(AND(INTRO!$E$39="Non endémique",INTRO!$E$37="Non endémique"),"Non requis",IF(INTRO!$E$39="Non endémique","Traiter avec DEC",COUNTRY_INFO!P10)) -> 0 | F10: =IF(INTRO!$E$39<>"Non endémique",COUNTRY_INFO!Q10,"Non requis") -> 1 | G10: =IF(COUNTRY_INFO!H10=1, IF($E10=1,$D10, 0),0) -> 0 | H10: =IF(INTRO!$E$39<>"Endémique",0, IF(AND(COUNTRY_INFO!$I10=1,$F10<>0),IF(COUNTRY_INFO!M10>=(COUNTRY_INFO!F10+COUNTRY_INFO!G10),COUNTRY_INFO!F10+COUNTRY_INFO!G10,COUNTRY_INFO!$M10), 0)) -> 164257 | J10: 164257 | K10: 0 | L10: 459919.6 | M10: 0 | N10: 459919.6 | P10: 459919.6 | Q10: 920
A11: =IF(INTRO!$E$39="Non endémique"," ",IF(COUNTRY_INFO!A11=0," ",COUNTRY_INFO!A11)) -> Burundi | B11: =IF(INTRO!$E$39="Non endémique"," ",IF(COUNTRY_INFO!B11=0," ",COUNTRY_INFO!B11)) -> Bujumbura Mairie | C11: =IF(INTRO!$E$39="Non endémique"," ",IF(COUNTRY_INFO!C11=0," ",COUNTRY_INFO!C11)) -> Zone Nord | D11: =IF(INTRO!$E$39="Non endémique",0,IF(INTRO!$E$39="Endémique mais pas de CP",IF(COUNTRY_INFO!$H11=1,COUNTRY_INFO!F11+COUNTRY_INFO!G11,0),IF(COUNTRY_INFO!$H11=1,COUNTRY_INFO!F11+COUNTRY_INFO!G11,IF(COUNTRY_INFO!$I11=1,IF(COUNTRY_INFO!M11>=(COUNTRY_INFO!F11+COUNTRY_INFO!G11),COUNTRY_INFO!F11+COUNTRY_INFO!G11,COUNTRY_INFO!$M11),0)))) -> 0 | E11: =IF(AND(INTRO!$E$39="Non endémique",INTRO!$E$37="Non endémique"),"Non requis",IF(INTRO!$E$39="Non endémique","Traiter avec DEC",COUNTRY_INFO!P11)) -> 0 | F11: =IF(INTRO!$E$39<>"Non endémique",COUNTRY_INFO!Q11,"Non requis") -> 0 | G11: =IF(COUNTRY_INFO!H11=1, IF($E11=1,$D11, 0),0) -> 0 | H11: =IF(INTRO!$E$39<>"Endémique",0, IF(AND(COUNTRY_INFO!$I11=1,$F11<>0),IF(COUNTRY_INFO!M11>=(COUNTRY_INFO!F11+COUNTRY_INFO!G11),COUNTRY_INFO!F11+COUNTRY_INFO!G11,COUNTRY_INFO!$M11), 0)) -> 0 | J11: 0 | K11: 0 | L11: 0 | M11: 0 | N11: 0 | P11: 0 | Q11: 0
A12: =IF(INTRO!$E$39="Non endémique"," ",IF(COUNTRY_INFO!A12=0," ",COUNTRY_INFO!A12)) -> Burundi | B12: =IF(INTRO!$E$39="Non endémique"," ",IF(COUNTRY_INFO!B12=0," ",COUNTRY_INFO!B12)) -> Bujumbura Mairie | C12: =IF(INTRO!$E$39="Non endémique"," ",IF(COUNTRY_INFO!C12=0," ",COUNTRY_INFO!C12)) -> Zone centre | D12: =IF(INTRO!$E$39="Non endémique",0,IF(INTRO!$E$39="Endémique mais pas de CP",IF(COUNTRY_INFO!$H12=1,COUNTRY_INFO!F12+COUNTRY_INFO!G12,0),IF(COUNTRY_INFO!$H12=1,COUNTRY_INFO!F12+COUNTRY_INFO!G12,IF(COUNTRY_INFO!$I12=1,IF(COUNTRY_INFO!M12>=(COUNTRY_INFO!F12+COUNTRY_INFO!G12),COUNTRY_INFO!F12+COUNTRY_INFO!G12,COUNTRY_INFO!$M12),0)))) -> 0 | E12: =IF(AND(INTRO!$E$39="Non endémique",INTRO!$E$37="Non endémique"),"Non requis",IF(INTRO!$E$39="Non endémique","Traiter avec DEC",COUNTRY_INFO!P12)) -> 0 | F12: =IF(INTRO!$E$39<>"Non endémique",COUNTRY_INFO!Q12,"Non requis") -> 0 | G12: =IF(COUNTRY_INFO!H12=1, IF($E12=1,$D12, 0),0) -> 0 | H12: =IF(INTRO!$E$39<>"Endémique",0, IF(AND(COUNTRY_INFO!$I12=1,$F12<>0),IF(COUNTRY_INFO!M12>=(COUNTRY_INFO!F12+COUNTRY_INFO!G12),COUNTRY_INFO!F12+COUNTRY_INFO!G12,COUNTRY_INFO!$M12), 0)) -> 0 | J12: 0 | K12: 0 | L12: 0 | M12: 0 | N12: 0 | P12: 0 | Q12: 0
A13: =IF(INTRO!$E$39="Non endémique"," ",IF(COUNTRY_INFO!A13=0," ",COUNTRY_INFO!A13)) -> Burundi | B13: =IF(INTRO!$E$39="Non endémique"," ",IF(COUNTRY_INFO!B13=0," ",COUNTRY_INFO!B13)) -> Bujumbura Mairie | C13: =IF(INTRO!$E$39="Non endémique"," ",IF(COUNTRY_INFO!C13=0," ",COUNTRY_INFO!C13)) -> Zone Sud | D13: =IF(INTRO!$E$39="Non endémique",0,IF(INTRO!$E$39="Endémique mais pas de CP",IF(COUNTRY_INFO!$H13=1,COUNTRY_INFO!F13+COUNTRY_INFO!G13,0),IF(COUNTRY_INFO!$H13=1,COUNTRY_INFO!F13+COUNTRY_INFO!G13,IF(COUNTRY_INFO!$I13=1,IF(COUNTRY_INFO!M13>=(COUNTRY_INFO!F13+COUNTRY_INFO!G13),COUNTRY_INFO!F13+COUNTRY_INFO!G13,COUNTRY_INFO!$M13),0)))) -> 0 | E13: =IF(AND(INTRO!$E$39="Non endémique",INTRO!$E$37="Non endémique"),"Non requis",IF(INTRO!$E$39="Non endémique","Traiter avec DEC",COUNTRY_INFO!P13)) -> 0 | F13: =IF(INTRO!$E$39<>"Non endémique",COUNTRY_INFO!Q13,"Non requis") -> 0 | G13: =IF(COUNTRY_INFO!H13=1, IF($E13=1,$D13, 0),0) -> 0 | H13: =IF(INTRO!$E$39<>"Endémique",0, IF(AND(COUNTRY_INFO!$I13=1,$F13<>0),IF(COUNTRY_INFO!M13>=(COUNTRY_INFO!F13+COUNTRY_INFO!G13),COUNTRY_INFO!F13+COUNTRY_INFO!G13,COUNTRY_INFO!$M13), 0)) -> 0 | J13: 0 | K13: 0 | L13: 0 | M13: 0 | N13: 0 | P13: 0 | Q13: 0
A14: =IF(INTRO!$E$39="Non endémique"," ",IF(COUNTRY_INFO!A14=0," ",COUNTRY_INFO!A14)) -> Burundi | B14: =IF(INTRO!$E$39="Non endémique"," ",IF(COUNTRY_INFO!B14=0," ",COUNTRY_INFO!B14)) -> Bujumbura Rural | C14: =IF(INTRO!$E$39="Non endémique"," ",IF(COUNTRY_INFO!C14=0," ",COUNTRY_INFO!C14)) -> Kabezi | D14: =IF(INTRO!$E$39="Non endémique",0,IF(INTRO!$E$39="Endémique mais pas de CP",IF(COUNTRY_INFO!$H14=1,COUNTRY_INFO!F14+COUNTRY_INFO!G14,0),IF(COUNTRY_INFO!$H14=1,COUNTRY_INFO!F14+COUNTRY_INFO!G14,IF(COUNTRY_INFO!$I14=1,IF(COUNTRY_INFO!M14>=(COUNTRY_INFO!F14+COUNTRY_INFO!G14),COUNTRY_INFO!F14+COUNTRY_INFO!G14,COUNTRY_INFO!$M14),0)))) -> 0 | E14: =IF(AND(INTRO!$E$39="Non endémique",INTRO!$E$37="Non endémique"),"Non requis",IF(INTRO!$E$39="Non endémique","Traiter avec DEC",COUNTRY_INFO!P14)) -> 0 | F14: =IF(INTRO!$E$39<>"Non endémique",COUNTRY_INFO!Q14,"Non requis") -> 0 | G14: =IF(COUNTRY_INFO!H14=1, IF($E14=1,$D14, 0),0) -> 0 | H14: =IF(INTRO!$E$39<>"Endémique",0, IF(AND(COUNTRY_INFO!$I14=1,$F14<>0),IF(COUNTRY_INFO!M14>=(COUNTRY_INFO!F14+COUNTRY_INFO!G14),COUNTRY_INFO!F14+COUNTRY_INFO!G14,COUNTRY_INFO!$M14), 0)) -> 0 | J14: 0 | K14: 0 | L14: 0 | M14: 0 | N14: 0 | P14: 0 | Q14: 0
A15: =IF(INTRO!$E$39="Non endémique"," ",IF(COUNTRY_INFO!A15=0," ",COUNTRY_INFO!A15)) -> Burundi | B15: =IF(INTRO!$E$39="Non endémique"," ",IF(COUNTRY_INFO!B15=0," ",COUNTRY_INFO!B15)) -> Bujumbura Rural | C15: =IF(INTRO!$E$39="Non endémique"," ",IF(COUNTRY_INFO!C15=0," ",COUNTRY_INFO!C15)) -> Isale | D15: =IF(INTRO!$E$39="Non endémique",0,IF(INTRO!$E$39="Endémique mais pas de CP",IF(COUNTRY_INFO!$H15=1,COUNTRY_INFO!F15+COUNTRY_INFO!G15,0),IF(COUNTRY_INFO!$H15=1,COUNTRY_INFO!F15+COUNTRY_INFO!G15,IF(COUNTRY_INFO!$I15=1,IF(COUNTRY_INFO!M15>=(COUNTRY_INFO!F15+COUNTRY_INFO!G15),COUNTRY_INFO!F15+COUNTRY_INFO!G15,COUNTRY_INFO!$M15),0)))) -> 0 | E15: =IF(AND(INTRO!$E$39="Non endémique",INTRO!$E$37="Non endémique"),"Non requis",IF(INTRO!$E$39="Non endémique","Traiter avec DEC",COUNTRY_INFO!P15)) -> 0 | F15: =IF(INTRO!$E$39<>"Non endémique",COUNTRY_INFO!Q15,"Non requis") -> 0 | G15: =IF(COUNTRY_INFO!H15=1, IF($E15=1,$D15, 0),0) -> 0 | H15: =IF(INTRO!$E$39<>"Endémique",0, IF(AND(COUNTRY_INFO!$I15=1,$F15<>0),IF(COUNTRY_INFO!M15>=(COUNTRY_INFO!F15+COUNTRY_INFO!G15),COUNTRY_INFO!F15+COUNTRY_INFO!G15,COUNTRY_INFO!$M15), 0)) -> 0 | J15: 0 | K15: 0 | L15: 0 | M15: 0 | N15: 0 | P15: 0 | Q15: 0
A16: =IF(INTRO!$E$39="Non endémique"," ",IF(COUNTRY_INFO!A16=0," ",COUNTRY_INFO!A16)) -> Burundi | B16: =IF(INTRO!$E$39="Non endémique"," ",IF(COUNTRY_INFO!B16=0," ",COUNTRY_INFO!B16)) -> Bujumbura Rural | C16: =IF(INTRO!$E$39="Non endémique"," ",IF(COUNTRY_INFO!C16=0," ",COUNTRY_INFO!C16)) -> Rwibaga | D16: =IF(INTRO!$E$39="Non endémique",0,IF(INTRO!$E$39="Endémique mais pas de CP",IF(COUNTRY_INFO!$H16=1,COUNTRY_INFO!F16+COUNTRY_INFO!G16,0),IF(COUNTRY_INFO!$H16=1,COUNTRY_INFO!F16+COUNTRY_INFO!G16,IF(COUNTRY_INFO!$I16=1,IF(COUNTRY_INFO!M16>=(COUNTRY_INFO!F16+COUNTRY_INFO!G16),COUNTRY_INFO!F16+COUNTRY_INFO!G16,COUNTRY_INFO!$M16),0)))) -> 0 | E16: =IF(AND(INTRO!$E$39="Non endémique",INTRO!$E$37="Non endémique"),"Non requis",IF(INTRO!$E$39="Non endémique","Traiter avec DEC",COUNTRY_INFO!P16)) -> 0 | F16: =IF(INTRO!$E$39<>"Non endémique",COUNTRY_INFO!Q16,"Non requis") -> 0 | G16: =IF(COUNTRY_INFO!H16=1, IF($E16=1,$D16, 0),0) -> 0 | H16: =IF(INTRO!$E$39<>"Endémique",0, IF(AND(COUNTRY_INFO!$I16=1,$F16<>0),IF(COUNTRY_INFO!M16>=(COUNTRY_INFO!F16+COUNTRY_INFO!G16),COUNTRY_INFO!F16+COUNTRY_INFO!G16,COUNTRY_INFO!$M16), 0)) -> 0 | J16: 0 | K16: 0 | L16: 0 | M16: 0 | N16: 0 | P16: 0 | Q16: 0
A17: =IF(INTRO!$E$39="Non endémique"," ",IF(COUNTRY_INFO!A17=0," ",COUNTRY_INFO!A17)) -> Burundi | B17: =IF(INTRO!$E$39="Non endémique"," ",IF(COUNTRY_INFO!B17=0," ",COUNTRY_INFO!B17)) -> Bururi | C17: =IF(INTRO!$E$39="Non endémique"," ",IF(COUNTRY_INFO!C17=0," ",COUNTRY_INFO!C17)) -> Bururi | D17: =IF(INTRO!$E$39="Non endémique",0,IF(INTRO!$E$39="Endémique mais pas de CP",IF(COUNTRY_INFO!$H17=1,COUNTRY_INFO!F17+COUNTRY_INFO!G17,0),IF(COUNTRY_INFO!$H17=1,COUNTRY_INFO!F17+COUNTRY_INFO!G17,IF(COUNTRY_INFO!$I17=1,IF(COUNTRY_INFO!M17>=(COUNTRY_INFO!F17+COUNTRY_INFO!G17),COUNTRY_INFO!F17+COUNTRY_INFO!G17,COUNTRY_INFO!$M17),0)))) -> 42491 | E17: =IF(AND(INTRO!$E$39="Non endémique",INTRO!$E$37="Non endémique"),"Non requis",IF(INTRO!$E$39="Non endémique","Traiter avec DEC",COUNTRY_INFO!P17)) -> 0 | F17: =IF(INTRO!$E$39<>"Non endémique",COUNTRY_INFO!Q17,"Non requis") -> 1 | G17: =IF(COUNTRY_INFO!H17=1, IF($E17=1,$D17, 0),0) -> 0 | H17: =IF(INTRO!$E$39<>"Endémique",0, IF(AND(COUNTRY_INFO!$I17=1,$F17<>0),IF(COUNTRY_INFO!M17>=(COUNTRY_INFO!F17+COUNTRY_INFO!G17),COUNTRY_INFO!F17+COUNTRY_INFO!G17,COUNTRY_INFO!$M17), 0)) -> 42491 | J17: 42491 | K17: 0 | L17: 118974.8 | M17: 0 | N17: 118974.8 | P17: 118974.8 | Q17: 238
A18: =IF(INTRO!$E$39="Non endémique"," ",IF(COUNTRY_INFO!A18=0," ",COUNTRY_INFO!A18)) -> Burundi | B18: =IF(INTRO!$E$39="Non endémique"," ",IF(COUNTRY_INFO!B18=0," ",COUNTRY_INFO!B18)) -> Bururi | C18: =IF(INTRO!$E$39="Non endémique"," ",IF(COUNTRY_INFO!C18=0," ",COUNTRY_INFO!C18)) -> Matana | D18: =IF(INTRO!$E$39="Non endémique",0,IF(INTRO!$E$39="Endémique mais pas de CP",IF(COUNTRY_INFO!$H18=1,COUNTRY_INFO!F18+COUNTRY_INFO!G18,0),IF(COUNTRY_INFO!$H18=1,COUNTRY_INFO!F18+COUNTRY_INFO!G18,IF(COUNTRY_INFO!$I18=1,IF(COUNTRY_INFO!M18>=(COUNTRY_INFO!F18+COUNTRY_INFO!G18),COUNTRY_INFO!F18+COUNTRY_INFO!G18,COUNTRY_INFO!$M18),0)))) -> 23224 | E18: =IF(AND(INTRO!$E$39="Non endémique",INTRO!$E$37="Non endémique"),"Non requis",IF(INTRO!$E$39="Non endémique","Traiter avec DEC",COUNTRY_INFO!P18)) -> 0 | F18: =IF(INTRO!$E$39<>"Non endémique",COUNTRY_INFO!Q18,"Non requis") -> 1 | G18: =IF(COUNTRY_INFO!H18=1, IF($E18=1,$D18, 0),0) -> 0 | H18: =IF(INTRO!$E$39<>"Endémique",0, IF(AND(COUNTRY_INFO!$I18=1,$F18<>0),IF(COUNTRY_INFO!M18>=(COUNTRY_INFO!F18+COUNTRY_INFO!G18),COUNTRY_INFO!F18+COUNTRY_INFO!G18,COUNTRY_INFO!$M18), 0)) -> 23224 | J18: 23224 | K18: 0 | L18: 65027.2 | M18: 0 | N18: 65027.2 | P18: 65027.2 | Q18: 131
A19: =IF(INTRO!$E$39="Non endémique"," ",IF(COUNTRY_INFO!A19=0," ",COUNTRY_INFO!A19)) -> Burundi | B19: =IF(INTRO!$E$39="Non endémique"," ",IF(COUNTRY_INFO!B19=0," ",COUNTRY_INFO!B19)) -> Cankuzo | C19: =IF(INTRO!$E$39="Non endémique"," ",IF(COUNTRY_INFO!C19=0," ",COUNTRY_INFO!C19)) -> Cankuzo | D19: =IF(INTRO!$E$39="Non endémique",0,IF(INTRO!$E$39="Endémique mais pas de CP",IF(COUNTRY_INFO!$H19=1,COUNTRY_INFO!F19+COUNTRY_INFO!G19,0),IF(COUNTRY_INFO!$H19=1,COUNTRY_INFO!F19+COUNTRY_INFO!G19,IF(COUNTRY_INFO!$I19=1,IF(COUNTRY_INFO!M19>=(COUNTRY_INFO!F19+COUNTRY_INFO!G19),COUNTRY_INFO!F19+COUNTRY_INFO!G19,COUNTRY_INFO!$M19),0)))) -> 0 | E19: =IF(AND(INTRO!$E$39="Non endémique",INTRO!$E$37="Non endémique"),"Non requis",IF(INTRO!$E$39="Non endémique","Traiter avec DEC",COUNTRY_INFO!P19)) -> 0 | F19: =IF(INTRO!$E$39<>"Non endémique",COUNTRY_INFO!Q19,"Non requis") -> 0 | G19: =IF(COUNTRY_INFO!H19=1, IF($E19=1,$D19, 0),0) -> 0 | H19: =IF(INTRO!$E$39<>"Endémique",0, IF(AND(COUNTRY_INFO!$I19=1,$F19<>0),IF(COUNTRY_INFO!M19>=(COUNTRY_INFO!F19+COUNTRY_INFO!G19),COUNTRY_INFO!F19+COUNTRY_INFO!G19,COUNTRY_INFO!$M19), 0)) -> 0 | J19: 0 | K19: 0 | L19: 0 | M19: 0 | N19: 0 | P19: 0 | Q19: 0
A20: =IF(INTRO!$E$39="Non endémique"," ",IF(COUNTRY_INFO!A20=0," ",COUNTRY_INFO!A20)) -> Burundi | B20: =IF(INTRO!$E$39="Non endémique"," ",IF(COUNTRY_INFO!B20=0," ",COUNTRY_INFO!B20)) -> Cankuzo | C20: =IF(INTRO!$E$39="Non endémique"," ",IF(COUNTRY_INFO!C20=0," ",COUNTRY_INFO!C20)) -> Murore | D20: =IF(INTRO!$E$39="Non endémique",0,IF(INTRO!$E$39="Endémique mais pas de CP",IF(COUNTRY_INFO!$H20=1,COUNTRY_INFO!F20+COUNTRY_INFO!G20,0),IF(COUNTRY_INFO!$H20=1,COUNTRY_INFO!F20+COUNTRY_INFO!G20,IF(COUNTRY_INFO!$I20=1,IF(COUNTRY_INFO!M20>=(COUNTRY_INFO!F20+COUNTRY_INFO!G20),COUNTRY_INFO!F20+COUNTRY_INFO!G20,COUNTRY_INFO!$M20),0)))) -> 0 | E20: =IF(AND(INTRO!$E$39="Non endémique",INTRO!$E$37="Non endémique"),"Non requis",IF(INTRO!$E$39="Non endémique","Traiter avec DEC",COUNTRY_INFO!P20)) -> 0 | F20: =IF(INTRO!$E$39<>"Non endémique",COUNTRY_INFO!Q20,"Non requis") -> 0 | G20: =IF(COUNTRY_INFO!H20=1, IF($E20=1,$D20, 0),0) -> 0 | H20: =IF(INTRO!$E$39<>"Endémique",0, IF(AND(COUNTRY_INFO!$I20=1,$F20<>0),IF(COUNTRY_INFO!M20>=(COUNTRY_INFO!F20+COUNTRY_INFO!G20),COUNTRY_INFO!F20+COUNTRY_INFO!G20,COUNTRY_INFO!$M20), 0)) -> 0 | J20: 0 | K20: 0 | L20: 0 | M20: 0 | N20: 0 | P20: 0 | Q20: 0
A21: =IF(INTRO!$E$39="Non endémique"," ",IF(COUNTRY_INFO!A21=0," ",COUNTRY_INFO!A21)) -> Burundi | B21: =IF(INTRO!$E$39="Non endémique"," ",IF(COUNTRY_INFO!B21=0," ",COUNTRY_INFO!B21)) -> Cibitoke | C21: =IF(INTRO!$E$39="Non endémique"," ",IF(COUNTRY_INFO!C21=0," ",COUNTRY_INFO!C21)) -> Cibitoke | D21: =IF(INTRO!$E$39="Non endémique",0,IF(INTRO!$E$39="Endémique mais pas de CP",IF(COUNTRY_INFO!$H21=1,COUNTRY_INFO!F21+COUNTRY_INFO!G21,0),IF(COUNTRY_INFO!$H21=1,COUNTRY_INFO!F21+COUNTRY_INFO!G21,IF(COUNTRY_INFO!$I21=1,IF(COUNTRY_INFO!M21>=(COUNTRY_INFO!F21+COUNTRY_INFO!G21),COUNTRY_INFO!F21+COUNTRY_INFO!G21,COUNTRY_INFO!$M21),0)))) -> 290711 | E21: =IF(AND(INTRO!$E$39="Non endémique",INTRO!$E$37="Non endémique"),"Non requis",IF(INTRO!$E$39="Non endémique","Traiter avec DEC",COUNTRY_INFO!P21)) -> 0 | F21: =IF(INTRO!$E$39<>"Non endémique",COUNTRY_INFO!Q21,"Non requis") -> 1 | G21: =IF(COUNTRY_INFO!H21=1, IF($E21=1,$D21, 0),0) -> 0 | H21: =IF(INTRO!$E$39<>"Endémique",0, IF(AND(COUNTRY_INFO!$I21=1,$F21<>0),IF(COUNTRY_INFO!M21>=(COUNTRY_INFO!F21+COUNTRY_INFO!G21),COUNTRY_INFO!F21+COUNTRY_INFO!G21,COUNTRY_INFO!$M21), 0)) -> 290711 | J21: 290711 | K21: 0 | L21: 813990.8 | M21: 0 | N21: 813990.8 | P21: 813990.8 | Q21: 1628
A22: =IF(INTRO!$E$39="Non endémique"," ",IF(COUNTRY_INFO!A22=0," ",COUNTRY_INFO!A22)) -> Burundi | B22: =IF(INTRO!$E$39="Non endémique"," ",IF(COUNTRY_INFO!B22=0," ",COUNTRY_INFO!B22)) -> Cibitoke | C22: =IF(INTRO!$E$39="Non endémique"," ",IF(COUNTRY_INFO!C22=0," ",COUNTRY_INFO!C22)) -> Mabayi | D22: =IF(INTRO!$E$39="Non endémique",0,IF(INTRO!$E$39="Endémique mais pas de CP",IF(COUNTRY_INFO!$H22=1,COUNTRY_INFO!F22+COUNTRY_INFO!G22,0),IF(COUNTRY_INFO!$H22=1,COUNTRY_INFO!F22+COUNTRY_INFO!G22,IF(COUNTRY_INFO!$I22=1,IF(COUNTRY_INFO!M22>=(COUNTRY_INFO!F22+COUNTRY_INFO!G22),COUNTRY_INFO!F22+COUNTRY_INFO!G22,COUNTRY_INFO!$M22),0)))) -> 244166 | E22: =IF(AND(INTRO!$E$39="Non endémique",INTRO!$E$37="Non endémique"),"Non requis",IF(INTRO!$E$39="Non endémique","Traiter avec DEC",COUNTRY_INFO!P22)) -> 0 | F22: =IF(INTRO!$E$39<>"Non endémique",COUNTRY_INFO!Q22,"Non requis") -> 1 | G22: =IF(COUNTRY_INFO!H22=1, IF($E22=1,$D22, 0),0) -> 0 | H22: =IF(INTRO!$E$39<>"Endémique",0, IF(AND(COUNTRY_INFO!$I22=1,$F22<>0),IF(COUNTRY_INFO!M22>=(COUNTRY_INFO!F22+COUNTRY_INFO!G22),COUNTRY_INFO!F22+COUNTRY_INFO!G22,COUNTRY_INFO!$M22), 0)) -> 244166 | J22: 244166 | K22: 0 | L22: 683664.8 | M22: 0 | N22: 683664.8 | P22: 683664.8 | Q22: 1368
A23: =IF(INTRO!$E$39="Non endémique"," ",IF(COUNTRY_INFO!A23=0," ",COUNTRY_INFO!A23)) -> Burundi | B23: =IF(INTRO!$E$39="Non endémique"," ",IF(COUNTRY_INFO!B23=0," ",COUNTRY_INFO!B23)) -> Gitega | C23: =IF(INTRO!$E$39="Non endémique"," ",IF(COUNTRY_INFO!C23=0," ",COUNTRY_INFO!C23)) -> Gitega | D23: =IF(INTRO!$E$39="Non endémique",0,IF(INTRO!$E$39="Endémique mais pas de CP",IF(COUNTRY_INFO!$H23=1,COUNTRY_INFO!F23+COUNTRY_INFO!G23,0),IF(COUNTRY_INFO!$H23=1,COUNTRY_INFO!F23+COUNTRY_INFO!G23,IF(COUNTRY_INFO!$I23=1,IF(COUNTRY_INFO!M23>=(COUNTRY_INFO!F23+COUNTRY_INFO!G23),COUNTRY_INFO!F23+COUNTRY_INFO!G23,COUNTRY_INFO!$M23),0)))) -> 0 | E23: =IF(AND(INTRO!$E$39="Non endémique",INTRO!$E$37="Non endémique"),"Non requis",IF(INTRO!$E$39="Non endémique","Traiter avec DEC",COUNTRY_INFO!P23)) -> 0 | F23: =IF(INTRO!$E$39<>"Non endémique",COUNTRY_INFO!Q23,"Non requis") -> 0 | G23: =IF(COUNTRY_INFO!H23=1, IF($E23=1,$D23, 0),0) -> 0 | H23: =IF(INTRO!$E$39<>"Endémique",0, IF(AND(COUNTRY_INFO!$I23=1,$F23<>0),IF(COUNTRY_INFO!M23>=(COUNTRY_INFO!F23+COUNTRY_INFO!G23),COUNTRY_INFO!F23+COUNTRY_INFO!G23,COUNTRY_INFO!$M23), 0)) -> 0 | J23: 0 | K23: 0 | L23: 0 | M23: 0 | N23: 0 | P23: 0 | Q23: 0
A24: =IF(INTRO!$E$39="Non endémique"," ",IF(COUNTRY_INFO!A24=0," ",COUNTRY_INFO!A24)) -> Burundi | B24: =IF(INTRO!$E$39="Non endémique"," ",IF(COUNTRY_INFO!B24=0," ",COUNTRY_INFO!B24)) -> Gitega | C24: =IF(INTRO!$E$39="Non endémique"," ",IF(COUNTRY_INFO!C24=0," ",COUNTRY_INFO!C24)) -> Kibuye | D24: =IF(INTRO!$E$39="Non endémique",0,IF(INTRO!$E$39="Endémique mais pas de CP",IF(COUNTRY_INFO!$H24=1,COUNTRY_INFO!F24+COUNTRY_INFO!G24,0),IF(COUNTRY_INFO!$H24=1,COUNTRY_INFO!F24+COUNTRY_INFO!G24,IF(COUNTRY_INFO!$I24=1,IF(COUNTRY_INFO!M24>=(COUNTRY_INFO!F24+COUNTRY_INFO!G24),COUNTRY_INFO!F24+COUNTRY_INFO!G24,COUNTRY_INFO!$M24),0)))) -> 0 | E24: =IF(AND(INTRO!$E$39="Non endémique",INTRO!$E$37="Non endémique"),"Non requis",IF(INTRO!$E$39="Non endémique","Traiter avec DEC",COUNTRY_INFO!P24)) -> 0 | F24: =IF(INTRO!$E$39<>"Non endémique",COUNTRY_INFO!Q24,"Non requis") -> 0 | G24: =IF(COUNTRY_INFO!H24=1, IF($E24=1,$D24, 0),0) -> 0 | H24: =IF(INTRO!$E$39<>"Endémique",0, IF(AND(COUNTRY_INFO!$I24=1,$F24<>0),IF(COUNTRY_INFO!M24>=(COUNTRY_INFO!F24+COUNTRY_INFO!G24),COUNTRY_INFO!F24+COUNTRY_INFO!G24,COUNTRY_INFO!$M24), 0)) -> 0 | J24: 0 | K24: 0 | L24: 0 | M24: 0 | N24: 0 | P24: 0 | Q24: 0
A25: =IF(INTRO!$E$39="Non endémique"," ",IF(COUNTRY_INFO!A25=0," ",COUNTRY_INFO!A25)) -> Burundi | B25: =IF(INTRO!$E$39="Non endémique"," ",IF(COUNTRY_INFO!B25=0," ",COUNTRY_INFO!B25)) -> Gitega | C25: =IF(INTRO!$E$39="Non endémique"," ",IF(COUNTRY_INFO!C25=0," ",COUNTRY_INFO!C25)) -> Mutaho | D25: =IF(INTRO!$E$39="Non endémique",0,IF(INTRO!$E$39="Endémique mais pas de CP",IF(COUNTRY_INFO!$H25=1,COUNTRY_INFO!F25+COUNTRY_INFO!G25,0),IF(COUNTRY_INFO!$H25=1,COUNTRY_INFO!F25+COUNTRY_INFO!G25,IF(COUNTRY_INFO!$I25=1,IF(COUNTRY_INFO!M25>=(COUNTRY_INFO!F25+COUNTRY_INFO!G25),COUNTRY_INFO!F25+COUNTRY_INFO!G25,COUNTRY_INFO!$M25),0)))) -> 0 | E25: =IF(AND(INTRO!$E$39="Non endémique",INTRO!$E$37="Non endémique"),"Non requis",IF(INTRO!$E$39="Non endémique","Traiter avec DEC",COUNTRY_INFO!P25)) -> 0 | F25: =IF(INTRO!$E$39<>"Non endémique",COUNTRY_INFO!Q25,"Non requis") -> 0 | G25: =IF(COUNTRY_INFO!H25=1, IF($E25=1,$D25, 0),0) -> 0 | H25: =IF(INTRO!$E$39<>"Endémique",0, IF(AND(COUNTRY_INFO!$I25=1,$F25<>0),IF(COUNTRY_INFO!M25>=(COUNTRY_INFO!F25+COUNTRY_INFO!G25),COUNTRY_INFO!F25+COUNTRY_INFO!G25,COUNTRY_INFO!$M25), 0)) -> 0 | J25: 0 | K25: 0 | L25: 0 | M25: 0 | N25: 0 | P25: 0 | Q25: 0
A26: =IF(INTRO!$E$39="Non endémique"," ",IF(COUNTRY_INFO!A26=0," ",COUNTRY_INFO!A26)) -> Burundi | B26: =IF(INTRO!$E$39="Non endémique"," ",IF(COUNTRY_INFO!B26=0," ",COUNTRY_INFO!B26)) -> Gitega | C26: =IF(INTRO!$E$39="Non endémique"," ",IF(COUNTRY_INFO!C26=0," ",COUNTRY_INFO!C26)) -> Ryansoro | D26: =IF(INTRO!$E$39="Non endémique",0,IF(INTRO!$E$39="Endémique mais pas de CP",IF(COUNTRY_INFO!$H26=1,COUNTRY_INFO!F26+COUNTRY_INFO!G26,0),IF(COUNTRY_INFO!$H26=1,COUNTRY_INFO!F26+COUNTRY_INFO!G26,IF(COUNTRY_INFO!$I26=1,IF(COUNTRY_INFO!M26>=(COUNTRY_INFO!F26+COUNTRY_INFO!G26),COUNTRY_INFO!F26+COUNTRY_INFO!G26,COUNTRY_INFO!$M26),0)))) -> 0 | E26: =IF(AND(INTRO!$E$39="Non endémique",INTRO!$E$37="Non endémique"),"Non requis",IF(INTRO!$E$39="Non endémique","Traiter avec DEC",COUNTRY_INFO!P26)) -> 0 | F26: =IF(INTRO!$E$39<>"Non endémique",COUNTRY_INFO!Q26,"Non requis") -> 0 | G26: =IF(COUNTRY_INFO!H26=1, IF($E26=1,$D26, 0),0) -> 0 | H26: =IF(INTRO!$E$39<>"Endémique",0, IF(AND(COUNTRY_INFO!$I26=1,$F26<>0),IF(COUNTRY_INFO!M26>=(COUNTRY_INFO!F26+COUNTRY_INFO!G26),COUNTRY_INFO!F26+COUNTRY_INFO!G26,COUNTRY_INFO!$M26), 0)) -> 0 | J26: 0 | K26: 0 | L26: 0 | M26: 0 | N26: 0 | P26: 0 | Q26: 0
A27: =IF(INTRO!$E$39="Non endémique"," ",IF(COUNTRY_INFO!A27=0," ",COUNTRY_INFO!A27)) -> Burundi | B27: =IF(INTRO!$E$39="Non endémique"," ",IF(COUNTRY_INFO!B27=0," ",COUNTRY_INFO!B27)) -> Karusi | C27: =IF(INTRO!$E$39="Non endémique"," ",IF(COUNTRY_INFO!C27=0," ",COUNTRY_INFO!C27)) -> Buhiga | D27: =IF(INTRO!$E$39="Non endémique",0,IF(INTRO!$E$39="Endémique mais pas de CP",IF(COUNTRY_INFO!$H27=1,COUNTRY_INFO!F27+COUNTRY_INFO!G27,0),IF(COUNTRY_INFO!$H27=1,COUNTRY_INFO!F27+COUNTRY_INFO!G27,IF(COUNTRY_INFO!$I27=1,IF(COUNTRY_INFO!M27>=(COUNTRY_INFO!F27+COUNTRY_INFO!G27),COUNTRY_INFO!F27+COUNTRY_INFO!G27,COUNTRY_INFO!$M27),0)))) -> 0 | E27: =IF(AND(INTRO!$E$39="Non endémique",INTRO!$E$37="Non endémique"),"Non requis",IF(INTRO!$E$39="Non endémique","Traiter avec DEC",COUNTRY_INFO!P27)) -> 0 | F27: =IF(INTRO!$E$39<>"Non endémique",COUNTRY_INFO!Q27,"Non requis") -> 0 | G27: =IF(COUNTRY_INFO!H27=1, IF($E27=1,$D27, 0),0) -> 0 | H27: =IF(INTRO!$E$39<>"Endémique",0, IF(AND(COUNTRY_INFO!$I27=1,$F27<>0),IF(COUNTRY_INFO!M27>=(COUNTRY_INFO!F27+COUNTRY_INFO!G27),COUNTRY_INFO!F27+COUNTRY_INFO!G27,COUNTRY_INFO!$M27), 0)) -> 0 | J27: 0 | K27: 0 | L27: 0 | M27: 0 | N27: 0 | P27: 0 | Q27: 0
A28: =IF(INTRO!$E$39="Non endémique"," ",IF(COUNTRY_INFO!A28=0," ",COUNTRY_INFO!A28)) -> Burundi | B28: =IF(INTRO!$E$39="Non endémique"," ",IF(COUNTRY_INFO!B28=0," ",COUNTRY_INFO!B28)) -> Karusi | C28: =IF(INTRO!$E$39="Non endémique"," ",IF(COUNTRY_INFO!C28=0," ",COUNTRY_INFO!C28)) -> Nyabikere | D28: =IF(INTRO!$E$39="Non endémique",0,IF(INTRO!$E$39="Endémique mais pas de CP",IF(COUNTRY_INFO!$H28=1,COUNTRY_INFO!F28+COUNTRY_INFO!G28,0),IF(COUNTRY_INFO!$H28=1,COUNTRY_INFO!F28+COUNTRY_INFO!G28,IF(COUNTRY_INFO!$I28=1,IF(COUNTRY_INFO!M28>=(COUNTRY_INFO!F28+COUNTRY_INFO!G28),COUNTRY_INFO!F28+COUNTRY_INFO!G28,COUNTRY_INFO!$M28),0)))) -> 0 | E28: =IF(AND(INTRO!$E$39="Non endémique",INTRO!$E$37="Non endémique"),"Non requis",IF(INTRO!$E$39="Non endémique","Traiter avec DEC",COUNTRY_INFO!P28)) -> 0 | F28: =IF(INTRO!$E$39<>"Non endémique",COUNTRY_INFO!Q28,"Non requis") -> 0 | G28: =IF(COUNTRY_INFO!H28=1, IF($E28=1,$D28, 0),0) -> 0 | H28: =IF(INTRO!$E$39<>"Endémique",0, IF(AND(COUNTRY_INFO!$I28=1,$F28<>0),IF(COUNTRY_INFO!M28>=(COUNTRY_INFO!F28+COUNTRY_INFO!G28),COUNTRY_INFO!F28+COUNTRY_INFO!G28,COUNTRY_INFO!$M28), 0)) -> 0 | J28: 0 | K28: 0 | L28: 0 | M28: 0 | N28: 0 | P28: 0 | Q28: 0
A29: =IF(INTRO!$E$39="Non endémique"," ",IF(COUNTRY_INFO!A29=0," ",COUNTRY_INFO!A29)) -> Burundi | B29: =IF(INTRO!$E$39="Non endémique"," ",IF(COUNTRY_INFO!B29=0," ",COUNTRY_INFO!B29)) -> Kayanza | C29: =IF(INTRO!$E$39="Non endémique"," ",IF(COUNTRY_INFO!C29=0," ",COUNTRY_INFO!C29)) -> Gahombo | D29: =IF(INTRO!$E$39="Non endémique",0,IF(INTRO!$E$39="Endémique mais pas de CP",IF(COUNTRY_INFO!$H29=1,COUNTRY_INFO!F29+COUNTRY_INFO!G29,0),IF(COUNTRY_INFO!$H29=1,COUNTRY_INFO!F29+COUNTRY_INFO!G29,IF(COUNTRY_INFO!$I29=1,IF(COUNTRY_INFO!M29>=(COUNTRY_INFO!F29+COUNTRY_INFO!G29),COUNTRY_INFO!F29+COUNTRY_INFO!G29,COUNTRY_INFO!$M29),0)))) -> 0 | E29: =IF(AND(INTRO!$E$39="Non endémique",INTRO!$E$37="Non endémique"),"Non requis",IF(INTRO!$E$39="Non endémique","Traiter avec DEC",COUNTRY_INFO!P29)) -> 0 | F29: =IF(INTRO!$E$39<>"Non endémique",COUNTRY_INFO!Q29,"Non requis") -> 0 | G29: =IF(COUNTRY_INFO!H29=1, IF($E29=1,$D29, 0),0) -> 0 | H29: =IF(INTRO!$E$39<>"Endémique",0, IF(AND(COUNTRY_INFO!$I29=1,$F29<>0),IF(COUNTRY_INFO!M29>=(COUNTRY_INFO!F29+COUNTRY_INFO!G29),COUNTRY_INFO!F29+COUNTRY_INFO!G29,COUNTRY_INFO!$M29), 0)) -> 0 | J29: 0 | K29: 0 | L29: 0 | M29: 0 | N29: 0 | P29: 0 | Q29: 0
A30: =IF(INTRO!$E$39="Non endémique"," ",IF(COUNTRY_INFO!A30=0," ",COUNTRY_INFO!A30)) -> Burundi | B30: =IF(INTRO!$E$39="Non endémique"," ",IF(COUNTRY_INFO!B30=0," ",COUNTRY_INFO!B30)) -> Kayanza | C30: =IF(INTRO!$E$39="Non endémique"," ",IF(COUNTRY_INFO!C30=0," ",COUNTRY_INFO!C30)) -> Kayanza | D30: =IF(INTRO!$E$39="Non endémique",0,IF(INTRO!$E$39="Endémique mais pas de CP",IF(COUNTRY_INFO!$H30=1,COUNTRY_INFO!F30+COUNTRY_INFO!G30,0),IF(COUNTRY_INFO!$H30=1,COUNTRY_INFO!F30+COUNTRY_INFO!G30,IF(COUNTRY_INFO!$I30=1,IF(COUNTRY_INFO!M30>=(COUNTRY_INFO!F30+COUNTRY_INFO!G30),COUNTRY_INFO!F30+COUNTRY_INFO!G30,COUNTRY_INFO!$M30),0)))) -> 0 | E30: =IF(AND(INTRO!$E$39="Non endémique",INTRO!$E$37="Non endémique"),"Non requis",IF(INTRO!$E$39="Non endémique","Traiter avec DEC",COUNTRY_INFO!P30)) -> 0 | F30: =IF(INTRO!$E$39<>"Non endémique",COUNTRY_INFO!Q30,"Non requis") -> 0 | G30: =IF(COUNTRY_INFO!H30=1, IF($E30=1,$D30, 0),0) -> 0 | H30: =IF(INTRO!$E$39<>"Endémique",0, IF(AND(COUNTRY_INFO!$I30=1,$F30<>0),IF(COUNTRY_INFO!M30>=(COUNTRY_INFO!F30+COUNTRY_INFO!G30),COUNTRY_INFO!F30+COUNTRY_INFO!G30,COUNTRY_INFO!$M30), 0)) -> 0 | J30: 0 | K30: 0 | L30: 0 | M30: 0 | N30: 0 | P30: 0 | Q30: 0
A31: =IF(INTRO!$E$39="Non endémique"," ",IF(COUNTRY_INFO!A31=0," ",COUNTRY_INFO!A31)) -> Burundi | B31: =IF(INTRO!$E$39="Non endémique"," ",IF(COUNTRY_INFO!B31=0," ",COUNTRY_INFO!B31)) -> Kayanza | C31: =IF(INTRO!$E$39="Non endémique"," ",IF(COUNTRY_INFO!C31=0," ",COUNTRY_INFO!C31)) -> Musema | D31: =IF(INTRO!$E$39="Non endémique",0,IF(INTRO!$E$39="Endémique mais pas de CP",IF(COUNTRY_INFO!$H31=1,COUNTRY_INFO!F31+COUNTRY_INFO!G31,0),IF(COUNTRY_INFO!$H31=1,COUNTRY_INFO!F31+COUNTRY_INFO!G31,IF(COUNTRY_INFO!$I31=1,IF(COUNTRY_INFO!M31>=(COUNTRY_INFO!F31+COUNTRY_INFO!G31),COUNTRY_INFO!F31+COUNTRY_INFO!G31,COUNTRY_INFO!$M31),0)))) -> 0 | E31: =IF(AND(INTRO!$E$39="Non endémique",INTRO!$E$37="Non endémique"),"Non requis",IF(INTRO!$E$39="Non endémique","Traiter avec DEC",COUNTRY_INFO!P31)) -> 0 | F31: =IF(INTRO!$E$39<>"Non endémique",COUNTRY_INFO!Q31,"Non requis") -> 0 | G31: =IF(COUNTRY_INFO!H31=1, IF($E31=1,$D31, 0),0) -> 0 | H31: =IF(INTRO!$E$39<>"Endémique",0, IF(AND(COUNTRY_INFO!$I31=1,$F31<>0),IF(COUNTRY_INFO!M31>=(COUNTRY_INFO!F31+COUNTRY_INFO!G31),COUNTRY_INFO!F31+COUNTRY_INFO!G31,COUNTRY_INFO!$M31), 0)) -> 0 | J31: 0 | K31: 0 | L31: 0 | M31: 0 | N31: 0 | P31: 0 | Q31: 0
A32: =IF(INTRO!$E$39="Non endémique"," ",IF(COUNTRY_INFO!A32=0," ",COUNTRY_INFO!A32)) -> Burundi | B32: =IF(INTRO!$E$39="Non endémique"," ",IF(COUNTRY_INFO!B32=0," ",COUNTRY_INFO!B32)) -> Kirundo | C32: =IF(INTRO!$E$39="Non endémique"," ",IF(COUNTRY_INFO!C32=0," ",COUNTRY_INFO!C32)) -> Busoni | D32: =IF(INTRO!$E$39="Non endémique",0,IF(INTRO!$E$39="Endémique mais pas de CP",IF(COUNTRY_INFO!$H32=1,COUNTRY_INFO!F32+COUNTRY_INFO!G32,0),IF(COUNTRY_INFO!$H32=1,COUNTRY_INFO!F32+COUNTRY_INFO!G32,IF(COUNTRY_INFO!$I32=1,IF(COUNTRY_INFO!M32>=(COUNTRY_INFO!F32+COUNTRY_INFO!G32),COUNTRY_INFO!F32+COUNTRY_INFO!G32,COUNTRY_INFO!$M32),0)))) -> 0 | E32: =IF(AND(INTRO!$E$39="Non endémique",INTRO!$E$37="Non endémique"),"Non requis",IF(INTRO!$E$39="Non endémique","Traiter avec DEC",COUNTRY_INFO!P32)) -> 0 | F32: =IF(INTRO!$E$39<>"Non endémique",COUNTRY_INFO!Q32,"Non requis") -> 0 | G32: =IF(COUNTRY_INFO!H32=1, IF($E32=1,$D32, 0),0) -> 0 | H32: =IF(INTRO!$E$39<>"Endémique",0, IF(AND(COUNTRY_INFO!$I32=1,$F32<>0),IF(COUNTRY_INFO!M32>=(COUNTRY_INFO!F32+COUNTRY_INFO!G32),COUNTRY_INFO!F32+COUNTRY_INFO!G32,COUNTRY_INFO!$M32), 0)) -> 0 | J32: 0 | K32: 0 | L32: 0 | M32: 0 | N32: 0 | P32: 0 | Q32: 0
A33: =IF(INTRO!$E$39="Non endémique"," ",IF(COUNTRY_INFO!A33=0," ",COUNTRY_INFO!A33)) -> Burundi | B33: =IF(INTRO!$E$39="Non endémique"," ",IF(COUNTRY_INFO!B33=0," ",COUNTRY_INFO!B33)) -> Kirundo | C33: =IF(INTRO!$E$39="Non endémique"," ",IF(COUNTRY_INFO!C33=0," ",COUNTRY_INFO!C33)) -> Kirundo | D33: =IF(INTRO!$E$39="Non endémique",0,IF(INTRO!$E$39="Endémique mais pas de CP",IF(COUNTRY_INFO!$H33=1,COUNTRY_INFO!F33+COUNTRY_INFO!G33,0),IF(COUNTRY_INFO!$H33=1,COUNTRY_INFO!F33+COUNTRY_INFO!G33,IF(COUNTRY_INFO!$I33=1,IF(COUNTRY_INFO!M33>=(COUNTRY_INFO!F33+COUNTRY_INFO!G33),COUNTRY_INFO!F33+COUNTRY_INFO!G33,COUNTRY_INFO!$M33),0)))) -> 0 | E33: =IF(AND(INTRO!$E$39="Non endémique",INTRO!$E$37="Non endémique"),"Non requis",IF(INTRO!$E$39="Non endémique","Traiter avec DEC",COUNTRY_INFO!P33)) -> 0 | F33: =IF(INTRO!$E$39<>"Non endémique",COUNTRY_INFO!Q33,"Non requis") -> 0 | G33: =IF(COUNTRY_INFO!H33=1, IF($E33=1,$D33, 0),0) -> 0 | H33: =IF(INTRO!$E$39<>"Endémique",0, IF(AND(COUNTRY_INFO!$I33=1,$F33<>0),IF(COUNTRY_INFO!M33>=(COUNTRY_INFO!F33+COUNTRY_INFO!G33),COUNTRY_INFO!F33+COUNTRY_INFO!G33,COUNTRY_INFO!$M33), 0)) -> 0 | J33: 0 | K33: 0 | L33: 0 | M33: 0 | N33: 0 | P33: 0 | Q33: 0
A34: =IF(INTRO!$E$39="Non endémique"," ",IF(COUNTRY_INFO!A34=0," ",COUNTRY_INFO!A34)) -> Burundi | B34: =IF(INTRO!$E$39="Non endémique"," ",IF(COUNTRY_INFO!B34=0," ",COUNTRY_INFO!B34)) -> Kirundo | C34: =IF(INTRO!$E$39="Non endémique"," ",IF(COUNTRY_INFO!C34=0," ",COUNTRY_INFO!C34)) -> Mukenke | D34: =IF(INTRO!$E$39="Non endémique",0,IF(INTRO!$E$39="Endémique mais pas de CP",IF(COUNTRY_INFO!$H34=1,COUNTRY_INFO!F34+COUNTRY_INFO!G34,0),IF(COUNTRY_INFO!$H34=1,COUNTRY_INFO!F34+COUNTRY_INFO!G34,IF(COUNTRY_INFO!$I34=1,IF(COUNTRY_INFO!M34>=(COUNTRY_INFO!F34+COUNTRY_INFO!G34),COUNTRY_INFO!F34+COUNTRY_INFO!G34,COUNTRY_INFO!$M34),0)))) -> 0 | E34: =IF(AND(INTRO!$E$39="Non endémique",INTRO!$E$37="Non endémique"),"Non requis",IF(INTRO!$E$39="Non endémique","Traiter avec DEC",COUNTRY_INFO!P34)) -> 0 | F34: =IF(INTRO!$E$39<>"Non endémique",COUNTRY_INFO!Q34,"Non requis") -> 0 | G34: =IF(COUNTRY_INFO!H34=1, IF($E34=1,$D34, 0),0) -> 0 | H34: =IF(INTRO!$E$39<>"Endémique",0, IF(AND(COUNTRY_INFO!$I34=1,$F34<>0),IF(COUNTRY_INFO!M34>=(COUNTRY_INFO!F34+COUNTRY_INFO!G34),COUNTRY_INFO!F34+COUNTRY_INFO!G34,COUNTRY_INFO!$M34), 0)) -> 0 | J34: 0 | K34: 0 | L34: 0 | M34: 0 | N34: 0 | P34: 0 | Q34: 0
A35: =IF(INTRO!$E$39="Non endémique"," ",IF(COUNTRY_INFO!A35=0," ",COUNTRY_INFO!A35)) -> Burundi | B35: =IF(INTRO!$E$39="Non endémique"," ",IF(COUNTRY_INFO!B35=0," ",COUNTRY_INFO!B35)) -> Kirundo | C35: =IF(INTRO!$E$39="Non endémique"," ",IF(COUNTRY_INFO!C35=0," ",COUNTRY_INFO!C35)) -> Vumbi | D35: =IF(INTRO!$E$39="Non endémique",0,IF(INTRO!$E$39="Endémique mais pas de CP",IF(COUNTRY_INFO!$H35=1,COUNTRY_INFO!F35+COUNTRY_INFO!G35,0),IF(COUNTRY_INFO!$H35=1,COUNTRY_INFO!F35+COUNTRY_INFO!G35,IF(COUNTRY_INFO!$I35=1,IF(COUNTRY_INFO!M35>=(COUNTRY_INFO!F35+COUNTRY_INFO!G35),COUNTRY_INFO!F35+COUNTRY_INFO!G35,COUNTRY_INFO!$M35),0)))) -> 0 | E35: =IF(AND(INTRO!$E$39="Non endémique",INTRO!$E$37="Non endémique"),"Non requis",IF(INTRO!$E$39="Non endémique","Traiter avec DEC",COUNTRY_INFO!P35)) -> 0 | F35: =IF(INTRO!$E$39<>"Non endémique",COUNTRY_INFO!Q35,"Non requis") -> 0 | G35: =IF(COUNTRY_INFO!H35=1, IF($E35=1,$D35, 0),0) -> 0 | H35: =IF(INTRO!$E$39<>"Endémique",0, IF(AND(COUNTRY_INFO!$I35=1,$F35<>0),IF(COUNTRY_INFO!M35>=(COUNTRY_INFO!F35+COUNTRY_INFO!G35),COUNTRY_INFO!F35+COUNTRY_INFO!G35,COUNTRY_INFO!$M35), 0)) -> 0 | J35: 0 | K35: 0 | L35: 0 | M35: 0 | N35: 0 | P35: 0 | Q35: 0
A36: =IF(INTRO!$E$39="Non endémique"," ",IF(COUNTRY_INFO!A36=0," ",COUNTRY_INFO!A36)) -> Burundi | B36: =IF(INTRO!$E$39="Non endémique"," ",IF(COUNTRY_INFO!B36=0," ",COUNTRY_INFO!B36)) -> Makamba | C36: =IF(INTRO!$E$39="Non endémique"," ",IF(COUNTRY_INFO!C36=0," ",COUNTRY_INFO!C36)) -> Makamba | D36: =IF(INTRO!$E$39="Non endémique",0,IF(INTRO!$E$39="Endémique mais pas de CP",IF(COUNTRY_INFO!$H36=1,COUNTRY_INFO!F36+COUNTRY_INFO!G36,0),IF(COUNTRY_INFO!$H36=1,COUNTRY_INFO!F36+COUNTRY_INFO!G36,IF(COUNTRY_INFO!$I36=1,IF(COUNTRY_INFO!M36>=(COUNTRY_INFO!F36+COUNTRY_INFO!G36),COUNTRY_INFO!F36+COUNTRY_INFO!G36,COUNTRY_INFO!$M36),0)))) -> 47685 | E36: =IF(AND(INTRO!$E$39="Non endémique",INTRO!$E$37="Non endémique"),"Non requis",IF(INTRO!$E$39="Non endémique","Traiter avec DEC",COUNTRY_INFO!P36)) -> 0 | F36: =IF(INTRO!$E$39<>"Non endémique",COUNTRY_INFO!Q36,"Non requis") -> 1 | G36: =IF(COUNTRY_INFO!H36=1, IF($E36=1,$D36, 0),0) -> 0 | H36: =IF(INTRO!$E$39<>"Endémique",0, IF(AND(COUNTRY_INFO!$I36=1,$F36<>0),IF(COUNTRY_INFO!M36>=(COUNTRY_INFO!F36+COUNTRY_INFO!G36),COUNTRY_INFO!F36+COUNTRY_INFO!G36,COUNTRY_INFO!$M36), 0)) -> 47685 | J36: 47685 | K36: 0 | L36: 133518 | M36: 0 | N36: 133518 | P36: 133518 | Q36: 268
A37: =IF(INTRO!$E$39="Non endémique"," ",IF(COUNTRY_INFO!A37=0," ",COUNTRY_INFO!A37)) -> Burundi | B37: =IF(INTRO!$E$39="Non endémique"," ",IF(COUNTRY_INFO!B37=0," ",COUNTRY_INFO!B37)) -> Makamba | C37: =IF(INTRO!$E$39="Non endémique"," ",IF(COUNTRY_INFO!C37=0," ",COUNTRY_INFO!C37)) -> Nyanza Lac | D37: =IF(INTRO!$E$39="Non endémique",0,IF(INTRO!$E$39="Endémique mais pas de CP",IF(COUNTRY_INFO!$H37=1,COUNTRY_INFO!F37+COUNTRY_INFO!G37,0),IF(COUNTRY_INFO!$H37=1,COUNTRY_INFO!F37+COUNTRY_INFO!G37,IF(COUNTRY_INFO!$I37=1,IF(COUNTRY_INFO!M37>=(COUNTRY_INFO!F37+COUNTRY_INFO!G37),COUNTRY_INFO!F37+COUNTRY_INFO!G37,COUNTRY_INFO!$M37),0)))) -> 0 | E37: =IF(AND(INTRO!$E$39="Non endémique",INTRO!$E$37="Non endémique"),"Non requis",IF(INTRO!$E$39="Non endémique","Traiter avec DEC",COUNTRY_INFO!P37)) -> 0 | F37: =IF(INTRO!$E$39<>"Non endémique",COUNTRY_INFO!Q37,"Non requis") -> 0 | G37: =IF(COUNTRY_INFO!H37=1, IF($E37=1,$D37, 0),0) -> 0 | H37: =IF(INTRO!$E$39<>"Endémique",0, IF(AND(COUNTRY_INFO!$I37=1,$F37<>0),IF(COUNTRY_INFO!M37>=(COUNTRY_INFO!F37+COUNTRY_INFO!G37),COUNTRY_INFO!F37+COUNTRY_INFO!G37,COUNTRY_INFO!$M37), 0)) -> 0 | J37: 0 | K37: 0 | L37: 0 | M37: 0 | N37: 0 | P37: 0 | Q37: 0
A38: =IF(INTRO!$E$39="Non endémique"," ",IF(COUNTRY_INFO!A38=0," ",COUNTRY_INFO!A38)) -> Burundi | B38: =IF(INTRO!$E$39="Non endémique"," ",IF(COUNTRY_INFO!B38=0," ",COUNTRY_INFO!B38)) -> Muramvya | C38: =IF(INTRO!$E$39="Non endémique"," ",IF(COUNTRY_INFO!C38=0," ",COUNTRY_INFO!C38)) -> Muramvya | D38: =IF(INTRO!$E$39="Non endémique",0,IF(INTRO!$E$39="Endémique mais pas de CP",IF(COUNTRY_INFO!$H38=1,COUNTRY_INFO!F38+COUNTRY_INFO!G38,0),IF(COUNTRY_INFO!$H38=1,COUNTRY_INFO!F38+COUNTRY_INFO!G38,IF(COUNTRY_INFO!$I38=1,IF(COUNTRY_INFO!M38>=(COUNTRY_INFO!F38+COUNTRY_INFO!G38),COUNTRY_INFO!F38+COUNTRY_INFO!G38,COUNTRY_INFO!$M38),0)))) -> 0 | E38: =IF(AND(INTRO!$E$39="Non endémique",INTRO!$E$37="Non endémique"),"Non requis",IF(INTRO!$E$39="Non endémique","Traiter avec DEC",COUNTRY_INFO!P38)) -> 0 | F38: =IF(INTRO!$E$39<>"Non endémique",COUNTRY_INFO!Q38,"Non requis") -> 0 | G38: =IF(COUNTRY_INFO!H38=1, IF($E38=1,$D38, 0),0) -> 0 | H38: =IF(INTRO!$E$39<>"Endémique",0, IF(AND(COUNTRY_INFO!$I38=1,$F38<>0),IF(COUNTRY_INFO!M38>=(COUNTRY_INFO!F38+COUNTRY_INFO!G38),COUNTRY_INFO!F38+COUNTRY_INFO!G38,COUNTRY_INFO!$M38), 0)) -> 0 | J38: 0 | K38: 0 | L38: 0 | M38: 0 | N38: 0 | P38: 0 | Q38: 0
A39: =IF(INTRO!$E$39="Non endémique"," ",IF(COUNTRY_INFO!A39=0," ",COUNTRY_INFO!A39)) -> Burundi | B39: =IF(INTRO!$E$39="Non endémique"," ",IF(COUNTRY_INFO!B39=0," ",COUNTRY_INFO!B39)) -> Muramvya | C39: =IF(INTRO!$E$39="Non endémique"," ",IF(COUNTRY_INFO!C39=0," ",COUNTRY_INFO!C39)) -> Kiganda | D39: =IF(INTRO!$E$39="Non endémique",0,IF(INTRO!$E$39="Endémique mais pas de CP",IF(COUNTRY_INFO!$H39=1,COUNTRY_INFO!F39+COUNTRY_INFO!G39,0),IF(COUNTRY_INFO!$H39=1,COUNTRY_INFO!F39+COUNTRY_INFO!G39,IF(COUNTRY_INFO!$I39=1,IF(COUNTRY_INFO!M39>=(COUNTRY_INFO!F39+COUNTRY_INFO!G39),COUNTRY_INFO!F39+COUNTRY_INFO!G39,COUNTRY_INFO!$M39),0)))) -> 0 | E39: =IF(AND(INTRO!$E$39="Non endémique",INTRO!$E$37="Non endémique"),"Non requis",IF(INTRO!$E$39="Non endémique","Traiter avec DEC",COUNTRY_INFO!P39)) -> 0 | F39: =IF(INTRO!$E$39<>"Non endémique",COUNTRY_INFO!Q39,"Non requis") -> 0 | G39: =IF(COUNTRY_INFO!H39=1, IF($E39=1,$D39, 0),0) -> 0 | H39: =IF(INTRO!$E$39<>"Endémique",0, IF(AND(COUNTRY_INFO!$I39=1,$F39<>0),IF(COUNTRY_INFO!M39>=(COUNTRY_INFO!F39+COUNTRY_INFO!G39),COUNTRY_INFO!F39+COUNTRY_INFO!G39,COUNTRY_INFO!$M39), 0)) -> 0 | J39: 0 | K39: 0 | L39: 0 | M39: 0 | N39: 0 | P39: 0 | Q39: 0
A40: =IF(INTRO!$E$39="Non endémique"," ",IF(COUNTRY_INFO!A40=0," ",COUNTRY_INFO!A40)) -> Burundi | B40: =IF(INTRO!$E$39="Non endémique"," ",IF(COUNTRY_INFO!B40=0," ",COUNTRY_INFO!B40)) -> Muyinga | C40: =IF(INTRO!$E$39="Non endémique"," ",IF(COUNTRY_INFO!C40=0," ",COUNTRY_INFO!C40)) -> Gashoho | D40: =IF(INTRO!$E$39="Non endémique",0,IF(INTRO!$E$39="Endémique mais pas de CP",IF(COUNTRY_INFO!$H40=1,COUNTRY_INFO!F40+COUNTRY_INFO!G40,0),IF(COUNTRY_INFO!$H40=1,COUNTRY_INFO!F40+COUNTRY_INFO!G40,IF(COUNTRY_INFO!$I40=1,IF(COUNTRY_INFO!M40>=(COUNTRY_INFO!F40+COUNTRY_INFO!G40),COUNTRY_INFO!F40+COUNTRY_INFO!G40,COUNTRY_INFO!$M40),0)))) -> 0 | E40: =IF(AND(INTRO!$E$39="Non endémique",INTRO!$E$37="Non endémique"),"Non requis",IF(INTRO!$E$39="Non endémique","Traiter avec DEC",COUNTRY_INFO!P40)) -> 0 | F40: =IF(INTRO!$E$39<>"Non endémique",COUNTRY_INFO!Q40,"Non requis") -> 0 | G40: =IF(COUNTRY_INFO!H40=1, IF($E40=1,$D40, 0),0) -> 0 | H40: =IF(INTRO!$E$39<>"Endémique",0, IF(AND(COUNTRY_INFO!$I40=1,$F40<>0),IF(COUNTRY_INFO!M40>=(COUNTRY_INFO!F40+COUNTRY_INFO!G40),COUNTRY_INFO!F40+COUNTRY_INFO!G40,COUNTRY_INFO!$M40), 0)) -> 0 | J40: 0 | K40: 0 | L40: 0 | M40: 0 | N40: 0 | P40: 0 | Q40: 0
A41: =IF(INTRO!$E$39="Non endémique"," ",IF(COUNTRY_INFO!A41=0," ",COUNTRY_INFO!A41)) -> Burundi | B41: =IF(INTRO!$E$39="Non endémique"," ",IF(COUNTRY_INFO!B41=0," ",COUNTRY_INFO!B41)) -> Muyinga | C41: =IF(INTRO!$E$39="Non endémique"," ",IF(COUNTRY_INFO!C41=0," ",COUNTRY_INFO!C41)) -> Giteranyi | D41: =IF(INTRO!$E$39="Non endémique",0,IF(INTRO!$E$39="Endémique mais pas de CP",IF(COUNTRY_INFO!$H41=1,COUNTRY_INFO!F41+COUNTRY_INFO!G41,0),IF(COUNTRY_INFO!$H41=1,COUNTRY_INFO!F41+COUNTRY_INFO!G41,IF(COUNTRY_INFO!$I41=1,IF(COUNTRY_INFO!M41>=(COUNTRY_INFO!F41+COUNTRY_INFO!G41),COUNTRY_INFO!F41+COUNTRY_INFO!G41,COUNTRY_INFO!$M41),0)))) -> 0 | E41: =IF(AND(INTRO!$E$39="Non endémique",INTRO!$E$37="Non endémique"),"Non requis",IF(INTRO!$E$39="Non endémique","Traiter avec DEC",COUNTRY_INFO!P41)) -> 0 | F41: =IF(INTRO!$E$39<>"Non endémique",COUNTRY_INFO!Q41,"Non requis") -> 0 | G41: =IF(COUNTRY_INFO!H41=1, IF($E41=1,$D41, 0),0) -> 0 | H41: =IF(INTRO!$E$39<>"Endémique",0, IF(AND(COUNTRY_INFO!$I41=1,$F41<>0),IF(COUNTRY_INFO!M41>=(COUNTRY_INFO!F41+COUNTRY_INFO!G41),COUNTRY_INFO!F41+COUNTRY_INFO!G41,COUNTRY_INFO!$M41), 0)) -> 0 | J41: 0 | K41: 0 | L41: 0 | M41: 0 | N41: 0 | P41: 0 | Q41: 0
A42: =IF(INTRO!$E$39="Non endémique"," ",IF(COUNTRY_INFO!A42=0," ",COUNTRY_INFO!A42)) -> Burundi | B42: =IF(INTRO!$E$39="Non endémique"," ",IF(COUNTRY_INFO!B42=0," ",COUNTRY_INFO!B42)) -> Muyinga | C42: =IF(INTRO!$E$39="Non endémique"," ",IF(COUNTRY_INFO!C42=0," ",COUNTRY_INFO!C42)) -> Muyinga | D42: =IF(INTRO!$E$39="Non endémique",0,IF(INTRO!$E$39="Endémique mais pas de CP",IF(COUNTRY_INFO!$H42=1,COUNTRY_INFO!F42+COUNTRY_INFO!G42,0),IF(COUNTRY_INFO!$H42=1,COUNTRY_INFO!F42+COUNTRY_INFO!G42,IF(COUNTRY_INFO!$I42=1,IF(COUNTRY_INFO!M42>=(COUNTRY_INFO!F42+COUNTRY_INFO!G42),COUNTRY_INFO!F42+COUNTRY_INFO!G42,COUNTRY_INFO!$M42),0)))) -> 0 | E42: =IF(AND(INTRO!$E$39="Non endémique",INTRO!$E$37="Non endémique"),"Non requis",IF(INTRO!$E$39="Non endémique","Traiter avec DEC",COUNTRY_INFO!P42)) -> 0 | F42: =IF(INTRO!$E$39<>"Non endémique",COUNTRY_INFO!Q42,"Non requis") -> 0 | G42: =IF(COUNTRY_INFO!H42=1, IF($E42=1,$D42, 0),0) -> 0 | H42: =IF(INTRO!$E$39<>"Endémique",0, IF(AND(COUNTRY_INFO!$I42=1,$F42<>0),IF(COUNTRY_INFO!M42>=(COUNTRY_INFO!F42+COUNTRY_INFO!G42),COUNTRY_INFO!F42+COUNTRY_INFO!G42,COUNTRY_INFO!$M42), 0)) -> 0 | J42: 0 | K42: 0 | L42: 0 | M42: 0 | N42: 0 | P42: 0 | Q42: 0
A43: =IF(INTRO!$E$39="Non endémique"," ",IF(COUNTRY_INFO!A43=0," ",COUNTRY_INFO!A43)) -> Burundi | B43: =IF(INTRO!$E$39="Non endémique"," ",IF(COUNTRY_INFO!B43=0," ",COUNTRY_INFO!B43)) -> Mwaro | C43: =IF(INTRO!$E$39="Non endémique"," ",IF(COUNTRY_INFO!C43=0," ",COUNTRY_INFO!C43)) -> Fota | D43: =IF(INTRO!$E$39="Non endémique",0,IF(INTRO!$E$39="Endémique mais pas de CP",IF(COUNTRY_INFO!$H43=1,COUNTRY_INFO!F43+COUNTRY_INFO!G43,0),IF(COUNTRY_INFO!$H43=1,COUNTRY_INFO!F43+COUNTRY_INFO!G43,IF(COUNTRY_INFO!$I43=1,IF(COUNTRY_INFO!M43>=(COUNTRY_INFO!F43+COUNTRY_INFO!G43),COUNTRY_INFO!F43+COUNTRY_INFO!G43,COUNTRY_INFO!$M43),0)))) -> 0 | E43: =IF(AND(INTRO!$E$39="Non endémique",INTRO!$E$37="Non endémique"),"Non requis",IF(INTRO!$E$39="Non endémique","Traiter avec DEC",COUNTRY_INFO!P43)) -> 0 | F43: =IF(INTRO!$E$39<>"Non endémique",COUNTRY_INFO!Q43,"Non requis") -> 0 | G43: =IF(COUNTRY_INFO!H43=1, IF($E43=1,$D43, 0),0) -> 0 | H43: =IF(INTRO!$E$39<>"Endémique",0, IF(AND(COUNTRY_INFO!$I43=1,$F43<>0),IF(COUNTRY_INFO!M43>=(COUNTRY_INFO!F43+COUNTRY_INFO!G43),COUNTRY_INFO!F43+COUNTRY_INFO!G43,COUNTRY_INFO!$M43), 0)) -> 0 | J43: 0 | K43: 0 | L43: 0 | M43: 0 | N43: 0 | P43: 0 | Q43: 0
A44: =IF(INTRO!$E$39="Non endémique"," ",IF(COUNTRY_INFO!A44=0," ",COUNTRY_INFO!A44)) -> Burundi | B44: =IF(INTRO!$E$39="Non endémique"," ",IF(COUNTRY_INFO!B44=0," ",COUNTRY_INFO!B44)) -> Mwaro | C44: =IF(INTRO!$E$39="Non endémique"," ",IF(COUNTRY_INFO!C44=0," ",COUNTRY_INFO!C44)) -> Kibumbu | D44: =IF(INTRO!$E$39="Non endémique",0,IF(INTRO!$E$39="Endémique mais pas de CP",IF(COUNTRY_INFO!$H44=1,COUNTRY_INFO!F44+COUNTRY_INFO!G44,0),IF(COUNTRY_INFO!$H44=1,COUNTRY_INFO!F44+COUNTRY_INFO!G44,IF(COUNTRY_INFO!$I44=1,IF(COUNTRY_INFO!M44>=(COUNTRY_INFO!F44+COUNTRY_INFO!G44),COUNTRY_INFO!F44+COUNTRY_INFO!G44,COUNTRY_INFO!$M44),0)))) -> 0 | E44: =IF(AND(INTRO!$E$39="Non endémique",INTRO!$E$37="Non endémique"),"Non requis",IF(INTRO!$E$39="Non endémique","Traiter avec DEC",COUNTRY_INFO!P44)) -> 0 | F44: =IF(INTRO!$E$39<>"Non endémique",COUNTRY_INFO!Q44,"Non requis") -> 0 | G44: =IF(COUNTRY_INFO!H44=1, IF($E44=1,$D44, 0),0) -> 0 | H44: =IF(INTRO!$E$39<>"Endémique",0, IF(AND(COUNTRY_INFO!$I44=1,$F44<>0),IF(COUNTRY_INFO!M44>=(COUNTRY_INFO!F44+COUNTRY_INFO!G44),COUNTRY_INFO!F44+COUNTRY_INFO!G44,COUNTRY_INFO!$M44), 0)) -> 0 | J44: 0 | K44: 0 | L44: 0 | M44: 0 | N44: 0 | P44: 0 | Q44: 0
A45: =IF(INTRO!$E$39="Non endémique"," ",IF(COUNTRY_INFO!A45=0," ",COUNTRY_INFO!A45)) -> Burundi | B45: =IF(INTRO!$E$39="Non endémique"," ",IF(COUNTRY_INFO!B45=0," ",COUNTRY_INFO!B45)) -> Ngozi | C45: =IF(INTRO!$E$39="Non endémique"," ",IF(COUNTRY_INFO!C45=0," ",COUNTRY_INFO!C45)) -> Buye | D45: =IF(INTRO!$E$39="Non endémique",0,IF(INTRO!$E$39="Endémique mais pas de CP",IF(COUNTRY_INFO!$H45=1,COUNTRY_INFO!F45+COUNTRY_INFO!G45,0),IF(COUNTRY_INFO!$H45=1,COUNTRY_INFO!F45+COUNTRY_INFO!G45,IF(COUNTRY_INFO!$I45=1,IF(COUNTRY_INFO!M45>=(COUNTRY_INFO!F45+COUNTRY_INFO!G45),COUNTRY_INFO!F45+COUNTRY_INFO!G45,COUNTRY_INFO!$M45),0)))) -> 0 | E45: =IF(AND(INTRO!$E$39="Non endémique",INTRO!$E$37="Non endémique"),"Non requis",IF(INTRO!$E$39="Non endémique","Traiter avec DEC",COUNTRY_INFO!P45)) -> 0 | F45: =IF(INTRO!$E$39<>"Non endémique",COUNTRY_INFO!Q45,"Non requis") -> 0 | G45: =IF(COUNTRY_INFO!H45=1, IF($E45=1,$D45, 0),0) -> 0 | H45: =IF(INTRO!$E$39<>"Endémique",0, IF(AND(COUNTRY_INFO!$I45=1,$F45<>0),IF(COUNTRY_INFO!M45>=(COUNTRY_INFO!F45+COUNTRY_INFO!G45),COUNTRY_INFO!F45+COUNTRY_INFO!G45,COUNTRY_INFO!$M45), 0)) -> 0 | J45: 0 | K45: 0 | L45: 0 | M45: 0 | N45: 0 | P45: 0 | Q45: 0
A46: =IF(INTRO!$E$39="Non endémique"," ",IF(COUNTRY_INFO!A46=0," ",COUNTRY_INFO!A46)) -> Burundi | B46: =IF(INTRO!$E$39="Non endémique"," ",IF(COUNTRY_INFO!B46=0," ",COUNTRY_INFO!B46)) -> Ngozi | C46: =IF(INTRO!$E$39="Non endémique"," ",IF(COUNTRY_INFO!C46=0," ",COUNTRY_INFO!C46)) -> Kiremba | D46: =IF(INTRO!$E$39="Non endémique",0,IF(INTRO!$E$39="Endémique mais pas de CP",IF(COUNTRY_INFO!$H46=1,COUNTRY_INFO!F46+COUNTRY_INFO!G46,0),IF(COUNTRY_INFO!$H46=1,COUNTRY_INFO!F46+COUNTRY_INFO!G46,IF(COUNTRY_INFO!$I46=1,IF(COUNTRY_INFO!M46>=(COUNTRY_INFO!F46+COUNTRY_INFO!G46),COUNTRY_INFO!F46+COUNTRY_INFO!G46,COUNTRY_INFO!$M46),0)))) -> 0 | E46: =IF(AND(INTRO!$E$39="Non endémique",INTRO!$E$37="Non endémique"),"Non requis",IF(INTRO!$E$39="Non endémique","Traiter avec DEC",COUNTRY_INFO!P46)) -> 0 | F46: =IF(INTRO!$E$39<>"Non endémique",COUNTRY_INFO!Q46,"Non requis") -> 0 | G46: =IF(COUNTRY_INFO!H46=1, IF($E46=1,$D46, 0),0) -> 0 | H46: =IF(INTRO!$E$39<>"Endémique",0, IF(AND(COUNTRY_INFO!$I46=1,$F46<>0),IF(COUNTRY_INFO!M46>=(COUNTRY_INFO!F46+COUNTRY_INFO!G46),COUNTRY_INFO!F46+COUNTRY_INFO!G46,COUNTRY_INFO!$M46), 0)) -> 0 | J46: 0 | K46: 0 | L46: 0 | M46: 0 | N46: 0 | P46: 0 | Q46: 0
A47: =IF(INTRO!$E$39="Non endémique"," ",IF(COUNTRY_INFO!A47=0," ",COUNTRY_INFO!A47)) -> Burundi | B47: =IF(INTRO!$E$39="Non endémique"," ",IF(COUNTRY_INFO!B47=0," ",COUNTRY_INFO!B47)) -> Ngozi | C47: =IF(INTRO!$E$39="Non endémique"," ",IF(COUNTRY_INFO!C47=0," ",COUNTRY_INFO!C47)) -> Ngozi | D47: =IF(INTRO!$E$39="Non endémique",0,IF(INTRO!$E$39="Endémique mais pas de CP",IF(COUNTRY_INFO!$H47=1,COUNTRY_INFO!F47+COUNTRY_INFO!G47,0),IF(COUNTRY_INFO!$H47=1,COUNTRY_INFO!F47+COUNTRY_INFO!G47,IF(COUNTRY_INFO!$I47=1,IF(COUNTRY_INFO!M47>=(COUNTRY_INFO!F47+COUNTRY_INFO!G47),COUNTRY_INFO!F47+COUNTRY_INFO!G47,COUNTRY_INFO!$M47),0)))) -> 0 | E47: =IF(AND(INTRO!$E$39="Non endémique",INTRO!$E$37="Non endémique"),"Non requis",IF(INTRO!$E$39="Non endémique","Traiter avec DEC",COUNTRY_INFO!P47)) -> 0 | F47: =IF(INTRO!$E$39<>"Non endémique",COUNTRY_INFO!Q47,"Non requis") -> 0 | G47: =IF(COUNTRY_INFO!H47=1, IF($E47=1,$D47, 0),0) -> 0 | H47: =IF(INTRO!$E$39<>"Endémique",0, IF(AND(COUNTRY_INFO!$I47=1,$F47<>0),IF(COUNTRY_INFO!M47>=(COUNTRY_INFO!F47+COUNTRY_INFO!G47),COUNTRY_INFO!F47+COUNTRY_INFO!G47,COUNTRY_INFO!$M47), 0)) -> 0 | J47: 0 | K47: 0 | L47: 0 | M47: 0 | N47: 0 | P47: 0 | Q47: 0
A48: =IF(INTRO!$E$39="Non endémique"," ",IF(COUNTRY_INFO!A48=0," ",COUNTRY_INFO!A48)) -> Burundi | B48: =IF(INTRO!$E$39="Non endémique"," ",IF(COUNTRY_INFO!B48=0," ",COUNTRY_INFO!B48)) -> Rumonge | C48: =IF(INTRO!$E$39="Non endémique"," ",IF(COUNTRY_INFO!C48=0," ",COUNTRY_INFO!C48)) -> Bugarama | D48: =IF(INTRO!$E$39="Non endémique",0,IF(INTRO!$E$39="Endémique mais pas de CP",IF(COUNTRY_INFO!$H48=1,COUNTRY_INFO!F48+COUNTRY_INFO!G48,0),IF(COUNTRY_INFO!$H48=1,COUNTRY_INFO!F48+COUNTRY_INFO!G48,IF(COUNTRY_INFO!$I48=1,IF(COUNTRY_INFO!M48>=(COUNTRY_INFO!F48+COUNTRY_INFO!G48),COUNTRY_INFO!F48+COUNTRY_INFO!G48,COUNTRY_INFO!$M48),0)))) -> 79134 | E48: =IF(AND(INTRO!$E$39="Non endémique",INTRO!$E$37="Non endémique"),"Non requis",IF(INTRO!$E$39="Non endémique","Traiter avec DEC",COUNTRY_INFO!P48)) -> 0 | F48: =IF(INTRO!$E$39<>"Non endémique",COUNTRY_INFO!Q48,"Non requis") -> 1 | G48: =IF(COUNTRY_INFO!H48=1, IF($E48=1,$D48, 0),0) -> 0 | H48: =IF(INTRO!$E$39<>"Endémique",0, IF(AND(COUNTRY_INFO!$I48=1,$F48<>0),IF(COUNTRY_INFO!M48>=(COUNTRY_INFO!F48+COUNTRY_INFO!G48),COUNTRY_INFO!F48+COUNTRY_INFO!G48,COUNTRY_INFO!$M48), 0)) -> 79134 | J48: 79134 | K48: 0 | L48: 221575.2 | M48: 0 | N48: 221575.2 | P48: 221575.2 | Q48: 444
A49: =IF(INTRO!$E$39="Non endémique"," ",IF(COUNTRY_INFO!A49=0," ",COUNTRY_INFO!A49)) -> Burundi | B49: =IF(INTRO!$E$39="Non endémique"," ",IF(COUNTRY_INFO!B49=0," ",COUNTRY_INFO!B49)) -> Rumonge | C49: =IF(INTRO!$E$39="Non endémique"," ",IF(COUNTRY_INFO!C49=0," ",COUNTRY_INFO!C49)) -> Rumonge | D49: =IF(INTRO!$E$39="Non endémique",0,IF(INTRO!$E$39="Endémique mais pas de CP",IF(COUNTRY_INFO!$H49=1,COUNTRY_INFO!F49+COUNTRY_INFO!G49,0),IF(COUNTRY_INFO!$H49=1,COUNTRY_INFO!F49+COUNTRY_INFO!G49,IF(COUNTRY_INFO!$I49=1,IF(COUNTRY_INFO!M49>=(COUNTRY_INFO!F49+COUNTRY_INFO!G49),COUNTRY_INFO!F49+COUNTRY_INFO!G49,COUNTRY_INFO!$M49),0)))) -> 269476 | E49: =IF(AND(INTRO!$E$39="Non endémique",INTRO!$E$37="Non endémique"),"Non requis",IF(INTRO!$E$39="Non endémique","Traiter avec DEC",COUNTRY_INFO!P49)) -> 0 | F49: =IF(INTRO!$E$39<>"Non endémique",COUNTRY_INFO!Q49,"Non requis") -> 1 | G49: =IF(COUNTRY_INFO!H49=1, IF($E49=1,$D49, 0),0) -> 0 | H49: =IF(INTRO!$E$39<>"Endémique",0, IF(AND(COUNTRY_INFO!$I49=1,$F49<>0),IF(COUNTRY_INFO!M49>=(COUNTRY_INFO!F49+COUNTRY_INFO!G49),COUNTRY_INFO!F49+COUNTRY_INFO!G49,COUNTRY_INFO!$M49), 0)) -> 269476 | J49: 269476 | K49: 0 | L49: 754532.8 | M49: 0 | N49: 754532.8 | P49: 754532.8 | Q49: 1510
A50: =IF(INTRO!$E$39="Non endémique"," ",IF(COUNTRY_INFO!A50=0," ",COUNTRY_INFO!A50)) -> Burundi | B50: =IF(INTRO!$E$39="Non endémique"," ",IF(COUNTRY_INFO!B50=0," ",COUNTRY_INFO!B50)) -> Rutana | C50: =IF(INTRO!$E$39="Non endémique"," ",IF(COUNTRY_INFO!C50=0," ",COUNTRY_INFO!C50)) -> Gihofi | D50: =IF(INTRO!$E$39="Non endémique",0,IF(INTRO!$E$39="Endémique mais pas de CP",IF(COUNTRY_INFO!$H50=1,COUNTRY_INFO!F50+COUNTRY_INFO!G50,0),IF(COUNTRY_INFO!$H50=1,COUNTRY_INFO!F50+COUNTRY_INFO!G50,IF(COUNTRY_INFO!$I50=1,IF(COUNTRY_INFO!M50>=(COUNTRY_INFO!F50+COUNTRY_INFO!G50),COUNTRY_INFO!F50+COUNTRY_INFO!G50,COUNTRY_INFO!$M50),0)))) -> 225147 | E50: =IF(AND(INTRO!$E$39="Non endémique",INTRO!$E$37="Non endémique"),"Non requis",IF(INTRO!$E$39="Non endémique","Traiter avec DEC",COUNTRY_INFO!P50)) -> 0 | F50: =IF(INTRO!$E$39<>"Non endémique",COUNTRY_INFO!Q50,"Non requis") -> 1 | G50: =IF(COUNTRY_INFO!H50=1, IF($E50=1,$D50, 0),0) -> 0 | H50: =IF(INTRO!$E$39<>"Endémique",0, IF(AND(COUNTRY_INFO!$I50=1,$F50<>0),IF(COUNTRY_INFO!M50>=(COUNTRY_INFO!F50+COUNTRY_INFO!G50),COUNTRY_INFO!F50+COUNTRY_INFO!G50,COUNTRY_INFO!$M50), 0)) -> 225147 | J50: 225147 | K50: 0 | L50: 630411.6 | M50: 0 | N50: 630411.6 | P50: 630411.6 | Q50: 1261
A51: =IF(INTRO!$E$39="Non endémique"," ",IF(COUNTRY_INFO!A51=0," ",COUNTRY_INFO!A51)) -> Burundi | B51: =IF(INTRO!$E$39="Non endémique"," ",IF(COUNTRY_INFO!B51=0," ",COUNTRY_INFO!B51)) -> Rutana | C51: =IF(INTRO!$E$39="Non endémique"," ",IF(COUNTRY_INFO!C51=0," ",COUNTRY_INFO!C51)) -> Rutana | D51: =IF(INTRO!$E$39="Non endémique",0,IF(INTRO!$E$39="Endémique mais pas de CP",IF(COUNTRY_INFO!$H51=1,COUNTRY_INFO!F51+COUNTRY_INFO!G51,0),IF(COUNTRY_INFO!$H51=1,COUNTRY_INFO!F51+COUNTRY_INFO!G51,IF(COUNTRY_INFO!$I51=1,IF(COUNTRY_INFO!M51>=(COUNTRY_INFO!F51+COUNTRY_INFO!G51),COUNTRY_INFO!F51+COUNTRY_INFO!G51,COUNTRY_INFO!$M51),0)))) -> 24588 | E51: =IF(AND(INTRO!$E$39="Non endémique",INTRO!$E$37="Non endémique"),"Non requis",IF(INTRO!$E$39="Non endémique","Traiter avec DEC",COUNTRY_INFO!P51)) -> 0 | F51: =IF(INTRO!$E$39<>"Non endémique",COUNTRY_INFO!Q51,"Non requis") -> 1 | G51: =IF(COUNTRY_INFO!H51=1, IF($E51=1,$D51, 0),0) -> 0 | H51: =IF(INTRO!$E$39<>"Endémique",0, IF(AND(COUNTRY_INFO!$I51=1,$F51<>0),IF(COUNTRY_INFO!M51>=(COUNTRY_INFO!F51+COUNTRY_INFO!G51),COUNTRY_INFO!F51+COUNTRY_INFO!G51,COUNTRY_INFO!$M51), 0)) -> 24588 | J51: 24588 | K51: 0 | L51: 68846.4 | M51: 0 | N51: 68846.4 | P51: 68846.4 | Q51: 138
A52: =IF(INTRO!$E$39="Non endémique"," ",IF(COUNTRY_INFO!A52=0," ",COUNTRY_INFO!A52)) -> Burundi | B52: =IF(INTRO!$E$39="Non endémique"," ",IF(COUNTRY_INFO!B52=0," ",COUNTRY_INFO!B52)) -> Ruyigi | C52: =IF(INTRO!$E$39="Non endémique"," ",IF(COUNTRY_INFO!C52=0," ",COUNTRY_INFO!C52)) -> Butezi | D52: =IF(INTRO!$E$39="Non endémique",0,IF(INTRO!$E$39="Endémique mais pas de CP",IF(COUNTRY_INFO!$H52=1,COUNTRY_INFO!F52+COUNTRY_INFO!G52,0),IF(COUNTRY_INFO!$H52=1,COUNTRY_INFO!F52+COUNTRY_INFO!G52,IF(COUNTRY_INFO!$I52=1,IF(COUNTRY_INFO!M52>=(COUNTRY_INFO!F52+COUNTRY_INFO!G52),COUNTRY_INFO!F52+COUNTRY_INFO!G52,COUNTRY_INFO!$M52),0)))) -> 0 | E52: =IF(AND(INTRO!$E$39="Non endémique",INTRO!$E$37="Non endémique"),"Non requis",IF(INTRO!$E$39="Non endémique","Traiter avec DEC",COUNTRY_INFO!P52)) -> 0 | F52: =IF(INTRO!$E$39<>"Non endémique",COUNTRY_INFO!Q52,"Non requis") -> 0 | G52: =IF(COUNTRY_INFO!H52=1, IF($E52=1,$D52, 0),0) -> 0 | H52: =IF(INTRO!$E$39<>"Endémique",0, IF(AND(COUNTRY_INFO!$I52=1,$F52<>0),IF(COUNTRY_INFO!M52>=(COUNTRY_INFO!F52+COUNTRY_INFO!G52),COUNTRY_INFO!F52+COUNTRY_INFO!G52,COUNTRY_INFO!$M52), 0)) -> 0 | J52: 0 | K52: 0 | L52: 0 | M52: 0 | N52: 0 | P52: 0 | Q52: 0
A53: =IF(INTRO!$E$39="Non endémique"," ",IF(COUNTRY_INFO!A53=0," ",COUNTRY_INFO!A53)) -> Burundi | B53: =IF(INTRO!$E$39="Non endémique"," ",IF(COUNTRY_INFO!B53=0," ",COUNTRY_INFO!B53)) -> Ruyigi | C53: =IF(INTRO!$E$39="Non endémique"," ",IF(COUNTRY_INFO!C53=0," ",COUNTRY_INFO!C53)) -> Kinyinya | D53: =IF(INTRO!$E$39="Non endémique",0,IF(INTRO!$E$39="Endémique mais pas de CP",IF(COUNTRY_INFO!$H53=1,COUNTRY_INFO!F53+COUNTRY_INFO!G53,0),IF(COUNTRY_INFO!$H53=1,COUNTRY_INFO!F53+COUNTRY_INFO!G53,IF(COUNTRY_INFO!$I53=1,IF(COUNTRY_INFO!M53>=(COUNTRY_INFO!F53+COUNTRY_INFO!G53),COUNTRY_INFO!F53+COUNTRY_INFO!G53,COUNTRY_INFO!$M53),0)))) -> 0 | E53: =IF(AND(INTRO!$E$39="Non endémique",INTRO!$E$37="Non endémique"),"Non requis",IF(INTRO!$E$39="Non endémique","Traiter avec DEC",COUNTRY_INFO!P53)) -> 0 | F53: =IF(INTRO!$E$39<>"Non endémique",COUNTRY_INFO!Q53,"Non requis") -> 0 | G53: =IF(COUNTRY_INFO!H53=1, IF($E53=1,$D53, 0),0) -> 0 | H53: =IF(INTRO!$E$39<>"Endémique",0, IF(AND(COUNTRY_INFO!$I53=1,$F53<>0),IF(COUNTRY_INFO!M53>=(COUNTRY_INFO!F53+COUNTRY_INFO!G53),COUNTRY_INFO!F53+COUNTRY_INFO!G53,COUNTRY_INFO!$M53), 0)) -> 0 | J53: 0 | K53: 0 | L53: 0 | M53: 0 | N53: 0 | P53: 0 | Q53: 0
A54: =IF(INTRO!$E$39="Non endémique"," ",IF(COUNTRY_INFO!A54=0," ",COUNTRY_INFO!A54)) -> Burundi | B54: =IF(INTRO!$E$39="Non endémique"," ",IF(COUNTRY_INFO!B54=0," ",COUNTRY_INFO!B54)) -> Ruyigi | C54: =IF(INTRO!$E$39="Non endémique"," ",IF(COUNTRY_INFO!C54=0," ",COUNTRY_INFO!C54)) -> Ruyigi | D54: =IF(INTRO!$E$39="Non endémique",0,IF(INTRO!$E$39="Endémique mais pas de CP",IF(COUNTRY_INFO!$H54=1,COUNTRY_INFO!F54+COUNTRY_INFO!G54,0),IF(COUNTRY_INFO!$H54=1,COUNTRY_INFO!F54+COUNTRY_INFO!G54,IF(COUNTRY_INFO!$I54=1,IF(COUNTRY_INFO!M54>=(COUNTRY_INFO!F54+COUNTRY_INFO!G54),COUNTRY_INFO!F54+COUNTRY_INFO!G54,COUNTRY_INFO!$M54),0)))) -> 0 | E54: =IF(AND(INTRO!$E$39="Non endémique",INTRO!$E$37="Non endémique"),"Non requis",IF(INTRO!$E$39="Non endémique","Traiter avec DEC",COUNTRY_INFO!P54)) -> 0 | F54: =IF(INTRO!$E$39<>"Non endémique",COUNTRY_INFO!Q54,"Non requis") -> 0 | G54: =IF(COUNTRY_INFO!H54=1, IF($E54=1,$D54, 0),0) -> 0 | H54: =IF(INTRO!$E$39<>"Endémique",0, IF(AND(COUNTRY_INFO!$I54=1,$F54<>0),IF(COUNTRY_INFO!M54>=(COUNTRY_INFO!F54+COUNTRY_INFO!G54),COUNTRY_INFO!F54+COUNTRY_INFO!G54,COUNTRY_INFO!$M54), 0)) -> 0 | J54: 0 | K54: 0 | L54: 0 | M54: 0 | N54: 0 | P54: 0 | Q54: 0

Sheet SUMMARY
B2: Formulaire de demande commune de médicaments pour CP v.3
B4: Ce formulaire constitue une demande officielle du Gouvernement à l'OMS pour l'approvisionnement des médicaments mentionnés ci-dessus. Ce formulaire peut-être soumis à n'importe quel moment, avant le 15 août de l'année en cours, pour une livraison de médicaments au courant de l'année suivante, mais au moins 6-8 mois avant l’intervention planifiée afin de laisser le temps nécessaire pour réviser et approuver la demande, placer la commande, élaborer les médicaments et les expédier vers les pays.
B6: Pays | C6: =IF(INTRO!$E$33<>0,INTRO!$E$33," ") -> Burundi | G6: Année | H6: =IF(INTRO!$E$35<>0,INTRO!$E$35," ") -> 2019
B8: Informations concernant les médicaments CP demandés à l’OMS
B10: Le médicament | C10: Nombre de comprimés | G10: Nombre total de flacons
C11: Requis | D11: En stock | E11: En cours de demande | F11: Demandés | G11: Requis | H11: Demandés
B12: Albendazole pour STH (EAS) | C12: 5899062 | D12: 19204700 | E12: 4521000 | F12: =IF(C12>(D12+E12),C12-D12-E12, 0) -> 0 | G12: =IF($C12=0,0, IF($B12="Albendazole pour FL", IF($C12=ALB_MBD!$I$4,ALB_MBD!$U$4,ROUNDUP($C12/200,0)), IF($B12="Albendazole pour STH (EAS)", IF($C12=ALB_MBD!$L$4,ALB_MBD!$X$4,ROUNDUP($C12/200,0)), IF($B12="Mebendazole (EAS)", IF($C12=ALB_MBD!$P$4,ALB_MBD!$AA$4,ROUNDUP($C12/150,0)), IF($B12="Diethylcarbamazine", IF($C12=DEC!$J$4,DEC!$M$4,ROUNDUP($C12/1000,0)), IF($B12="Praziquantel (EAS)", IF($C12=PZQ!$O$4,PZQ!$R$4,ROUNDUP($C12/1000,0)), IF($B12="Ivermectine", IF($C12=IVM!$N$4,IVM!$Q$4,$C12/500+0.49),0))))))) -> 29518 | H12: =IF($F12=0,0,IF(OR($B12="Albendazole pour FL",$B12="Albendazole pour STH (EAS)"),$G12-ROUNDUP(($E12+$D12)/200,0),IF($B12="Ivermectine",$G12-ROUNDUP(($E12+$D12)/500,0),IF($B12="Mebendazole (EAS)",$G12-ROUNDUP(($E12+$D12)/150,0),$G12-ROUNDUP(($E12+$D12)/1000,0))))) -> 0
B13: Praziquantel (EAS) | C13: 3663127.5 | D13: 92000 | F13: 3571127.5 | G13: =IF($C13=0,0, IF($B13="Albendazole pour FL", IF($C13=ALB_MBD!$I$4,ALB_MBD!$U$4,ROUNDUP($C13/200,0)), IF($B13="Albendazole pour STH (EAS)", IF($C13=ALB_MBD!$L$4,ALB_MBD!$X$4,ROUNDUP($C13/200,0)), IF($B13="Mebendazole (EAS)", IF($C13=ALB_MBD!$P$4,ALB_MBD!$AA$4,ROUNDUP($C13/150,0)), IF($B13="Diethylcarbamazine", IF($C13=DEC!$J$4,DEC!$M$4,ROUNDUP($C13/1000,0)), IF($B13="Praziquantel (EAS)", IF($C13=PZQ!$O$4,PZQ!$R$4,ROUNDUP($C13/1000,0)), IF($B13="Ivermectine", IF($C13=IVM!$N$4,IVM!$Q$4,$C13/500+0.49),0))))))) -> 3674 | H13: 3582
B14: Ivermectine | C14: 4499381.6 | D14: 1068668 | F14: 3430713.6 | G14: =IF($C14=0,0, IF($B14="Albendazole pour FL", IF($C14=ALB_MBD!$I$4,ALB_MBD!$U$4,ROUNDUP($C14/200,0)), IF($B14="Albendazole pour STH (EAS)", IF($C14=ALB_MBD!$L$4,ALB_MBD!$X$4,ROUNDUP($C14/200,0)), IF($B14="Mebendazole (EAS)", IF($C14=ALB_MBD!$P$4,ALB_MBD!$AA$4,ROUNDUP($C14/150,0)), IF($B14="Diethylcarbamazine", IF($C14=DEC!$J$4,DEC!$M$4,ROUNDUP($C14/1000,0)), IF($B14="Praziquantel (EAS)", IF($C14=PZQ!$O$4,PZQ!$R$4,ROUNDUP($C14/1000,0)), IF($B14="Ivermectine", IF($C14=IVM!$N$4,IVM!$Q$4,$C14/500+0.49),0))))))) -> 9004 | H14: 6866
C15: 0 | D15: 0 | F15: 0 | G15: =IF($C15=0,0, IF($B15="Albendazole pour FL", IF($C15=ALB_MBD!$I$4,ALB_MBD!$U$4,ROUNDUP($C15/200,0)), IF($B15="Albendazole pour STH (EAS)", IF($C15=ALB_MBD!$L$4,ALB_MBD!$X$4,ROUNDUP($C15/200,0)), IF($B15="Mebendazole (EAS)", IF($C15=ALB_MBD!$P$4,ALB_MBD!$AA$4,ROUNDUP($C15/150,0)), IF($B15="Diethylcarbamazine", IF($C15=DEC!$J$4,DEC!$M$4,ROUNDUP($C15/1000,0)), IF($B15="Praziquantel (EAS)", IF($C15=PZQ!$O$4,PZQ!$R$4,ROUNDUP($C15/1000,0)), IF($B15="Ivermectine", IF($C15=IVM!$N$4,IVM!$Q$4,$C15/500+0.49),0))))))) -> 0 | H15: 0
C16: 0 | D16: 0 | F16: 0 | G16: =IF($C16=0,0, IF($B16="Albendazole pour FL", IF($C16=ALB_MBD!$I$4,ALB_MBD!$U$4,ROUNDUP($C16/200,0)), IF($B16="Albendazole pour STH (EAS)", IF($C16=ALB_MBD!$L$4,ALB_MBD!$X$4,ROUNDUP($C16/200,0)), IF($B16="Mebendazole (EAS)", IF($C16=ALB_MBD!$P$4,ALB_MBD!$AA$4,ROUNDUP($C16/150,0)), IF($B16="Diethylcarbamazine", IF($C16=DEC!$J$4,DEC!$M$4,ROUNDUP($C16/1000,0)), IF($B16="Praziquantel (EAS)", IF($C16=PZQ!$O$4,PZQ!$R$4,ROUNDUP($C16/1000,0)), IF($B16="Ivermectine", IF($C16=IVM!$N$4,IVM!$Q$4,$C16/500+0.49),0))))))) -> 0 | H16: 0
C17: 0 | D17: 0 | F17: 0 | G17: =IF($C17=0,0, IF($B17="Albendazole pour FL", IF($C17=ALB_MBD!$I$4,ALB_MBD!$U$4,ROUNDUP($C17/200,0)), IF($B17="Albendazole pour STH (EAS)", IF($C17=ALB_MBD!$L$4,ALB_MBD!$X$4,ROUNDUP($C17/200,0)), IF($B17="Mebendazole (EAS)", IF($C17=ALB_MBD!$P$4,ALB_MBD!$AA$4,ROUNDUP($C17/150,0)), IF($B17="Diethylcarbamazine", IF($C17=DEC!$J$4,DEC!$M$4,ROUNDUP($C17/1000,0)), IF($B17="Praziquantel (EAS)", IF($C17=PZQ!$O$4,PZQ!$R$4,ROUNDUP($C17/1000,0)), IF($B17="Ivermectine", IF($C17=IVM!$N$4,IVM!$Q$4,$C17/500+0.49),0))))))) -> 0 | H17: 0
B19: Nombre de personnes devant être traitées avec le médicament donné
B21: Veuillez sélectionner la maladie | G21: 1er tour | H21: 2ème tour
B22: Schistosomiase | C22: Ces chiffres sont estimés uniquement pour les goupes d'âge ciblés pour le traitement avec les médicaments donnés, dans les régions où le traitement de maladies spécifiques est requis | G22: 1465251
B23: Géohelminthiases | G23: 2949531 | H23: 2949531
B24: Onchocercose | G24: 1606922 | H24: 0
B29: Informations sur les interventions CP planifiées
B31: Le médicament | C31: Veuillez sélectionner une date (mois et année) pour la 1ère tournée de CP | E31: Veuillez sélectionner une date (mois et année) pour la 2ème tournée de CP | G31: Date à laquelle les médicaments devraient atteindre l’entrepôt national
B32: Praziquantel (EAS) | C32: Décembre | D32: 2019 | G32: Septembre | H32: 2019
B33: Ivermectine | C33: Septembre | D33: 2019 | G33: Août | H33: 2019
B34: Albendazole pour STH (EAS) | C34: Juin | D34: 2019 | E34: Décembre | F34: 2019 | G34: Avril | H34: 2019
B39: Informations sur les médicaments de chimiothérapie préventive pour le traitement de populations non ciblées par la donation en cours via l’OMS
B41: Le médicament | C41: Groupe d'âge | D41: # de personnes | E41: # de comprimés | F41: Source | H41: Statut
B42: Praziquantel | C42: Adults | D42: 82481.8 | E42: 247466 | H42: Requis
B43: Albendazole pour STH | C43: Adults | D43: 1303688 | E43: 1303688 | F43: Adultes déparasités lors de la campagne TIDC
B53: Récapitulatif - Checklist
B54: Submission
B55: Que faut-il soumettre ?
B56: L'approvisionnement des médicaments demandés doit être basé sur des données épidémiologiques à jour, des plans d'utilisation des médicaments spécifiques et sur la capacité de mise en oeuvre. La liste suivante permet d'assurer que tous les formulaires et toutes les informations sont fournis à l'OMS (en format électronique).
B57: Formulaire de demande commune de médicaments pour chimioprévention
B58: Formulaire de rapport commun
B59: Déclaration des données épidémiologiques pour la CP
B61: Disponibilité de financement pour la mise en oeuvre de tournées pendant l’année pour laquelle les medicaments ont été demandés
B63: Maladies ciblées pour la mise en oeuvre | C63: # de traitements | D63: Financement assuré pour | E63: Origine | H63: Montant
B64: =B22 -> Schistosomiase | C64: =SUM(G22:H22) -> 1465251 | E64: SCI OMS ESPEN
B65: =B23 -> Géohelminthiases | C65: =SUM(G23:H23) -> 5899062 | E65: Food for Hungry , OMS ,UNICEF
B66: =B24 -> Onchocercose | C66: =SUM(G24:H24) -> 1606922 | E66: CBM MDP OMS
B67: =B25 -> 0 | C67: =SUM(G25:H25) -> 0
B69: Qui doit remplir le formulaire ?
B70: Le Coordonnateur national MTN doit compiler toutes les informations nécessaires pour compléter le formulaire de demande. En l'absence d'un coordonnateur, les gestionnaires de programmes spécifiques devraient coordonner leurs sections respectives. Une fois finalisée, chaque demande individuelle doit être approuvée par le Ministère de la Santé.
B72: Informations concernant la (les) personne(s) ayant rempli le formulaire
B74: Titre/fonction | C74: Nom | E74: Téléphone | G74: Email | H74: Date
B75: Coordonnateur MTN/CP | C75: Dr Bucumi Victor | E75: 257 22 25 71 53 | G75: bucumi.victor@gmail.com | H75: 2018-06-21
B80: L’OMS recommende que tous les effets secondaires graves suspectés d’être associés à l’ingestion de médicaments de CP soient rapportés en suivant les lignes directrices nationales de pharmacovigilance. En l’absence d’un système de pharmacovigilance national, contactez le département de Contrôle des Maladies Tropicales Négligées pour être conseillé.
B81: L’OMS s’est engagée à rendre possible la donation de médicaments en fournissant gratuitement: a) albendazole, mebendazole et praziquantel à l’entrepôt national du Ministère de la Santé et b) diethylcarbamazine au port d’entrée du pays receveur.
B82: L’institution soumettant la présente requête est responsable de: a) l’organisation du déchargement des médicaments du camion, du stockage dans l’entrepôt national et de l’expédition vers les centres où aura lieu la distribution finale; b) de l’enregistrement, si nécessaire, des médicaments donnés, auprès des autorités nationales en charge; et de c) de l’information de n’importe quels changements ayant trait à leurs campagnes de traitement (par exemple le report d’une date planifiée de distribution en masse de médicaments, le remplacement d’un coordonateur MTN, etc.).
B83: Nom et signature du Coordonnateur MTN ou du Représentant du Ministère de la Santé | D83: Dr BUCUMI Victor
B84: Date | D84: 2018-07-06
B86: Si vous avez plus d'un destinataire final pour les médicaments de chimioprévention demandés, veuillez compléter les informations de la rubrique "Informations concernant l'envoi et le destinataire" dans la feuille de travail SHIPMENT.
B87: Veuillez envoyer le rapport national (signé et sous format électronique) au représentant de I'OMS du pays en mettant en copie:
B88: Siège de l'OMS | C88: PC_JointForms@who.int
B89: Bureau régional de l'OMS | C89: Conseiller régional MTN
B90: Mectizan donation programme | C90: Dr Yao Sodahlon, email: ysodahlon@taskforce.org
B92: Veuillez noter que votre demande sera examinée par un panel d'experts indépendants (Comité ad hoc d’évaluation conjointe). Les informations contenues dans ce formulaire, le rapport commun d'activités (ou rapport national d'activités) et le plan d'action annuel sont essentiels à l'OMS pour assurer un usage optimal des médicaments. Dans le cadre de ses activités courantes de suivi et d'évaluation, et afin d'honorer ses obligations contractuelles envers les bailleurs de fonds et autres partenaires, l'OMS et ses agents affiliés se réservent le droit d'inspecter, périodiquement, les stocks de médicaments au niveau national.

Sheet SHIPMENT
B2: Formulaire de demande commune de médicaments pour CP v.3
B4: Pays | C4: =IF(INTRO!$E$33<>0,INTRO!$E$33," ") -> Burundi | G4: Année | H4: =IF(INTRO!$E$35<>0,INTRO!$E$35," ") -> 2019
B6: Informations sur l'envoi et le destinataire
B8: Albendazole pour STH | C8: Destinataire | F8: Destinataire final si différent du destinaire précédent
B9: Nom | C9: Dr BUCUMI Victor
B10: Département/Unité | C10: MSPLS-PNIMTNC
B11: Organisation
B12: Téléphone | C12: 25779281945 / +257 22257153
B13: Fax
B14: E-mail | C14: bucumi.victor@gmail.com
B15: Adresse postale
B17: Praziquantel | C17: Destinataire | F17: Destinataire final si différent du destinaire précédent
B18: Nom | C18: Dr BUCUMI Victor
B19: Département/Unité | C19: MSPLS-PNIMTNC
B20: Organisation
B21: Téléphone | C21: 25779281945 / +257 22257153
B22: Fax
B23: E-mail | C23: bucumi.victor@gmail.com
B24: Adresse postale
B26: Ivermectine | C26: Destinataire | F26: Destinataire final si différent du destinaire précédent
B27: Nom | C27: Dr BUCUMI Victor
B28: Département/Unité | C28: MSPLS-PNIMTNC
B29: Organisation
B30: Téléphone | C30: 25779281945 / +257 22257153
B31: Fax
B32: E-mail | C32: bucumi.victor@gmail.com
B33: Adresse postale
B35: Information concernant les obligations légales d’importation
B37: Est le permis d'importation nécessaire? | H37: Oui
B38: Combien de temps cela prend-il pour obtenir le permis d’importation? | H38: Mois
B39: Avez vous besoin que certains documents soient remis en même temps que la demande de permis d’importation? | H39: Oui
B40: Si oui, merci de bien vouloir spécifier lesquels ici
B41: Est-ce que le destinataire doit procéder au dédouanement avant que l’expédition puisse avoir lieu?
B42: Y a-t-il des informations supplémentaires qui pourraient être utiles afin d’assurer un dédouanement et une livraison rapide des médicaments dans votre pays?
B43: Si oui, merci de bien vouloir spécifier lesquels ici
B46: Remarques supplémentaires éventuelles liées à cette requête
